Workbook

Sheet Cover
C2: United Energy
C3: Regulatory proposal 2026-31
C5: Parallel risk model
C6: Model number: | D6: 4.04
C8: 2025-01-31
A40: =_xlfn.SHEETS() -> 14

Sheet Front Page
M1: 1 | N1: 2 | O1: 3 | P1: 4 | Q1: 5 | R1: 6 | S1: 7 | T1: 8 | U1: 9 | V1: 10
B2: Redundant System Model - Substations | G2: Scenario # | I2: Option Year | L2: Include Option | M2: TRUE | N2: TRUE | O2: TRUE | P2: FALSE | Q2: FALSE | R2: FALSE | S2: FALSE | T2: FALSE | U2: FALSE | V2: FALSE
B3: Input Data - Station Configuration | D3: Constants | G3: 3 | I3: 2028 | L3: Scenario Modifiers | M3: Option 1 - Status Quo | N3: Option 2 | O3: Option 3 | P3: Option 4 | Q3: Option 5 | R3: Option 6 | S3: Option 7 | T3: Option 8 | U3: Option 9 | V3: Option 10
B4: Substation: | C4: MNA | D4: Major Failure CoC | L4: Spare Available | M4: TRUE | N4: TRUE | O4: TRUE | P4: FALSE | Q4: FALSE | R4: FALSE | S4: FALSE | T4: FALSE | U4: FALSE | V4: FALSE
B5: Asset Type | C5: Transformer | D5: Minor Failure CoC | L5: Online Monitoring | M5: FALSE | N5: FALSE | O5: FALSE | P5: TRUE | Q5: FALSE | R5: FALSE | S5: FALSE | T5: FALSE | U5: FALSE | V5: FALSE
B6: VCR | C6: =VCR -> 48.576 | D6: =D4&" - used" -> Major Failure CoC - used | E6: =_xlfn.IFS($E$4<>"",'Front Page'!E4,_xlfn.IFNA(D24,FALSE),D24*(1+Constants!C5),TRUE,Constants!$L$7) -> 8965585.14 | I6: Senitivity Increase cost | L6: Physical Separation | M6: FALSE | N6: FALSE | O6: FALSE | P6: FALSE | Q6: FALSE | R6: FALSE | S6: FALSE | T6: FALSE | U6: FALSE | V6: FALSE
B7: Load Profile (PoE) | C7: 0.5 | D7: =D5&" - used" -> Minor Failure CoC - used | E7: =IF($E$5="",Constants!$L$8,$E$5) -> 164000 | I7: FALSE | L7: More Frequent Maintenance | M7: FALSE | N7: FALSE | O7: FALSE | P7: FALSE | Q7: FALSE | R7: FALSE | S7: FALSE | T7: FALSE | U7: FALSE | V7: FALSE
B8: Network | C8: =VLOOKUP(ZSS,Load!A3:F149,6,FALSE) -> PAL | D8: ZSS type | E8: =_xlfn.XLOOKUP(ZSS,Load!A3:A149,Load!I3:I149,,0) -> RURAL | L8: Staggered Maintenance | M8: FALSE | N8: FALSE | O8: FALSE | P8: FALSE | Q8: FALSE | R8: FALSE | S8: FALSE | T8: FALSE | U8: FALSE | V8: FALSE
B9: POF METHOD | C9: WEIBULL | D9: Modifier (x) | E9: Comment | L9: Bunded | M9: FALSE | N9: FALSE | O9: FALSE | P9: FALSE | Q9: FALSE | R9: FALSE | S9: FALSE | T9: FALSE | U9: FALSE | V9: FALSE
B10: PoF (#1) | C10: =Engine!AF40 -> 0.000861234082 | D10: 0.9 | L10: Refurbish Assets | M10: FALSE | N10: FALSE | O10: TRUE | P10: FALSE | Q10: FALSE | R10: FALSE | S10: FALSE | T10: FALSE | U10: FALSE | V10: FALSE
B11: PoF (#2) | C11: =Engine!AF41 -> 0.0009569267578 | D11: 1 | L11: Replace 1 Asset | M11: FALSE | N11: TRUE | O11: FALSE | P11: FALSE | Q11: FALSE | R11: TRUE | S11: FALSE | T11: FALSE | U11: FALSE | V11: FALSE
B12: PoF (#3) | C12: =Engine!AF42 -> TRUE | D12: 1 | L12: Replace 2 Assets | M12: FALSE | N12: FALSE | O12: FALSE | P12: FALSE | Q12: FALSE | R12: FALSE | S12: FALSE | T12: FALSE | U12: FALSE | V12: FALSE
B13: PoF (#4) | C13: 0 | D13: 1 | L13: Replace 3 Assets | M13: FALSE | N13: FALSE | O13: FALSE | P13: FALSE | Q13: FALSE | R13: FALSE | S13: FALSE | T13: FALSE | U13: FALSE | V13: FALSE
L14: Addiitonal Asset | M14: FALSE | N14: FALSE | O14: FALSE | P14: FALSE | Q14: FALSE | R14: FALSE | S14: FALSE | T14: FALSE | U14: FALSE | V14: FALSE
L15: Enable Load Transfers | M15: TRUE | N15: TRUE | O15: TRUE | P15: TRUE | Q15: TRUE | R15: TRUE | S15: TRUE | T15: TRUE | U15: TRUE | V15: TRUE
B16: Scenario Modifiers | D16: Unit Price | E16: Asset Life | F16: Annual Cost | G16: Comment | H16: Sensitivity | L16: Non-Network MW | M16: 0 | N16: 0 | O16: 0 | P16: 0 | Q16: 0 | R16: 0 | S16: 0 | T16: 0 | U16: 0 | V16: 0
B17: Spare Available | C17: TRUE | E17: 25 | F17: =-PMT(WACC,E17,D17) -> 0 | H17: =F17*1.1 -> 0 | L17: Extended forecast | M17: FALSE | N17: FALSE | O17: FALSE | P17: TRUE | Q17: FALSE | R17: FALSE | S17: TRUE | T17: TRUE | U17: TRUE | V17: TRUE
B18: Online Monitoring | C18: FALSE | D18: 50000 | E18: 1 | F18: 51750 | H18: =F18*1.1 -> 56925 | L18: POF Modifier
B19: Physical Separation | C19: FALSE | D19: =Costs!B5 -> 300000 | E19: 50 | F19: 12790.11287 | H19: 14069.12416 | L19: PoF (#1) | M19: 1 | N19: 1 | O19: 0.9 | P19: 1 | Q19: 1 | R19: 1 | S19: 1 | T19: 1 | U19: 1 | V19: 1
B20: More Frequent Maintenance | C20: FALSE | D20: =Costs!B6 -> 4000 | E20: 1 | F20: 4140 | H20: 4554 | L20: PoF (#2) | M20: 1 | N20: 1 | O20: 1 | P20: 1 | Q20: 1 | R20: 1 | S20: 1 | T20: 1 | U20: 1 | V20: 1
B21: Staggered Maintenance | C21: FALSE | D21: =Costs!B7 -> 650 | E21: 1 | F21: 672.75 | H21: 740.025 | L21: PoF (#3) | M21: 1 | N21: 1 | O21: 1 | P21: 1 | Q21: 1 | R21: 1 | S21: 1 | T21: 1 | U21: 1 | V21: 1
B22: Bunded | C22: FALSE | D22: =Costs!B8 -> 300000 | E22: 50 | F22: =-PMT(WACC,E22,D22) -> 12790.11287 | H22: 14069.12416 | L22: PoF (#4) | M22: 1 | N22: 1 | O22: 1 | P22: 1 | Q22: 1 | R22: 1 | S22: 1 | T22: 1 | U22: 1 | V22: 1
B23: Refurbish Assets | C23: TRUE | D23: =Costs!B9 -> 500000 | E23: 10 | F23: 60120.68393 | H23: 66132.75233 | L23: Option year
B24: Replace 1 Asset | C24: FALSE | D24: =Costs!B10 -> 7471320.95 | E24: 50 | F24: =-PMT(WACC,E24,D24) -> 318530.1275 | H24: 350383.1402 | L24: Option year | M24: 2025 | N24: 2029 | O24: 2028 | P24: 2029 | Q24: 2025 | R24: 2025 | S24: 2025 | T24: 2025 | U24: 2025 | V24: 2025
B25: Replace 2 Assets | C25: FALSE | D25: =Costs!B11 -> 0 | E25: 50 | F25: 0 | H25: 0
B26: Replace 3 Assets | C26: FALSE | D26: =Costs!B12 -> 0 | E26: 50 | F26: 0 | H26: 0
B27: Addiitonal Asset | C27: FALSE | D27: =Costs!B13 -> N/A | E27: 50
B28: Enable Load Transfers | C28: TRUE | D28: =Costs!B14 -> 0 | E28: 50 | F28: 0 | H28: 0
B29: Non-Network MW | C29: 0 | D29: =Costs!B15 -> 0 | E29: 50 | F29: 0 | H29: 0
B30: Extended forecast | C30: FALSE | I30: D
B32: =G2&G3&": "&ZSS&" - " & AssetType -> Scenario #3: MNA - Transformer | C32: Setting | D32: Unit Price | E32: Model Output | F32: 2025 | G32: =F32+1 -> 2026 | H32: =G32+1 -> 2027 | I32: 2028 | J32: 2029 | K32: 2030 | L32: 2031 | M32: 2032 | N32: 2033 | O32: =N32+1 -> 2034 | P32: 2035 | Q32: 2036 | R32: 2037 | S32: 2038 | T32: 2039 | U32: 2040 | V32: 2041 | W32: =V32+1 -> 2042 | X32: 2043 | Y32: 2044 | Z32: 2045 | AA32: 2046 | AB32: 2047 | AC32: 2048 | AD32: 2049 | AE32: 2050 | AF32: 2051 | AG32: 2052 | AH32: 2053 | AI32: 2054 | AJ32: 2055 | AK32: 2056
B33: Spare Available | C33: =ISSPAREREADY -> TRUE | D33: =D17 -> 0 | E33: Energy | F33: =VLOOKUP(F32, Engine!$D$4:$K$31,8,FALSE)*IF($E$8="CBD",CBD_load_factor,1) -> 4416.833629 | G33: =VLOOKUP(G32, Engine!$D$4:$K$31,8,FALSE)*IF($E$8="CBD",CBD_load_factor,1) -> 4637.122125 | H33: =VLOOKUP(H32, Engine!$D$4:$K$31,8,FALSE)*IF($E$8="CBD",CBD_load_factor,1) -> 4905.318545 | I33: =VLOOKUP(I32, Engine!$D$4:$K$31,8,FALSE)*IF($E$8="CBD",CBD_load_factor,1) -> 5210.304347 | J33: =VLOOKUP(J32, Engine!$D$4:$K$31,8,FALSE)*IF($E$8="CBD",CBD_load_factor,1) -> 5511.509024 | K33: =VLOOKUP(K32, Engine!$D$4:$K$31,8,FALSE)*IF($E$8="CBD",CBD_load_factor,1) -> 5733.505449 | L33: =VLOOKUP(L32, Engine!$D$4:$K$31,8,FALSE)*IF($E$8="CBD",CBD_load_factor,1) -> 5981.727972 | M33: =VLOOKUP(M32, Engine!$D$4:$K$31,8,FALSE)*IF($E$8="CBD",CBD_load_factor,1) -> 6358.825992 | N33: =VLOOKUP(N32, Engine!$D$4:$K$31,8,FALSE)*IF($E$8="CBD",CBD_load_factor,1) -> 6776.36047 | O33: =VLOOKUP(O32, Engine!$D$4:$K$31,8,FALSE)*IF($E$8="CBD",CBD_load_factor,1) -> 7037.468372 | P33: =VLOOKUP(P32, Engine!$D$4:$K$31,8,FALSE)*IF($E$8="CBD",CBD_load_factor,1) -> 7253.046507 | Q33: =VLOOKUP(Q32, Engine!$D$4:$K$31,8,FALSE)*IF($E$8="CBD",CBD_load_factor,1) -> 7471.32521 | R33: =VLOOKUP(R32, Engine!$D$4:$K$31,8,FALSE)*IF($E$8="CBD",CBD_load_factor,1) -> 7692.291964 | S33: =VLOOKUP(S32, Engine!$D$4:$K$31,8,FALSE)*IF($E$8="CBD",CBD_load_factor,1) -> 7915.934566 | T33: =VLOOKUP(T32, Engine!$D$4:$K$31,8,FALSE)*IF($E$8="CBD",CBD_load_factor,1) -> 8142.241116 | U33: =VLOOKUP(U32, Engine!$D$4:$K$31,8,FALSE)*IF($E$8="CBD",CBD_load_factor,1) -> 8371.200005 | V33: =VLOOKUP(V32, Engine!$D$4:$K$31,8,FALSE)*IF($E$8="CBD",CBD_load_factor,1) -> 8602.799906 | W33: =VLOOKUP(W32, Engine!$D$4:$K$31,8,FALSE)*IF($E$8="CBD",CBD_load_factor,1) -> 8837.02976 | X33: =VLOOKUP(X32, Engine!$D$4:$K$31,8,FALSE)*IF($E$8="CBD",CBD_load_factor,1) -> 9073.878771 | Y33: =VLOOKUP(Y32, Engine!$D$4:$K$31,8,FALSE)*IF($E$8="CBD",CBD_load_factor,1) -> 9313.336395 | Z33: =VLOOKUP(Z32, Engine!$D$4:$K$31,8,FALSE)*IF($E$8="CBD",CBD_load_factor,1) -> 9555.392331 | AA33: =VLOOKUP(AA32, Engine!$D$4:$K$31,8,FALSE)*IF($E$8="CBD",CBD_load_factor,1) -> 9800.036511 | AB33: =VLOOKUP(AB32, Engine!$D$4:$K$31,8,FALSE)*IF($E$8="CBD",CBD_load_factor,1) -> 10047.2591 | AC33: =VLOOKUP(AC32, Engine!$D$4:$K$31,8,FALSE)*IF($E$8="CBD",CBD_load_factor,1) -> 10297.05048 | AD33: =VLOOKUP(AD32, Engine!$D$4:$K$31,8,FALSE)*IF($E$8="CBD",CBD_load_factor,1) -> 10549.40123 | AE33: =VLOOKUP(AE32, Engine!$D$4:$K$31,8,FALSE)*IF($E$8="CBD",CBD_load_factor,1) -> 10804.30217 | AF33: =VLOOKUP(AF32, Engine!$D$4:$K$31,8,FALSE)*IF($E$8="CBD",CBD_load_factor,1) -> 11061.7443 | AG33: =VLOOKUP(AG32, Engine!$D$4:$K$31,8,FALSE)*IF($E$8="CBD",CBD_load_factor,1) -> 11321.7188 | AH33: =AG33 -> 11321.7188 | AI33: =AH33 -> 11321.7188 | AJ33: =AI33 -> 11321.7188 | AK33: =AJ33 -> 11321.7188
B34: Online Monitoring | C34: =ISONLINEMONITOR -> FALSE | D34: =D18 -> 50000 | E34: Energy | F34: 5537.051952 | G34: 5812.23554 | H34: 6140.727622 | I34: 6520.021923 | J34: 6870.491499 | K34: 7160.044082 | L34: 7493.709253 | M34: 7937.463044 | N34: 8419.630758 | O34: 8752.497203 | P34: 9020.611661 | Q34: 9292.084815 | R34: 9566.901096 | S34: 9845.045329 | T34: 10126.50271 | U34: 10411.25881 | V34: 10699.29953 | W34: 10990.61113 | X34: 11285.18017 | Y34: 11582.99354 | Z34: 11884.03843 | AA34: 12188.30232 | AB34: 12495.77297 | AC34: 12806.43843 | AD34: 13120.28698 | AE34: 13437.3072 | AF34: 13757.48789 | AG34: 14080.81809 | AH34: 14080.81809 | AI34: 14080.81809 | AJ34: 14080.81809 | AK34: 14080.81809
B35: Physical Separation | C35: =ISSEPARATED -> FALSE | D35: 300000 | E35: Energy | F35: 4416.833629 | G35: 4637.122125 | H35: 4905.318545 | I35: 5210.304347 | J35: 5511.509024 | K35: 5733.505449 | L35: 5981.727972 | M35: 6358.825992 | N35: 6776.36047 | O35: 7037.468372 | P35: 7253.046507 | Q35: 7471.32521 | R35: 7692.291964 | S35: 7915.934566 | T35: 8142.241116 | U35: 8371.200005 | V35: 8602.799906 | W35: 8837.02976 | X35: 9073.878771 | Y35: 9313.336395 | Z35: 9555.392331 | AA35: 9800.036511 | AB35: 10047.2591 | AC35: 10297.05048 | AD35: 10549.40123 | AE35: 10804.30217 | AF35: 11061.7443 | AG35: 11321.7188 | AH35: 11321.7188 | AI35: 11321.7188 | AJ35: 11321.7188 | AK35: 11321.7188
B36: More Frequent Maintenance | C36: =ISMOREMAINT -> FALSE | D36: 4000 | E36: Pr (Terminal Failure) | F36: =VLOOKUP(F$32, Engine!$N$2:$AY$26,38,FALSE) -> 0.00181816084 | G36: =VLOOKUP(G$32, Engine!$N$2:$AY$26,38,FALSE) -> 0.001884412796 | H36: =VLOOKUP(H$32, Engine!$N$2:$AY$26,38,FALSE) -> 0.001951638052 | I36: =VLOOKUP(I$32, Engine!$N$2:$AY$26,38,FALSE) -> 0.002019830605 | J36: =VLOOKUP(J$32, Engine!$N$2:$AY$26,38,FALSE) -> 0.00208898461 | K36: =VLOOKUP(K$32, Engine!$N$2:$AY$26,38,FALSE) -> 0.002159094371 | L36: =VLOOKUP(L$32, Engine!$N$2:$AY$26,38,FALSE) -> 0.002230154337 | M36: =VLOOKUP(M$32, Engine!$N$2:$AY$26,38,FALSE) -> 0.002302159093 | N36: =VLOOKUP(N$32, Engine!$N$2:$AY$26,38,FALSE) -> 0.002375103355 | O36: =VLOOKUP(O$32, Engine!$N$2:$AY$26,38,FALSE) -> 0.002448981966 | P36: =VLOOKUP(P$32, Engine!$N$2:$AY$26,38,FALSE) -> 0.002523789887 | Q36: =VLOOKUP(Q$32, Engine!$N$2:$AY$26,38,FALSE) -> 0.002599522197 | R36: =VLOOKUP(R$32, Engine!$N$2:$AY$26,38,FALSE) -> 0.002676174085 | S36: =VLOOKUP(S$32, Engine!$N$2:$AY$26,38,FALSE) -> 0.002753740847 | T36: =VLOOKUP(T$32, Engine!$N$2:$AY$26,38,FALSE) -> 0.002832217882 | U36: =VLOOKUP(U$32, Engine!$N$2:$AY$26,38,FALSE) -> 0.002911600687 | V36: =VLOOKUP(V$32, Engine!$N$2:$AY$26,38,FALSE) -> 0.002991884853 | W36: =VLOOKUP(W$32, Engine!$N$2:$AY$26,38,FALSE) -> 0.003073066065 | X36: =VLOOKUP(X$32, Engine!$N$2:$AY$26,38,FALSE) -> 0.003155140093 | Y36: =VLOOKUP(Y$32, Engine!$N$2:$AY$26,38,FALSE) -> 0.003238102795 | Z36: =VLOOKUP(Z$32, Engine!$N$2:$AY$26,38,FALSE) -> 0.003321950109 | AA36: =VLOOKUP(AA$32, Engine!$N$2:$AY$26,38,FALSE) -> 0.003406678053 | AB36: =VLOOKUP(AB$32, Engine!$N$2:$AY$26,38,FALSE) -> 0.003492282722 | AC36: =AB36 -> 0.003492282722 | AD36: 0.003492282722 | AE36: 0.003492282722 | AF36: 0.003492282722 | AG36: 0.003492282722 | AH36: 0.003492282722 | AI36: 0.003492282722 | AJ36: 0.003492282722 | AK36: 0.003492282722
B37: Staggered Maintenance | C37: =ISSTAGGEREDMAINT -> FALSE | D37: 650 | E37: Pr (Repairable Failure) | F37: =VLOOKUP(F$32, Engine!$N$2:$AY$26,37,FALSE) -> 0.007655414062 | G37: =VLOOKUP(G$32, Engine!$N$2:$AY$26,37,FALSE) -> 0.007934369667 | H37: =VLOOKUP(H$32, Engine!$N$2:$AY$26,37,FALSE) -> 0.008217423376 | I37: =VLOOKUP(I$32, Engine!$N$2:$AY$26,37,FALSE) -> 0.008504549915 | J37: =VLOOKUP(J$32, Engine!$N$2:$AY$26,37,FALSE) -> 0.008795724673 | K37: =VLOOKUP(K$32, Engine!$N$2:$AY$26,37,FALSE) -> 0.009090923669 | L37: =VLOOKUP(L$32, Engine!$N$2:$AY$26,37,FALSE) -> 0.009390123526 | M37: =VLOOKUP(M$32, Engine!$N$2:$AY$26,37,FALSE) -> 0.009693301446 | N37: =VLOOKUP(N$32, Engine!$N$2:$AY$26,37,FALSE) -> 0.01000043518 | O37: =VLOOKUP(O$32, Engine!$N$2:$AY$26,37,FALSE) -> 0.01031150301 | P37: =VLOOKUP(P$32, Engine!$N$2:$AY$26,37,FALSE) -> 0.01062648373 | Q37: =VLOOKUP(Q$32, Engine!$N$2:$AY$26,37,FALSE) -> 0.01094535662 | R37: =VLOOKUP(R$32, Engine!$N$2:$AY$26,37,FALSE) -> 0.01126810141 | S37: =VLOOKUP(S$32, Engine!$N$2:$AY$26,37,FALSE) -> 0.0115946983 | T37: =VLOOKUP(T$32, Engine!$N$2:$AY$26,37,FALSE) -> 0.01192512793 | U37: =VLOOKUP(U$32, Engine!$N$2:$AY$26,37,FALSE) -> 0.01225937131 | V37: =VLOOKUP(V$32, Engine!$N$2:$AY$26,37,FALSE) -> 0.01259740991 | W37: =VLOOKUP(W$32, Engine!$N$2:$AY$26,37,FALSE) -> 0.01293922554 | X37: =VLOOKUP(X$32, Engine!$N$2:$AY$26,37,FALSE) -> 0.01328480039 | Y37: =VLOOKUP(Y$32, Engine!$N$2:$AY$26,37,FALSE) -> 0.01363411703 | Z37: =VLOOKUP(Z$32, Engine!$N$2:$AY$26,37,FALSE) -> 0.01398715835 | AA37: =VLOOKUP(AA$32, Engine!$N$2:$AY$26,37,FALSE) -> 0.01434390759 | AB37: =VLOOKUP(AB$32, Engine!$N$2:$AY$26,37,FALSE) -> 0.0147043483 | AC37: =AB37 -> 0.0147043483 | AD37: 0.0147043483 | AE37: 0.0147043483 | AF37: 0.0147043483 | AG37: 0.0147043483 | AH37: 0.0147043483 | AI37: 0.0147043483 | AJ37: 0.0147043483 | AK37: 0.0147043483
B38: Bunded | C38: =ISBUNDED -> FALSE | D38: 300000
B39: Refurbish Assets | C39: =ISREFURB -> TRUE | D39: 500000 | E39: Energy at Risk ($, Weighted) | F39: =SUMPRODUCT(F34:F35,Constants!$C$8:$C$9)*VCR -> 230876.828 | G39: =SUMPRODUCT(G34:G35,Constants!$C$8:$C$9)*VCR -> 242377.5371 | H39: =SUMPRODUCT(H34:H35,Constants!$C$8:$C$9)*VCR -> 256284.123 | I39: =SUMPRODUCT(I34:I35,Constants!$C$8:$C$9)*VCR -> 272181.9962 | J39: =SUMPRODUCT(J34:J35,Constants!$C$8:$C$9)*VCR -> 287531.2422 | K39: =SUMPRODUCT(K34:K35,Constants!$C$8:$C$9)*VCR -> 299299.4229 | L39: =SUMPRODUCT(L34:L35,Constants!$C$8:$C$9)*VCR -> 312602.2188 | M39: =SUMPRODUCT(M34:M35,Constants!$C$8:$C$9)*VCR -> 331891.4934 | N39: =SUMPRODUCT(N34:N35,Constants!$C$8:$C$9)*VCR -> 353115.5354 | O39: =SUMPRODUCT(O34:O35,Constants!$C$8:$C$9)*VCR -> 366844.8358 | P39: =SUMPRODUCT(P34:P35,Constants!$C$8:$C$9)*VCR -> 378082.3606 | Q39: =SUMPRODUCT(Q34:Q35,Constants!$C$8:$C$9)*VCR -> 389460.659 | R39: =SUMPRODUCT(R34:R35,Constants!$C$8:$C$9)*VCR -> 400979.0784 | S39: =SUMPRODUCT(S34:S35,Constants!$C$8:$C$9)*VCR -> 412636.9828 | T39: =SUMPRODUCT(T34:T35,Constants!$C$8:$C$9)*VCR -> 424433.7519 | U39: =SUMPRODUCT(U34:U35,Constants!$C$8:$C$9)*VCR -> 436368.7804 | V39: =SUMPRODUCT(V34:V35,Constants!$C$8:$C$9)*VCR -> 448441.478 | W39: =SUMPRODUCT(W34:W35,Constants!$C$8:$C$9)*VCR -> 460651.2682 | X39: =SUMPRODUCT(X34:X35,Constants!$C$8:$C$9)*VCR -> 472997.5882 | Y39: =SUMPRODUCT(Y34:Y35,Constants!$C$8:$C$9)*VCR -> 485479.8884 | Z39: =SUMPRODUCT(Z34:Z35,Constants!$C$8:$C$9)*VCR -> 498097.6317 | AA39: =SUMPRODUCT(AA34:AA35,Constants!$C$8:$C$9)*VCR -> 510850.2935 | AB39: =SUMPRODUCT(AB34:AB35,Constants!$C$8:$C$9)*VCR -> 523737.361 | AC39: =SUMPRODUCT(AC34:AC35,Constants!$C$8:$C$9)*VCR -> 536758.3326 | AD39: =SUMPRODUCT(AD34:AD35,Constants!$C$8:$C$9)*VCR -> 549912.7182 | AE39: =SUMPRODUCT(AE34:AE35,Constants!$C$8:$C$9)*VCR -> 563200.0381 | AF39: =SUMPRODUCT(AF34:AF35,Constants!$C$8:$C$9)*VCR -> 576619.8232 | AG39: =SUMPRODUCT(AG34:AG35,Constants!$C$8:$C$9)*VCR -> 590171.6145 | AH39: =SUMPRODUCT(AH34:AH35,Constants!$C$8:$C$9)*VCR -> 590171.6145 | AI39: =SUMPRODUCT(AI34:AI35,Constants!$C$8:$C$9)*VCR -> 590171.6145 | AJ39: =SUMPRODUCT(AJ34:AJ35,Constants!$C$8:$C$9)*VCR -> 590171.6145 | AK39: =SUMPRODUCT(AK34:AK35,Constants!$C$8:$C$9)*VCR -> 590171.6145
B40: Replace 1 Asset | C40: =C24 -> FALSE | D40: 7471320.95 | E40: Safety Risk | F40: =(F36+F37)*(VSL*DF_PUBLIC*POC_PUBLIC+VSL*DF_STAFF*POC_STAFF+VLTI*DF_STAFF*POC_LTI) -> 336.2706437 | G40: =(G36+G37)*(VSL*DF_PUBLIC*POC_PUBLIC+VSL*DF_STAFF*POC_STAFF+VLTI*DF_STAFF*POC_LTI) -> 348.5240085 | H40: =(H36+H37)*(VSL*DF_PUBLIC*POC_PUBLIC+VSL*DF_STAFF*POC_STAFF+VLTI*DF_STAFF*POC_LTI) -> 360.957386 | I40: 373.569666 | J40: 386.3597676 | K40: 399.3266373 | L40: 412.4692482 | M40: 425.7865989 | N40: 439.2777123 | O40: 452.9416342 | P40: 466.7774331 | Q40: 480.7841987 | R40: 494.9610412 | S40: 509.3070905 | T40: 523.8214957 | U40: 538.5034239 | V40: 553.3520597 | W40: 568.366605 | X40: 583.5462776 | Y40: 598.8903113 | Z40: 614.3979548 | AA40: 630.0684719 | AB40: 645.90114 | AC40: 645.90114 | AD40: 645.90114 | AE40: 645.90114 | AF40: 645.90114 | AG40: 645.90114 | AH40: 645.90114 | AI40: 645.90114 | AJ40: 645.90114 | AK40: 645.90114
B41: Replace 2 Assets | C41: =C25 -> FALSE | D41: 0 | E41: Unplanned Replacement Risk | F41: =$E$6*F36 -> 16300.87581 | G41: =$E$6*G36 -> 16894.86336 | H41: =$E$6*H36 -> 17497.57711 | I41: 18108.96326 | J41: 18728.96938 | K41: 19357.54441 | L41: 19994.63859 | M41: 20640.20336 | N41: 21294.19135 | O41: 21956.55632 | P41: 22627.2531 | Q41: 23306.23758 | R41: 23993.46661 | S41: 24688.89802 | T41: 25392.49056 | U41: 26104.20385 | V41: 26823.99838 | W41: 27551.83544 | X41: 28287.67713 | Y41: 29031.4863 | Z41: 29783.22653 | AA41: 30542.86213 | AB41: 31310.35808 | AC41: 31310.35808 | AD41: 31310.35808 | AE41: 31310.35808 | AF41: 31310.35808 | AG41: 31310.35808 | AH41: 31310.35808 | AI41: 31310.35808 | AJ41: 31310.35808 | AK41: 31310.35808
B42: Replace 3 Assets | C42: =ISREPLACETHREE -> FALSE | D42: 0 | E42: Unplanned Fault Risk | F42: =F37*$E$7 -> 1255.487906 | G42: =G37*$E$7 -> 1301.236625 | H42: =H37*$E$7 -> 1347.657434 | I42: 1394.746186 | J42: 1442.498846 | K42: 1490.911482 | L42: 1539.980258 | M42: 1589.701437 | N42: 1640.07137 | O42: 1691.086494 | P42: 1742.743332 | Q42: 1795.038485 | R42: 1847.968631 | S42: 1901.530522 | T42: 1955.72098 | U42: 2010.536896 | V42: 2065.975225 | W42: 2122.032988 | X42: 2178.707264 | Y42: 2235.995193 | Z42: 2293.89397 | AA42: 2352.400845 | AB42: 2411.513122 | AC42: 2411.513122 | AD42: 2411.513122 | AE42: 2411.513122 | AF42: 2411.513122 | AG42: 2411.513122 | AH42: 2411.513122 | AI42: 2411.513122 | AJ42: 2411.513122 | AK42: 2411.513122
B43: Addiitonal Asset | C43: =IS_ADDITIONAL -> FALSE | D43: N/A | E43: Unplanned Enviromental Risk | F43: =SUMIFS(Constants!$G$37:$G$560,Constants!$A$37:$A$560,ZSS,Constants!$K$37:$K$560,">="&F32,Constants!$D$37:$D$560,"<>"&9999) -> 35984.375 | G43: =SUMIFS(Constants!$G$37:$G$560,Constants!$A$37:$A$560,ZSS,Constants!$K$37:$K$560,">="&G32,Constants!$D$37:$D$560,"<>"&9999) -> 35984.375 | H43: =SUMIFS(Constants!$G$37:$G$560,Constants!$A$37:$A$560,ZSS,Constants!$K$37:$K$560,">="&H32,Constants!$D$37:$D$560,"<>"&9999) -> 35984.375 | I43: =SUMIFS(Constants!$G$37:$G$560,Constants!$A$37:$A$560,ZSS,Constants!$K$37:$K$560,">="&I32,Constants!$D$37:$D$560,"<>"&9999) -> 35984.375 | J43: =SUMIFS(Constants!$G$37:$G$560,Constants!$A$37:$A$560,ZSS,Constants!$K$37:$K$560,">="&J32,Constants!$D$37:$D$560,"<>"&9999) -> 35984.375 | K43: =SUMIFS(Constants!$G$37:$G$560,Constants!$A$37:$A$560,ZSS,Constants!$K$37:$K$560,">="&K32,Constants!$D$37:$D$560,"<>"&9999) -> 35984.375 | L43: =SUMIFS(Constants!$G$37:$G$560,Constants!$A$37:$A$560,ZSS,Constants!$K$37:$K$560,">="&L32,Constants!$D$37:$D$560,"<>"&9999) -> 35984.375 | M43: =SUMIFS(Constants!$G$37:$G$560,Constants!$A$37:$A$560,ZSS,Constants!$K$37:$K$560,">="&M32,Constants!$D$37:$D$560,"<>"&9999) -> 35984.375 | N43: =SUMIFS(Constants!$G$37:$G$560,Constants!$A$37:$A$560,ZSS,Constants!$K$37:$K$560,">="&N32,Constants!$D$37:$D$560,"<>"&9999) -> 35984.375 | O43: =SUMIFS(Constants!$G$37:$G$560,Constants!$A$37:$A$560,ZSS,Constants!$K$37:$K$560,">="&O32,Constants!$D$37:$D$560,"<>"&9999) -> 35984.375 | P43: =SUMIFS(Constants!$G$37:$G$560,Constants!$A$37:$A$560,ZSS,Constants!$K$37:$K$560,">="&P32,Constants!$D$37:$D$560,"<>"&9999) -> 35984.375 | Q43: =SUMIFS(Constants!$G$37:$G$560,Constants!$A$37:$A$560,ZSS,Constants!$K$37:$K$560,">="&Q32,Constants!$D$37:$D$560,"<>"&9999) -> 35984.375 | R43: =SUMIFS(Constants!$G$37:$G$560,Constants!$A$37:$A$560,ZSS,Constants!$K$37:$K$560,">="&R32,Constants!$D$37:$D$560,"<>"&9999) -> 35984.375 | S43: =SUMIFS(Constants!$G$37:$G$560,Constants!$A$37:$A$560,ZSS,Constants!$K$37:$K$560,">="&S32,Constants!$D$37:$D$560,"<>"&9999) -> 35984.375 | T43: =SUMIFS(Constants!$G$37:$G$560,Constants!$A$37:$A$560,ZSS,Constants!$K$37:$K$560,">="&T32,Constants!$D$37:$D$560,"<>"&9999) -> 35984.375 | U43: =SUMIFS(Constants!$G$37:$G$560,Constants!$A$37:$A$560,ZSS,Constants!$K$37:$K$560,">="&U32,Constants!$D$37:$D$560,"<>"&9999) -> 35984.375 | V43: =SUMIFS(Constants!$G$37:$G$560,Constants!$A$37:$A$560,ZSS,Constants!$K$37:$K$560,">="&V32,Constants!$D$37:$D$560,"<>"&9999) -> 35984.375 | W43: =SUMIFS(Constants!$G$37:$G$560,Constants!$A$37:$A$560,ZSS,Constants!$K$37:$K$560,">="&W32,Constants!$D$37:$D$560,"<>"&9999) -> 35984.375 | X43: =SUMIFS(Constants!$G$37:$G$560,Constants!$A$37:$A$560,ZSS,Constants!$K$37:$K$560,">="&X32,Constants!$D$37:$D$560,"<>"&9999) -> 35984.375 | Y43: =SUMIFS(Constants!$G$37:$G$560,Constants!$A$37:$A$560,ZSS,Constants!$K$37:$K$560,">="&Y32,Constants!$D$37:$D$560,"<>"&9999) -> 35984.375 | Z43: =SUMIFS(Constants!$G$37:$G$560,Constants!$A$37:$A$560,ZSS,Constants!$K$37:$K$560,">="&Z32,Constants!$D$37:$D$560,"<>"&9999) -> 35984.375 | AA43: =SUMIFS(Constants!$G$37:$G$560,Constants!$A$37:$A$560,ZSS,Constants!$K$37:$K$560,">="&AA32,Constants!$D$37:$D$560,"<>"&9999) -> 35984.375 | AB43: =SUMIFS(Constants!$G$37:$G$560,Constants!$A$37:$A$560,ZSS,Constants!$K$37:$K$560,">="&AB32,Constants!$D$37:$D$560,"<>"&9999) -> 35984.375 | AC43: =SUMIFS(Constants!$G$37:$G$560,Constants!$A$37:$A$560,ZSS,Constants!$K$37:$K$560,">="&AC32,Constants!$D$37:$D$560,"<>"&9999) -> 35984.375 | AD43: =SUMIFS(Constants!$G$37:$G$560,Constants!$A$37:$A$560,ZSS,Constants!$K$37:$K$560,">="&AD32,Constants!$D$37:$D$560,"<>"&9999) -> 35984.375 | AE43: =SUMIFS(Constants!$G$37:$G$560,Constants!$A$37:$A$560,ZSS,Constants!$K$37:$K$560,">="&AE32,Constants!$D$37:$D$560,"<>"&9999) -> 35984.375 | AF43: =SUMIFS(Constants!$G$37:$G$560,Constants!$A$37:$A$560,ZSS,Constants!$K$37:$K$560,">="&AF32,Constants!$D$37:$D$560,"<>"&9999) -> 35984.375 | AG43: =SUMIFS(Constants!$G$37:$G$560,Constants!$A$37:$A$560,ZSS,Constants!$K$37:$K$560,">="&AG32,Constants!$D$37:$D$560,"<>"&9999) -> 35984.375 | AH43: =SUMIFS(Constants!$G$37:$G$560,Constants!$A$37:$A$560,ZSS,Constants!$K$37:$K$560,">="&AH32,Constants!$D$37:$D$560,"<>"&9999) -> 35984.375 | AI43: =SUMIFS(Constants!$G$37:$G$560,Constants!$A$37:$A$560,ZSS,Constants!$K$37:$K$560,">="&AI32,Constants!$D$37:$D$560,"<>"&9999) -> 35984.375 | AJ43: =SUMIFS(Constants!$G$37:$G$560,Constants!$A$37:$A$560,ZSS,Constants!$K$37:$K$560,">="&AJ32,Constants!$D$37:$D$560,"<>"&9999) -> 35984.375 | AK43: =SUMIFS(Constants!$G$37:$G$560,Constants!$A$37:$A$560,ZSS,Constants!$K$37:$K$560,">="&AK32,Constants!$D$37:$D$560,"<>"&9999) -> 35984.375
B44: Load Transfers | C44: =C28 -> TRUE | D44: 0 | E44: Unplanned Fire Risk | F44: =SUMIFS(Constants!$I$37:$I$560,Constants!$A$37:$A$560,ZSS,Constants!$K$37:$K$560,9999,Constants!$D$37:$D$560,"<>"&9999) -> 0 | G44: =SUMIFS(Constants!$I$37:$I$560,Constants!$A$37:$A$560,ZSS,Constants!$K$37:$K$560,9999,Constants!$D$37:$D$560,"<>"&9999) -> 0 | H44: =SUMIFS(Constants!$I$37:$I$560,Constants!$A$37:$A$560,ZSS,Constants!$K$37:$K$560,9999,Constants!$D$37:$D$560,"<>"&9999) -> 0 | I44: =SUMIFS(Constants!$I$37:$I$560,Constants!$A$37:$A$560,ZSS,Constants!$K$37:$K$560,9999,Constants!$D$37:$D$560,"<>"&9999) -> 0 | J44: =SUMIFS(Constants!$I$37:$I$560,Constants!$A$37:$A$560,ZSS,Constants!$K$37:$K$560,9999,Constants!$D$37:$D$560,"<>"&9999) -> 0 | K44: =SUMIFS(Constants!$I$37:$I$560,Constants!$A$37:$A$560,ZSS,Constants!$K$37:$K$560,9999,Constants!$D$37:$D$560,"<>"&9999) -> 0 | L44: =SUMIFS(Constants!$I$37:$I$560,Constants!$A$37:$A$560,ZSS,Constants!$K$37:$K$560,9999,Constants!$D$37:$D$560,"<>"&9999) -> 0 | M44: =SUMIFS(Constants!$I$37:$I$560,Constants!$A$37:$A$560,ZSS,Constants!$K$37:$K$560,9999,Constants!$D$37:$D$560,"<>"&9999) -> 0 | N44: =SUMIFS(Constants!$I$37:$I$560,Constants!$A$37:$A$560,ZSS,Constants!$K$37:$K$560,9999,Constants!$D$37:$D$560,"<>"&9999) -> 0 | O44: =SUMIFS(Constants!$I$37:$I$560,Constants!$A$37:$A$560,ZSS,Constants!$K$37:$K$560,9999,Constants!$D$37:$D$560,"<>"&9999) -> 0 | P44: =SUMIFS(Constants!$I$37:$I$560,Constants!$A$37:$A$560,ZSS,Constants!$K$37:$K$560,9999,Constants!$D$37:$D$560,"<>"&9999) -> 0 | Q44: =SUMIFS(Constants!$I$37:$I$560,Constants!$A$37:$A$560,ZSS,Constants!$K$37:$K$560,9999,Constants!$D$37:$D$560,"<>"&9999) -> 0 | R44: =SUMIFS(Constants!$I$37:$I$560,Constants!$A$37:$A$560,ZSS,Constants!$K$37:$K$560,9999,Constants!$D$37:$D$560,"<>"&9999) -> 0 | S44: =SUMIFS(Constants!$I$37:$I$560,Constants!$A$37:$A$560,ZSS,Constants!$K$37:$K$560,9999,Constants!$D$37:$D$560,"<>"&9999) -> 0 | T44: =SUMIFS(Constants!$I$37:$I$560,Constants!$A$37:$A$560,ZSS,Constants!$K$37:$K$560,9999,Constants!$D$37:$D$560,"<>"&9999) -> 0 | U44: =SUMIFS(Constants!$I$37:$I$560,Constants!$A$37:$A$560,ZSS,Constants!$K$37:$K$560,9999,Constants!$D$37:$D$560,"<>"&9999) -> 0 | V44: =SUMIFS(Constants!$I$37:$I$560,Constants!$A$37:$A$560,ZSS,Constants!$K$37:$K$560,9999,Constants!$D$37:$D$560,"<>"&9999) -> 0 | W44: =SUMIFS(Constants!$I$37:$I$560,Constants!$A$37:$A$560,ZSS,Constants!$K$37:$K$560,9999,Constants!$D$37:$D$560,"<>"&9999) -> 0 | X44: =SUMIFS(Constants!$I$37:$I$560,Constants!$A$37:$A$560,ZSS,Constants!$K$37:$K$560,9999,Constants!$D$37:$D$560,"<>"&9999) -> 0 | Y44: =SUMIFS(Constants!$I$37:$I$560,Constants!$A$37:$A$560,ZSS,Constants!$K$37:$K$560,9999,Constants!$D$37:$D$560,"<>"&9999) -> 0 | Z44: =SUMIFS(Constants!$I$37:$I$560,Constants!$A$37:$A$560,ZSS,Constants!$K$37:$K$560,9999,Constants!$D$37:$D$560,"<>"&9999) -> 0 | AA44: =SUMIFS(Constants!$I$37:$I$560,Constants!$A$37:$A$560,ZSS,Constants!$K$37:$K$560,9999,Constants!$D$37:$D$560,"<>"&9999) -> 0 | AB44: =SUMIFS(Constants!$I$37:$I$560,Constants!$A$37:$A$560,ZSS,Constants!$K$37:$K$560,9999,Constants!$D$37:$D$560,"<>"&9999) -> 0 | AC44: =SUMIFS(Constants!$I$37:$I$560,Constants!$A$37:$A$560,ZSS,Constants!$K$37:$K$560,9999,Constants!$D$37:$D$560,"<>"&9999) -> 0 | AD44: =SUMIFS(Constants!$I$37:$I$560,Constants!$A$37:$A$560,ZSS,Constants!$K$37:$K$560,9999,Constants!$D$37:$D$560,"<>"&9999) -> 0 | AE44: =SUMIFS(Constants!$I$37:$I$560,Constants!$A$37:$A$560,ZSS,Constants!$K$37:$K$560,9999,Constants!$D$37:$D$560,"<>"&9999) -> 0 | AF44: =SUMIFS(Constants!$I$37:$I$560,Constants!$A$37:$A$560,ZSS,Constants!$K$37:$K$560,9999,Constants!$D$37:$D$560,"<>"&9999) -> 0 | AG44: =SUMIFS(Constants!$I$37:$I$560,Constants!$A$37:$A$560,ZSS,Constants!$K$37:$K$560,9999,Constants!$D$37:$D$560,"<>"&9999) -> 0 | AH44: =SUMIFS(Constants!$I$37:$I$560,Constants!$A$37:$A$560,ZSS,Constants!$K$37:$K$560,9999,Constants!$D$37:$D$560,"<>"&9999) -> 0 | AI44: =SUMIFS(Constants!$I$37:$I$560,Constants!$A$37:$A$560,ZSS,Constants!$K$37:$K$560,9999,Constants!$D$37:$D$560,"<>"&9999) -> 0 | AJ44: =SUMIFS(Constants!$I$37:$I$560,Constants!$A$37:$A$560,ZSS,Constants!$K$37:$K$560,9999,Constants!$D$37:$D$560,"<>"&9999) -> 0 | AK44: =SUMIFS(Constants!$I$37:$I$560,Constants!$A$37:$A$560,ZSS,Constants!$K$37:$K$560,9999,Constants!$D$37:$D$560,"<>"&9999) -> 0
B45: Non-Network MW | C45: =NN_LOAD_TRANSFER -> 0 | D45: 0 | E45: Other | F45: =SUMIFS(Constants!$H$37:$H$560,Constants!$A$37:$A$560,ZSS,Constants!$K$37:$K$560,9999,Constants!$D$37:$D$560,"<>"&9999) -> 0 | G45: =SUMIFS(Constants!$H$37:$H$560,Constants!$A$37:$A$560,ZSS,Constants!$K$37:$K$560,9999,Constants!$D$37:$D$560,"<>"&9999) -> 0 | H45: =SUMIFS(Constants!$H$37:$H$560,Constants!$A$37:$A$560,ZSS,Constants!$K$37:$K$560,9999,Constants!$D$37:$D$560,"<>"&9999) -> 0 | I45: =SUMIFS(Constants!$H$37:$H$560,Constants!$A$37:$A$560,ZSS,Constants!$K$37:$K$560,9999,Constants!$D$37:$D$560,"<>"&9999) -> 0 | J45: =SUMIFS(Constants!$H$37:$H$560,Constants!$A$37:$A$560,ZSS,Constants!$K$37:$K$560,9999,Constants!$D$37:$D$560,"<>"&9999) -> 0 | K45: =SUMIFS(Constants!$H$37:$H$560,Constants!$A$37:$A$560,ZSS,Constants!$K$37:$K$560,9999,Constants!$D$37:$D$560,"<>"&9999) -> 0 | L45: =SUMIFS(Constants!$H$37:$H$560,Constants!$A$37:$A$560,ZSS,Constants!$K$37:$K$560,9999,Constants!$D$37:$D$560,"<>"&9999) -> 0 | M45: =SUMIFS(Constants!$H$37:$H$560,Constants!$A$37:$A$560,ZSS,Constants!$K$37:$K$560,9999,Constants!$D$37:$D$560,"<>"&9999) -> 0 | N45: =SUMIFS(Constants!$H$37:$H$560,Constants!$A$37:$A$560,ZSS,Constants!$K$37:$K$560,9999,Constants!$D$37:$D$560,"<>"&9999) -> 0 | O45: =SUMIFS(Constants!$H$37:$H$560,Constants!$A$37:$A$560,ZSS,Constants!$K$37:$K$560,9999,Constants!$D$37:$D$560,"<>"&9999) -> 0 | P45: =SUMIFS(Constants!$H$37:$H$560,Constants!$A$37:$A$560,ZSS,Constants!$K$37:$K$560,9999,Constants!$D$37:$D$560,"<>"&9999) -> 0 | Q45: =SUMIFS(Constants!$H$37:$H$560,Constants!$A$37:$A$560,ZSS,Constants!$K$37:$K$560,9999,Constants!$D$37:$D$560,"<>"&9999) -> 0 | R45: =SUMIFS(Constants!$H$37:$H$560,Constants!$A$37:$A$560,ZSS,Constants!$K$37:$K$560,9999,Constants!$D$37:$D$560,"<>"&9999) -> 0 | S45: =SUMIFS(Constants!$H$37:$H$560,Constants!$A$37:$A$560,ZSS,Constants!$K$37:$K$560,9999,Constants!$D$37:$D$560,"<>"&9999) -> 0 | T45: =SUMIFS(Constants!$H$37:$H$560,Constants!$A$37:$A$560,ZSS,Constants!$K$37:$K$560,9999,Constants!$D$37:$D$560,"<>"&9999) -> 0 | U45: =SUMIFS(Constants!$H$37:$H$560,Constants!$A$37:$A$560,ZSS,Constants!$K$37:$K$560,9999,Constants!$D$37:$D$560,"<>"&9999) -> 0 | V45: =SUMIFS(Constants!$H$37:$H$560,Constants!$A$37:$A$560,ZSS,Constants!$K$37:$K$560,9999,Constants!$D$37:$D$560,"<>"&9999) -> 0 | W45: =SUMIFS(Constants!$H$37:$H$560,Constants!$A$37:$A$560,ZSS,Constants!$K$37:$K$560,9999,Constants!$D$37:$D$560,"<>"&9999) -> 0 | X45: =SUMIFS(Constants!$H$37:$H$560,Constants!$A$37:$A$560,ZSS,Constants!$K$37:$K$560,9999,Constants!$D$37:$D$560,"<>"&9999) -> 0 | Y45: =SUMIFS(Constants!$H$37:$H$560,Constants!$A$37:$A$560,ZSS,Constants!$K$37:$K$560,9999,Constants!$D$37:$D$560,"<>"&9999) -> 0 | Z45: =SUMIFS(Constants!$H$37:$H$560,Constants!$A$37:$A$560,ZSS,Constants!$K$37:$K$560,9999,Constants!$D$37:$D$560,"<>"&9999) -> 0 | AA45: =SUMIFS(Constants!$H$37:$H$560,Constants!$A$37:$A$560,ZSS,Constants!$K$37:$K$560,9999,Constants!$D$37:$D$560,"<>"&9999) -> 0 | AB45: =SUMIFS(Constants!$H$37:$H$560,Constants!$A$37:$A$560,ZSS,Constants!$K$37:$K$560,9999,Constants!$D$37:$D$560,"<>"&9999) -> 0 | AC45: =SUMIFS(Constants!$H$37:$H$560,Constants!$A$37:$A$560,ZSS,Constants!$K$37:$K$560,9999,Constants!$D$37:$D$560,"<>"&9999) -> 0 | AD45: =SUMIFS(Constants!$H$37:$H$560,Constants!$A$37:$A$560,ZSS,Constants!$K$37:$K$560,9999,Constants!$D$37:$D$560,"<>"&9999) -> 0 | AE45: =SUMIFS(Constants!$H$37:$H$560,Constants!$A$37:$A$560,ZSS,Constants!$K$37:$K$560,9999,Constants!$D$37:$D$560,"<>"&9999) -> 0 | AF45: =SUMIFS(Constants!$H$37:$H$560,Constants!$A$37:$A$560,ZSS,Constants!$K$37:$K$560,9999,Constants!$D$37:$D$560,"<>"&9999) -> 0 | AG45: =SUMIFS(Constants!$H$37:$H$560,Constants!$A$37:$A$560,ZSS,Constants!$K$37:$K$560,9999,Constants!$D$37:$D$560,"<>"&9999) -> 0 | AH45: =SUMIFS(Constants!$H$37:$H$560,Constants!$A$37:$A$560,ZSS,Constants!$K$37:$K$560,9999,Constants!$D$37:$D$560,"<>"&9999) -> 0 | AI45: =SUMIFS(Constants!$H$37:$H$560,Constants!$A$37:$A$560,ZSS,Constants!$K$37:$K$560,9999,Constants!$D$37:$D$560,"<>"&9999) -> 0 | AJ45: =SUMIFS(Constants!$H$37:$H$560,Constants!$A$37:$A$560,ZSS,Constants!$K$37:$K$560,9999,Constants!$D$37:$D$560,"<>"&9999) -> 0 | AK45: =SUMIFS(Constants!$H$37:$H$560,Constants!$A$37:$A$560,ZSS,Constants!$K$37:$K$560,9999,Constants!$D$37:$D$560,"<>"&9999) -> 0
D46: 0 | E46: Option Capital Cost | F46: =IF(F32>=$I$3,IF($I$7=TRUE,SUMIFS($H$16:$H$29,$C$16:$C$29,TRUE),SUMIFS($F$16:$F$29,$C$16:$C$29,TRUE)),0) -> 0 | G46: =IF(G32>=$I$3,IF($I$7=TRUE,SUMIFS($H$16:$H$29,$C$16:$C$29,TRUE),SUMIFS($F$16:$F$29,$C$16:$C$29,TRUE)),0) -> 0 | H46: =IF(H32>=$I$3,IF($I$7=TRUE,SUMIFS($H$16:$H$29,$C$16:$C$29,TRUE),SUMIFS($F$16:$F$29,$C$16:$C$29,TRUE)),0) -> 0 | I46: 60120.68393 | J46: 60120.68393 | K46: 60120.68393 | L46: 60120.68393 | M46: 60120.68393 | N46: =IF(N32>=$I$3,IF($I$7=TRUE,SUMIFS($H$16:$H$29,$C$16:$C$29,TRUE),SUMIFS($F$16:$F$29,$C$16:$C$29,TRUE)),0) -> 60120.68393 | O46: 60120.68393 | P46: 60120.68393 | Q46: 60120.68393 | R46: 60120.68393 | S46: 60120.68393 | T46: 60120.68393 | U46: 60120.68393 | V46: 60120.68393 | W46: 60120.68393 | X46: 60120.68393 | Y46: 60120.68393 | Z46: 60120.68393 | AA46: 60120.68393 | AB46: 60120.68393 | AC46: 60120.68393 | AD46: 60120.68393 | AE46: 60120.68393 | AF46: 60120.68393 | AG46: 60120.68393 | AH46: 60120.68393 | AI46: 60120.68393 | AJ46: 60120.68393 | AK46: 60120.68393
E47: Total Life Cycle Cost | F47: =SUM(F39:F46) -> 284753.8373 | G47: =SUM(G39:G46) -> 296906.5361 | H47: =SUM(H39:H46) -> 311474.69 | I47: 388164.3343 | J47: 404194.1291 | K47: 416652.2644 | L47: 430654.3658 | M47: 450652.2438 | N47: 472594.1348 | O47: 487050.4792 | P47: 499024.1934 | Q47: 511147.7782 | R47: 523420.5336 | S47: 535841.7774 | T47: 548410.8438 | U47: 561127.0835 | V47: 573989.8626 | W47: 586998.5622 | X47: 600152.5778 | Y47: 613451.3191 | Z47: 626894.2091 | AA47: 640480.6839 | AB47: 654210.1922 | AC47: 667231.1639 | AD47: 680385.5494 | AE47: 693672.8694 | AF47: 707092.6545 | AG47: 720644.4458 | AH47: 720644.4458 | AI47: 720644.4458 | AJ47: 720644.4458 | AK47: 720644.4458
B49: Scenario Capture Below
A52: Status Quo | B52: Scenario: Status Quo, , | C52: Setting | D52: Model Output | E52: 2019 | F52: 2020 | G52: 2021 | I52: 2023 | J52: 2024 | K52: 2025 | L52: 2026 | M52: 2027 | N52: 2028 | O52: 2029 | P52: 2030 | Q52: 2031 | R52: 2032 | S52: 2033 | T52: 2034 | U52: 2035 | V52: 2036 | W52: 2037 | X52: 2038 | Y52: 2039 | Z52: 2040 | AA52: 2041 | AB52: 2042 | AC52: 2043 | AD52: 2044 | AE52: 2045 | AF52: 2046 | AG52: 2047 | AH52: 2048 | AI52: 2049 | AJ52: 2050 | AK52: 2051 | AL52: 2052 | AM52: 2053 | AN52: 2054 | AO52: 2055 | AP52: 2056
H53: 2022
B54: Additional Transformer | C54: FALSE | D54: 10% PoE (MWh, Pr-Adjusted) | E54: 452.3239979 | F54: 470.6216133 | G54: 519.8823606 | I54: 819.0507341 | J54: 1031.682111 | K54: 1142.104632 | L54: 1201.818113 | M54: 1221.680572 | N54: 1263.672448 | O54: 1444.638434 | P54: 1707.780265 | Q54: 2063.164976 | R54: 2378.203717 | S54: 2737.402167 | T54: 2789.4757 | U54: 2841.807592 | V54: 2894.397022 | W54: 2947.243186 | X54: 3000.345295 | Y54: 3053.702577
B55: Replace 1 Path | C55: FALSE | D55: 50% PoE (MWh, Pr-Adjusted) | E55: 304.2837491 | F55: 314.7189146 | G55: 346.6503528 | H55: 579.4506892 | I55: 539.5078361 | J55: 659.0174691 | K55: 719.6753691 | L55: 753.6773016 | M55: 765.6136543 | N55: 793.3781492 | O55: 887.5331061 | P55: 1026.514804 | Q55: 1209.301317 | R55: 1368.747528 | S55: 1554.799444 | T55: 1584.535265 | U55: 1614.424404 | V55: 1644.466462 | W55: 1674.66105 | X55: 1705.007787 | Y55: 1735.506301
B56: Replace 2 Paths - Same | C56: FALSE | D56: Pr (Terminal Failure) | E56: 0.005066435429 | F56: 0.005176120475 | G56: 0.005286094082 | H56: 385.5792428 | I56: 0.005506888672 | J56: 0.00561770089 | K56: 0.00572878412 | L56: 0.005840134333 | M56: 0.005951747625 | N56: 0.006063620216 | O56: 0.006175748442 | P56: 0.006288128751 | Q56: 0.006400757694 | R56: 0.006513631927 | S56: 0.006626748198 | T56: 0.00674010335 | U56: 0.006853694315 | V56: 0.006967518106 | W56: 0.007081571821 | X56: 0.007195852632 | Y56: 0.007310357789
B57: Replace 2 Paths - different | C57: FALSE | D57: Pr (Repairable Failure) | E57: 0.007237764898 | F57: 0.007394457821 | G57: 0.007551562974 | H57: 0.005396351634 | I57: 0.007866983818 | J57: 0.008025286986 | K57: 0.008183977315 | L57: 0.008343049047 | M57: 0.008502496607 | N57: 0.008662314594 | O57: 0.008822497774 | P57: 0.008983041073 | Q57: 0.009143939563 | R57: 0.009305188467 | S57: 0.00946678314 | T57: 0.009628719072 | U57: 0.009790991878 | V57: 0.009953597294 | W57: 0.01011653117 | X57: 0.01027978947 | Y57: 0.01044336827
B58: Spare/Mobile Asset | C58: FALSE | H58: 0.007709073762
B59: Non-Network MW | C59: 0 | D59: Energy at Risk (Weighted) | E59: 31382.62413 | F59: 32534.07518 | G59: 35875.79596 | I59: 56103.36349 | J59: 69373.51755 | K59: 76176.37333 | L59: 79930.75904 | M59: 81219.03567 | N59: 84101.97949 | O59: 94919.8234 | P59: 110780.4998 | Q59: 131891.4373 | R59: 150442.5946 | S59: 171862.2235 | T59: 190043.3842 | U59: 209398.0737 | V59: 228752.7632 | W59: 248107.4528 | X59: 267462.1423 | Y59: 286816.8318 | Z59: 306171.5213 | AA59: 325526.2108 | AB59: 344880.9003 | AC59: 364235.5898 | AD59: 383590.2793 | AE59: 402944.9688 | AF59: 422299.6583 | AG59: 441654.3478 | AH59: 461009.0373 | AI59: 480363.7268 | AJ59: 499718.4163 | AK59: 519073.1058 | AL59: 538427.7953 | AM59: 557782.4848 | AN59: 577137.1743 | AO59: 596491.8638 | AP59: 615846.5533
B60: Probability Reduction | C60: FALSE | D60: Safety Risk | E60: 436.7455166 | F60: 446.2007742 | G60: 455.6809068 | H60: 39936.66091 | I60: 474.7142191 | J60: 484.2666431 | K60: 493.8424293 | L60: 503.4412304 | M60: 513.06271 | N60: 522.7065421 | O60: 532.3724109 | P60: 542.0600101 | Q60: 551.7690426 | R60: 561.4992199 | S60: 571.2502618 | T60: 581.0218962 | U60: 590.8138584 | V60: 600.6258912 | W60: 610.4577442 | X60: 620.3091739 | Y60: 630.1799429 | Z60: 640.0019576 | AA60: 649.8435027 | AB60: 659.6850479 | AC60: 669.526593 | AD60: 679.3681382 | AE60: 689.2096833 | AF60: 699.0512285 | AG60: 708.8927736 | AH60: 718.7343188 | AI60: 728.5758639 | AJ60: 738.4174091 | AK60: 748.2589542 | AL60: 758.1004994 | AM60: 767.9420446 | AN60: 777.7835897 | AO60: 787.6251349 | AP60: 797.46668
D61: Unplanned Replacement Risk | E61: 75996.53143 | F61: 77641.80712 | G61: 79291.41123 | H61: 465.1855166 | I61: 82603.33009 | J61: 84265.51335 | K61: 85931.76181 | L61: 87602.01499 | M61: 89276.21437 | N61: 90954.30324 | O61: 92636.22663 | P61: 94321.93126 | Q61: 96011.36542 | R61: 97704.4789 | S61: 99401.22297 | T61: 101101.5503 | U61: 102805.4147 | V61: 104512.7716 | W61: 106223.5773 | X61: 107937.7895 | Y61: 109655.3668 | Z61: 111364.4606 | AA61: 113076.9528 | AB61: 114789.445 | AC61: 116501.9373 | AD61: 118214.4295 | AE61: 119926.9217 | AF61: 121639.4139 | AG61: 123351.9061 | AH61: 125064.3983 | AI61: 126776.8905 | AJ61: 128489.3827 | AK61: 130201.8749 | AL61: 131914.3672 | AM61: 133626.8594 | AN61: 135339.3516 | AO61: 137051.8438 | AP61: 138764.336
B62: This scenario is the status quo, with no investment or improvements made historically. | D62: Unplanned Fault Risk | E62: 3618.882449 | F62: 3697.228911 | G62: 3775.781487 | H62: 80945.27451 | I62: 3933.491909 | J62: 4012.643493 | K62: 4091.988657 | L62: 4171.524523 | M62: 4251.248303 | N62: 4331.157297 | O62: 4411.248887 | P62: 4491.520536 | Q62: 4571.969782 | R62: 4652.594233 | S62: 4733.39157 | T62: 4814.359536 | U62: 4895.495939 | V62: 4976.798647 | W62: 5058.265586 | X62: 5139.894737 | Y62: 5221.684135 | Z62: 5303.069553 | AA62: 5384.616801 | AB62: 5466.16405 | AC62: 5547.711298 | AD62: 5629.258546 | AE62: 5710.805794 | AF62: 5792.353042 | AG62: 5873.90029 | AH62: 5955.447539 | AI62: 6036.994787 | AJ62: 6118.542035 | AK62: 6200.089283 | AL62: 6281.636531 | AM62: 6363.183779 | AN62: 6444.731028 | AO62: 6526.278276 | AP62: 6607.825524
D63: Unplanned Enviromental Risk | E63: 0 | F63: 0 | G63: 0 | H63: 3854.536881 | I63: 0 | J63: 0 | K63: 0 | L63: 0 | M63: 0 | N63: 0 | O63: 0 | P63: 0 | Q63: 0 | R63: 0 | S63: 0 | T63: 0 | U63: 0 | V63: 0 | W63: 0 | X63: 0 | Y63: 0 | Z63: 0 | AA63: 0 | AB63: 0 | AC63: 0 | AD63: 0 | AE63: 0 | AF63: 0 | AG63: 0 | AH63: 0 | AI63: 0 | AJ63: 0 | AK63: 0 | AL63: 0 | AM63: 0 | AN63: 0 | AO63: 0 | AP63: 0
D64: Unplanned Fire Risk | E64: 0 | F64: 0 | G64: 0 | H64: 0 | I64: 0 | J64: 0 | K64: 0 | L64: 0 | M64: 0 | N64: 0 | O64: 0 | P64: 0 | Q64: 0 | R64: 0 | S64: 0 | T64: 0 | U64: 0 | V64: 0 | W64: 0 | X64: 0 | Y64: 0 | Z64: 0 | AA64: 0 | AB64: 0 | AC64: 0 | AD64: 0 | AE64: 0 | AF64: 0 | AG64: 0 | AH64: 0 | AI64: 0 | AJ64: 0 | AK64: 0 | AL64: 0 | AM64: 0 | AN64: 0 | AO64: 0 | AP64: 0
D65: Other | E65: 0 | F65: 0 | G65: 0 | H65: 0 | I65: 0 | J65: 0 | K65: 0 | L65: 0 | M65: 0 | N65: 0 | O65: 0 | P65: 0 | Q65: 0 | R65: 0 | S65: 0 | T65: 0 | U65: 0 | V65: 0 | W65: 0 | X65: 0 | Y65: 0 | Z65: 0 | AA65: 0 | AB65: 0 | AC65: 0 | AD65: 0 | AE65: 0 | AF65: 0 | AG65: 0 | AH65: 0 | AI65: 0 | AJ65: 0 | AK65: 0 | AL65: 0 | AM65: 0 | AN65: 0 | AO65: 0 | AP65: 0
D66: Option Capital Cost | E66: 0 | F66: 0 | G66: 0 | H66: 0 | I66: 0 | J66: 0 | K66: 0 | L66: 0 | M66: 0 | N66: 0 | O66: 0 | P66: 0 | Q66: 0 | R66: 0 | S66: 0 | T66: 0 | U66: 0 | V66: 0 | W66: 0 | X66: 0 | Y66: 0 | Z66: 0 | AA66: 0 | AB66: 0 | AC66: 0 | AD66: 0 | AE66: 0 | AF66: 0 | AG66: 0 | AH66: 0 | AI66: 0 | AJ66: 0 | AK66: 0 | AL66: 0 | AM66: 0 | AN66: 0 | AO66: 0 | AP66: 0
D67: Total Cost | E67: 111434.7835 | F67: 114319.312 | G67: 119398.6696 | H67: 0 | I67: 143114.8997 | J67: 158135.941 | K67: 166693.9662 | L67: 172207.7398 | M67: 175259.5611 | N67: 179910.1466 | O67: 192499.6713 | P67: 210136.0116 | Q67: 233026.5416 | R67: 253361.167 | S67: 276568.0883 | T67: 296540.3159 | U67: 317689.7983 | V67: 338842.9594 | W67: 359999.7534 | X67: 381160.1356 | Y67: 402324.0627
H68: 125201.6578
A69: Spare/Mobile Asset | B69: Scenario: Status Quo, Spare Ready, | C69: Setting | D69: Model Output | E69: 2019 | F69: 2020 | G69: 2021 | I69: 2023 | J69: 2024 | K69: 2025 | L69: 2026 | M69: 2027 | N69: 2028 | O69: 2029 | P69: 2030 | Q69: 2031 | R69: 2032 | S69: 2033 | T69: 2034 | U69: 2035 | V69: 2036 | W69: 2037 | X69: 2038 | Y69: 2039 | Z69: 2040 | AA69: 2041 | AB69: 2042 | AC69: 2043 | AD69: 2044 | AE69: 2045 | AF69: 2046 | AG69: 2047 | AH69: 2048 | AI69: 2049 | AJ69: 2050 | AK69: 2051 | AL69: 2052 | AM69: 2053 | AN69: 2054 | AO69: 2055 | AP69: 2056
H70: 2022
B71: Additional Transformer | C71: FALSE | D71: 10% PoE (MWh, Pr-Adjusted) | E71: 228.9113017 | F71: 238.2167593 | G71: 263.2053269 | I71: 414.8631473 | J71: 522.6890109 | K71: 578.7549281 | L71: 609.1354645 | M71: 619.3188334 | N71: 640.7313473 | O71: 732.6506471 | P71: 866.2971267 | Q71: 1046.812079 | R71: 1206.921116 | S71: 1389.515229 | T71: 1416.227284 | U71: 1443.081314 | V71: 1470.076991 | W71: 1497.213995 | X71: 1524.492014 | Y71: 1551.910744
B72: Replace 1 Path | C72: FALSE | D72: 50% PoE (MWh, Pr-Adjusted) | E72: 153.979279 | F72: 159.2897095 | G72: 175.4870918 | H72: 293.424819 | I72: 273.2475645 | J72: 333.854149 | K72: 364.6588026 | L72: 381.9623264 | M72: 388.0822444 | N72: 402.233867 | O72: 450.0683089 | P72: 520.661414 | Q72: 613.5152424 | R72: 694.5597203 | S72: 789.1446545 | T72: 804.3937592 | U72: 819.7267582 | V72: 835.1435001 | W72: 850.6438373 | X72: 866.2276269 | Y72: 881.8947298
B73: Replace 2 Paths - Same | C73: FALSE | D73: Pr (Terminal Failure) | E73: 0.005066435429 | F73: 0.005176120475 | G73: 0.005286094082 | H73: 195.2354964 | I73: 0.005506888672 | J73: 0.00561770089 | K73: 0.00572878412 | L73: 0.005840134333 | M73: 0.005951747625 | N73: 0.006063620216 | O73: 0.006175748442 | P73: 0.006288128751 | Q73: 0.006400757694 | R73: 0.006513631927 | S73: 0.006626748198 | T73: 0.00674010335 | U73: 0.006853694315 | V73: 0.006967518106 | W73: 0.007081571821 | X73: 0.007195852632 | Y73: 0.007310357789
B74: Replace 2 Paths - different | C74: FALSE | D74: Pr (Repairable Failure) | E74: 0.007237764898 | F74: 0.007394457821 | G74: 0.007551562974 | H74: 0.005396351634 | I74: 0.007866983818 | J74: 0.008025286986 | K74: 0.008183977315 | L74: 0.008343049047 | M74: 0.008502496607 | N74: 0.008662314594 | O74: 0.008822497774 | P74: 0.008983041073 | Q74: 0.009143939563 | R74: 0.009305188467 | S74: 0.00946678314 | T74: 0.009628719072 | U74: 0.009790991878 | V74: 0.009953597294 | W74: 0.01011653117 | X74: 0.01027978947 | Y74: 0.01044336827
B75: Spare/Mobile Asset | C75: TRUE | H75: 0.007709073762
B76: Non-Network MW | C76: 0 | D76: Energy at Risk (Weighted) | E76: 15881.29972 | F76: 16467.1042 | G76: 18162.23061 | I76: 28415.90154 | J76: 35145.41468 | K76: 38599.88762 | L76: 40510.28411 | M76: 41170.7899 | N76: 42640.48 | O76: 48135.87094 | P76: 56191.6915 | Q76: 66915.3864 | R76: 76344.1325 | S76: 87233.02441 | T76: 96468.04553 | U76: 106302.7203 | V76: 116137.3951 | W76: 125972.0699 | X76: 135806.7447 | Y76: 145641.4195 | Z76: 155476.0943 | AA76: 165310.7691 | AB76: 175145.4439 | AC76: 184980.1187 | AD76: 194814.7935 | AE76: 204649.4683 | AF76: 214484.1431 | AG76: 224318.8179 | AH76: 234153.4927 | AI76: 243988.1675 | AJ76: 253822.8423 | AK76: 263657.517 | AL76: 273492.1918 | AM76: 283326.8666 | AN76: 293161.5414 | AO76: 302996.2162 | AP76: 312830.891
B77: Probability Reduction | C77: FALSE | D77: Safety Risk | E77: 436.7455166 | F77: 446.2007742 | G77: 455.6809068 | H77: 20222.30639 | I77: 474.7142191 | J77: 484.2666431 | K77: 493.8424293 | L77: 503.4412304 | M77: 513.06271 | N77: 522.7065421 | O77: 532.3724109 | P77: 542.0600101 | Q77: 551.7690426 | R77: 561.4992199 | S77: 571.2502618 | T77: 581.0218962 | U77: 590.8138584 | V77: 600.6258912 | W77: 610.4577442 | X77: 620.3091739 | Y77: 630.1799429 | Z77: 640.0019576 | AA77: 649.8435027 | AB77: 659.6850479 | AC77: 669.526593 | AD77: 679.3681382 | AE77: 689.2096833 | AF77: 699.0512285 | AG77: 708.8927736 | AH77: 718.7343188 | AI77: 728.5758639 | AJ77: 738.4174091 | AK77: 748.2589542 | AL77: 758.1004994 | AM77: 767.9420446 | AN77: 777.7835897 | AO77: 787.6251349 | AP77: 797.46668
D78: Unplanned Replacement Risk | E78: 75996.53143 | F78: 77641.80712 | G78: 79291.41123 | H78: 465.1855166 | I78: 82603.33009 | J78: 84265.51335 | K78: 85931.76181 | L78: 87602.01499 | M78: 89276.21437 | N78: 90954.30324 | O78: 92636.22663 | P78: 94321.93126 | Q78: 96011.36542 | R78: 97704.4789 | S78: 99401.22297 | T78: 101101.5503 | U78: 102805.4147 | V78: 104512.7716 | W78: 106223.5773 | X78: 107937.7895 | Y78: 109655.3668 | Z78: 111364.4606 | AA78: 113076.9528 | AB78: 114789.445 | AC78: 116501.9373 | AD78: 118214.4295 | AE78: 119926.9217 | AF78: 121639.4139 | AG78: 123351.9061 | AH78: 125064.3983 | AI78: 126776.8905 | AJ78: 128489.3827 | AK78: 130201.8749 | AL78: 131914.3672 | AM78: 133626.8594 | AN78: 135339.3516 | AO78: 137051.8438 | AP78: 138764.336
B79: This scenario models the availbility of a spare asset, reducing outage duration. This may be the status uo depending on the station configuration and if spares are already available. | D79: Unplanned Fault Risk | E79: 3618.882449 | F79: 3697.228911 | G79: 3775.781487 | H79: 80945.27451 | I79: 3933.491909 | J79: 4012.643493 | K79: 4091.988657 | L79: 4171.524523 | M79: 4251.248303 | N79: 4331.157297 | O79: 4411.248887 | P79: 4491.520536 | Q79: 4571.969782 | R79: 4652.594233 | S79: 4733.39157 | T79: 4814.359536 | U79: 4895.495939 | V79: 4976.798647 | W79: 5058.265586 | X79: 5139.894737 | Y79: 5221.684135 | Z79: 5303.069553 | AA79: 5384.616801 | AB79: 5466.16405 | AC79: 5547.711298 | AD79: 5629.258546 | AE79: 5710.805794 | AF79: 5792.353042 | AG79: 5873.90029 | AH79: 5955.447539 | AI79: 6036.994787 | AJ79: 6118.542035 | AK79: 6200.089283 | AL79: 6281.636531 | AM79: 6363.183779 | AN79: 6444.731028 | AO79: 6526.278276 | AP79: 6607.825524
D80: Unplanned Enviromental Risk | E80: 0 | F80: 0 | G80: 0 | H80: 3854.536881 | I80: 0 | J80: 0 | K80: 0 | L80: 0 | M80: 0 | N80: 0 | O80: 0 | P80: 0 | Q80: 0 | R80: 0 | S80: 0 | T80: 0 | U80: 0 | V80: 0 | W80: 0 | X80: 0 | Y80: 0 | Z80: 0 | AA80: 0 | AB80: 0 | AC80: 0 | AD80: 0 | AE80: 0 | AF80: 0 | AG80: 0 | AH80: 0 | AI80: 0 | AJ80: 0 | AK80: 0 | AL80: 0 | AM80: 0 | AN80: 0 | AO80: 0 | AP80: 0
D81: Unplanned Fire Risk | E81: 0 | F81: 0 | G81: 0 | H81: 0 | I81: 0 | J81: 0 | K81: 0 | L81: 0 | M81: 0 | N81: 0 | O81: 0 | P81: 0 | Q81: 0 | R81: 0 | S81: 0 | T81: 0 | U81: 0 | V81: 0 | W81: 0 | X81: 0 | Y81: 0 | Z81: 0 | AA81: 0 | AB81: 0 | AC81: 0 | AD81: 0 | AE81: 0 | AF81: 0 | AG81: 0 | AH81: 0 | AI81: 0 | AJ81: 0 | AK81: 0 | AL81: 0 | AM81: 0 | AN81: 0 | AO81: 0 | AP81: 0
D82: Other | E82: 0 | F82: 0 | G82: 0 | H82: 0 | I82: 0 | J82: 0 | K82: 0 | L82: 0 | M82: 0 | N82: 0 | O82: 0 | P82: 0 | Q82: 0 | R82: 0 | S82: 0 | T82: 0 | U82: 0 | V82: 0 | W82: 0 | X82: 0 | Y82: 0 | Z82: 0 | AA82: 0 | AB82: 0 | AC82: 0 | AD82: 0 | AE82: 0 | AF82: 0 | AG82: 0 | AH82: 0 | AI82: 0 | AJ82: 0 | AK82: 0 | AL82: 0 | AM82: 0 | AN82: 0 | AO82: 0 | AP82: 0
D83: Option Capital Cost | E83: 0 | F83: 0 | G83: 0 | H83: 0 | I83: 0 | J83: 0 | K83: 0 | L83: 0 | M83: 0 | N83: 0 | O83: 0 | P83: 0 | Q83: 0 | R83: 0 | S83: 0 | T83: 0 | U83: 0 | V83: 0 | W83: 0 | X83: 0 | Y83: 0 | Z83: 0 | AA83: 0 | AB83: 0 | AC83: 0 | AD83: 0 | AE83: 0 | AF83: 0 | AG83: 0 | AH83: 0 | AI83: 0 | AJ83: 0 | AK83: 0 | AL83: 0 | AM83: 0 | AN83: 0 | AO83: 0 | AP83: 0
D84: Total Cost | E84: 95933.45912 | F84: 98252.34101 | G84: 101685.1042 | H84: 0 | I84: 115427.4378 | J84: 123907.8382 | K84: 129117.4805 | L84: 132787.2649 | M84: 135211.3153 | N84: 138448.6471 | O84: 145715.7189 | P84: 155547.2033 | Q84: 168050.4906 | R84: 179262.7049 | S84: 191938.8892 | T84: 202964.9772 | U84: 214594.4448 | V84: 226227.5913 | W84: 237864.3706 | X84: 249504.7381 | Y84: 261148.6504
H85: 105487.3033
A86: Online Monitor | B86: Scenario: Status Quo, , Online Monitor | C86: Setting | D86: Model Output | E86: 2019 | F86: 2020 | G86: 2021 | I86: 2023 | J86: 2024 | K86: 2025 | L86: 2026 | M86: 2027 | N86: 2028 | O86: 2029 | P86: 2030 | Q86: 2031 | R86: 2032 | S86: 2033 | T86: 2034 | U86: 2035 | V86: 2036 | W86: 2037 | X86: 2038 | Y86: 2039 | Z86: 2040 | AA86: 2041 | AB86: 2042 | AC86: 2043 | AD86: 2044 | AE86: 2045 | AF86: 2046 | AG86: 2047 | AH86: 2048 | AI86: 2049 | AJ86: 2050 | AK86: 2051 | AL86: 2052 | AM86: 2053 | AN86: 2054 | AO86: 2055 | AP86: 2056
H87: 2022
B88: Additional Transformer | C88: FALSE | D88: 10% PoE (MWh, Pr-Adjusted) | E88: 357.618162 | F88: 372.0465783 | G88: 411.083685 | I88: 648.8012086 | J88: 817.9773779 | K88: 905.763657 | L88: 953.1151371 | M88: 968.6198392 | N88: 1001.821509 | O88: 1145.818918 | P88: 1355.185288 | Q88: 1638.174291 | R88: 1888.979391 | S88: 2174.996951 | T88: 2216.125928 | U88: 2257.450911 | V88: 2298.971184 | W88: 2340.686042 | X88: 2382.594795 | Y88: 2424.696765
B89: Replace 1 Path | C89: FALSE | D89: 50% PoE (MWh, Pr-Adjusted) | E89: 240.1225108 | F89: 248.317478 | G89: 273.5739406 | H89: 458.3236788 | I89: 426.570293 | J89: 521.491456 | K89: 569.6204399 | L89: 596.5040753 | M89: 605.7354079 | N89: 627.6427018 | O89: 702.4423451 | P89: 812.8213413 | Q89: 958.1879213 | R89: 1084.948124 | S89: 1232.919198 | T89: 1256.320475 | U89: 1279.83661 | V89: 1303.467241 | W89: 1327.212013 | X89: 1351.070576 | Y89: 1375.042591
B90: Replace 2 Paths - Same | C90: FALSE | D90: Pr (Terminal Failure) | E90: 0.005066435429 | F90: 0.005176120475 | G90: 0.005286094082 | H90: 304.4087125 | I90: 0.005506888672 | J90: 0.00561770089 | K90: 0.00572878412 | L90: 0.005840134333 | M90: 0.005951747625 | N90: 0.006063620216 | O90: 0.006175748442 | P90: 0.006288128751 | Q90: 0.006400757694 | R90: 0.006513631927 | S90: 0.006626748198 | T90: 0.00674010335 | U90: 0.006853694315 | V90: 0.006967518106 | W90: 0.007081571821 | X90: 0.007195852632 | Y90: 0.007310357789
B91: Replace 2 Paths - different | C91: FALSE | D91: Pr (Repairable Failure) | E91: 0.007237764898 | F91: 0.007394457821 | G91: 0.007551562974 | H91: 0.005396351634 | I91: 0.007866983818 | J91: 0.008025286986 | K91: 0.008183977315 | L91: 0.008343049047 | M91: 0.008502496607 | N91: 0.008662314594 | O91: 0.008822497774 | P91: 0.008983041073 | Q91: 0.009143939563 | R91: 0.009305188467 | S91: 0.00946678314 | T91: 0.009628719072 | U91: 0.009790991878 | V91: 0.009953597294 | W91: 0.01011653117 | X91: 0.01027978947 | Y91: 0.01044336827
B92: Spare/Mobile Asset | C92: FALSE | H92: 0.007709073762
B93: Non-Network MW | C93: 0 | D93: Energy at Risk (Weighted) | E93: 24783.40856 | F93: 25689.25873 | G93: 28334.41775 | I93: 44391.56109 | J93: 54939.35093 | K93: 60341.70645 | L93: 63313.86545 | M93: 64314.06636 | N93: 66590.67095 | O93: 75190.97852 | P93: 87797.74726 | Q93: 104596.5449 | R93: 119354.1754 | S93: 136398.8271 | T93: 150859.2922 | U93: 166256.5048 | V93: 181653.7173 | W93: 197050.9298 | X93: 212448.1424 | Y93: 227845.3549 | Z93: 243242.5674 | AA93: 258639.78 | AB93: 274036.9925 | AC93: 289434.205 | AD93: 304831.4176 | AE93: 320228.6301 | AF93: 335625.8427 | AG93: 351023.0552 | AH93: 366420.2677 | AI93: 381817.4803 | AJ93: 397214.6928 | AK93: 412611.9053 | AL93: 428009.1179 | AM93: 443406.3304 | AN93: 458803.5429 | AO93: 474200.7555 | AP93: 489597.968
B94: Probability Reduction | C94: TRUE | D94: Safety Risk | E94: 436.7455166 | F94: 446.2007742 | G94: 455.6809068 | H94: 31552.48821 | I94: 474.7142191 | J94: 484.2666431 | K94: 493.8424293 | L94: 503.4412304 | M94: 513.06271 | N94: 522.7065421 | O94: 532.3724109 | P94: 542.0600101 | Q94: 551.7690426 | R94: 561.4992199 | S94: 571.2502618 | T94: 581.0218962 | U94: 590.8138584 | V94: 600.6258912 | W94: 610.4577442 | X94: 620.3091739 | Y94: 630.1799429 | Z94: 640.0019576 | AA94: 649.8435027 | AB94: 659.6850479 | AC94: 669.526593 | AD94: 679.3681382 | AE94: 689.2096833 | AF94: 699.0512285 | AG94: 708.8927736 | AH94: 718.7343188 | AI94: 728.5758639 | AJ94: 738.4174091 | AK94: 748.2589542 | AL94: 758.1004994 | AM94: 767.9420446 | AN94: 777.7835897 | AO94: 787.6251349 | AP94: 797.46668
D95: Unplanned Replacement Risk | E95: 75996.53143 | F95: 77641.80712 | G95: 79291.41123 | H95: 465.1855166 | I95: 82603.33009 | J95: 84265.51335 | K95: 85931.76181 | L95: 87602.01499 | M95: 89276.21437 | N95: 90954.30324 | O95: 92636.22663 | P95: 94321.93126 | Q95: 96011.36542 | R95: 97704.4789 | S95: 99401.22297 | T95: 101101.5503 | U95: 102805.4147 | V95: 104512.7716 | W95: 106223.5773 | X95: 107937.7895 | Y95: 109655.3668 | Z95: 111364.4606 | AA95: 113076.9528 | AB95: 114789.445 | AC95: 116501.9373 | AD95: 118214.4295 | AE95: 119926.9217 | AF95: 121639.4139 | AG95: 123351.9061 | AH95: 125064.3983 | AI95: 126776.8905 | AJ95: 128489.3827 | AK95: 130201.8749 | AL95: 131914.3672 | AM95: 133626.8594 | AN95: 135339.3516 | AO95: 137051.8438 | AP95: 138764.336
B96: This scenario involves the installation of an online monitor to reduce the probability of failure of the assets. This may be the true status quo depending on what is installed at the substation. | D96: Unplanned Fault Risk | E96: 3618.882449 | F96: 3697.228911 | G96: 3775.781487 | H96: 80945.27451 | I96: 3933.491909 | J96: 4012.643493 | K96: 4091.988657 | L96: 4171.524523 | M96: 4251.248303 | N96: 4331.157297 | O96: 4411.248887 | P96: 4491.520536 | Q96: 4571.969782 | R96: 4652.594233 | S96: 4733.39157 | T96: 4814.359536 | U96: 4895.495939 | V96: 4976.798647 | W96: 5058.265586 | X96: 5139.894737 | Y96: 5221.684135 | Z96: 5303.069553 | AA96: 5384.616801 | AB96: 5466.16405 | AC96: 5547.711298 | AD96: 5629.258546 | AE96: 5710.805794 | AF96: 5792.353042 | AG96: 5873.90029 | AH96: 5955.447539 | AI96: 6036.994787 | AJ96: 6118.542035 | AK96: 6200.089283 | AL96: 6281.636531 | AM96: 6363.183779 | AN96: 6444.731028 | AO96: 6526.278276 | AP96: 6607.825524
D97: Unplanned Enviromental Risk | E97: 0 | F97: 0 | G97: 0 | H97: 3854.536881 | I97: 0 | J97: 0 | K97: 0 | L97: 0 | M97: 0 | N97: 0 | O97: 0 | P97: 0 | Q97: 0 | R97: 0 | S97: 0 | T97: 0 | U97: 0 | V97: 0 | W97: 0 | X97: 0 | Y97: 0 | Z97: 0 | AA97: 0 | AB97: 0 | AC97: 0 | AD97: 0 | AE97: 0 | AF97: 0 | AG97: 0 | AH97: 0 | AI97: 0 | AJ97: 0 | AK97: 0 | AL97: 0 | AM97: 0 | AN97: 0 | AO97: 0 | AP97: 0
D98: Unplanned Fire Risk | E98: 0 | F98: 0 | G98: 0 | H98: 0 | I98: 0 | J98: 0 | K98: 0 | L98: 0 | M98: 0 | N98: 0 | O98: 0 | P98: 0 | Q98: 0 | R98: 0 | S98: 0 | T98: 0 | U98: 0 | V98: 0 | W98: 0 | X98: 0 | Y98: 0 | Z98: 0 | AA98: 0 | AB98: 0 | AC98: 0 | AD98: 0 | AE98: 0 | AF98: 0 | AG98: 0 | AH98: 0 | AI98: 0 | AJ98: 0 | AK98: 0 | AL98: 0 | AM98: 0 | AN98: 0 | AO98: 0 | AP98: 0
D99: Other | E99: 0 | F99: 0 | G99: 0 | H99: 0 | I99: 0 | J99: 0 | K99: 0 | L99: 0 | M99: 0 | N99: 0 | O99: 0 | P99: 0 | Q99: 0 | R99: 0 | S99: 0 | T99: 0 | U99: 0 | V99: 0 | W99: 0 | X99: 0 | Y99: 0 | Z99: 0 | AA99: 0 | AB99: 0 | AC99: 0 | AD99: 0 | AE99: 0 | AF99: 0 | AG99: 0 | AH99: 0 | AI99: 0 | AJ99: 0 | AK99: 0 | AL99: 0 | AM99: 0 | AN99: 0 | AO99: 0 | AP99: 0
D100: Option Capital Cost | E100: 10262.69042 | F100: 10262.69042 | G100: 10262.69042 | H100: 0 | I100: 10262.69042 | J100: 10262.69042 | K100: 10262.69042 | L100: 10262.69042 | M100: 10262.69042 | N100: 10262.69042 | O100: 10262.69042 | P100: 10262.69042 | Q100: 10262.69042 | R100: 10262.69042 | S100: 10262.69042 | T100: 10262.69042 | U100: 10262.69042 | V100: 10262.69042 | W100: 10262.69042 | X100: 10262.69042 | Y100: 10262.69042 | Z100: 10262.69042 | AA100: 10262.69042 | AB100: 10262.69042 | AC100: 10262.69042 | AD100: 10262.69042 | AE100: 10262.69042 | AF100: 10262.69042 | AG100: 10262.69042 | AH100: 10262.69042 | AI100: 10262.69042 | AJ100: 10262.69042 | AK100: 10262.69042 | AL100: 10262.69042 | AM100: 10262.69042 | AN100: 10262.69042 | AO100: 10262.69042 | AP100: 10262.69042
D101: Total Cost | E101: 115098.2584 | F101: 117737.186 | G101: 122119.9818 | H101: 10262.69042 | I101: 141665.7877 | J101: 153964.4648 | K101: 161121.9898 | L101: 165853.5366 | M101: 168617.2822 | N101: 172661.5284 | O101: 183033.5169 | P101: 197415.9495 | Q101: 215994.3396 | R101: 232535.4381 | S101: 251367.3824 | T101: 267618.9143 | U101: 284810.9197 | V101: 302006.6039 | W101: 319205.9209 | X101: 336408.8262 | Y101: 353615.2762
H102: 127080.1755
A103: Spare and Online monitor | B103: Scenario: Status Quo, Spare Ready, Online Monitor | C103: Setting | D103: Model Output | E103: 2019 | F103: 2020 | G103: 2021 | I103: 2023 | J103: 2024 | K103: 2025 | L103: 2026 | M103: 2027 | N103: 2028 | O103: 2029 | P103: 2030 | Q103: 2031 | R103: 2032 | S103: 2033 | T103: 2034 | U103: 2035 | V103: 2036 | W103: 2037 | X103: 2038 | Y103: 2039 | Z103: 2040 | AA103: 2041 | AB103: 2042 | AC103: 2043 | AD103: 2044 | AE103: 2045 | AF103: 2046 | AG103: 2047 | AH103: 2048 | AI103: 2049 | AJ103: 2050 | AK103: 2051 | AL103: 2052 | AM103: 2053 | AN103: 2054 | AO103: 2055 | AP103: 2056
H104: 2022
B105: Additional Transformer | C105: FALSE | D105: 10% PoE (MWh, Pr-Adjusted) | E105: 180.674548 | F105: 187.9930542 | G105: 207.7525632 | I105: 328.0121832 | J105: 413.6199853 | K105: 458.0874079 | L105: 482.1126262 | M105: 490.0300706 | N105: 506.9071022 | O105: 579.8703043 | P105: 685.9476621 | Q105: 829.3384458 | R105: 956.4777757 | S105: 1101.494059 | T105: 1122.502438 | U105: 1143.617019 | V105: 1164.837493 | W105: 1186.163561 | X105: 1207.594929 | Y105: 1229.131309
B106: Replace 1 Path | C106: FALSE | D106: 50% PoE (MWh, Pr-Adjusted) | E106: 121.3069159 | F106: 125.4659842 | G106: 138.2498851 | H106: 231.6654594 | I106: 215.6469807 | J106: 263.6819658 | K106: 288.0655134 | L106: 301.7087395 | M106: 306.4233895 | N106: 317.555563 | O106: 355.4628643 | P106: 411.3917286 | Q106: 485.0551895 | R106: 549.3203736 | S106: 624.3498869 | T106: 636.3007423 | U106: 648.3136504 | V106: 660.3884595 | W106: 672.5250212 | X106: 684.7231908 | Y106: 696.9828272
B107: Replace 2 Paths - Same | C107: FALSE | D107: Pr (Terminal Failure) | E107: 0.005066435429 | F107: 0.005176120475 | G107: 0.005286094082 | H107: 153.8581911 | I107: 0.005506888672 | J107: 0.00561770089 | K107: 0.00572878412 | L107: 0.005840134333 | M107: 0.005951747625 | N107: 0.006063620216 | O107: 0.006175748442 | P107: 0.006288128751 | Q107: 0.006400757694 | R107: 0.006513631927 | S107: 0.006626748198 | T107: 0.00674010335 | U107: 0.006853694315 | V107: 0.006967518106 | W107: 0.007081571821 | X107: 0.007195852632 | Y107: 0.007310357789
B108: Replace 2 Paths - different | C108: FALSE | D108: Pr (Repairable Failure) | E108: 0.007237764898 | F108: 0.007394457821 | G108: 0.007551562974 | H108: 0.005396351634 | I108: 0.007866983818 | J108: 0.008025286986 | K108: 0.008183977315 | L108: 0.008343049047 | M108: 0.008502496607 | N108: 0.008662314594 | O108: 0.008822497774 | P108: 0.008983041073 | Q108: 0.009143939563 | R108: 0.009305188467 | S108: 0.00946678314 | T108: 0.009628719072 | U108: 0.009790991878 | V108: 0.009953597294 | W108: 0.01011653117 | X108: 0.01027978947 | Y108: 0.01044336827
B109: Spare/Mobile Asset | C109: TRUE | H109: 0.007709073762
B110: Non-Network MW | C110: 0 | D110: Energy at Risk (Weighted) | E110: 12520.5485 | F110: 12980.16947 | G110: 14319.06196 | I110: 22442.08873 | J110: 27779.70345 | K110: 30516.48735 | L110: 32024.6915 | M110: 32535.48544 | N110: 33692.49223 | O110: 38050.65866 | P110: 44438.26578 | Q110: 52950.61498 | R110: 60432.08348 | S110: 69074.38247 | T110: 76401.58067 | U110: 84205.7072 | V110: 92009.83373 | W110: 99813.96026 | X110: 107618.0868 | Y110: 115422.2133 | Z110: 123226.3399 | AA110: 131030.4664 | AB110: 138834.5929 | AC110: 146638.7194 | AD110: 154442.846 | AE110: 162246.9725 | AF110: 170051.099 | AG110: 177855.2256 | AH110: 185659.3521 | AI110: 193463.4786 | AJ110: 201267.6052 | AK110: 209071.7317 | AL110: 216875.8582 | AM110: 224679.9848 | AN110: 232484.1113 | AO110: 240288.2378 | AP110: 248092.3644
B111: Probability Reduction | C111: TRUE | D111: Safety Risk | E111: 436.7455166 | F111: 446.2007742 | G111: 455.6809068 | H111: 15948.03344 | I111: 474.7142191 | J111: 484.2666431 | K111: 493.8424293 | L111: 503.4412304 | M111: 513.06271 | N111: 522.7065421 | O111: 532.3724109 | P111: 542.0600101 | Q111: 551.7690426 | R111: 561.4992199 | S111: 571.2502618 | T111: 581.0218962 | U111: 590.8138584 | V111: 600.6258912 | W111: 610.4577442 | X111: 620.3091739 | Y111: 630.1799429 | Z111: 640.0019576 | AA111: 649.8435027 | AB111: 659.6850479 | AC111: 669.526593 | AD111: 679.3681382 | AE111: 689.2096833 | AF111: 699.0512285 | AG111: 708.8927736 | AH111: 718.7343188 | AI111: 728.5758639 | AJ111: 738.4174091 | AK111: 748.2589542 | AL111: 758.1004994 | AM111: 767.9420446 | AN111: 777.7835897 | AO111: 787.6251349 | AP111: 797.46668
D112: Unplanned Replacement Risk | E112: 75996.53143 | F112: 77641.80712 | G112: 79291.41123 | H112: 465.1855166 | I112: 82603.33009 | J112: 84265.51335 | K112: 85931.76181 | L112: 87602.01499 | M112: 89276.21437 | N112: 90954.30324 | O112: 92636.22663 | P112: 94321.93126 | Q112: 96011.36542 | R112: 97704.4789 | S112: 99401.22297 | T112: 101101.5503 | U112: 102805.4147 | V112: 104512.7716 | W112: 106223.5773 | X112: 107937.7895 | Y112: 109655.3668 | Z112: 111364.4606 | AA112: 113076.9528 | AB112: 114789.445 | AC112: 116501.9373 | AD112: 118214.4295 | AE112: 119926.9217 | AF112: 121639.4139 | AG112: 123351.9061 | AH112: 125064.3983 | AI112: 126776.8905 | AJ112: 128489.3827 | AK112: 130201.8749 | AL112: 131914.3672 | AM112: 133626.8594 | AN112: 135339.3516 | AO112: 137051.8438 | AP112: 138764.336
B113: This scenario models the cumulative benefit of two lower-cost options; installation of an online monitor to reduce the probability of failure of the assets, as well as having a spare available. | D113: Unplanned Fault Risk | E113: 3618.882449 | F113: 3697.228911 | G113: 3775.781487 | H113: 80945.27451 | I113: 3933.491909 | J113: 4012.643493 | K113: 4091.988657 | L113: 4171.524523 | M113: 4251.248303 | N113: 4331.157297 | O113: 4411.248887 | P113: 4491.520536 | Q113: 4571.969782 | R113: 4652.594233 | S113: 4733.39157 | T113: 4814.359536 | U113: 4895.495939 | V113: 4976.798647 | W113: 5058.265586 | X113: 5139.894737 | Y113: 5221.684135 | Z113: 5303.069553 | AA113: 5384.616801 | AB113: 5466.16405 | AC113: 5547.711298 | AD113: 5629.258546 | AE113: 5710.805794 | AF113: 5792.353042 | AG113: 5873.90029 | AH113: 5955.447539 | AI113: 6036.994787 | AJ113: 6118.542035 | AK113: 6200.089283 | AL113: 6281.636531 | AM113: 6363.183779 | AN113: 6444.731028 | AO113: 6526.278276 | AP113: 6607.825524
D114: Unplanned Enviromental Risk | E114: 0 | F114: 0 | G114: 0 | H114: 3854.536881 | I114: 0 | J114: 0 | K114: 0 | L114: 0 | M114: 0 | N114: 0 | O114: 0 | P114: 0 | Q114: 0 | R114: 0 | S114: 0 | T114: 0 | U114: 0 | V114: 0 | W114: 0 | X114: 0 | Y114: 0 | Z114: 0 | AA114: 0 | AB114: 0 | AC114: 0 | AD114: 0 | AE114: 0 | AF114: 0 | AG114: 0 | AH114: 0 | AI114: 0 | AJ114: 0 | AK114: 0 | AL114: 0 | AM114: 0 | AN114: 0 | AO114: 0 | AP114: 0
D115: Unplanned Fire Risk | E115: 0 | F115: 0 | G115: 0 | H115: 0 | I115: 0 | J115: 0 | K115: 0 | L115: 0 | M115: 0 | N115: 0 | O115: 0 | P115: 0 | Q115: 0 | R115: 0 | S115: 0 | T115: 0 | U115: 0 | V115: 0 | W115: 0 | X115: 0 | Y115: 0 | Z115: 0 | AA115: 0 | AB115: 0 | AC115: 0 | AD115: 0 | AE115: 0 | AF115: 0 | AG115: 0 | AH115: 0 | AI115: 0 | AJ115: 0 | AK115: 0 | AL115: 0 | AM115: 0 | AN115: 0 | AO115: 0 | AP115: 0
D116: Other | E116: 0 | F116: 0 | G116: 0 | H116: 0 | I116: 0 | J116: 0 | K116: 0 | L116: 0 | M116: 0 | N116: 0 | O116: 0 | P116: 0 | Q116: 0 | R116: 0 | S116: 0 | T116: 0 | U116: 0 | V116: 0 | W116: 0 | X116: 0 | Y116: 0 | Z116: 0 | AA116: 0 | AB116: 0 | AC116: 0 | AD116: 0 | AE116: 0 | AF116: 0 | AG116: 0 | AH116: 0 | AI116: 0 | AJ116: 0 | AK116: 0 | AL116: 0 | AM116: 0 | AN116: 0 | AO116: 0 | AP116: 0
D117: Option Capital Cost | E117: 10262.69042 | F117: 10262.69042 | G117: 10262.69042 | H117: 0 | I117: 10262.69042 | J117: 10262.69042 | K117: 10262.69042 | L117: 10262.69042 | M117: 10262.69042 | N117: 10262.69042 | O117: 10262.69042 | P117: 10262.69042 | Q117: 10262.69042 | R117: 10262.69042 | S117: 10262.69042 | T117: 10262.69042 | U117: 10262.69042 | V117: 10262.69042 | W117: 10262.69042 | X117: 10262.69042 | Y117: 10262.69042 | Z117: 10262.69042 | AA117: 10262.69042 | AB117: 10262.69042 | AC117: 10262.69042 | AD117: 10262.69042 | AE117: 10262.69042 | AF117: 10262.69042 | AG117: 10262.69042 | AH117: 10262.69042 | AI117: 10262.69042 | AJ117: 10262.69042 | AK117: 10262.69042 | AL117: 10262.69042 | AM117: 10262.69042 | AN117: 10262.69042 | AO117: 10262.69042 | AP117: 10262.69042
D118: Total Cost | E118: 102835.3983 | F118: 105028.0967 | G118: 108104.626 | H118: 10262.69042 | I118: 119716.3154 | J118: 126804.8174 | K118: 131296.7707 | L118: 134564.3627 | M118: 136838.7012 | N118: 139763.3497 | O118: 145893.197 | P118: 154056.468 | Q118: 164348.4096 | R118: 173613.3463 | S118: 184042.9377 | T118: 193161.2028 | U118: 202760.1221 | V118: 212362.7203 | W118: 221968.9513 | X118: 231578.7706 | Y118: 241192.1347
H119: 111475.7208
A120: Replace 1 asset | B120: Scenario: Replace 1 Asset, , | C120: Setting | D120: Model Output | E120: 2019 | F120: 2020 | G120: 2021 | I120: 2023 | J120: 2024 | K120: 2025 | L120: 2026 | M120: 2027 | N120: 2028 | O120: 2029 | P120: 2030 | Q120: 2031 | R120: 2032 | S120: 2033 | T120: 2034 | U120: 2035 | V120: 2036 | W120: 2037 | X120: 2038 | Y120: 2039 | Z120: 2040 | AA120: 2041 | AB120: 2042 | AC120: 2043 | AD120: 2044 | AE120: 2045 | AF120: 2046 | AG120: 2047 | AH120: 2048 | AI120: 2049 | AJ120: 2050 | AK120: 2051 | AL120: 2052 | AM120: 2053 | AN120: 2054 | AO120: 2055 | AP120: 2056
H121: 2022
B122: Additional Transformer | C122: FALSE | D122: 10% PoE (MWh, Pr-Adjusted) | E122: 19.61530074 | F122: 26.53561147 | G122: 34.16436537 | I122: 65.47785485 | J122: 88.42921731 | K122: 103.5453963 | L122: 114.2168711 | M122: 120.8570025 | N122: 129.6000222 | O122: 153.3451184 | P122: 187.0418496 | Q122: 232.6330364 | R122: 275.187054 | S122: 324.4020177 | T122: 337.4434685 | U122: 350.4140954 | V122: 363.3312646 | W122: 376.2096403 | X122: 389.061715 | Y122: 401.898215
B123: Replace 1 Path | C123: TRUE | D123: 50% PoE (MWh, Pr-Adjusted) | E123: 13.07978113 | F123: 17.59037906 | G123: 22.58657001 | H123: 42.420474 | I123: 42.79338469 | J123: 56.03373008 | K123: 64.72223084 | L123: 71.04557376 | M123: 75.10108389 | N123: 80.68743275 | O123: 93.42494145 | P123: 111.4945686 | Q123: 135.2674345 | R123: 157.1523792 | S123: 182.8899123 | T123: 190.2489456 | U123: 197.5683666 | V123: 204.8579734 | W123: 212.1260414 | X123: 219.3796218 | Y123: 226.6247707
B124: Replace 2 Paths - Same | C124: FALSE | D124: Pr (Terminal Failure) | E124: 0.003274819475 | F124: 0.003369758518 | G124: 0.003466572692 | H124: 28.00087391 | I124: 0.00366399862 | J124: 0.003764184712 | K124: 0.003865187465 | L124: 0.003966925113 | M124: 0.00406933467 | N124: 0.004172365878 | O124: 0.004275977529 | P124: 0.0043801351 | Q124: 0.00448480916 | R124: 0.004589974248 | S124: 0.004695608066 | T124: 0.004801690886 | U124: 0.00490820509 | V124: 0.005015134825 | W124: 0.005122465726 | X124: 0.005230184699 | Y124: 0.005338279741
B125: Replace 2 Paths - different | C125: FALSE | D125: Pr (Repairable Failure) | E125: 0.004678313536 | F125: 0.004813940739 | G125: 0.004952246703 | H125: 0.003564740516 | I125: 0.005234283742 | J125: 0.005377406731 | K125: 0.005521696378 | L125: 0.005667035876 | M125: 0.005813335243 | N125: 0.005960522683 | O125: 0.006108539326 | P125: 0.006257335857 | Q125: 0.006406870229 | R125: 0.006557106068 | S125: 0.006708011523 | T125: 0.006859558408 | U125: 0.007011721557 | V125: 0.007164478321 | W125: 0.00731780818 | X125: 0.007471692428 | Y125: 0.007626113916
B126: Spare/Mobile Asset | C126: FALSE | H126: 0.005092486451
B127: Non-Network MW | C127: 0 | D127: Energy at Risk (Weighted) | E127: 1353.639331 | F127: 1824.655391 | G127: 2345.391776 | I127: 4463.885316 | J127: 5917.713862 | K127: 6873.226243 | L127: 7559.726667 | M127: 7994.507353 | N127: 8582.508863 | O127: 10026.08951 | P127: 12074.28776 | Q127: 14802.94035 | R127: 17330.65034 | S127: 20280.91895 | T127: 22632.78382 | U127: 25209.38597 | V127: 27785.98812 | W127: 30362.59026 | X127: 32939.19241 | Y127: 35515.79456 | Z127: 38092.3967 | AA127: 40668.99885 | AB127: 43245.601 | AC127: 45822.20314 | AD127: 48398.80529 | AE127: 50975.40744 | AF127: 53552.00959 | AG127: 56128.61173 | AH127: 58705.21388 | AI127: 61281.81603 | AJ127: 63858.41817 | AK127: 66435.02032 | AL127: 69011.62247 | AM127: 71588.22461 | AN127: 74164.82676 | AO127: 76741.42891 | AP127: 79318.03105
B128: Probability Reduction | C128: FALSE | D128: Safety Risk | E128: 282.3015794 | F128: 290.4856768 | G128: 298.8314176 | H128: 2909.407854 | I128: 315.8502644 | J128: 324.486677 | K128: 333.1934888 | L128: 341.9636512 | M128: 350.7917347 | N128: 359.6734068 | O128: 368.6051152 | P128: 377.583884 | Q128: 386.607176 | R128: 395.6727964 | S128: 404.7788232 | T128: 413.9235555 | U128: 423.1054748 | V128: 432.3232143 | W128: 441.575536 | X128: 450.8613108 | Y128: 460.1795042 | Z128: 469.4148546 | AA128: 478.6834701 | AB128: 487.9520856 | AC128: 497.2207011 | AD128: 506.4893167 | AE128: 515.7579322 | AF128: 525.0265477 | AG128: 534.2951632 | AH128: 543.5637788 | AI128: 552.8323943 | AJ128: 562.1010098 | AK128: 571.3696253 | AL128: 580.6382409 | AM128: 589.9068564 | AN128: 599.1754719 | AO128: 608.4440874 | AP128: 617.7127029
D129: Unplanned Replacement Risk | E129: 49122.29213 | F129: 50546.37776 | G129: 51998.59038 | H129: 307.2938479 | I129: 54959.97929 | J129: 56462.77067 | K129: 57977.81197 | L129: 59503.87669 | M129: 61040.02005 | N129: 62585.48817 | O129: 64139.66293 | P129: 65702.0265 | Q129: 67272.13741 | R129: 68849.61372 | S129: 70434.121 | T129: 72025.36329 | U129: 73623.07634 | V129: 75227.02237 | W129: 76836.98589 | X129: 78452.77049 | Y129: 80074.19612 | Z129: 81681.20655 | AA129: 83294.00531 | AB129: 84906.80408 | AC129: 86519.60285 | AD129: 88132.40162 | AE129: 89745.20038 | AF129: 91357.99915 | AG129: 92970.79792 | AH129: 94583.59669 | AI129: 96196.39545 | AJ129: 97809.19422 | AK129: 99421.99299 | AL129: 101034.7918 | AM129: 102647.5905 | AN129: 104260.3893 | AO129: 105873.1881 | AP129: 107485.9868
B130: This scenario involves the replacement of 1 of n redundant assets in the system. | D130: Unplanned Fault Risk | E130: 2339.156768 | F130: 2406.97037 | G130: 2476.123351 | H130: 53471.10774 | I130: 2617.141871 | J130: 2688.703365 | K130: 2760.848189 | L130: 2833.517938 | M130: 2906.667622 | N130: 2980.261341 | O130: 3054.269663 | P130: 3128.667929 | Q130: 3203.435115 | R130: 3278.553034 | S130: 3354.005762 | T130: 3429.779204 | U130: 3505.860778 | V130: 3582.23916 | W130: 3658.90409 | X130: 3735.846214 | Y130: 3813.056958 | Z130: 3889.581264 | AA130: 3966.381205 | AB130: 4043.181147 | AC130: 4119.981088 | AD130: 4196.781029 | AE130: 4273.580971 | AF130: 4350.380912 | AG130: 4427.180853 | AH130: 4503.980795 | AI130: 4580.780736 | AJ130: 4657.580677 | AK130: 4734.380619 | AL130: 4811.18056 | AM130: 4887.980501 | AN130: 4964.780443 | AO130: 5041.580384 | AP130: 5118.380325
D131: Unplanned Enviromental Risk | E131: 0 | F131: 0 | G131: 0 | H131: 2546.243226 | I131: 0 | J131: 0 | K131: 0 | L131: 0 | M131: 0 | N131: 0 | O131: 0 | P131: 0 | Q131: 0 | R131: 0 | S131: 0 | T131: 0 | U131: 0 | V131: 0 | W131: 0 | X131: 0 | Y131: 0 | Z131: 0 | AA131: 0 | AB131: 0 | AC131: 0 | AD131: 0 | AE131: 0 | AF131: 0 | AG131: 0 | AH131: 0 | AI131: 0 | AJ131: 0 | AK131: 0 | AL131: 0 | AM131: 0 | AN131: 0 | AO131: 0 | AP131: 0
D132: Unplanned Fire Risk | E132: 0 | F132: 0 | G132: 0 | H132: 0 | I132: 0 | J132: 0 | K132: 0 | L132: 0 | M132: 0 | N132: 0 | O132: 0 | P132: 0 | Q132: 0 | R132: 0 | S132: 0 | T132: 0 | U132: 0 | V132: 0 | W132: 0 | X132: 0 | Y132: 0 | Z132: 0 | AA132: 0 | AB132: 0 | AC132: 0 | AD132: 0 | AE132: 0 | AF132: 0 | AG132: 0 | AH132: 0 | AI132: 0 | AJ132: 0 | AK132: 0 | AL132: 0 | AM132: 0 | AN132: 0 | AO132: 0 | AP132: 0
D133: Other | E133: 0 | F133: 0 | G133: 0 | H133: 0 | I133: 0 | J133: 0 | K133: 0 | L133: 0 | M133: 0 | N133: 0 | O133: 0 | P133: 0 | Q133: 0 | R133: 0 | S133: 0 | T133: 0 | U133: 0 | V133: 0 | W133: 0 | X133: 0 | Y133: 0 | Z133: 0 | AA133: 0 | AB133: 0 | AC133: 0 | AD133: 0 | AE133: 0 | AF133: 0 | AG133: 0 | AH133: 0 | AI133: 0 | AJ133: 0 | AK133: 0 | AL133: 0 | AM133: 0 | AN133: 0 | AO133: 0 | AP133: 0
D134: Option Capital Cost | E134: 5334.905028 | F134: 5334.905028 | G134: 5334.905028 | H134: 0 | I134: 5334.905028 | J134: 5334.905028 | K134: 5334.905028 | L134: 5334.905028 | M134: 5334.905028 | N134: 5334.905028 | O134: 5334.905028 | P134: 5334.905028 | Q134: 5334.905028 | R134: 5334.905028 | S134: 5334.905028 | T134: 5334.905028 | U134: 5334.905028 | V134: 5334.905028 | W134: 5334.905028 | X134: 5334.905028 | Y134: 5334.905028 | Z134: 5334.905028 | AA134: 5334.905028 | AB134: 5334.905028 | AC134: 5334.905028 | AD134: 5334.905028 | AE134: 5334.905028 | AF134: 5334.905028 | AG134: 5334.905028 | AH134: 5334.905028 | AI134: 5334.905028 | AJ134: 5334.905028 | AK134: 5334.905028 | AL134: 5334.905028 | AM134: 5334.905028 | AN134: 5334.905028 | AO134: 5334.905028 | AP134: 5334.905028
D135: Total Cost | E135: 58432.29483 | F135: 60403.39423 | G135: 62453.84195 | H135: 5334.905028 | I135: 67691.76177 | J135: 70728.57961 | K135: 73279.98492 | L135: 75573.98998 | M135: 77626.89179 | N135: 79842.83681 | O135: 82923.53224 | P135: 86617.4711 | Q135: 91000.02508 | R135: 95189.39492 | S135: 99808.72956 | T135: 103836.7549 | U135: 108096.3336 | V135: 112362.4779 | W135: 116634.9608 | X135: 120913.5755 | Y135: 125198.1322
H136: 64568.95769
A137: Replace 2 Assets - same type | B137: Scenario: Replace with 2 like Assets, , | C137: Setting | D137: Model Output | E137: 2019 | F137: 2020 | G137: 2021 | I137: 2023 | J137: 2024 | K137: 2025 | L137: 2026 | M137: 2027 | N137: 2028 | O137: 2029 | P137: 2030 | Q137: 2031 | R137: 2032 | S137: 2033 | T137: 2034 | U137: 2035 | V137: 2036 | W137: 2037 | X137: 2038 | Y137: 2039 | Z137: 2040 | AA137: 2041 | AB137: 2042 | AC137: 2043 | AD137: 2044 | AE137: 2045 | AF137: 2046 | AG137: 2047 | AH137: 2048 | AI137: 2049 | AJ137: 2050 | AK137: 2051 | AL137: 2052 | AM137: 2053 | AN137: 2054 | AO137: 2055 | AP137: 2056
H138: 2022
B139: Additional Transformer | C139: FALSE | D139: 10% PoE (MWh, Pr-Adjusted) | E139: 20.04140016 | F139: 34.89165763 | G139: 51.90799509 | I139: 118.7606271 | J139: 170.5139322 | K139: 210.0312301 | L139: 241.8498674 | M139: 265.6007825 | N139: 294.2578884 | O139: 358.3780412 | P139: 448.5660006 | Q139: 571.0189618 | R139: 689.8729917 | S139: 829.0449612 | T139: 877.8072314 | U139: 926.5748379 | V139: 975.3747072 | W139: 1024.229778 | X139: 1073.159728 | Y139: 1122.181541
B140: Replace 1 Path | C140: FALSE | D140: 50% PoE (MWh, Pr-Adjusted) | E140: 13.35625398 | F140: 23.11635095 | G140: 34.29975607 | H140: 71.26599694 | I140: 77.59169528 | J140: 108.0206579 | K140: 131.2613572 | L140: 150.4252561 | M140: 165.0482501 | N140: 183.2213517 | O140: 218.3840037 | P140: 267.4646903 | Q140: 332.1464451 | R140: 394.1398383 | S140: 467.6246078 | T140: 495.186463 | U140: 522.757372 | V140: 550.3525369 | W140: 577.9849191 | X140: 605.665647 | Y140: 633.4043349
B141: Replace 2 Paths - Same | C141: TRUE | D141: Pr (Terminal Failure) | E141: 0.001483203521 | F141: 0.00156339656 | G141: 0.001647051302 | H141: 47.02191271 | I141: 0.001821108567 | J141: 0.001910668533 | K141: 0.002001590809 | L141: 0.002093715893 | M141: 0.002186921716 | N141: 0.00228111154 | O141: 0.002376206615 | P141: 0.00247214145 | Q141: 0.002568860626 | R141: 0.002666316569 | S141: 0.002764467935 | T141: 0.002863278421 | U141: 0.002962715865 | V141: 0.003062751543 | W141: 0.003163359632 | X141: 0.003264516767 | Y141: 0.003366201694
B142: Replace 2 Paths - different | C142: FALSE | D142: Pr (Repairable Failure) | E142: 0.002118862173 | F142: 0.002233423657 | G142: 0.002352930431 | H142: 0.001733129398 | I142: 0.002601583667 | J142: 0.002729526476 | K142: 0.002859415441 | L142: 0.002991022704 | M142: 0.00312417388 | N142: 0.003258730772 | O142: 0.003394580878 | P142: 0.003531630642 | Q142: 0.003669800895 | R142: 0.00380902367 | S142: 0.003949239907 | T142: 0.004090397745 | U142: 0.004232451235 | V142: 0.004375359348 | W142: 0.004519085189 | X142: 0.004663595381 | Y142: 0.004808859563
B143: Spare/Mobile Asset | C143: FALSE | H143: 0.00247589914
B144: Non-Network MW | C144: 0 | D144: Energy at Risk (Weighted) | E144: 1382.561805 | F144: 2398.404865 | G144: 3562.4005 | I144: 8094.813734 | J144: 11409.17762 | K144: 13940.30872 | L144: 16006.73755 | M144: 17569.26088 | N144: 19487.90815 | O144: 23434.39935 | P144: 28961.5575 | Q144: 36342.73801 | R144: 43457.38059 | S144: 51844.56424 | T144: 58202.9738 | U144: 65334.58909 | V144: 72466.20438 | W144: 79597.81967 | X144: 86729.43496 | Y144: 93861.05025 | Z144: 100992.6655 | AA144: 108124.2808 | AB144: 115255.8961 | AC144: 122387.5114 | AD144: 129519.1267 | AE144: 136650.742 | AF144: 143782.3573 | AG144: 150913.9726 | AH144: 158045.5878 | AI144: 165177.2031 | AJ144: 172308.8184 | AK144: 179440.4337 | AL144: 186572.049 | AM144: 193703.6643 | AN144: 200835.2796 | AO144: 207966.8949 | AP144: 215098.5101
B145: Probability Reduction | C145: FALSE | D145: Safety Risk | E145: 127.8576422 | F145: 134.7705794 | G145: 141.9819283 | H145: 4886.562418 | I145: 156.9863098 | J145: 164.7067109 | K145: 172.5445482 | L145: 180.486072 | M145: 188.5207594 | N145: 196.6402715 | O145: 204.8378194 | P145: 213.1077579 | Q145: 221.4453095 | R145: 229.846373 | S145: 238.3073846 | T145: 246.8252149 | U145: 255.3970911 | V145: 264.0205375 | W145: 272.6933277 | X145: 281.4134477 | Y145: 290.1790655 | Z145: 298.8277516 | AA145: 307.5234375 | AB145: 316.2191234 | AC145: 324.9148093 | AD145: 333.6104952 | AE145: 342.306181 | AF145: 351.0018669 | AG145: 359.6975528 | AH145: 368.3932387 | AI145: 377.0889246 | AJ145: 385.7846105 | AK145: 394.4802964 | AL145: 403.1759823 | AM145: 411.8716682 | AN145: 420.5673541 | AO145: 429.26304 | AP145: 437.9587259
D146: Unplanned Replacement Risk | E146: 22248.05282 | F146: 23450.9484 | G146: 24705.76952 | H146: 149.4021793 | I146: 27316.6285 | J146: 28660.028 | K146: 30023.86214 | L146: 31405.7384 | M146: 32803.82574 | N146: 34216.6731 | O146: 35643.09922 | P146: 37082.12175 | Q146: 38532.9094 | R146: 39994.74854 | S146: 41467.01902 | T146: 42949.17632 | U146: 44440.73797 | V146: 45941.27315 | W146: 47450.39448 | X146: 48967.7515 | Y146: 50493.02541 | Z146: 51997.95247 | AA146: 53511.0578 | AB146: 55024.16312 | AC146: 56537.26845 | AD146: 58050.37377 | AE146: 59563.47909 | AF146: 61076.58442 | AG146: 62589.68974 | AH146: 64102.79506 | AI146: 65615.90039 | AJ146: 67129.00571 | AK146: 68642.11104 | AL146: 70155.21636 | AM146: 71668.32168 | AN146: 73181.42701 | AO146: 74694.53233 | AP146: 76207.63765
B147: This scenario involves replacing 2 of n redundant assets (n>=2) in a single station. When coupled in the time model with the 'replace 1 asset' option, this refers to the replacement of the second asset. | D147: Unplanned Fault Risk | E147: 1059.431087 | F147: 1116.711829 | G147: 1176.465215 | H147: 25996.94097 | I147: 1300.791833 | J147: 1364.763238 | K147: 1429.707721 | L147: 1495.511352 | M147: 1562.08694 | N147: 1629.365386 | O147: 1697.290439 | P147: 1765.815321 | Q147: 1834.900447 | R147: 1904.511835 | S147: 1974.619953 | T147: 2045.198872 | U147: 2116.225618 | V147: 2187.679674 | W147: 2259.542594 | X147: 2331.797691 | Y147: 2404.429782 | Z147: 2476.092975 | AA147: 2548.145609 | AB147: 2620.198244 | AC147: 2692.250878 | AD147: 2764.303513 | AE147: 2836.356147 | AF147: 2908.408782 | AG147: 2980.461416 | AH147: 3052.514051 | AI147: 3124.566685 | AJ147: 3196.61932 | AK147: 3268.671954 | AL147: 3340.724589 | AM147: 3412.777223 | AN147: 3484.829857 | AO147: 3556.882492 | AP147: 3628.935126
D148: Unplanned Enviromental Risk | E148: 0 | F148: 0 | G148: 0 | H148: 1237.94957 | I148: 0 | J148: 0 | K148: 0 | L148: 0 | M148: 0 | N148: 0 | O148: 0 | P148: 0 | Q148: 0 | R148: 0 | S148: 0 | T148: 0 | U148: 0 | V148: 0 | W148: 0 | X148: 0 | Y148: 0 | Z148: 0 | AA148: 0 | AB148: 0 | AC148: 0 | AD148: 0 | AE148: 0 | AF148: 0 | AG148: 0 | AH148: 0 | AI148: 0 | AJ148: 0 | AK148: 0 | AL148: 0 | AM148: 0 | AN148: 0 | AO148: 0 | AP148: 0
D149: Unplanned Fire Risk | E149: 0 | F149: 0 | G149: 0 | H149: 0 | I149: 0 | J149: 0 | K149: 0 | L149: 0 | M149: 0 | N149: 0 | O149: 0 | P149: 0 | Q149: 0 | R149: 0 | S149: 0 | T149: 0 | U149: 0 | V149: 0 | W149: 0 | X149: 0 | Y149: 0 | Z149: 0 | AA149: 0 | AB149: 0 | AC149: 0 | AD149: 0 | AE149: 0 | AF149: 0 | AG149: 0 | AH149: 0 | AI149: 0 | AJ149: 0 | AK149: 0 | AL149: 0 | AM149: 0 | AN149: 0 | AO149: 0 | AP149: 0
D150: Other | E150: 0 | F150: 0 | G150: 0 | H150: 0 | I150: 0 | J150: 0 | K150: 0 | L150: 0 | M150: 0 | N150: 0 | O150: 0 | P150: 0 | Q150: 0 | R150: 0 | S150: 0 | T150: 0 | U150: 0 | V150: 0 | W150: 0 | X150: 0 | Y150: 0 | Z150: 0 | AA150: 0 | AB150: 0 | AC150: 0 | AD150: 0 | AE150: 0 | AF150: 0 | AG150: 0 | AH150: 0 | AI150: 0 | AJ150: 0 | AK150: 0 | AL150: 0 | AM150: 0 | AN150: 0 | AO150: 0 | AP150: 0
D151: Option Capital Cost | E151: 10262.69042 | F151: 10262.69042 | G151: 10262.69042 | H151: 0 | I151: 10262.69042 | J151: 10262.69042 | K151: 10262.69042 | L151: 10262.69042 | M151: 10262.69042 | N151: 10262.69042 | O151: 10262.69042 | P151: 10262.69042 | Q151: 10262.69042 | R151: 10262.69042 | S151: 10262.69042 | T151: 10262.69042 | U151: 10262.69042 | V151: 10262.69042 | W151: 10262.69042 | X151: 10262.69042 | Y151: 10262.69042 | Z151: 10262.69042 | AA151: 10262.69042 | AB151: 10262.69042 | AC151: 10262.69042 | AD151: 10262.69042 | AE151: 10262.69042 | AF151: 10262.69042 | AG151: 10262.69042 | AH151: 10262.69042 | AI151: 10262.69042 | AJ151: 10262.69042 | AK151: 10262.69042 | AL151: 10262.69042 | AM151: 10262.69042 | AN151: 10262.69042 | AO151: 10262.69042 | AP151: 10262.69042
D152: Total Cost | E152: 35080.59378 | F152: 37363.5261 | G152: 39849.30759 | H152: 10262.69042 | I152: 47131.9108 | J152: 51861.36598 | K152: 55829.11355 | L152: 59351.1638 | M152: 62386.38474 | N152: 65793.27733 | O152: 71242.31725 | P152: 78285.29275 | Q152: 87194.68359 | R152: 95849.17776 | S152: 105787.201 | T152: 113706.8646 | U152: 122409.6402 | V152: 131121.8682 | W152: 139843.1405 | X152: 148573.088 | Y152: 157311.3749
H153: 42533.54555
A154: Replace 2 Assets - Different Type | B154: Scenario: Replace with 2 different Assets, , | C154: Setting | D154: Model Output | E154: 2019 | F154: 2020 | G154: 2021 | I154: 2023 | J154: 2024 | K154: 2025 | L154: 2026 | M154: 2027 | N154: 2028 | O154: 2029 | P154: 2030 | Q154: 2031 | R154: 2032 | S154: 2033 | T154: 2034 | U154: 2035 | V154: 2036 | W154: 2037 | X154: 2038 | Y154: 2039 | Z154: 2040 | AA154: 2041 | AB154: 2042 | AC154: 2043 | AD154: 2044 | AE154: 2045 | AF154: 2046 | AG154: 2047 | AH154: 2048 | AI154: 2049 | AJ154: 2050 | AK154: 2051 | AL154: 2052 | AM154: 2053 | AN154: 2054 | AO154: 2055 | AP154: 2056
H155: 2022
B156: Additional Transformer | C156: FALSE | D156: 10% PoE (MWh, Pr-Adjusted) | E156: 4.181722987 | F156: 7.288439994 | G156: 10.8551936 | I156: 24.90658729 | J156: 35.81656669 | K156: 44.17510883 | L156: 50.92724536 | M156: 55.98530321 | N156: 62.09418397 | O156: 75.73771961 | P156: 94.94415957 | Q156: 121.065018 | R156: 146.4852489 | S156: 176.3037226 | T156: 186.8884839 | U156: 197.4973859 | V156: 208.136181 | W156: 218.8098015 | X156: 229.5225092 | Y156: 240.2780121
B157: Replace 1 Path | C157: FALSE | D157: 50% PoE (MWh, Pr-Adjusted) | E157: 2.786116303 | F157: 4.826570388 | G157: 7.168614081 | H157: 14.92067552 | I157: 16.25947923 | J157: 22.66829394 | K157: 27.57823965 | L157: 31.63787254 | M157: 34.74301995 | N157: 38.60724788 | O157: 46.08079964 | P157: 56.51939938 | Q157: 70.30337239 | R157: 83.54821337 | S157: 99.27554025 | T157: 105.2380325 | U157: 111.2143693 | V157: 117.2077956 | W157: 123.2210949 | X157: 129.2566739 | Y157: 135.3166273
B158: Replace 2 Paths - Same | C158: FALSE | D158: Pr (Terminal Failure) | E158: 0.001483203521 | F158: 0.00156339656 | G158: 0.001647051302 | H158: 9.837866367 | I158: 0.001821108567 | J158: 0.001910668533 | K158: 0.002001590809 | L158: 0.002093715893 | M158: 0.002186921716 | N158: 0.00228111154 | O158: 0.002376206615 | P158: 0.00247214145 | Q158: 0.002568860626 | R158: 0.002666316569 | S158: 0.002764467935 | T158: 0.002863278421 | U158: 0.002962715865 | V158: 0.003062751543 | W158: 0.003163359632 | X158: 0.003264516767 | Y158: 0.003366201694
B159: Replace 2 Paths - different | C159: TRUE | D159: Pr (Repairable Failure) | E159: 0.002118862173 | F159: 0.002233423657 | G159: 0.002352930431 | H159: 0.001733129398 | I159: 0.002601583667 | J159: 0.002729526476 | K159: 0.002859415441 | L159: 0.002991022704 | M159: 0.00312417388 | N159: 0.003258730772 | O159: 0.003394580878 | P159: 0.003531630642 | Q159: 0.003669800895 | R159: 0.00380902367 | S159: 0.003949239907 | T159: 0.004090397745 | U159: 0.004232451235 | V159: 0.004375359348 | W159: 0.004519085189 | X159: 0.004663595381 | Y159: 0.004808859563
B160: Spare/Mobile Asset | C160: FALSE | H160: 0.00247589914
B161: Non-Network MW | C161: 0 | D161: Energy at Risk (Weighted) | E161: 288.4318478 | F161: 500.8618143 | G161: 744.7129142 | I161: 1696.825048 | J161: 2395.149819 | K161: 2930.157036 | L161: 3368.221595 | M161: 3700.413444 | N161: 4108.799583 | O161: 4948.008807 | P161: 6124.214469 | Q161: 7697.867946 | R161: 9218.639162 | S161: 11014.55955 | T161: 12368.91584 | U161: 13891.66845 | V161: 15414.42107 | W161: 16937.17369 | X161: 18459.92631 | Y161: 19982.67892 | Z161: 21505.43154 | AA161: 23028.18416 | AB161: 24550.93678 | AC161: 26073.68939 | AD161: 27596.44201 | AE161: 29119.19463 | AF161: 30641.94724 | AG161: 32164.69986 | AH161: 33687.45248 | AI161: 35210.2051 | AJ161: 36732.95771 | AK161: 38255.71033 | AL161: 39778.46295 | AM161: 41301.21556 | AN161: 42823.96818 | AO161: 44346.7208 | AP161: 45869.47342
B162: Probability Reduction | C162: FALSE | D162: Safety Risk | E162: 127.8576422 | F162: 134.7705794 | G162: 141.9819283 | H162: 1022.64382 | I162: 156.9863098 | J162: 164.7067109 | K162: 172.5445482 | L162: 180.486072 | M162: 188.5207594 | N162: 196.6402715 | O162: 204.8378194 | P162: 213.1077579 | Q162: 221.4453095 | R162: 229.846373 | S162: 238.3073846 | T162: 246.8252149 | U162: 255.3970911 | V162: 264.0205375 | W162: 272.6933277 | X162: 281.4134477 | Y162: 290.1790655 | Z162: 298.8277516 | AA162: 307.5234375 | AB162: 316.2191234 | AC162: 324.9148093 | AD162: 333.6104952 | AE162: 342.306181 | AF162: 351.0018669 | AG162: 359.6975528 | AH162: 368.3932387 | AI162: 377.0889246 | AJ162: 385.7846105 | AK162: 394.4802964 | AL162: 403.1759823 | AM162: 411.8716682 | AN162: 420.5673541 | AO162: 429.26304 | AP162: 437.9587259
D163: Unplanned Replacement Risk | E163: 22248.05282 | F163: 23450.9484 | G163: 24705.76952 | H163: 149.4021793 | I163: 27316.6285 | J163: 28660.028 | K163: 30023.86214 | L163: 31405.7384 | M163: 32803.82574 | N163: 34216.6731 | O163: 35643.09922 | P163: 37082.12175 | Q163: 38532.9094 | R163: 39994.74854 | S163: 41467.01902 | T163: 42949.17632 | U163: 44440.73797 | V163: 45941.27315 | W163: 47450.39448 | X163: 48967.7515 | Y163: 50493.02541 | Z163: 51997.95247 | AA163: 53511.0578 | AB163: 55024.16312 | AC163: 56537.26845 | AD163: 58050.37377 | AE163: 59563.47909 | AF163: 61076.58442 | AG163: 62589.68974 | AH163: 64102.79506 | AI163: 65615.90039 | AJ163: 67129.00571 | AK163: 68642.11104 | AL163: 70155.21636 | AM163: 71668.32168 | AN163: 73181.42701 | AO163: 74694.53233 | AP163: 76207.63765
B164: This scenario involves replacing 2 of n redundant assets (n>=2) in a single station. When coupled in the time model with the 'replace 1 asset' option, this refers to the replacement of the second asset. | D164: Unplanned Fault Risk | E164: 1059.431087 | F164: 1116.711829 | G164: 1176.465215 | H164: 25996.94097 | I164: 1300.791833 | J164: 1364.763238 | K164: 1429.707721 | L164: 1495.511352 | M164: 1562.08694 | N164: 1629.365386 | O164: 1697.290439 | P164: 1765.815321 | Q164: 1834.900447 | R164: 1904.511835 | S164: 1974.619953 | T164: 2045.198872 | U164: 2116.225618 | V164: 2187.679674 | W164: 2259.542594 | X164: 2331.797691 | Y164: 2404.429782 | Z164: 2476.092975 | AA164: 2548.145609 | AB164: 2620.198244 | AC164: 2692.250878 | AD164: 2764.303513 | AE164: 2836.356147 | AF164: 2908.408782 | AG164: 2980.461416 | AH164: 3052.514051 | AI164: 3124.566685 | AJ164: 3196.61932 | AK164: 3268.671954 | AL164: 3340.724589 | AM164: 3412.777223 | AN164: 3484.829857 | AO164: 3556.882492 | AP164: 3628.935126
D165: Unplanned Enviromental Risk | E165: 0 | F165: 0 | G165: 0 | H165: 1237.94957 | I165: 0 | J165: 0 | K165: 0 | L165: 0 | M165: 0 | N165: 0 | O165: 0 | P165: 0 | Q165: 0 | R165: 0 | S165: 0 | T165: 0 | U165: 0 | V165: 0 | W165: 0 | X165: 0 | Y165: 0 | Z165: 0 | AA165: 0 | AB165: 0 | AC165: 0 | AD165: 0 | AE165: 0 | AF165: 0 | AG165: 0 | AH165: 0 | AI165: 0 | AJ165: 0 | AK165: 0 | AL165: 0 | AM165: 0 | AN165: 0 | AO165: 0 | AP165: 0
D166: Unplanned Fire Risk | E166: 0 | F166: 0 | G166: 0 | H166: 0 | I166: 0 | J166: 0 | K166: 0 | L166: 0 | M166: 0 | N166: 0 | O166: 0 | P166: 0 | Q166: 0 | R166: 0 | S166: 0 | T166: 0 | U166: 0 | V166: 0 | W166: 0 | X166: 0 | Y166: 0 | Z166: 0 | AA166: 0 | AB166: 0 | AC166: 0 | AD166: 0 | AE166: 0 | AF166: 0 | AG166: 0 | AH166: 0 | AI166: 0 | AJ166: 0 | AK166: 0 | AL166: 0 | AM166: 0 | AN166: 0 | AO166: 0 | AP166: 0
D167: Other | E167: 0 | F167: 0 | G167: 0 | H167: 0 | I167: 0 | J167: 0 | K167: 0 | L167: 0 | M167: 0 | N167: 0 | O167: 0 | P167: 0 | Q167: 0 | R167: 0 | S167: 0 | T167: 0 | U167: 0 | V167: 0 | W167: 0 | X167: 0 | Y167: 0 | Z167: 0 | AA167: 0 | AB167: 0 | AC167: 0 | AD167: 0 | AE167: 0 | AF167: 0 | AG167: 0 | AH167: 0 | AI167: 0 | AJ167: 0 | AK167: 0 | AL167: 0 | AM167: 0 | AN167: 0 | AO167: 0 | AP167: 0
D168: Option Capital Cost | E168: 1710.448404 | F168: 1710.448404 | G168: 1710.448404 | H168: 0 | I168: 1710.448404 | J168: 1710.448404 | K168: 1710.448404 | L168: 1710.448404 | M168: 1710.448404 | N168: 1710.448404 | O168: 1710.448404 | P168: 1710.448404 | Q168: 1710.448404 | R168: 1710.448404 | S168: 1710.448404 | T168: 1710.448404 | U168: 1710.448404 | V168: 1710.448404 | W168: 1710.448404 | X168: 1710.448404 | Y168: 1710.448404 | Z168: 1710.448404 | AA168: 1710.448404 | AB168: 1710.448404 | AC168: 1710.448404 | AD168: 1710.448404 | AE168: 1710.448404 | AF168: 1710.448404 | AG168: 1710.448404 | AH168: 1710.448404 | AI168: 1710.448404 | AJ168: 1710.448404 | AK168: 1710.448404 | AL168: 1710.448404 | AM168: 1710.448404 | AN168: 1710.448404 | AO168: 1710.448404 | AP168: 1710.448404
D169: Total Cost | E169: 25434.2218 | F169: 26913.74103 | G169: 28479.37799 | H169: 1710.448404 | I169: 32181.6801 | J169: 34295.09617 | K169: 36266.71984 | L169: 38160.40582 | M169: 39965.29529 | N169: 41861.92675 | O169: 44203.68469 | P169: 46895.7077 | Q169: 49997.5715 | R169: 53058.19431 | S169: 56404.95431 | T169: 59320.56465 | U169: 62414.47754 | V169: 65517.84284 | W169: 68630.2525 | X169: 71751.33735 | Y169: 74880.76159
H170: 30117.38494
A171: Additional Asset | B171: Scenario: Additional path, , | C171: Setting | D171: Model Output | E171: 2019 | F171: 2020 | G171: 2021 | I171: 2023 | J171: 2024 | K171: 2025 | L171: 2026 | M171: 2027 | N171: 2028 | O171: 2029 | P171: 2030 | Q171: 2031 | R171: 2032 | S171: 2033 | T171: 2034 | U171: 2035 | V171: 2036 | W171: 2037 | X171: 2038 | Y171: 2039 | Z171: 2040 | AA171: 2041 | AB171: 2042 | AC171: 2043 | AD171: 2044 | AE171: 2045 | AF171: 2046 | AG171: 2047 | AH171: 2048 | AI171: 2049 | AJ171: 2050 | AK171: 2051 | AL171: 2052 | AM171: 2053 | AN171: 2054 | AO171: 2055 | AP171: 2056
H172: 2022
B173: Additional Bus | C173: TRUE | D173: 10% PoE (MWh, Pr-Adjusted) | E173: 0.1172423144 | F173: 0.1527789959 | G173: 0.2070069691 | I173: 0.5262603663 | J173: 0.7920603736 | K173: 0.9557872773 | L173: 1.057672206 | M173: 1.097328162 | N173: 1.173402217 | O173: 1.455649382 | P173: 1.857134885 | Q173: 2.427738133 | R173: 2.953670463 | S173: 3.56919679 | T173: 3.693243177 | U173: 3.816541603 | V173: 3.939268745 | W173: 4.061573347 | X173: 4.18358181 | Y173: 4.305402451
B174: Replace 1 Path | C174: FALSE | D174: 50% PoE (MWh, Pr-Adjusted) | E174: 0.04645902915 | F174: 0.06095924021 | G174: 0.08810974985 | H174: 0.2739097601 | I174: 0.2639490581 | J174: 0.396925797 | K174: 0.4782797319 | L174: 0.5283238956 | M174: 0.541907622 | N174: 0.5839562907 | O174: 0.7207536577 | P174: 0.9130726117 | Q174: 1.189438082 | R174: 1.439970697 | S174: 1.742316903 | T174: 1.802941115 | U174: 1.863204486 | V174: 1.923193191 | W174: 1.982979783 | X174: 2.042625915 | Y174: 2.102184423
B175: Replace 2 Paths - Same | C175: FALSE | D175: Pr (Terminal Failure) | E175: 0.005084832443 | F175: 0.005216664002 | G175: 0.005350461422 | H175: 0.1253631671 | I175: 0.005622120683 | J175: 0.005759554294 | K175: 0.005897890153 | L175: 0.006037045307 | M175: 0.006176955616 | N175: 0.0063175697 | O175: 0.006458845266 | P175: 0.006600746733 | Q175: 0.006743243642 | R175: 0.006886309532 | S175: 0.007029921133 | T175: 0.00717405777 | U175: 0.007318700903 | V175: 0.007463833781 | W175: 0.007609441164 | X175: 0.007755509104 | Y175: 0.007902024767
B176: Replace 2 Paths - different | C176: FALSE | D176: Pr (Repairable Failure) | E176: 0.007264046347 | F176: 0.007452377146 | G176: 0.007643516318 | H176: 0.005485701874 | I176: 0.008031600976 | J176: 0.008227934705 | K176: 0.008425557362 | L176: 0.008624350438 | M176: 0.008824222308 | N176: 0.009025099572 | O176: 0.009226921808 | P176: 0.00942963819 | Q176: 0.009633205203 | R176: 0.009837585046 | S176: 0.01004274448 | T176: 0.01024865396 | U176: 0.010455287 | V176: 0.01066261969 | W176: 0.01087063023 | X176: 0.01107929872 | Y176: 0.01128860681
B177: Spare/Mobile Asset | C177: FALSE | H177: 0.007836716963
B178: Non-Network MW | C178: 0 | D178: Energy at Risk (Weighted) | E178: 6.092461324 | F178: 7.965465022 | G178: 11.14010241 | I178: 30.83782055 | J178: 46.3919553 | K178: 55.9378796 | L178: 61.84155499 | M178: 63.76804056 | N178: 68.47110617 | O178: 84.71001374 | P178: 107.6662164 | Q178: 140.4835287 | R178: 170.4672564 | S178: 206.1342782 | T178: 233.5871294 | U178: 264.1520863 | V178: 294.7170432 | W178: 325.2820001 | X178: 355.846957 | Y178: 386.4119139 | Z178: 416.9768707 | AA178: 447.5418276 | AB178: 478.1067845 | AC178: 508.6717414 | AD178: 539.2366983 | AE178: 569.8016552 | AF178: 600.3666121 | AG178: 630.931569 | AH178: 661.4965259 | AI178: 692.0614828 | AJ178: 722.6264397 | AK178: 753.1913966 | AL178: 783.7563535 | AM178: 814.3213104 | AN178: 844.8862673 | AO178: 875.4512241 | AP178: 906.016181
B179: Probability Reduction | C179: FALSE | D179: Safety Risk | E179: 438.3314074 | F179: 449.6957766 | G179: 461.2296102 | H179: 15.29344305 | I179: 484.6476456 | J179: 496.4949323 | K179: 508.4199963 | L179: 520.4156864 | M179: 532.4764737 | N179: 544.5979291 | O179: 556.7764066 | P179: 569.0088392 | Q179: 581.292601 | R179: 593.6254111 | S179: 606.0052635 | T179: 618.4303759 | U179: 630.8991502 | V179: 643.4101423 | W179: 655.9620386 | X179: 668.5536366 | Y179: 681.1838299 | Z179: 693.7156156 | AA179: 706.2869009 | AB179: 718.8581863 | AC179: 731.4294716 | AD179: 744.000757 | AE179: 756.5720423 | AF179: 769.1433277 | AG179: 781.714613 | AH179: 794.2858984 | AI179: 806.8571837 | AJ179: 819.4284691 | AK179: 831.9997544 | AL179: 844.5710398 | AM179: 857.1423251 | AN179: 869.7136105 | AO179: 882.2848959 | AP179: 894.8561812
D180: Unplanned Replacement Risk | E180: 76272.48664 | F180: 78249.96003 | G180: 80256.92134 | H180: 472.8878385 | I180: 84331.81025 | J180: 86393.31441 | K180: 88468.3523 | L180: 90555.6796 | M180: 92654.33423 | N180: 94763.5455 | O180: 96882.67899 | P180: 99011.201 | Q180: 101148.6546 | R180: 103294.643 | S180: 105448.817 | T180: 107610.8665 | U180: 109780.5135 | V180: 111957.5067 | W180: 114141.6175 | X180: 116332.6366 | Y180: 118530.3715 | Z180: 120710.9829 | AA180: 122898.4675 | AB180: 125085.952 | AC180: 127273.4366 | AD180: 129460.9212 | AE180: 131648.4058 | AF180: 133835.8904 | AG180: 136023.3749 | AH180: 138210.8595 | AI180: 140398.3441 | AJ180: 142585.8287 | AK180: 144773.3133 | AL180: 146960.7978 | AM180: 149148.2824 | AN180: 151335.767 | AO180: 153523.2516 | AP180: 155710.7362
B181: This scenario involves the installation of an additional asset in parallel to increase redundancy (e.g. install a 3rd transformer in a 2-transformer station | D181: Unplanned Fault Risk | E181: 3632.023173 | F181: 3726.188573 | G181: 3821.758159 | H181: 82285.52811 | I181: 4015.800488 | J181: 4113.967353 | K181: 4212.778681 | L181: 4312.175219 | M181: 4412.111154 | N181: 4512.549786 | O181: 4613.460904 | P181: 4714.819095 | Q181: 4816.602602 | R181: 4918.792523 | S181: 5021.372238 | T181: 5124.326978 | U181: 5227.643502 | V181: 5331.309843 | W181: 5435.315117 | X181: 5539.64936 | Y181: 5644.303405 | Z181: 5748.142042 | AA181: 5852.307975 | AB181: 5956.473907 | AC181: 6060.639839 | AD181: 6164.805772 | AE181: 6268.971704 | AF181: 6373.137636 | AG181: 6477.303569 | AH181: 6581.469501 | AI181: 6685.635433 | AJ181: 6789.801366 | AK181: 6893.967298 | AL181: 6998.13323 | AM181: 7102.299163 | AN181: 7206.465095 | AO181: 7310.631027 | AP181: 7414.79696
D182: Unplanned Enviromental Risk | E182: 0 | F182: 0 | G182: 0 | H182: 3918.358482 | I182: 0 | J182: 0 | K182: 0 | L182: 0 | M182: 0 | N182: 0 | O182: 0 | P182: 0 | Q182: 0 | R182: 0 | S182: 0 | T182: 0 | U182: 0 | V182: 0 | W182: 0 | X182: 0 | Y182: 0 | Z182: 0 | AA182: 0 | AB182: 0 | AC182: 0 | AD182: 0 | AE182: 0 | AF182: 0 | AG182: 0 | AH182: 0 | AI182: 0 | AJ182: 0 | AK182: 0 | AL182: 0 | AM182: 0 | AN182: 0 | AO182: 0 | AP182: 0
D183: Unplanned Fire Risk | E183: 0 | F183: 0 | G183: 0 | H183: 0 | I183: 0 | J183: 0 | K183: 0 | L183: 0 | M183: 0 | N183: 0 | O183: 0 | P183: 0 | Q183: 0 | R183: 0 | S183: 0 | T183: 0 | U183: 0 | V183: 0 | W183: 0 | X183: 0 | Y183: 0 | Z183: 0 | AA183: 0 | AB183: 0 | AC183: 0 | AD183: 0 | AE183: 0 | AF183: 0 | AG183: 0 | AH183: 0 | AI183: 0 | AJ183: 0 | AK183: 0 | AL183: 0 | AM183: 0 | AN183: 0 | AO183: 0 | AP183: 0
D184: Other | E184: 0 | F184: 0 | G184: 0 | H184: 0 | I184: 0 | J184: 0 | K184: 0 | L184: 0 | M184: 0 | N184: 0 | O184: 0 | P184: 0 | Q184: 0 | R184: 0 | S184: 0 | T184: 0 | U184: 0 | V184: 0 | W184: 0 | X184: 0 | Y184: 0 | Z184: 0 | AA184: 0 | AB184: 0 | AC184: 0 | AD184: 0 | AE184: 0 | AF184: 0 | AG184: 0 | AH184: 0 | AI184: 0 | AJ184: 0 | AK184: 0 | AL184: 0 | AM184: 0 | AN184: 0 | AO184: 0 | AP184: 0
D185: Option Capital Cost | E185: 16004.71508 | F185: 16004.71508 | G185: 16004.71508 | H185: 0 | I185: 16004.71508 | J185: 16004.71508 | K185: 16004.71508 | L185: 16004.71508 | M185: 16004.71508 | N185: 16004.71508 | O185: 16004.71508 | P185: 16004.71508 | Q185: 16004.71508 | R185: 16004.71508 | S185: 16004.71508 | T185: 16004.71508 | U185: 16004.71508 | V185: 16004.71508 | W185: 16004.71508 | X185: 16004.71508 | Y185: 16004.71508 | Z185: 16004.71508 | AA185: 16004.71508 | AB185: 16004.71508 | AC185: 16004.71508 | AD185: 16004.71508 | AE185: 16004.71508 | AF185: 16004.71508 | AG185: 16004.71508 | AH185: 16004.71508 | AI185: 16004.71508 | AJ185: 16004.71508 | AK185: 16004.71508 | AL185: 16004.71508 | AM185: 16004.71508 | AN185: 16004.71508 | AO185: 16004.71508 | AP185: 16004.71508
D186: Total Cost | E186: 96353.64877 | F186: 98438.52493 | G186: 100555.7643 | H186: 16004.71508 | I186: 104867.8113 | J186: 107054.8837 | K186: 109250.2039 | L186: 111454.8271 | M186: 113667.405 | N186: 115893.8794 | O186: 118142.3414 | P186: 120407.4102 | Q186: 122691.7484 | R186: 124982.2433 | S186: 127287.0439 | T186: 129591.9261 | U186: 131907.9234 | V186: 134231.6588 | W186: 136562.8917 | X186: 138901.4016 | Y186: 141246.9857
H187: 102696.783
B188: Scenario selected | C188: Setting | D188: Model Output | E188: 2019 | F188: 2020 | G188: 2021 | I188: 2023 | J188: 2024 | K188: 2025 | L188: 2026 | M188: 2027 | N188: 2028 | O188: 2029 | P188: 2030 | Q188: 2031 | R188: 2032 | S188: 2033 | T188: 2034 | U188: 2035 | V188: 2036 | W188: 2037 | X188: 2038 | Y188: 2039 | Z188: 2040 | AA188: 2041 | AB188: 2042 | AC188: 2043 | AD188: 2044 | AE188: 2045 | AF188: 2046 | AG188: 2047 | AH188: 2048 | AI188: 2049 | AJ188: 2050 | AK188: 2051 | AL188: 2052 | AM188: 2053 | AN188: 2054 | AO188: 2055 | AP188: 2056
H189: 2022
D190: Status Quo | E190: 111434.7835 | F190: 114319.312 | G190: 119398.6696 | I190: 143114.8997 | J190: 158135.941 | K190: 166693.9662 | L190: 172207.7398 | M190: 175259.5611 | N190: 179910.1466 | O190: 192499.6713 | P190: 210136.0116 | Q190: 233026.5416 | R190: 253361.167 | S190: 276568.0883 | T190: 296540.3159 | U190: 317689.7983 | V190: 338842.9594 | W190: 359999.7534 | X190: 381160.1356 | Y190: 402324.0627
D191: Spare/Mobile Asset | E191: 95933.45912 | F191: 98252.34101 | G191: 101685.1042 | H191: 125201.6578 | I191: 115427.4378 | J191: 123907.8382 | K191: 129117.4805 | L191: 132787.2649 | M191: 135211.3153 | N191: 138448.6471 | O191: 145715.7189 | P191: 155547.2033 | Q191: 168050.4906 | R191: 179262.7049 | S191: 191938.8892 | T191: 202964.9772 | U191: 214594.4448 | V191: 226227.5913 | W191: 237864.3706 | X191: 249504.7381 | Y191: 261148.6504
D192: Online Monitor | E192: 115098.2584 | F192: 117737.186 | G192: 122119.9818 | H192: 105487.3033 | I192: 141665.7877 | J192: 153964.4648 | K192: 161121.9898 | L192: 165853.5366 | M192: 168617.2822 | N192: 172661.5284 | O192: 183033.5169 | P192: 197415.9495 | Q192: 215994.3396 | R192: 232535.4381 | S192: 251367.3824 | T192: 267618.9143 | U192: 284810.9197 | V192: 302006.6039 | W192: 319205.9209 | X192: 336408.8262 | Y192: 353615.2762
D193: Spare and Online monitor | E193: 102835.3983 | F193: 105028.0967 | G193: 108104.626 | H193: 127080.1755 | I193: 119716.3154 | J193: 126804.8174 | K193: 131296.7707 | L193: 134564.3627 | M193: 136838.7012 | N193: 139763.3497 | O193: 145893.197 | P193: 154056.468 | Q193: 164348.4096 | R193: 173613.3463 | S193: 184042.9377 | T193: 193161.2028 | U193: 202760.1221 | V193: 212362.7203 | W193: 221968.9513 | X193: 231578.7706 | Y193: 241192.1347
D194: Replace 1 asset | E194: 58432.29483 | F194: 60403.39423 | G194: 62453.84195 | H194: 111475.7208 | I194: 67691.76177 | J194: 70728.57961 | K194: 73279.98492 | L194: 75573.98998 | M194: 77626.89179 | N194: 79842.83681 | O194: 82923.53224 | P194: 86617.4711 | Q194: 91000.02508 | R194: 95189.39492 | S194: 99808.72956 | T194: 103836.7549 | U194: 108096.3336 | V194: 112362.4779 | W194: 116634.9608 | X194: 120913.5755 | Y194: 125198.1322
D195: Replace 2 Assets - same type | E195: 35080.59378 | F195: 37363.5261 | G195: 39849.30759 | H195: 64568.95769 | I195: 47131.9108 | J195: 51861.36598 | K195: 55829.11355 | L195: 59351.1638 | M195: 62386.38474 | N195: 65793.27733 | O195: 71242.31725 | P195: 78285.29275 | Q195: 87194.68359 | R195: 95849.17776 | S195: 105787.201 | T195: 113706.8646 | U195: 122409.6402 | V195: 131121.8682 | W195: 139843.1405 | X195: 148573.088 | Y195: 157311.3749
D196: Replace 2 Assets - Different Type | E196: 25434.2218 | F196: 26913.74103 | G196: 28479.37799 | H196: 42533.54555 | I196: 32181.6801 | J196: 34295.09617 | K196: 36266.71984 | L196: 38160.40582 | M196: 39965.29529 | N196: 41861.92675 | O196: 44203.68469 | P196: 46895.7077 | Q196: 49997.5715 | R196: 53058.19431 | S196: 56404.95431 | T196: 59320.56465 | U196: 62414.47754 | V196: 65517.84284 | W196: 68630.2525 | X196: 71751.33735 | Y196: 74880.76159
D197: Additional Asset | E197: 96353.64877 | F197: 98438.52493 | G197: 100555.7643 | H197: 30117.38494 | I197: 104867.8113 | J197: 107054.8837 | K197: 109250.2039 | L197: 111454.8271 | M197: 113667.405 | N197: 115893.8794 | O197: 118142.3414 | P197: 120407.4102 | Q197: 122691.7484 | R197: 124982.2433 | S197: 127287.0439 | T197: 129591.9261 | U197: 131907.9234 | V197: 134231.6588 | W197: 136562.8917 | X197: 138901.4016 | Y197: 141246.9857
D198: Min Cost | E198: 25434.2218 | F198: 26913.74103 | G198: 28479.37799 | H198: 102696.783 | I198: 32181.6801 | J198: 34295.09617 | K198: 36266.71984 | L198: 38160.40582 | M198: 39965.29529 | N198: 41861.92675 | O198: 44203.68469 | P198: 46895.7077 | Q198: 49997.5715 | R198: 53058.19431 | S198: 56404.95431 | T198: 59320.56465 | U198: 62414.47754 | V198: 65517.84284 | W198: 68630.2525 | X198: 71751.33735 | Y198: 74880.76159
D199: Preferred option | E199: Replace 2 Assets - Different Type | F199: Replace 2 Assets - Different Type | G199: Replace 2 Assets - Different Type | H199: 30117.38494 | I199: Replace 2 Assets - Different Type | J199: Replace 2 Assets - Different Type | K199: Replace 2 Assets - Different Type | L199: Replace 2 Assets - Different Type | M199: Replace 2 Assets - Different Type | N199: Replace 2 Assets - Different Type | O199: Replace 2 Assets - Different Type | P199: Replace 2 Assets - Different Type | Q199: Replace 2 Assets - Different Type | R199: Replace 2 Assets - Different Type | S199: Replace 2 Assets - Different Type | T199: Replace 2 Assets - Different Type | U199: Replace 2 Assets - Different Type | V199: Replace 2 Assets - Different Type | W199: Replace 2 Assets - Different Type | X199: Replace 2 Assets - Different Type | Y199: Replace 2 Assets - Different Type
H200: Replace 2 Assets - Different Type
E230: Year | F230: 2025 | G230: =F230+1 -> 2026 | H230: 2027 | I230: 2028 | J230: 2029 | K230: 2030 | L230: 2031 | M230: 2032 | N230: 2033 | O230: 2034 | P230: 2035 | Q230: 2036 | R230: 2037 | S230: 2038 | T230: 2039 | U230: 2040 | V230: 2041 | W230: 2042 | X230: 2043 | Y230: 2044 | Z230: 2045 | AA230: 2046 | AB230: 2047 | AC230: 2048 | AD230: 2049 | AE230: 2050 | AF230: 2051 | AG230: 2052 | AH230: 2053 | AI230: 2054 | AJ230: 2055 | AK230: 2056
C231: Baseline Option | D231: Scenario #1 | E231: Annualised Life Cycle Cost | F231: =INDEX('Saved Scenarios'!E:E,21+22*(RIGHT($D231,1)-1)) -> 334702.6014 | G231: =INDEX('Saved Scenarios'!F:F,21+22*(RIGHT($D231,1)-1)) -> 347511.1503 | H231: =INDEX('Saved Scenarios'!G:G,21+22*(RIGHT($D231,1)-1)) -> 362866.1682 | I231: =INDEX('Saved Scenarios'!H:H,21+22*(RIGHT($D231,1)-1)) -> 380330.5576 | J231: =INDEX('Saved Scenarios'!I:I,21+22*(RIGHT($D231,1)-1)) -> 397226.6427 | K231: =INDEX('Saved Scenarios'!J:J,21+22*(RIGHT($D231,1)-1)) -> 410357.4716 | L231: =INDEX('Saved Scenarios'!K:K,21+22*(RIGHT($D231,1)-1)) -> 425116.0706 | M231: =INDEX('Saved Scenarios'!L:L,21+22*(RIGHT($D231,1)-1)) -> 446195.7381 | N231: =INDEX('Saved Scenarios'!M:M,21+22*(RIGHT($D231,1)-1)) -> 469325.0719 | O231: =INDEX('Saved Scenarios'!N:N,21+22*(RIGHT($D231,1)-1)) -> 484562.8803 | P231: =INDEX('Saved Scenarios'!O:O,21+22*(RIGHT($D231,1)-1)) -> 497183.4622 | Q231: =INDEX('Saved Scenarios'!P:P,21+22*(RIGHT($D231,1)-1)) -> 509962.1204 | R231: =INDEX('Saved Scenarios'!Q:Q,21+22*(RIGHT($D231,1)-1)) -> 522898.1213 | S231: =INDEX('Saved Scenarios'!R:R,21+22*(RIGHT($D231,1)-1)) -> 535990.7497 | T231: =INDEX('Saved Scenarios'!S:S,21+22*(RIGHT($D231,1)-1)) -> 549239.3081 | U231: =INDEX('Saved Scenarios'!T:T,21+22*(RIGHT($D231,1)-1)) -> 562643.116 | V231: =INDEX('Saved Scenarios'!U:U,21+22*(RIGHT($D231,1)-1)) -> 576201.5094 | W231: =INDEX('Saved Scenarios'!V:V,21+22*(RIGHT($D231,1)-1)) -> 589913.84 | X231: =INDEX('Saved Scenarios'!W:W,21+22*(RIGHT($D231,1)-1)) -> 603779.475 | Y231: =INDEX('Saved Scenarios'!X:X,21+22*(RIGHT($D231,1)-1)) -> 617797.7962 | Z231: =INDEX('Saved Scenarios'!Y:Y,21+22*(RIGHT($D231,1)-1)) -> 631968.1996 | AA231: =INDEX('Saved Scenarios'!Z:Z,21+22*(RIGHT($D231,1)-1)) -> 646290.0951 | AB231: =INDEX('Saved Scenarios'!AA:AA,21+22*(RIGHT($D231,1)-1)) -> 660762.9058 | AC231: =INDEX('Saved Scenarios'!AB:AB,21+22*(RIGHT($D231,1)-1)) -> 674494.0686 | AD231: =INDEX('Saved Scenarios'!AC:AC,21+22*(RIGHT($D231,1)-1)) -> 688366.0661 | AE231: =INDEX('Saved Scenarios'!AD:AD,21+22*(RIGHT($D231,1)-1)) -> 702378.397 | AF231: =INDEX('Saved Scenarios'!AE:AE,21+22*(RIGHT($D231,1)-1)) -> 716530.5708 | AG231: =INDEX('Saved Scenarios'!AF:AF,21+22*(RIGHT($D231,1)-1)) -> 730822.1077 | AH231: =INDEX('Saved Scenarios'!AG:AG,21+22*(RIGHT($D231,1)-1)) -> 730822.1077 | AI231: =INDEX('Saved Scenarios'!AH:AH,21+22*(RIGHT($D231,1)-1)) -> 730822.1077 | AJ231: =INDEX('Saved Scenarios'!AI:AI,21+22*(RIGHT($D231,1)-1)) -> 730822.1077 | AK231: =INDEX('Saved Scenarios'!AJ:AJ,21+22*(RIGHT($D231,1)-1)) -> 730822.1077
C232: Comparison | D232: Scenario #2 | E232: Annualised Life Cycle Cost | F232: =INDEX('Saved Scenarios'!E:E,21+22*(RIGHT($D232,1)-1)) -> 334702.6014 | G232: =INDEX('Saved Scenarios'!F:F,21+22*(RIGHT($D232,1)-1)) -> 347511.1503 | H232: =INDEX('Saved Scenarios'!G:G,21+22*(RIGHT($D232,1)-1)) -> 362866.1682 | I232: =INDEX('Saved Scenarios'!H:H,21+22*(RIGHT($D232,1)-1)) -> 380330.5576 | J232: =INDEX('Saved Scenarios'!I:I,21+22*(RIGHT($D232,1)-1)) -> 362872.6467 | K232: =INDEX('Saved Scenarios'!J:J,21+22*(RIGHT($D232,1)-1)) -> 371539.3004 | L232: =INDEX('Saved Scenarios'!K:K,21+22*(RIGHT($D232,1)-1)) -> 380119.506 | M232: =INDEX('Saved Scenarios'!L:L,21+22*(RIGHT($D232,1)-1)) -> 389412.0805 | N232: =INDEX('Saved Scenarios'!M:M,21+22*(RIGHT($D232,1)-1)) -> 399334.4103 | O232: =INDEX('Saved Scenarios'!N:N,21+22*(RIGHT($D232,1)-1)) -> 408538.8159 | P232: =INDEX('Saved Scenarios'!O:O,21+22*(RIGHT($D232,1)-1)) -> 417457.4205 | Q232: =INDEX('Saved Scenarios'!P:P,21+22*(RIGHT($D232,1)-1)) -> 426470.303 | R232: =INDEX('Saved Scenarios'!Q:Q,21+22*(RIGHT($D232,1)-1)) -> 435593.2753 | S232: =INDEX('Saved Scenarios'!R:R,21+22*(RIGHT($D232,1)-1)) -> 444837.7391 | T232: =INDEX('Saved Scenarios'!S:S,21+22*(RIGHT($D232,1)-1)) -> 454212.1203 | U232: =INDEX('Saved Scenarios'!T:T,21+22*(RIGHT($D232,1)-1)) -> 463722.7554 | V232: =INDEX('Saved Scenarios'!U:U,21+22*(RIGHT($D232,1)-1)) -> 473374.4674 | W232: =INDEX('Saved Scenarios'!V:V,21+22*(RIGHT($D232,1)-1)) -> 483170.9553 | X232: =INDEX('Saved Scenarios'!W:W,21+22*(RIGHT($D232,1)-1)) -> 493115.0665 | Y232: =INDEX('Saved Scenarios'!X:X,21+22*(RIGHT($D232,1)-1)) -> 503208.9917 | Z232: =INDEX('Saved Scenarios'!Y:Y,21+22*(RIGHT($D232,1)-1)) -> 513454.4089 | AA232: =INDEX('Saved Scenarios'!Z:Z,21+22*(RIGHT($D232,1)-1)) -> 523852.5907 | AB232: =INDEX('Saved Scenarios'!AA:AA,21+22*(RIGHT($D232,1)-1)) -> 534404.4862 | AC232: =INDEX('Saved Scenarios'!AB:AB,21+22*(RIGHT($D232,1)-1)) -> 544481.5703 | AD232: =INDEX('Saved Scenarios'!AC:AC,21+22*(RIGHT($D232,1)-1)) -> 554702.525 | AE232: =INDEX('Saved Scenarios'!AD:AD,21+22*(RIGHT($D232,1)-1)) -> 565067.7712 | AF232: =INDEX('Saved Scenarios'!AE:AE,21+22*(RIGHT($D232,1)-1)) -> 575577.5832 | AG232: =INDEX('Saved Scenarios'!AF:AF,21+22*(RIGHT($D232,1)-1)) -> 586232.1146 | AH232: =INDEX('Saved Scenarios'!AG:AG,21+22*(RIGHT($D232,1)-1)) -> 586232.1146 | AI232: =INDEX('Saved Scenarios'!AH:AH,21+22*(RIGHT($D232,1)-1)) -> 586232.1146 | AJ232: =INDEX('Saved Scenarios'!AI:AI,21+22*(RIGHT($D232,1)-1)) -> 586232.1146 | AK232: =INDEX('Saved Scenarios'!AJ:AJ,21+22*(RIGHT($D232,1)-1)) -> 586232.1146
C233: Option Timing | D233: =IFERROR(INDEX(F230:AK230,,(MATCH($D$232,F234:AK234,0))),"Not Viable") -> 2025 | E233: PVR | F233: =F231/F232 -> 1 | G233: =G231/G232 -> 1 | H233: =H231/H232 -> 1 | I233: 1 | J233: 1.094672322 | K233: 1.104479314 | L233: 1.118374785 | M233: 1.145818942 | N233: 1.175268296 | O233: 1.186087739 | P233: 1.190980056 | Q233: 1.195774047 | R233: 1.200427442 | S233: 1.204912944 | T233: 1.209213237 | U233: 1.213317892 | V233: 1.217221352 | W233: 1.220921567 | X233: 1.224419037 | Y233: 1.227716131 | Z233: 1.23081658 | AA233: 1.23372511 | AB233: 1.236447154 | AC233: 1.238782184 | AD233: 1.240964364 | AE233: 1.242998509 | AF233: 1.244889641 | AG233: 1.246642907 | AH233: 1.246642907 | AI233: 1.246642907 | AJ233: 1.246642907 | AK233: 1.246642907
... 1 more rows

Sheet Saved Scenarios
A1: Input Data - Station Configuration | C1: Constants | F1: POF METHOD | G1: WEIBULL | H1: Modifier (x) | I1: Comment
A2: Substation: | B2: MNA | C2: Major Failure CoC | F2: PoF (#1) | G2: 0.0009569267578 | H2: 1
A3: Asset Type | B3: Transformer | C3: Minor Failure CoC | F3: PoF (#2) | G3: 0.0009569267578 | H3: 1
A4: VCR | B4: 48.576 | C4: Major Failure CoC - used | D4: 8965585.14 | F4: PoF (#3) | G4: TRUE | H4: 1
A5: Load Profile (PoE) | B5: 0.5 | C5: Minor Failure CoC - used | D5: 164000 | F5: PoF (#4) | G5: 0 | H5: 1
A6: Scenario #1: MNA - Transformer | B6: Setting | C6: Unit Price | D6: Model Output | E6: 2025 | F6: 2026 | G6: 2027 | H6: 2028 | I6: 2029 | J6: 2030 | K6: 2031 | L6: 2032 | M6: 2033 | N6: 2034 | O6: 2035 | P6: 2036 | Q6: 2037 | R6: 2038 | S6: 2039 | T6: 2040 | U6: 2041 | V6: 2042 | W6: 2043 | X6: 2044 | Y6: 2045 | Z6: 2046 | AA6: 2047 | AB6: 2048 | AC6: 2049 | AD6: 2050 | AE6: 2051 | AF6: 2052 | AG6: 2053 | AH6: 2054 | AI6: 2055 | AJ6: 2056
A7: Spare Available | B7: TRUE | C7: 0 | D7: Energy | E7: 4656.2648 | F7: 4888.514465 | G7: 5171.271652 | H7: 5492.815618 | I7: 5810.376411 | J7: 6044.436453 | K7: 6306.147308 | L7: 6703.72644 | M7: 7143.939335 | N7: 7419.243975 | O7: 7646.55157 | P7: 7876.708751 | Q7: 8109.702396 | R7: 8345.519714 | S7: 8584.148235 | T7: 8825.575796 | U7: 9069.790532 | V7: 9316.78086 | W7: 9566.535475 | X7: 9819.04334 | Y7: 10074.29367 | Z7: 10332.27593 | AA7: 10592.97984 | AB7: 10856.39532 | AC7: 11122.51254 | AD7: 11391.32188 | AE7: 11662.81394 | AF7: 11936.97951 | AG7: 11936.97951 | AH7: 11936.97951 | AI7: 11936.97951 | AJ7: 11936.97951
A8: Online Monitoring | B8: FALSE | C8: 50000 | D8: Energy | E8: 5837.208793 | F8: 6127.334313 | G8: 6473.661268 | H8: 6873.548235 | I8: 7243.051143 | J8: 7548.337023 | K8: 7900.130973 | L8: 8367.9882 | M8: 8876.351791 | N8: 9227.315666 | O8: 9510.018181 | P8: 9796.264726 | Q8: 10086.03898 | R8: 10379.32504 | S8: 10676.10739 | T8: 10976.37091 | U8: 11280.10084 | V8: 11587.28277 | W8: 11897.90265 | X8: 12211.94675 | Y8: 12529.40165 | Z8: 12850.25425 | AA8: 13174.49176 | AB8: 13502.10166 | AC8: 13833.07172 | AD8: 14167.38997 | AE8: 14505.04471 | AF8: 14846.0245 | AG8: 14846.0245 | AH8: 14846.0245 | AI8: 14846.0245 | AJ8: 14846.0245
A9: Physical Separation | B9: FALSE | C9: 300000 | D9: Energy | E9: 4656.2648 | F9: 4888.514465 | G9: 5171.271652 | H9: 5492.815618 | I9: 5810.376411 | J9: 6044.436453 | K9: 6306.147308 | L9: 6703.72644 | M9: 7143.939335 | N9: 7419.243975 | O9: 7646.55157 | P9: 7876.708751 | Q9: 8109.702396 | R9: 8345.519714 | S9: 8584.148235 | T9: 8825.575796 | U9: 9069.790532 | V9: 9316.78086 | W9: 9566.535475 | X9: 9819.04334 | Y9: 10074.29367 | Z9: 10332.27593 | AA9: 10592.97984 | AB9: 10856.39532 | AC9: 11122.51254 | AD9: 11391.32188 | AE9: 11662.81394 | AF9: 11936.97951 | AG9: 11936.97951 | AH9: 11936.97951 | AI9: 11936.97951 | AJ9: 11936.97951
A10: More Frequent Maintenance | B10: FALSE | C10: 4000 | D10: Pr (Terminal Failure) | E10: 0.001913853516 | F10: 0.001983592417 | G10: 0.002054355844 | H10: 0.002126137479 | I10: 0.002198931168 | J10: 0.002272730917 | K10: 0.002347530882 | L10: 0.002423325361 | M10: 0.002500108795 | N10: 0.002577875753 | O10: 0.002656620933 | P10: 0.002736339154 | Q10: 0.002817025353 | R10: 0.002898674576 | S10: 0.002981281982 | T10: 0.003064842829 | U10: 0.003149352477 | V10: 0.003234806384 | W10: 0.003321200098 | X10: 0.003408529258 | Y10: 0.003496789588 | Z10: 0.003585976898 | AA10: 0.003676087076 | AB10: 0.003676087076 | AC10: 0.003676087076 | AD10: 0.003676087076 | AE10: 0.003676087076 | AF10: 0.003676087076 | AG10: 0.003676087076 | AH10: 0.003676087076 | AI10: 0.003676087076 | AJ10: 0.003676087076
A11: Staggered Maintenance | B11: FALSE | C11: 650 | D11: Pr (Repairable Failure) | E11: 0.007655414062 | F11: 0.007934369667 | G11: 0.008217423376 | H11: 0.008504549915 | I11: 0.008795724673 | J11: 0.009090923669 | K11: 0.009390123526 | L11: 0.009693301446 | M11: 0.01000043518 | N11: 0.01031150301 | O11: 0.01062648373 | P11: 0.01094535662 | Q11: 0.01126810141 | R11: 0.0115946983 | S11: 0.01192512793 | T11: 0.01225937131 | U11: 0.01259740991 | V11: 0.01293922554 | W11: 0.01328480039 | X11: 0.01363411703 | Y11: 0.01398715835 | Z11: 0.01434390759 | AA11: 0.0147043483 | AB11: 0.0147043483 | AC11: 0.0147043483 | AD11: 0.0147043483 | AE11: 0.0147043483 | AF11: 0.0147043483 | AG11: 0.0147043483 | AH11: 0.0147043483 | AI11: 0.0147043483 | AJ11: 0.0147043483
A12: Bunded | B12: FALSE | C12: 300000
A13: Refurbish Assets | B13: FALSE | C13: 500000 | D13: Energy at Risk ($, Weighted) | E13: 243392.3796 | F13: 255517.5525 | G13: 270179.1552 | H13: 286940.1517 | I13: 303122.9269 | J13: 315530.5874 | K13: 329556.2168 | L13: 349893.1693 | M13: 372270.0974 | N13: 386745.8625 | O13: 398594.8153 | P13: 410592.3096 | Q13: 422737.6614 | R13: 435030.2039 | S13: 447469.2871 | T13: 460054.2769 | U13: 472784.5549 | V13: 485659.5173 | W13: 498678.5749 | X13: 511841.1521 | Y13: 525146.6869 | Z13: 538594.6303 | AA13: 552184.4456 | AB13: 565915.6084 | AC13: 579787.6059 | AD13: 593799.9368 | AE13: 607952.1106 | AF13: 622243.6475 | AG13: 622243.6475 | AH13: 622243.6475 | AI13: 622243.6475 | AJ13: 622243.6475
A14: Replace 1 Asset | B14: FALSE | C14: 7471320.95 | D14: Safety Risk | E14: 339.6673169 | F14: 352.044453 | G14: 364.6034202 | H14: 377.343097 | I14: 390.2623915 | J14: 403.3602397 | K14: 416.6356043 | L14: 430.0874737 | M14: 443.7148609 | N14: 457.5168022 | O14: 471.4923567 | P14: 485.6406048 | Q14: 499.9606477 | R14: 514.4516066 | S14: 529.1126219 | T14: 543.9428524 | U14: 558.9414745 | V14: 574.1076818 | W14: 589.4406845 | X14: 604.9397084 | Y14: 620.6039948 | Z14: 636.4327998 | AA14: 652.4253939 | AB14: 652.4253939 | AC14: 652.4253939 | AD14: 652.4253939 | AE14: 652.4253939 | AF14: 652.4253939 | AG14: 652.4253939 | AH14: 652.4253939 | AI14: 652.4253939 | AJ14: 652.4253939
A15: Replace 2 Assets | B15: FALSE | C15: 0 | D15: Unplanned Replacement Risk | E15: 17158.81664 | F15: 17784.06669 | G15: 18418.50223 | H15: 19062.06659 | I15: 19714.70461 | J15: 20376.36254 | K15: 21046.98799 | L15: 21726.52985 | M15: 22414.93826 | N15: 23112.16455 | O15: 23818.16116 | P15: 24532.88166 | Q15: 25256.28064 | R15: 25988.31371 | S15: 26728.93743 | T15: 27478.10932 | U15: 28235.78777 | V15: 29001.93205 | W15: 29776.50224 | X15: 30559.45926 | Y15: 31350.76477 | Z15: 32150.38119 | AA15: 32958.27166 | AB15: 32958.27166 | AC15: 32958.27166 | AD15: 32958.27166 | AE15: 32958.27166 | AF15: 32958.27166 | AG15: 32958.27166 | AH15: 32958.27166 | AI15: 32958.27166 | AJ15: 32958.27166
A16: Replace 3 Assets | B16: FALSE | C16: 0 | D16: Unplanned Fault Risk | E16: 1255.487906 | F16: 1301.236625 | G16: 1347.657434 | H16: 1394.746186 | I16: 1442.498846 | J16: 1490.911482 | K16: 1539.980258 | L16: 1589.701437 | M16: 1640.07137 | N16: 1691.086494 | O16: 1742.743332 | P16: 1795.038485 | Q16: 1847.968631 | R16: 1901.530522 | S16: 1955.72098 | T16: 2010.536896 | U16: 2065.975225 | V16: 2122.032988 | W16: 2178.707264 | X16: 2235.995193 | Y16: 2293.89397 | Z16: 2352.400845 | AA16: 2411.513122 | AB16: 2411.513122 | AC16: 2411.513122 | AD16: 2411.513122 | AE16: 2411.513122 | AF16: 2411.513122 | AG16: 2411.513122 | AH16: 2411.513122 | AI16: 2411.513122 | AJ16: 2411.513122
A17: Addiitonal Asset | B17: FALSE | C17: N/A | D17: Unplanned Enviromental Risk | E17: 72556.25 | F17: 72556.25 | G17: 72556.25 | H17: 72556.25 | I17: 72556.25 | J17: 72556.25 | K17: 72556.25 | L17: 72556.25 | M17: 72556.25 | N17: 72556.25 | O17: 72556.25 | P17: 72556.25 | Q17: 72556.25 | R17: 72556.25 | S17: 72556.25 | T17: 72556.25 | U17: 72556.25 | V17: 72556.25 | W17: 72556.25 | X17: 72556.25 | Y17: 72556.25 | Z17: 72556.25 | AA17: 72556.25 | AB17: 72556.25 | AC17: 72556.25 | AD17: 72556.25 | AE17: 72556.25 | AF17: 72556.25 | AG17: 72556.25 | AH17: 72556.25 | AI17: 72556.25 | AJ17: 72556.25
A18: Load Transfers | B18: TRUE | C18: 0 | D18: Unplanned Fire Risk | E18: 0 | F18: 0 | G18: 0 | H18: 0 | I18: 0 | J18: 0 | K18: 0 | L18: 0 | M18: 0 | N18: 0 | O18: 0 | P18: 0 | Q18: 0 | R18: 0 | S18: 0 | T18: 0 | U18: 0 | V18: 0 | W18: 0 | X18: 0 | Y18: 0 | Z18: 0 | AA18: 0 | AB18: 0 | AC18: 0 | AD18: 0 | AE18: 0 | AF18: 0 | AG18: 0 | AH18: 0 | AI18: 0 | AJ18: 0
A19: Non-Network MW | B19: 0 | C19: 0 | D19: Other | E19: 0 | F19: 0 | G19: 0 | H19: 0 | I19: 0 | J19: 0 | K19: 0 | L19: 0 | M19: 0 | N19: 0 | O19: 0 | P19: 0 | Q19: 0 | R19: 0 | S19: 0 | T19: 0 | U19: 0 | V19: 0 | W19: 0 | X19: 0 | Y19: 0 | Z19: 0 | AA19: 0 | AB19: 0 | AC19: 0 | AD19: 0 | AE19: 0 | AF19: 0 | AG19: 0 | AH19: 0 | AI19: 0 | AJ19: 0
C20: 0 | D20: Option Capital Cost | E20: 0 | F20: 0 | G20: 0 | H20: 0 | I20: 0 | J20: 0 | K20: 0 | L20: 0 | M20: 0 | N20: 0 | O20: 0 | P20: 0 | Q20: 0 | R20: 0 | S20: 0 | T20: 0 | U20: 0 | V20: 0 | W20: 0 | X20: 0 | Y20: 0 | Z20: 0 | AA20: 0 | AB20: 0 | AC20: 0 | AD20: 0 | AE20: 0 | AF20: 0 | AG20: 0 | AH20: 0 | AI20: 0 | AJ20: 0
D21: Total Life Cycle Cost | E21: 334702.6014 | F21: 347511.1503 | G21: 362866.1682 | H21: 380330.5576 | I21: 397226.6427 | J21: 410357.4716 | K21: 425116.0706 | L21: 446195.7381 | M21: 469325.0719 | N21: 484562.8803 | O21: 497183.4622 | P21: 509962.1204 | Q21: 522898.1213 | R21: 535990.7497 | S21: 549239.3081 | T21: 562643.116 | U21: 576201.5094 | V21: 589913.84 | W21: 603779.475 | X21: 617797.7962 | Y21: 631968.1996 | Z21: 646290.0951 | AA21: 660762.9058 | AB21: 674494.0686 | AC21: 688366.0661 | AD21: 702378.397 | AE21: 716530.5708 | AF21: 730822.1077 | AG21: 730822.1077 | AH21: 730822.1077 | AI21: 730822.1077 | AJ21: 730822.1077
A23: Input Data - Station Configuration | C23: Constants | F23: POF METHOD | G23: WEIBULL | H23: Modifier (x) | I23: Comment
A24: Substation: | B24: MNA | C24: Major Failure CoC | F24: PoF (#1) | G24: 0.0009569267578 | H24: 1
A25: Asset Type | B25: Transformer | C25: Minor Failure CoC | F25: PoF (#2) | G25: 0.0009569267578 | H25: 1
A26: VCR | B26: 48.576 | C26: Major Failure CoC - used | D26: 8965585.14 | F26: PoF (#3) | G26: TRUE | H26: 1
A27: Load Profile (PoE) | B27: 0.5 | C27: Minor Failure CoC - used | D27: 164000 | F27: PoF (#4) | G27: 0 | H27: 1
A28: Scenario #2: MNA - Transformer | B28: Setting | C28: Unit Price | D28: Model Output | E28: 2025 | F28: 2026 | G28: 2027 | H28: 2028 | I28: 2029 | J28: 2030 | K28: 2031 | L28: 2032 | M28: 2033 | N28: 2034 | O28: 2035 | P28: 2036 | Q28: 2037 | R28: 2038 | S28: 2039 | T28: 2040 | U28: 2041 | V28: 2042 | W28: 2043 | X28: 2044 | Y28: 2045 | Z28: 2046 | AA28: 2047 | AB28: 2048 | AC28: 2049 | AD28: 2050 | AE28: 2051 | AF28: 2052 | AG28: 2053 | AH28: 2054 | AI28: 2055 | AJ28: 2056
A29: Spare Available | B29: TRUE | C29: 0 | D29: Energy | E29: 4656.2648 | F29: 4888.514465 | G29: 5171.271652 | H29: 5492.815618 | I29: 185.8813777 | J29: 343.2458749 | K29: 498.187724 | L29: 667.6749984 | M29: 849.7272218 | N29: 1016.27921 | O29: 1177.4438 | P29: 1340.173673 | Q29: 1504.778106 | R29: 1671.481046 | S29: 1840.448741 | T29: 2011.806852 | U29: 2185.651576 | V29: 2362.057189 | W29: 2541.081316 | X29: 2722.768733 | Y29: 2907.154146 | Z29: 3094.264296 | AA29: 3284.119545 | AB29: 3476.735121 | AC29: 3672.122078 | AD29: 3870.288065 | AE29: 4071.237941 | AF29: 4274.974264 | AG29: 4274.974264 | AH29: 4274.974264 | AI29: 4274.974264 | AJ29: 4274.974264
A30: Online Monitoring | B30: FALSE | C30: 50000 | D30: Energy | E30: 5837.208793 | F30: 6127.334313 | G30: 6473.661268 | H30: 6873.548235 | I30: 236.1248699 | J30: 436.7637308 | K30: 635.8855124 | L30: 848.8227828 | M30: 1074.596365 | N30: 1286.262019 | O30: 1489.914084 | P30: 1695.441985 | Q30: 1903.235014 | R30: 2113.575236 | S30: 2326.672314 | T30: 2542.685032 | U30: 2761.735285 | V30: 2983.917531 | W30: 3209.305406 | X30: 3437.956466 | Y30: 3669.915676 | Z30: 3905.218022 | AA30: 4143.890504 | AB30: 4385.953672 | AC30: 4631.422834 | AD30: 4880.309011 | AE30: 5132.619694 | AF30: 5388.359465 | AG30: 5388.359465 | AH30: 5388.359465 | AI30: 5388.359465 | AJ30: 5388.359465
A31: Physical Separation | B31: FALSE | C31: 300000 | D31: Energy | E31: 4656.2648 | F31: 4888.514465 | G31: 5171.271652 | H31: 5492.815618 | I31: 185.8813777 | J31: 343.2458749 | K31: 498.187724 | L31: 667.6749984 | M31: 849.7272218 | N31: 1016.27921 | O31: 1177.4438 | P31: 1340.173673 | Q31: 1504.778106 | R31: 1671.481046 | S31: 1840.448741 | T31: 2011.806852 | U31: 2185.651576 | V31: 2362.057189 | W31: 2541.081316 | X31: 2722.768733 | Y31: 2907.154146 | Z31: 3094.264296 | AA31: 3284.119545 | AB31: 3476.735121 | AC31: 3672.122078 | AD31: 3870.288065 | AE31: 4071.237941 | AF31: 4274.974264 | AG31: 4274.974264 | AH31: 4274.974264 | AI31: 4274.974264 | AJ31: 4274.974264
A32: More Frequent Maintenance | B32: FALSE | C32: 4000 | D32: Pr (Terminal Failure) | E32: 0.001913853516 | F32: 0.001983592417 | G32: 0.002054355844 | H32: 0.002126137479 | I32: 0.001100840624 | J32: 0.001140832946 | K32: 0.001182666024 | L32: 0.00122617759 | M32: 0.001271265407 | N32: 0.001317855957 | O32: 0.00136589239 | P32: 0.001415328656 | Q32: 0.001466126222 | R32: 0.001518252063 | S32: 0.001571677347 | T32: 0.001626376536 | U32: 0.001682326736 | V32: 0.001739507223 | W32: 0.001797899083 | X32: 0.00185748493 | Y32: 0.001918248688 | Z32: 0.001980175412 | AA32: 0.002043251148 | AB32: 0.002043251148 | AC32: 0.002043251148 | AD32: 0.002043251148 | AE32: 0.002043251148 | AF32: 0.002043251148 | AG32: 0.002043251148 | AH32: 0.002043251148 | AI32: 0.002043251148 | AJ32: 0.002043251148
A33: Staggered Maintenance | B33: FALSE | C33: 650 | D33: Pr (Repairable Failure) | E33: 0.007655414062 | F33: 0.007934369667 | G33: 0.008217423376 | H33: 0.008504549915 | I33: 0.004403362496 | J33: 0.004563331784 | K33: 0.004730664097 | L33: 0.00490471036 | M33: 0.00508506163 | N33: 0.005271423829 | O33: 0.005463569562 | P33: 0.005661314626 | Q33: 0.005864504889 | R33: 0.006073008251 | S33: 0.006286709388 | T33: 0.006505506143 | U33: 0.006729306942 | V33: 0.006958028891 | W33: 0.00719159633 | X33: 0.007429939718 | Y33: 0.00767299475 | Z33: 0.007920701649 | AA33: 0.008173004591 | AB33: 0.008173004591 | AC33: 0.008173004591 | AD33: 0.008173004591 | AE33: 0.008173004591 | AF33: 0.008173004591 | AG33: 0.008173004591 | AH33: 0.008173004591 | AI33: 0.008173004591 | AJ33: 0.008173004591
A34: Bunded | B34: FALSE | C34: 300000
A35: Refurbish Assets | B35: FALSE | C35: 500000 | D35: Energy at Risk ($, Weighted) | E35: 243392.3796 | F35: 255517.5525 | G35: 270179.1552 | H35: 286940.1517 | I35: 9761.562166 | J35: 18036.32863 | K35: 26206.60921 | L35: 35072.81115 | M35: 44553.32257 | N35: 53301.18437 | O35: 61749.077 | P35: 70277.53038 | Q35: 78902.7341 | R35: 87636.41349 | S35: 96487.27694 | T35: 105461.9112 | U35: 114565.3636 | V35: 123801.5364 | W35: 133173.462 | X35: 142683.5018 | Y35: 152333.491 | Z35: 162124.8489 | AA35: 172058.6613 | AB35: 182135.7453 | AC35: 192356.7001 | AD35: 202721.9463 | AE35: 213231.7582 | AF35: 223886.2897 | AG35: 223886.2897 | AH35: 223886.2897 | AI35: 223886.2897 | AJ35: 223886.2897
A36: Replace 1 Asset | B36: TRUE | C36: 7471320.95 | D36: Safety Risk | E36: 339.6673169 | F36: 352.044453 | G36: 364.6034202 | H36: 377.343097 | I36: 195.3752354 | J36: 202.4730015 | K36: 209.8974618 | L36: 217.6198171 | M36: 225.6219227 | N36: 233.8907306 | O36: 242.4161513 | P36: 251.1900119 | Q36: 260.2054735 | R36: 269.4566749 | S36: 278.9384993 | T36: 288.646414 | U36: 298.5763559 | V36: 308.7246471 | W36: 319.0879304 | X36: 329.6631206 | Y36: 340.4473642 | Z36: 351.4380091 | AA36: 362.6325784 | AB36: 362.6325784 | AC36: 362.6325784 | AD36: 362.6325784 | AE36: 362.6325784 | AF36: 362.6325784 | AG36: 362.6325784 | AH36: 362.6325784 | AI36: 362.6325784 | AJ36: 362.6325784
A37: Replace 2 Assets | B37: FALSE | C37: 0 | D37: Unplanned Replacement Risk | E37: 17158.81664 | F37: 17784.06669 | G37: 18418.50223 | H37: 19062.06659 | I37: 9869.680341 | J37: 10228.23491 | K37: 10603.29293 | L37: 10993.39958 | M37: 11397.63825 | N37: 11815.34979 | O37: 12246.02452 | P37: 12689.24957 | Q37: 13144.67947 | R37: 13612.01813 | S37: 14091.00707 | T37: 14581.4173 | U37: 15083.04358 | V37: 15595.70011 | W37: 16119.2173 | X37: 16653.43928 | Y37: 17198.22193 | Z37: 17753.43125 | AA37: 18318.94213 | AB37: 18318.94213 | AC37: 18318.94213 | AD37: 18318.94213 | AE37: 18318.94213 | AF37: 18318.94213 | AG37: 18318.94213 | AH37: 18318.94213 | AI37: 18318.94213 | AJ37: 18318.94213
A38: Replace 3 Assets | B38: FALSE | C38: 0 | D38: Unplanned Fault Risk | E38: 1255.487906 | F38: 1301.236625 | G38: 1347.657434 | H38: 1394.746186 | I38: 722.1514494 | J38: 748.3864126 | K38: 775.8289119 | L38: 804.372499 | M38: 833.9501073 | N38: 864.513508 | O38: 896.0254081 | P38: 928.4555987 | Q38: 961.7788018 | R38: 995.9733531 | S38: 1031.02034 | T38: 1066.903007 | U38: 1103.606339 | V38: 1141.116738 | W38: 1179.421798 | X38: 1218.510114 | Y38: 1258.371139 | Z38: 1298.99507 | AA38: 1340.372753 | AB38: 1340.372753 | AC38: 1340.372753 | AD38: 1340.372753 | AE38: 1340.372753 | AF38: 1340.372753 | AG38: 1340.372753 | AH38: 1340.372753 | AI38: 1340.372753 | AJ38: 1340.372753
A39: Addiitonal Asset | B39: FALSE | C39: N/A | D39: Unplanned Enviromental Risk | E39: 72556.25 | F39: 72556.25 | G39: 72556.25 | H39: 72556.25 | I39: 23793.75 | J39: 23793.75 | K39: 23793.75 | L39: 23793.75 | M39: 23793.75 | N39: 23793.75 | O39: 23793.75 | P39: 23793.75 | Q39: 23793.75 | R39: 23793.75 | S39: 23793.75 | T39: 23793.75 | U39: 23793.75 | V39: 23793.75 | W39: 23793.75 | X39: 23793.75 | Y39: 23793.75 | Z39: 23793.75 | AA39: 23793.75 | AB39: 23793.75 | AC39: 23793.75 | AD39: 23793.75 | AE39: 23793.75 | AF39: 23793.75 | AG39: 23793.75 | AH39: 23793.75 | AI39: 23793.75 | AJ39: 23793.75
A40: Load Transfers | B40: TRUE | C40: 0 | D40: Unplanned Fire Risk | E40: 0 | F40: 0 | G40: 0 | H40: 0 | I40: 0 | J40: 0 | K40: 0 | L40: 0 | M40: 0 | N40: 0 | O40: 0 | P40: 0 | Q40: 0 | R40: 0 | S40: 0 | T40: 0 | U40: 0 | V40: 0 | W40: 0 | X40: 0 | Y40: 0 | Z40: 0 | AA40: 0 | AB40: 0 | AC40: 0 | AD40: 0 | AE40: 0 | AF40: 0 | AG40: 0 | AH40: 0 | AI40: 0 | AJ40: 0
A41: Non-Network MW | B41: 0 | C41: 0 | D41: Other | E41: 0 | F41: 0 | G41: 0 | H41: 0 | I41: 0 | J41: 0 | K41: 0 | L41: 0 | M41: 0 | N41: 0 | O41: 0 | P41: 0 | Q41: 0 | R41: 0 | S41: 0 | T41: 0 | U41: 0 | V41: 0 | W41: 0 | X41: 0 | Y41: 0 | Z41: 0 | AA41: 0 | AB41: 0 | AC41: 0 | AD41: 0 | AE41: 0 | AF41: 0 | AG41: 0 | AH41: 0 | AI41: 0 | AJ41: 0
C42: 0 | D42: Option Capital Cost | E42: 0 | F42: 0 | G42: 0 | H42: 0 | I42: 318530.1275 | J42: 318530.1275 | K42: 318530.1275 | L42: 318530.1275 | M42: 318530.1275 | N42: 318530.1275 | O42: 318530.1275 | P42: 318530.1275 | Q42: 318530.1275 | R42: 318530.1275 | S42: 318530.1275 | T42: 318530.1275 | U42: 318530.1275 | V42: 318530.1275 | W42: 318530.1275 | X42: 318530.1275 | Y42: 318530.1275 | Z42: 318530.1275 | AA42: 318530.1275 | AB42: 318530.1275 | AC42: 318530.1275 | AD42: 318530.1275 | AE42: 318530.1275 | AF42: 318530.1275 | AG42: 318530.1275 | AH42: 318530.1275 | AI42: 318530.1275 | AJ42: 318530.1275
D43: Total Life Cycle Cost | E43: 334702.6014 | F43: 347511.1503 | G43: 362866.1682 | H43: 380330.5576 | I43: 362872.6467 | J43: 371539.3004 | K43: 380119.506 | L43: 389412.0805 | M43: 399334.4103 | N43: 408538.8159 | O43: 417457.4205 | P43: 426470.303 | Q43: 435593.2753 | R43: 444837.7391 | S43: 454212.1203 | T43: 463722.7554 | U43: 473374.4674 | V43: 483170.9553 | W43: 493115.0665 | X43: 503208.9917 | Y43: 513454.4089 | Z43: 523852.5907 | AA43: 534404.4862 | AB43: 544481.5703 | AC43: 554702.525 | AD43: 565067.7712 | AE43: 575577.5832 | AF43: 586232.1146 | AG43: 586232.1146 | AH43: 586232.1146 | AI43: 586232.1146 | AJ43: 586232.1146
A45: Input Data - Station Configuration | C45: Constants | F45: POF METHOD | G45: WEIBULL | H45: Modifier (x) | I45: Comment
A46: Substation: | B46: MNA | C46: Major Failure CoC | F46: PoF (#1) | G46: 0.000861234082 | H46: 0.9
A47: Asset Type | B47: Transformer | C47: Minor Failure CoC | F47: PoF (#2) | G47: 0.0009569267578 | H47: 1
A48: VCR | B48: 48.576 | C48: Major Failure CoC - used | D48: 8965585.14 | F48: PoF (#3) | G48: TRUE | H48: 1
A49: Load Profile (PoE) | B49: 0.5 | C49: Minor Failure CoC - used | D49: 164000 | F49: PoF (#4) | G49: 0 | H49: 1
A50: Scenario #3: MNA - Transformer | B50: Setting | C50: Unit Price | D50: Model Output | E50: 2025 | F50: 2026 | G50: 2027 | H50: 2028 | I50: 2029 | J50: 2030 | K50: 2031 | L50: 2032 | M50: 2033 | N50: 2034 | O50: 2035 | P50: 2036 | Q50: 2037 | R50: 2038 | S50: 2039 | T50: 2040 | U50: 2041 | V50: 2042 | W50: 2043 | X50: 2044 | Y50: 2045 | Z50: 2046 | AA50: 2047 | AB50: 2048 | AC50: 2049 | AD50: 2050 | AE50: 2051 | AF50: 2052 | AG50: 2053 | AH50: 2054 | AI50: 2055 | AJ50: 2056
A51: Spare Available | B51: TRUE | C51: 0 | D51: Energy | E51: 4416.833629 | F51: 4637.122125 | G51: 4905.318545 | H51: 5210.304347 | I51: 5511.509024 | J51: 5733.505449 | K51: 5981.727972 | L51: 6358.825992 | M51: 6776.36047 | N51: 7037.468372 | O51: 7253.046507 | P51: 7471.32521 | Q51: 7692.291964 | R51: 7915.934566 | S51: 8142.241116 | T51: 8371.200005 | U51: 8602.799906 | V51: 8837.02976 | W51: 9073.878771 | X51: 9313.336395 | Y51: 9555.392331 | Z51: 9800.036511 | AA51: 10047.2591 | AB51: 10297.05048 | AC51: 10549.40123 | AD51: 10804.30217 | AE51: 11061.7443 | AF51: 11321.7188 | AG51: 11321.7188 | AH51: 11321.7188 | AI51: 11321.7188 | AJ51: 11321.7188
A52: Online Monitoring | B52: FALSE | C52: 50000 | D52: Energy | E52: 5537.051952 | F52: 5812.23554 | G52: 6140.727622 | H52: 6520.021923 | I52: 6870.491499 | J52: 7160.044082 | K52: 7493.709253 | L52: 7937.463044 | M52: 8419.630758 | N52: 8752.497203 | O52: 9020.611661 | P52: 9292.084815 | Q52: 9566.901096 | R52: 9845.045329 | S52: 10126.50271 | T52: 10411.25881 | U52: 10699.29953 | V52: 10990.61113 | W52: 11285.18017 | X52: 11582.99354 | Y52: 11884.03843 | Z52: 12188.30232 | AA52: 12495.77297 | AB52: 12806.43843 | AC52: 13120.28698 | AD52: 13437.3072 | AE52: 13757.48789 | AF52: 14080.81809 | AG52: 14080.81809 | AH52: 14080.81809 | AI52: 14080.81809 | AJ52: 14080.81809
A53: Physical Separation | B53: FALSE | C53: 300000 | D53: Energy | E53: 4416.833629 | F53: 4637.122125 | G53: 4905.318545 | H53: 5210.304347 | I53: 5511.509024 | J53: 5733.505449 | K53: 5981.727972 | L53: 6358.825992 | M53: 6776.36047 | N53: 7037.468372 | O53: 7253.046507 | P53: 7471.32521 | Q53: 7692.291964 | R53: 7915.934566 | S53: 8142.241116 | T53: 8371.200005 | U53: 8602.799906 | V53: 8837.02976 | W53: 9073.878771 | X53: 9313.336395 | Y53: 9555.392331 | Z53: 9800.036511 | AA53: 10047.2591 | AB53: 10297.05048 | AC53: 10549.40123 | AD53: 10804.30217 | AE53: 11061.7443 | AF53: 11321.7188 | AG53: 11321.7188 | AH53: 11321.7188 | AI53: 11321.7188 | AJ53: 11321.7188
A54: More Frequent Maintenance | B54: FALSE | C54: 4000 | D54: Pr (Terminal Failure) | E54: 0.00181816084 | F54: 0.001884412796 | G54: 0.001951638052 | H54: 0.002019830605 | I54: 0.00208898461 | J54: 0.002159094371 | K54: 0.002230154337 | L54: 0.002302159093 | M54: 0.002375103355 | N54: 0.002448981966 | O54: 0.002523789887 | P54: 0.002599522197 | Q54: 0.002676174085 | R54: 0.002753740847 | S54: 0.002832217882 | T54: 0.002911600687 | U54: 0.002991884853 | V54: 0.003073066065 | W54: 0.003155140093 | X54: 0.003238102795 | Y54: 0.003321950109 | Z54: 0.003406678053 | AA54: 0.003492282722 | AB54: 0.003492282722 | AC54: 0.003492282722 | AD54: 0.003492282722 | AE54: 0.003492282722 | AF54: 0.003492282722 | AG54: 0.003492282722 | AH54: 0.003492282722 | AI54: 0.003492282722 | AJ54: 0.003492282722
A55: Staggered Maintenance | B55: FALSE | C55: 650 | D55: Pr (Repairable Failure) | E55: 0.007655414062 | F55: 0.007934369667 | G55: 0.008217423376 | H55: 0.008504549915 | I55: 0.008795724673 | J55: 0.009090923669 | K55: 0.009390123526 | L55: 0.009693301446 | M55: 0.01000043518 | N55: 0.01031150301 | O55: 0.01062648373 | P55: 0.01094535662 | Q55: 0.01126810141 | R55: 0.0115946983 | S55: 0.01192512793 | T55: 0.01225937131 | U55: 0.01259740991 | V55: 0.01293922554 | W55: 0.01328480039 | X55: 0.01363411703 | Y55: 0.01398715835 | Z55: 0.01434390759 | AA55: 0.0147043483 | AB55: 0.0147043483 | AC55: 0.0147043483 | AD55: 0.0147043483 | AE55: 0.0147043483 | AF55: 0.0147043483 | AG55: 0.0147043483 | AH55: 0.0147043483 | AI55: 0.0147043483 | AJ55: 0.0147043483
A56: Bunded | B56: FALSE | C56: 300000
A57: Refurbish Assets | B57: TRUE | C57: 500000 | D57: Energy at Risk ($, Weighted) | E57: 230876.828 | F57: 242377.5371 | G57: 256284.123 | H57: 272181.9962 | I57: 287531.2422 | J57: 299299.4229 | K57: 312602.2188 | L57: 331891.4934 | M57: 353115.5354 | N57: 366844.8358 | O57: 378082.3606 | P57: 389460.659 | Q57: 400979.0784 | R57: 412636.9828 | S57: 424433.7519 | T57: 436368.7804 | U57: 448441.478 | V57: 460651.2682 | W57: 472997.5882 | X57: 485479.8884 | Y57: 498097.6317 | Z57: 510850.2935 | AA57: 523737.361 | AB57: 536758.3326 | AC57: 549912.7182 | AD57: 563200.0381 | AE57: 576619.8232 | AF57: 590171.6145 | AG57: 590171.6145 | AH57: 590171.6145 | AI57: 590171.6145 | AJ57: 590171.6145
A58: Replace 1 Asset | B58: FALSE | C58: 7471320.95 | D58: Safety Risk | E58: 336.2706437 | F58: 348.5240085 | G58: 360.957386 | H58: 373.569666 | I58: 386.3597676 | J58: 399.3266373 | K58: 412.4692482 | L58: 425.7865989 | M58: 439.2777123 | N58: 452.9416342 | O58: 466.7774331 | P58: 480.7841987 | Q58: 494.9610412 | R58: 509.3070905 | S58: 523.8214957 | T58: 538.5034239 | U58: 553.3520597 | V58: 568.366605 | W58: 583.5462776 | X58: 598.8903113 | Y58: 614.3979548 | Z58: 630.0684719 | AA58: 645.90114 | AB58: 645.90114 | AC58: 645.90114 | AD58: 645.90114 | AE58: 645.90114 | AF58: 645.90114 | AG58: 645.90114 | AH58: 645.90114 | AI58: 645.90114 | AJ58: 645.90114
A59: Replace 2 Assets | B59: FALSE | C59: 0 | D59: Unplanned Replacement Risk | E59: 16300.87581 | F59: 16894.86336 | G59: 17497.57711 | H59: 18108.96326 | I59: 18728.96938 | J59: 19357.54441 | K59: 19994.63859 | L59: 20640.20336 | M59: 21294.19135 | N59: 21956.55632 | O59: 22627.2531 | P59: 23306.23758 | Q59: 23993.46661 | R59: 24688.89802 | S59: 25392.49056 | T59: 26104.20385 | U59: 26823.99838 | V59: 27551.83544 | W59: 28287.67713 | X59: 29031.4863 | Y59: 29783.22653 | Z59: 30542.86213 | AA59: 31310.35808 | AB59: 31310.35808 | AC59: 31310.35808 | AD59: 31310.35808 | AE59: 31310.35808 | AF59: 31310.35808 | AG59: 31310.35808 | AH59: 31310.35808 | AI59: 31310.35808 | AJ59: 31310.35808
A60: Replace 3 Assets | B60: FALSE | C60: 0 | D60: Unplanned Fault Risk | E60: 1255.487906 | F60: 1301.236625 | G60: 1347.657434 | H60: 1394.746186 | I60: 1442.498846 | J60: 1490.911482 | K60: 1539.980258 | L60: 1589.701437 | M60: 1640.07137 | N60: 1691.086494 | O60: 1742.743332 | P60: 1795.038485 | Q60: 1847.968631 | R60: 1901.530522 | S60: 1955.72098 | T60: 2010.536896 | U60: 2065.975225 | V60: 2122.032988 | W60: 2178.707264 | X60: 2235.995193 | Y60: 2293.89397 | Z60: 2352.400845 | AA60: 2411.513122 | AB60: 2411.513122 | AC60: 2411.513122 | AD60: 2411.513122 | AE60: 2411.513122 | AF60: 2411.513122 | AG60: 2411.513122 | AH60: 2411.513122 | AI60: 2411.513122 | AJ60: 2411.513122
A61: Addiitonal Asset | B61: FALSE | C61: N/A | D61: Unplanned Enviromental Risk | E61: 35984.375 | F61: 35984.375 | G61: 35984.375 | H61: 35984.375 | I61: 35984.375 | J61: 35984.375 | K61: 35984.375 | L61: 35984.375 | M61: 35984.375 | N61: 35984.375 | O61: 35984.375 | P61: 35984.375 | Q61: 35984.375 | R61: 35984.375 | S61: 35984.375 | T61: 35984.375 | U61: 35984.375 | V61: 35984.375 | W61: 35984.375 | X61: 35984.375 | Y61: 35984.375 | Z61: 35984.375 | AA61: 35984.375 | AB61: 35984.375 | AC61: 35984.375 | AD61: 35984.375 | AE61: 35984.375 | AF61: 35984.375 | AG61: 35984.375 | AH61: 35984.375 | AI61: 35984.375 | AJ61: 35984.375
A62: Load Transfers | B62: TRUE | C62: 0 | D62: Unplanned Fire Risk | E62: 0 | F62: 0 | G62: 0 | H62: 0 | I62: 0 | J62: 0 | K62: 0 | L62: 0 | M62: 0 | N62: 0 | O62: 0 | P62: 0 | Q62: 0 | R62: 0 | S62: 0 | T62: 0 | U62: 0 | V62: 0 | W62: 0 | X62: 0 | Y62: 0 | Z62: 0 | AA62: 0 | AB62: 0 | AC62: 0 | AD62: 0 | AE62: 0 | AF62: 0 | AG62: 0 | AH62: 0 | AI62: 0 | AJ62: 0
A63: Non-Network MW | B63: 0 | C63: 0 | D63: Other | E63: 0 | F63: 0 | G63: 0 | H63: 0 | I63: 0 | J63: 0 | K63: 0 | L63: 0 | M63: 0 | N63: 0 | O63: 0 | P63: 0 | Q63: 0 | R63: 0 | S63: 0 | T63: 0 | U63: 0 | V63: 0 | W63: 0 | X63: 0 | Y63: 0 | Z63: 0 | AA63: 0 | AB63: 0 | AC63: 0 | AD63: 0 | AE63: 0 | AF63: 0 | AG63: 0 | AH63: 0 | AI63: 0 | AJ63: 0
C64: 0 | D64: Option Capital Cost | E64: 0 | F64: 0 | G64: 0 | H64: 60120.68393 | I64: 60120.68393 | J64: 60120.68393 | K64: 60120.68393 | L64: 60120.68393 | M64: 60120.68393 | N64: 60120.68393 | O64: 60120.68393 | P64: 60120.68393 | Q64: 60120.68393 | R64: 60120.68393 | S64: 60120.68393 | T64: 60120.68393 | U64: 60120.68393 | V64: 60120.68393 | W64: 60120.68393 | X64: 60120.68393 | Y64: 60120.68393 | Z64: 60120.68393 | AA64: 60120.68393 | AB64: 60120.68393 | AC64: 60120.68393 | AD64: 60120.68393 | AE64: 60120.68393 | AF64: 60120.68393 | AG64: 60120.68393 | AH64: 60120.68393 | AI64: 60120.68393 | AJ64: 60120.68393
D65: Total Life Cycle Cost | E65: 284753.8373 | F65: 296906.5361 | G65: 311474.69 | H65: 388164.3343 | I65: 404194.1291 | J65: 416652.2644 | K65: 430654.3658 | L65: 450652.2438 | M65: 472594.1348 | N65: 487050.4792 | O65: 499024.1934 | P65: 511147.7782 | Q65: 523420.5336 | R65: 535841.7774 | S65: 548410.8438 | T65: 561127.0835 | U65: 573989.8626 | V65: 586998.5622 | W65: 600152.5778 | X65: 613451.3191 | Y65: 626894.2091 | Z65: 640480.6839 | AA65: 654210.1922 | AB65: 667231.1639 | AC65: 680385.5494 | AD65: 693672.8694 | AE65: 707092.6545 | AF65: 720644.4458 | AG65: 720644.4458 | AH65: 720644.4458 | AI65: 720644.4458 | AJ65: 720644.4458

Sheet Costs
A1: Project ID | B1: =ZSS&AssetType -> MNATransformer
A3: Option Costing | B3: Unit Price
A4: Online Monitoring | B4: =_xlfn.SINGLE(_xlfn.XLOOKUP($B$1,$19:$19,20:20,,0)) -> 0
A5: Physical Separation | B5: 300000
A6: More Frequent Maintenance | B6: 4000
A7: Staggered Maintenance | B7: 650
A8: Bunded | B8: 300000
A9: Refurbish Assets | B9: 500000
A10: Replace 1 Asset | B10: 7471320.95
A11: Replace 2 Assets | B11: 0
A12: Replace 3 Assets | B12: 0
A13: Addiitonal Asset | B13: N/A
A17: ZSS | B17: VM | C17: WA | D17: LQ | E17: FR | F17: AR | G17: BR | H17: EW | I17: OE | J17: VM | K17: AR | L17: NC | M17: CW | N17: R | O17: B | P17: NR | Q17: BGO | R17: DDL | S17: EHK | T17: GCY | U17: MRO | V17: MDA | W17: SHN | X17: STL | Y17: BMH | Z17: MNA | AA17: BT | AB17: EW | AC17: HGS | AD17: K | AE17: BR | AF17: EW | AG17: OE | AH17: GL | AI17: NC | AJ17: BQ | AK17: RD | AL17: Q | AM17: F | AN17: L | AO17: R | AP17: WP | AQ17: STO | AR17: R22 | AS17: CW | AT17: DDL
A18: Asset type | B18: Indoor CB | C18: Indoor CB | D18: Indoor CB | E18: Indoor CB | F18: Indoor CB | G18: Indoor CB | H18: Indoor CB | I18: Indoor CB | J18: Transformer | K18: Transformer | L18: Transformer | M18: Transformer | N18: Transformer | O18: Transformer | P18: Transformer | Q18: Transformer | R18: Transformer | S18: Transformer | T18: Transformer | U18: Transformer | V18: Transformer | W18: Transformer | X18: Transformer | Y18: Transformer | Z18: Transformer | AA18: Transformer | AB18: Transformer | AC18: Transformer | AD18: Transformer | AE18: Indoor CB | AF18: Indoor CB | AG18: Indoor CB | AH18: Indoor CB | AI18: Indoor CB | AJ18: Indoor CB | AK18: Indoor CB | AL18: Indoor CB | AM18: Indoor CB | AN18: Indoor CB | AO18: Indoor CB | AP18: Indoor CB | AQ18: Transformer | AR18: Indoor CB | AS18: Indoor CB | AT18: Outdoor CB
A19: Lookup Key | B19: =B17&B18 -> VMIndoor CB | C19: WAIndoor CB | D19: LQIndoor CB | E19: FRIndoor CB | F19: ARIndoor CB | G19: =G17&G18 -> BRIndoor CB | H19: =H17&H18 -> EWIndoor CB | I19: =I17&I18 -> OEIndoor CB | J19: VMTransformer | K19: =K17&K18 -> ARTransformer | L19: NCTransformer | M19: CWTransformer | N19: RTransformer | O19: BTransformer | P19: NRTransformer | Q19: BGOTransformer | R19: DDLTransformer | S19: EHKTransformer | T19: GCYTransformer | U19: MROTransformer | V19: MDATransformer | W19: SHNTransformer | X19: STLTransformer | Y19: BMHTransformer | Z19: =Z17&Z18 -> MNATransformer | AA19: BTTransformer | AB19: EWTransformer | AC19: HGSTransformer | AD19: KTransformer | AE19: BRIndoor CB | AF19: EWIndoor CB | AG19: OEIndoor CB | AH19: GLIndoor CB | AI19: NCIndoor CB | AJ19: BQIndoor CB | AK19: RDIndoor CB | AL19: QIndoor CB | AM19: FIndoor CB | AN19: LIndoor CB | AO19: RIndoor CB | AP19: WPIndoor CB | AQ19: =AQ17&AQ18 -> STOTransformer | AR19: =AR17&AR18 -> R22Indoor CB | AS19: =AS17&AS18 -> CWIndoor CB | AT19: =AT17&AT18 -> DDLOutdoor CB | AU19: =AU17&AU18 ->  | BV19: =BV17&BV18 ->  | EH19: =EH17&EH18 -> 
A20: Online Monitoring | B20: 48309.17874 | C20: 48309.17874
A21: Physical Separation | B21: 300000 | C21: 300000 | D21: 300000 | E21: 300000 | F21: 300000 | G21: 300000 | H21: 300000 | I21: 300000 | J21: 300000 | K21: 300000 | L21: 300000 | M21: 300000 | N21: 300000 | O21: 300000 | P21: 300000 | Q21: 300000 | R21: 300000 | S21: 300000 | T21: 300000 | U21: 300000 | V21: 300000 | W21: 300000 | X21: 300000 | Y21: 300000 | Z21: 300000 | AA21: 300000 | AB21: 300000 | AC21: 300000 | AD21: 300000 | AE21: 300000 | AF21: 300000 | AG21: 300000 | AH21: 300000 | AI21: 300000 | AJ21: 300000 | AK21: 300000 | AL21: 300000 | AM21: 300000 | AN21: 300000 | AO21: 300000 | AP21: 300000 | AQ21: 300000 | AR21: 300000 | AS21: 300000 | AT21: 300000
A22: More Frequent Maintenance | B22: 4000 | C22: 4000 | D22: 4000 | E22: 4000 | F22: 4000 | G22: 4000 | H22: 4000 | I22: 4000 | J22: 4000 | K22: 4000 | L22: 4000 | M22: 4000 | N22: 4000 | O22: 4000 | P22: 4000 | Q22: 4000 | R22: 4000 | S22: 4000 | T22: 4000 | U22: 4000 | V22: 4000 | W22: 4000 | X22: 4000 | Y22: 4000 | Z22: 4000 | AA22: 4000 | AB22: 4000 | AC22: 4000 | AD22: 4000 | AE22: 4000 | AF22: 4000 | AG22: 4000 | AH22: 4000 | AI22: 4000 | AJ22: 4000 | AK22: 4000 | AL22: 4000 | AM22: 4000 | AN22: 4000 | AO22: 4000 | AP22: 4000 | AQ22: 4000 | AR22: 4000 | AS22: 4000 | AT22: 4000
A23: Staggered Maintenance | B23: 650 | C23: 650 | D23: 650 | E23: 650 | F23: 650 | G23: 650 | H23: 650 | I23: 650 | J23: 650 | K23: 650 | L23: 650 | M23: 650 | N23: 650 | O23: 650 | P23: 650 | Q23: 650 | R23: 650 | S23: 650 | T23: 650 | U23: 650 | V23: 650 | W23: 650 | X23: 650 | Y23: 650 | Z23: 650 | AA23: 650 | AB23: 650 | AC23: 650 | AD23: 650 | AE23: 650 | AF23: 650 | AG23: 650 | AH23: 650 | AI23: 650 | AJ23: 650 | AK23: 650 | AL23: 650 | AM23: 650 | AN23: 650 | AO23: 650 | AP23: 650 | AQ23: 650 | AR23: 650 | AS23: 650 | AT23: 650
A24: Bunded | B24: 300000 | C24: 300000 | D24: 300000 | E24: 300000 | F24: 300000 | G24: 300000 | H24: 300000 | I24: 300000 | J24: 300000 | K24: 300000 | L24: 300000 | M24: 300000 | N24: 300000 | O24: 300000 | P24: 300000 | Q24: 300000 | R24: 300000 | S24: 300000 | T24: 300000 | U24: 300000 | V24: 300000 | W24: 300000 | X24: 300000 | Y24: 300000 | Z24: 300000 | AA24: 300000 | AB24: 300000 | AC24: 300000 | AD24: 300000 | AE24: 300000 | AF24: 300000 | AG24: 300000 | AH24: 300000 | AI24: 300000 | AJ24: 300000 | AK24: 300000 | AL24: 300000 | AM24: 300000 | AN24: 300000 | AO24: 300000 | AP24: 300000 | AQ24: 300000 | AR24: 300000 | AS24: 300000 | AT24: 300000
A25: Refurbish Assets | B25: 500000 | C25: 500000 | D25: 500000 | E25: 500000 | F25: 500000 | G25: 500000 | H25: 500000 | I25: 500000 | J25: 500000 | K25: 500000 | L25: 500000 | M25: 500000 | N25: 500000 | O25: 500000 | P25: 500000 | Q25: 500000 | R25: 500000 | S25: 500000 | T25: 500000 | U25: 500000 | V25: 500000 | W25: 500000 | X25: 500000 | Y25: 500000 | Z25: 500000 | AA25: 500000 | AB25: 500000 | AC25: 500000 | AD25: 500000 | AE25: 500000 | AF25: 500000 | AG25: 500000 | AH25: 500000 | AI25: 500000 | AJ25: 500000 | AK25: 500000 | AL25: 500000 | AM25: 500000 | AN25: 500000 | AO25: 500000 | AP25: 500000 | AQ25: 500000 | AR25: 500000 | AS25: 500000 | AT25: 500000
A26: Replace 1 Asset | B26: =B28/3 -> 0 | C26: =C28/3 -> 0 | D26: =D28/3 -> 4047775.375 | E26: =E28/3 -> 0 | F26: =F27/2 -> 0 | G26: =G27/2 -> 0 | H26: =H27/2 -> 0 | I26: =I27/2 -> 0 | J26: 5575078.6 | K26: 6426018.8 | L26: 7599585.6 | M26: 8326512.6 | N26: 5307243.6 | O26: 7356835.6 | P26: 8099087.6 | Q26: 7531305.95 | R26: 7531305.95 | S26: 7771752.802 | T26: 7515180.95 | U26: 7235497.125 | V26: 7515180.95 | W26: 6772570.95 | X26: 7487445.95 | Y26: 7235497.125 | Z26: 7471320.95 | AA26: 4153170.49 | AB26: 4153170.49 | AC26: 4004200 | AD26: 5183000 | AE26: =AE27/2 -> 0 | AF26: =AF28/3 -> 1704680.886 | AG26: =AG28/3 -> 2568087.333 | AH26: =AH28/3 -> 0 | AI26: =AI27/2 -> 0 | AJ26: 0 | AK26: 0 | AL26: 0 | AM26: 0 | AN26: 0 | AO26: =AO28/3 -> 900000 | AP26: 0 | AQ26: 4153170.49 | AT26: =AT27/2 -> 5000000
A27: Replace 2 Assets | B27: =B28*2/3 -> 0 | C27: =C28*2/3 -> 0 | D27: =D28*2/3 -> 8095550.75 | E27: =E28*2/3 -> 0 | F27: =F31 -> 0 | G27: =G31 -> 0 | H27: =H31 -> 0 | I27: =I31 -> 0 | K27: 11616012.6 | AE27: =AE31 -> 0 | AF27: =AF28*2/3 -> 3409361.771 | AG27: =AG28*2/3 -> 5136174.667 | AH27: =AH28*2/3 -> 0 | AI27: =AI31 -> 0 | AJ27: 0 | AK27: 0 | AL27: 0 | AM27: 0 | AN27: 0 | AO27: =AO28*2/3 -> 1800000 | AP27: 0 | AT27: 10000000
A28: Replace 3 Assets | B28: =B31*0.75 -> 0 | C28: =C31*0.75 -> 0 | D28: 12143326.12 | E28: =E31*0.75 -> 0 | AF28: 5114042.657 | AG28: 7704262 | AH28: =AH31*0.75 -> 0 | AO28: 2700000 | AR28: 1500000 | AS28: 12000000
A29: Addiitonal Asset | B29: N/A | C29: N/A | D29: N/A | E29: N/A | F29: N/A | G29: N/A | H29: N/A | I29: N/A | J29: N/A | K29: N/A | L29: N/A | M29: N/A | N29: N/A | O29: N/A | P29: N/A | Q29: N/A | R29: N/A | S29: N/A | T29: N/A | U29: N/A | V29: N/A | W29: N/A | X29: N/A | Y29: N/A | Z29: N/A | AA29: 2500000 | AB29: N/A | AC29: N/A | AD29: N/A | AE29: N/A | AF29: N/A | AG29: N/A | AH29: N/A | AI29: N/A | AJ29: N/A | AK29: N/A | AL29: N/A | AM29: N/A | AN29: N/A | AO29: N/A | AP29: N/A | AQ29: N/A | AR29: N/A | AS29: N/A | AT29: N/A
A32: Legend
A33: Entered input
A34: Calculated input

Sheet Constants
A1: General Constants | B1: Description | C1: Value | D1: Comment | F1: List of Asset Types | G1: Offset Asset | H1: Offset Beta | I1: Sensitivity Options | K1: Constant | L1: Value | M1: Comment | N1: Transformer | O1: Indoor CB | P1: Outdoor CB | Q1: Relay_Ele | R1: Relay_Ana | S1: Relay_Dig | U1: TRUE
A2: WACC | B2: Annual Cost of Capital | C2: 0.035 | F2: Transformer | G2: 0 | H2: 0 | I2: Lower | K2: Weibull_A | L2: =INDEX(N2:S2,1,MATCH($F$11, $N$1:$S$1,0)) -> 2.7 | N2: 2.7 | O2: 3.7 | P2: 3.7 | Q2: 6 | R2: 4 | S2: 3 | U2: Scenarios | W2: PoF | X2: Duration | Y2: Beta | Z2: Cost | AA2: Comment
A3: CPI | B3: Inflation | F3: Indoor CB | G3: 8 | H3: 7 | I3: Upper | K3: Weibull_B | L3: 118 | N3: 118 | O3: 112 | P3: 112 | Q3: 75 | R3: 56 | S3: 46 | U3: Status Quo | V3: =TRUE -> TRUE | W3: 1 | X3: 1 | Y3: 1 | Z3: 0
A4: Power Factor | C4: =VLOOKUP(ZSS,Load!$A$2:$G$149,4,FALSE) -> 1 | F4: Outdoor CB | G4: 8 | H4: 7 | I4: Normal | K4: Const_Rate | L4: 0.005 | M4: CIGRE A2.37 < 72kV | N4: 0.005 | O4: 0.005 | P4: 0.005 | Q4: 0.005 | R4: 0.005 | S4: 0.005 | U4: Spare Available | V4: ='Front Page'!C17 -> TRUE | W4: 1 | X4: =(1/12) -> 0.08333333333 | Y4: 0.2 | Z4: 300000 | AA4: Reduces fault duration and likelihood of overlapping events
A5: Failure Premium | C5: 0.2 | F5: Relay_Ele | G5: 16 | H5: 14 | K5: Major Ratio | L5: 0.2 | N5: 0.2 | O5: 0.5 | P5: 0.5 | Q5: 1 | R5: 1 | S5: 1 | U5: Online Monitoring | V5: ='Front Page'!C18 -> FALSE | W5: 0.85 | X5: 1 | Y5: 1 | Z5: 100000 | AA5: Based on RCM (% of major failure modes mitigated) x success factor of the system
A6: VCR | C6: =VLOOKUP(ZSS,Load!$A$2:$G$200,2,FALSE) -> 48.576 | F6: Relay_Ana | G6: 16 | H6: 14 | K6: Signficant Ratio | L6: 0.8 | N6: 0.8 | O6: 0.5 | P6: 0.5 | Q6: 0 | R6: 0 | S6: 0 | U6: Fire Walls | V6: ='Front Page'!C19 -> FALSE | W6: 1 | X6: 1 | Y6: 0.9 | Z6: 300000 | AA6: Limits CCF
A7: Network Avg? | C7: FALSE | F7: Relay_Dig | G7: 16 | H7: 14 | K7: Major Cost | L7: 5000000 | N7: 5000000 | O7: 5000000 | P7: 3000000 | Q7: 100000 | R7: 100000 | S7: 100000 | U7: More Frequent Maintenance | V7: ='Front Page'!C20 -> FALSE | W7: 0.9 | X7: 1 | Y7: 1 | Z7: 50000 | AA7: Improves PoF
A8: 10% PoE | C8: 0.3 | K8: Signficant Cost | L8: 164000 | N8: =VLOOKUP('Front Page'!$C$8&" Significant", Constants!U20:AA25,2,FALSE) -> 164000 | O8: =VLOOKUP('Front Page'!$C$8&" Significant", Constants!$U$20:$AA$25,3,FALSE) -> 118600 | P8: =VLOOKUP('Front Page'!$C$8&" Significant", Constants!U20:AA25,4,FALSE) -> 118600 | U8: Staggered Maintenance | V8: ='Front Page'!C21 -> FALSE | W8: 1 | X8: 1 | Y8: 0.9 | Z8: 0 | AA8: Limits CCF
A9: 50% PoE | C9: 0.7 | K9: Major_Duration | L9: 365 | M9: Days | N9: 365 | O9: 120 | P9: 60 | Q9: 120 | R9: 120 | S9: 120 | U9: Bunding | V9: ='Front Page'!C22 -> FALSE | W9: 1 | X9: 1 | Y9: 1 | Z9: 300000
A10: CBD load factor | B10: VCR scaling for 8 CBD ZSS | C10: 2.7 | F10: Asset Type Currently Selected | G10: =G1 -> Offset Asset | H10: =H1 -> Offset Beta | K10: Significant_Duration | L10: 25 | M10: Days | N10: 25 | O10: 24 | P10: 24 | Q10: 24 | R10: 24 | S10: 24 | U10: Refurbish Assets | V10: ='Front Page'!C23 -> TRUE | W10: 1 | X10: 1 | Y10: 1 | Z10: 300000
A11: forecast load > 10 years | B11: forecast load used from 2035-2049 | C11: FALSE | F11: =AssetType -> Transformer | G11: =VLOOKUP(F11,$F$1:$H$7,2,FALSE) -> 0 | H11: =VLOOKUP(F11,$F$1:$H$7,3,FALSE) -> 0 | K11: Feeder Outage Druation | L11: 2 | M11: Hours | N11: 2 | O11: 2 | P11: 2 | Q11: 2 | R11: 2 | S11: 2 | U11: Replace 1 Asset | V11: ='Front Page'!C24 -> FALSE | W11: 1 | X11: 1 | Y11: 1 | Z11: 4000000
K12: Cost_Status Quo | L12: =INDEX(N12:S12,1,MATCH($F$11, $N$1:$S$1,0)) -> 0 | N12: 0 | O12: 0 | P12: 0 | Q12: 0 | R12: 0 | S12: 0 | U12: Replace 2 Assets | V12: ='Front Page'!C25 -> FALSE | W12: 1 | X12: 1 | Y12: 1 | Z12: 7500000
A13: Safety Constants | B13: Description | C13: Value | D13: Comment | K13: Cost_Spare Available | L13: 300000 | N13: 300000 | O13: 300000 | P13: 300000 | Q13: 300000 | R13: 300000 | S13: 300000 | U13: Replace 3 Assets | V13: ='Front Page'!C26 -> FALSE | W13: 1 | X13: 1 | Y13: 1
A14: VSL | B14: Value of Life | C14: 5300000 | D14: 2023 dollars | K14: Cost_Online Monitoring | L14: 100000 | N14: 100000 | O14: 100000 | P14: 100000 | Q14: 100000 | R14: 100000 | S14: 100000 | U14: Addiitonal Asset | V14: ='Front Page'!C27 -> FALSE | W14: 1 | X14: 1 | Y14: 1
A15: DF_STAFF | B15: Dispoportionate Factor | C15: 3 | K15: Cost_Fire Walls | L15: 300000 | N15: 300000 | O15: 300000 | P15: 300000 | Q15: 300000 | R15: 300000 | S15: 300000 | U15: Scaler | W15: =PRODUCT(IF($V$3:$V$14=$U$1,W3:W14,"")) -> 1 | X15: =PRODUCT(IF($V$3:$V$14=$U$1,X3:X14,"")) -> 0.08333333333 | Y15: =PRODUCT(IF($V$3:$V$14=$U$1,Y3:Y14,"")) -> 0.2
A16: DF_PUBLIC | B16: Dispoportionate Factor | C16: 3 | K16: Cost_More Frequent Maintenance | L16: 5000 | N16: 5000 | O16: 50000 | P16: 50000 | Q16: 50000 | R16: 50000 | S16: 50000
A17: VSLY | B17: Value of Inury-year | C17: 235000 | F17: Conditional Probability | K17: Cost_Staggered Maintenance | L17: 500 | N17: =N16*0.1 -> 500 | O17: 0 | P17: 0 | Q17: 0 | R17: 0 | S17: 0
A18: POC_LTI | B18: Probability of Consequence - LTI | C18: 0.000260274 | D18: Note: Ofgem figures are same for CB and ZSS Transformer | F18: Scenario | G18: β | K18: Cost_Bunding | L18: 300000 | N18: 300000 | O18: 300000 | P18: 300000 | Q18: 300000 | R18: 300000 | S18: 300000
A19: POC_PUBLIC | B19: Probability of Consequence - LTI | C19: 0.000115 | F19: 6 Month | G19: 0.24 | K19: Cost_Refurbish Assets | L19: 300000 | N19: 300000 | O19: 300000 | P19: 300000 | Q19: 300000 | R19: 300000 | S19: 300000 | U19: Costs | V19: Transformer | W19: Indoor CB | X19: Outdoor CB | Y19: Relay_Ele | Z19: Relay_Ana | AA19: Relay_Dig
A20: POC_STAFF | B20: Probability of Consequence - LTI | C20: 0.001960616 | F20: 4 Month | G20: 0.22 | K20: Cost_Replace 1 Asset | L20: 4000000 | N20: 4000000 | O20: 4000000 | P20: 4000000 | Q20: 4000000 | R20: 4000000 | S20: 4000000 | U20: CP Major | X20: 400000
A21: DW | C21: 0.3 | F21: 1 Month | G21: 0.15 | K21: Cost_Replace 2 Assets | L21: 7500000 | N21: 7500000 | O21: 7500000 | P21: 7500000 | Q21: 7500000 | R21: 7500000 | S21: 7500000 | U21: CP Significant | V21: =AVERAGE(V23,V25) -> 166900 | W21: 101600 | X21: 101600
A22: Injury duration | C22: 0.25 | D22: In years | F22: 1 week | G22: 0.08 | K22: Cost_Replace 3 Assets | L22: 13000000 | N22: 13000000 | O22: 13000000 | P22: 13000000 | Q22: 13000000 | R22: 13000000 | S22: 13000000 | U22: PAL Major | X22: 400000
A23: Injury_value | C23: =C17*C21*C22*C15 -> 52875 | F23: Nil | G23: 0.05 | K23: Cost_Addiitonal Asset | L23: 6000000 | N23: 6000000 | O23: 6000000 | P23: 6000000 | Q23: 6000000 | R23: 6000000 | S23: 6000000 | U23: PAL Significant | V23: 164000 | W23: 118600 | X23: 118600
A24: Death_value | C24: =C15*C14 -> 15900000 | F24: Sensitivity | G24: 1 | U24: UE Major | V24: 4450000 | AL24: `
U25: UE Significant | V25: 169800 | W25: 118600
M34: 0.9 | N34: New switchgear failure reduction
F35: Refirb Enviro Reduction | G35: 0.75 | K35: ='Front Page'!I3-1 -> 2027 | M35: 30 | N35: Default to Weibull for young assets regardless of fixed rate | T35: Transformer Data | AA35: Switchgear Data | AT35: Transformers BETA | BB35: Circuit Breakers BETA
A36: Station | B36: Trans/Bus # | C36: REF | D36: ConsYr | E36: Cyclic Rating | F36: 2Hr Rating | G36: Enviro Risk Annual | H36: Other Risk Annual | I36: Fire Risk Annual | J36: Replacement Order | K36: Modified Year | M36: Age | N36: Base Failure Hazard Function | O36: Major Failure | P36: Minor Failure | S36: REF | T36: ConsYr | U36: Cyclic Rating | V36: 2Hr Rating | W36: Enviro Risk Annual | X36: Other Risk Annual | Y36: Fire Risk Annual | Z36: Replacement Order | AA36: Notes | AB36: ConsYr | AC36: Cyclic Rating | AD36: 2Hr Rating | AE36: Enviro Risk Annual | AF36: Other Risk Annual | AG36: Fire Risk Annual | AH36: Replacement Order | AI36: Notes | AU36: Beta Values - set TRUE where not applicable | BB36: Beta Values - set TRUE where not applicable
A37: AP | B37: No1 TRANSFORMER | C37: AP #1 | D37: =VLOOKUP($C37,$S$37:$AH$560,2+$G$11,FALSE) -> 1973 | E37: =MIN(VLOOKUP($C37,$S$37:$AH$560,3+$G$11,FALSE),VLOOKUP($C37,$S$37:$AH$560,3+$G$11,FALSE)) -> 40.87155724 | F37: =VLOOKUP($C37,$S$37:$AH$560,4+$G$11,FALSE) -> 42.573 | G37: =IFERROR(IF(AND(J37=1,ISREFURB=TRUE,A37=ZSS),VLOOKUP($C37,$S$37:$AH$560,5+$G$11,FALSE)*(1-$G$35),VLOOKUP($C37,$S$37:$AH$560,5+$G$11,FALSE)),0) -> 2937.5 | H37: =VLOOKUP($C37,$S$37:$AH$560,6+$G$11,FALSE) -> 0 | I37: =VLOOKUP($C37,$S$37:$AH$560,7+$G$11,FALSE) -> 0 | J37: =VLOOKUP($C37,$S$37:$AH$560,8+$G$11,FALSE) -> 2 | K37: =IF(AND(J37=9999,IS_ADDITIONAL=TRUE,A37=ZSS),$K$35,IF(AND(OR(ISREPLACE=TRUE,ISREPLACETWO=TRUE,ISREPLACETHREE=TRUE),J37=1,A37=ZSS),$K$35,IF(AND(OR(ISREPLACETWO=TRUE,ISREPLACETHREE=TRUE),J37=2,A37=ZSS),$K$35,IF(AND(J37=3,ISREPLACETHREE=TRUE,A37=ZSS),$K$35,9999)))) -> 9999 | M37: 1 | N37: =ROUND(IF('Front Page'!$C$9="WEIBULL",_xlfn.WEIBULL.DIST(M37,$L$2,$L$3,FALSE)/(1-_xlfn.WEIBULL.DIST(M37,$L$2,$L$3,TRUE)),IF(M37<$M$35,$L$4*(1-$M$34),$L$4))*$W$15,10) -> 6.8752e-06 | O37: =N37*$L$5 -> 1.37504e-06 | P37: =N37*$L$6 -> 5.50016e-06 | S37: AP #1 | T37: 1973 | U37: 40.87155724 | V37: 42.573 | W37: 2937.5 | Z37: 2 | AB37: 1963 | AC37: 36.50903912 | AD37: 38.22313 | AH37: 3 | AT37: ZSS | AU37: β12 | AV37: β23 | AW37: β13 | AX37: β14 | AY37: β24 | AZ37: β34 | BA37: Notes | BB37: β12 | BC37: β23 | BD37: β13 | BE37: β14 | BF37: β24 | BG37: β34 | BH37: Notes
A38: AP | B38: No2 TRANSFORMER | C38: AP #2 | D38: =VLOOKUP($C38,$S$37:$AH$560,2+$G$11,FALSE) -> 1981 | E38: =VLOOKUP($C38,$S$37:$AH$560,3+$G$11,FALSE) -> 34.31837133 | F38: =VLOOKUP($C38,$S$37:$AH$560,4+$G$11,FALSE) -> 35.0748 | G38: 70500 | H38: =VLOOKUP($C38,$S$37:$AH$560,6+$G$11,FALSE) -> 0 | I38: =VLOOKUP($C38,$S$37:$AH$560,7+$G$11,FALSE) -> 0 | J38: =VLOOKUP($C38,$S$37:$AH$560,8+$G$11,FALSE) -> 1 | K38: 9999 | M38: 2 | N38: =IF('Front Page'!$C$9="WEIBULL",_xlfn.WEIBULL.DIST(M38,$L$2,$L$3,FALSE)/(1-_xlfn.WEIBULL.DIST(M38,$L$2,$L$3,TRUE)),IF(M38<$M$35,$L$4*(1-$M$34),$L$4))*$W$15 -> 2.233743682e-05 | O38: =N38*$L$5 -> 4.467487363e-06 | P38: 1.786994945e-05 | S38: AP #2 | T38: 1981 | U38: 34.31837133 | V38: 35.0748 | W38: 70500 | Z38: 1 | AB38: 1963 | AC38: 36.50903912 | AD38: 38.22313 | AH38: 1 | AT38: AP | AU38: 0.075 | AV38: 0.0625 | AW38: 0.0625 | AX38: TRUE | AY38: TRUE | AZ38: TRUE | BB38: 0.2 | BC38: 0.2 | BD38: 0.2 | BE38: TRUE | BF38: TRUE | BG38: TRUE
A39: AP | B39: NO3 66/11KV TRANS | C39: AP #3 | D39: 2003 | E39: 34.3371888 | F39: 37.02159 | G39: 0 | H39: 0 | I39: 0 | J39: 3 | K39: 9999 | M39: 3 | N39: =IF('Front Page'!$C$9="WEIBULL",_xlfn.WEIBULL.DIST(M39,$L$2,$L$3,FALSE)/(1-_xlfn.WEIBULL.DIST(M39,$L$2,$L$3,TRUE)),IF(M39<$M$35,$L$4*(1-$M$34),$L$4))*$W$15 -> 4.450291691e-05 | O39: 8.900583383e-06 | P39: 3.560233353e-05 | S39: AP #3 | T39: 2003 | U39: 34.3371888 | V39: 37.02159 | W39: 0 | Z39: 3 | AB39: 1963 | AC39: 36.50903912 | AD39: 38.22313 | AH39: 2 | AT39: AR | AU39: 0.25 | AV39: TRUE | AW39: TRUE | AX39: TRUE | AY39: TRUE | AZ39: TRUE | BB39: 0.2 | BC39: TRUE | BD39: TRUE | BE39: TRUE | BF39: TRUE | BG39: TRUE
A40: AP | B40: NO4 66/11KV TRANS | C40: AP #4 | D40: 9999 | E40: 0 | F40: 0 | G40: - | H40: 0 | I40: 0 | J40: 9999 | K40: 9999 | M40: 4 | N40: =IF('Front Page'!$C$9="WEIBULL",_xlfn.WEIBULL.DIST(M40,$L$2,$L$3,FALSE)/(1-_xlfn.WEIBULL.DIST(M40,$L$2,$L$3,TRUE)),IF(M40<$M$35,$L$4*(1-$M$34),$L$4))*$W$15 -> 7.257454633e-05 | O40: 1.451490927e-05 | P40: 5.805963706e-05 | S40: AP #4 | T40: 9999 | U40: 0 | V40: 0 | W40: - | Z40: 9999 | AB40: 9999 | AC40: 36.50903912 | AD40: 38.22313 | AH40: 9999 | AT40: B | AU40: TRUE | AV40: 0.2 | AW40: TRUE | AX40: TRUE | AY40: TRUE | AZ40: TRUE | BB40: 0.2 | BC40: 0.2 | BD40: 0.2 | BE40: TRUE | BF40: TRUE | BG40: TRUE
A41: AR | B41: NO1 66/11KV TRANS | C41: AR #1 | D41: 1963 | E41: 27.97620124 | F41: 28.63107 | G41: 7050 | H41: 0 | I41: 0 | J41: 2 | K41: 9999 | M41: 5 | N41: =IF('Front Page'!$C$9="WEIBULL",_xlfn.WEIBULL.DIST(M41,$L$2,$L$3,FALSE)/(1-_xlfn.WEIBULL.DIST(M41,$L$2,$L$3,TRUE)),IF(M41<$M$35,$L$4*(1-$M$34),$L$4))*$W$15 -> 0.0001060550497 | O41: 2.121100994e-05 | P41: 8.484403976e-05 | S41: AR #1 | T41: 1963 | U41: 27.97620124 | V41: 28.63107 | W41: 7050 | Z41: 2 | AB41: 1963 | AC41: 27.97314105 | AD41: 28.631475 | AH41: 2 | AT41: BC | AU41: 0.2 | AV41: 0.075 | AW41: 0.075 | AX41: TRUE | AY41: TRUE | AZ41: TRUE | BB41: 0.2 | BC41: 0.2 | BD41: 0.2 | BE41: TRUE | BF41: TRUE | BG41: TRUE
A42: AR | B42: NO2 66/11KV TRANS | C42: AR #2 | D42: 1963 | E42: 27.97008087 | F42: 28.63188 | G42: 6462.5 | H42: 0 | I42: 0 | J42: 1 | K42: 9999 | M42: 6 | N42: =IF('Front Page'!$C$9="WEIBULL",_xlfn.WEIBULL.DIST(M42,$L$2,$L$3,FALSE)/(1-_xlfn.WEIBULL.DIST(M42,$L$2,$L$3,TRUE)),IF(M42<$M$35,$L$4*(1-$M$34),$L$4))*$W$15 -> 0.0001445904036 | O42: 2.891808073e-05 | P42: 0.0001156723229 | S42: AR #2 | T42: 1963 | U42: 27.97008087 | V42: 28.63188 | W42: 6462.5 | Z42: 1 | AB42: 1963 | AC42: 27.97314105 | AD42: 28.631475 | AH42: 1 | AT42: BK | AU42: 0.0625 | AV42: 0.0625 | AW42: 0.075 | AX42: TRUE | AY42: TRUE | AZ42: TRUE | BB42: 0.2 | BC42: 0.2 | BD42: 0.2 | BE42: TRUE | BF42: TRUE | BG42: TRUE
A43: AR | B43: NO3 66/11KV TRANS | C43: AR #3 | D43: 9999 | E43: 0 | F43: 0 | G43: - | H43: 0 | I43: 0 | J43: 9999 | K43: 9999 | M43: 7 | N43: =IF('Front Page'!$C$9="WEIBULL",_xlfn.WEIBULL.DIST(M43,$L$2,$L$3,FALSE)/(1-_xlfn.WEIBULL.DIST(M43,$L$2,$L$3,TRUE)),IF(M43<$M$35,$L$4*(1-$M$34),$L$4))*$W$15 -> 0.0001879096192 | O43: 3.758192384e-05 | P43: 0.0001503276954 | S43: AR #3 | T43: 9999 | U43: 0 | V43: 0 | W43: - | Z43: 9999 | AB43: 9999 | AC43: 27.97314105 | AD43: 28.631475 | AH43: 9999 | AT43: BQ | AU43: TRUE | AV43: TRUE | AW43: 0.2 | AX43: TRUE | AY43: TRUE | AZ43: TRUE | BB43: 0.2 | BC43: 0.2 | BD43: 0.2 | BE43: TRUE | BF43: TRUE | BG43: TRUE
A44: B | B44: No1 TRANSFORMER | C44: B #1 | D44: 9999 | E44: 0 | F44: 0 | G44: - | H44: 0 | I44: 0 | J44: 9999 | K44: 9999 | M44: 8 | N44: =IF('Front Page'!$C$9="WEIBULL",_xlfn.WEIBULL.DIST(M44,$L$2,$L$3,FALSE)/(1-_xlfn.WEIBULL.DIST(M44,$L$2,$L$3,TRUE)),IF(M44<$M$35,$L$4*(1-$M$34),$L$4))*$W$15 -> 0.0002357953967 | O44: 4.715907934e-05 | P44: 0.0001886363173 | S44: B #1 | T44: 9999 | U44: 0 | V44: 0 | W44: - | Z44: 9999 | AB44: 1965 | AC44: 22.86337618 | AD44: 23.12694 | AH44: 1965 | AT44: C | AU44: 0.25 | AV44: 0.25 | AW44: 0.25 | AX44: TRUE | AY44: TRUE | AZ44: TRUE | BB44: 0.2 | BC44: 0.2 | BD44: 0.2 | BE44: TRUE | BF44: TRUE | BG44: TRUE
A45: B | B45: No2 TRANSFORMER | C45: B #2 | D45: 1965 | E45: 34.2991967 | F45: 34.69365 | G45: 17625 | H45: 0 | I45: 0 | J45: 2 | K45: 9999 | M45: 9 | N45: =IF('Front Page'!$C$9="WEIBULL",_xlfn.WEIBULL.DIST(M45,$L$2,$L$3,FALSE)/(1-_xlfn.WEIBULL.DIST(M45,$L$2,$L$3,TRUE)),IF(M45<$M$35,$L$4*(1-$M$34),$L$4))*$W$15 -> 0.0002880677301 | O45: 5.761354602e-05 | P45: 0.0002304541841 | S45: B #2 | T45: 1965 | U45: 34.2991967 | V45: 34.69365 | W45: 17625 | Z45: 2 | AB45: 1965 | AC45: 22.86337618 | AD45: 23.12694 | AH45: 2 | AT45: CL | AU45: 0.2 | AV45: 0.0625 | AW45: 0.0625 | AX45: TRUE | AY45: TRUE | AZ45: TRUE | BB45: 0.2 | BC45: 0.2 | BD45: 0.2 | BE45: TRUE | BF45: TRUE | BG45: TRUE
A46: B | B46: No3 TRANSFORMER | C46: B #3 | D46: 1964 | E46: 34.29093184 | F46: 34.68717 | G46: 8385.975 | H46: 0 | I46: 0 | J46: 1 | K46: 9999 | M46: 10 | N46: =IF('Front Page'!$C$9="WEIBULL",_xlfn.WEIBULL.DIST(M46,$L$2,$L$3,FALSE)/(1-_xlfn.WEIBULL.DIST(M46,$L$2,$L$3,TRUE)),IF(M46<$M$35,$L$4*(1-$M$34),$L$4))*$W$15 -> 0.000344573873 | O46: 6.891477461e-05 | P46: 0.0002756590984 | S46: B #3 | T46: 1964 | U46: 34.29093184 | V46: 34.68717 | W46: 8385.975 | Z46: 1 | AB46: 1965 | AC46: 22.86337618 | AD46: 23.12694 | AH46: 1 | AT46: CW | AU46: TRUE | AV46: TRUE | AW46: 0.2 | AX46: TRUE | AY46: TRUE | AZ46: TRUE | BB46: 0.2 | BC46: 0.2 | BD46: 0.2 | BE46: TRUE | BF46: TRUE | BG46: TRUE
A47: BC | B47: NO1 66/11KV TRANS | C47: BC #1 | D47: 1965 | E47: 33.95756476 | F47: 35.3406 | G47: 1566.666667 | H47: 0 | I47: 0 | J47: 1 | K47: 9999 | M47: 11 | N47: =IF('Front Page'!$C$9="WEIBULL",_xlfn.WEIBULL.DIST(M47,$L$2,$L$3,FALSE)/(1-_xlfn.WEIBULL.DIST(M47,$L$2,$L$3,TRUE)),IF(M47<$M$35,$L$4*(1-$M$34),$L$4))*$W$15 -> 0.0004051817811 | O47: 8.103635622e-05 | P47: 0.0003241454249 | S47: BC #1 | T47: 1965 | U47: 33.95756476 | V47: 35.3406 | W47: 1566.666667 | Z47: 1 | AB47: 1965 | AC47: 34.5201727 | AD47: 36.8621 | AH47: 1 | AT47: DA | AU47: TRUE | AV47: TRUE | AW47: 0.2 | AX47: TRUE | AY47: TRUE | AZ47: TRUE | BB47: 0.2 | BC47: 0.2 | BD47: 0.2 | BE47: TRUE | BF47: TRUE | BG47: TRUE
A48: BC | B48: NO2 66/11KV TRANS | C48: BC #2 | D48: 1965 | E48: 33.96745435 | F48: 35.3586 | G48: 0 | H48: 0 | I48: 0 | J48: 2 | K48: 9999 | M48: 12 | N48: =IF('Front Page'!$C$9="WEIBULL",_xlfn.WEIBULL.DIST(M48,$L$2,$L$3,FALSE)/(1-_xlfn.WEIBULL.DIST(M48,$L$2,$L$3,TRUE)),IF(M48<$M$35,$L$4*(1-$M$34),$L$4))*$W$15 -> 0.0004697756074 | O48: 9.395512147e-05 | P48: 0.0003758204859 | S48: BC #2 | T48: 1965 | U48: 33.96745435 | V48: 35.3586 | W48: 0 | Z48: 2 | AB48: 1965 | AC48: 34.5201727 | AD48: 36.8621 | AH48: 2 | AT48: E | AU48: TRUE | AV48: TRUE | AW48: TRUE | AX48: TRUE | AY48: TRUE | AZ48: TRUE | BB48: 0.2 | BC48: 0.2 | BD48: 0.2 | BE48: TRUE | BF48: TRUE | BG48: TRUE
A49: BC | B49: NO3 66/11KV TRANS | C49: BC #3 | D49: 2014 | E49: 35.63549898 | F49: 39.8871 | G49: 0 | H49: 0 | I49: 0 | J49: 3 | K49: 9999 | M49: 13 | N49: =IF('Front Page'!$C$9="WEIBULL",_xlfn.WEIBULL.DIST(M49,$L$2,$L$3,FALSE)/(1-_xlfn.WEIBULL.DIST(M49,$L$2,$L$3,TRUE)),IF(M49<$M$35,$L$4*(1-$M$34),$L$4))*$W$15 -> 0.0005382524848 | O49: 0.000107650497 | P49: 0.0004306019878 | S49: BC #3 | T49: 2014 | U49: 35.63549898 | V49: 39.8871 | W49: 0 | Z49: 3 | AB49: 1965 | AC49: 34.5201727 | AD49: 36.8621 | AH49: 3 | AT49: F | AU49: TRUE | AV49: TRUE | AW49: 0.0625 | AX49: TRUE | AY49: TRUE | AZ49: TRUE | BB49: 0.2 | BC49: 0.2 | BD49: 0.2 | BE49: TRUE | BF49: TRUE | BG49: TRUE
A50: BC | B50: NO4 66/11KV TRANS | C50: BC #4 | D50: 9999 | E50: 0 | F50: 0 | G50: - | H50: 0 | I50: 0 | J50: 9999 | K50: 9999 | M50: 14 | N50: =IF('Front Page'!$C$9="WEIBULL",_xlfn.WEIBULL.DIST(M50,$L$2,$L$3,FALSE)/(1-_xlfn.WEIBULL.DIST(M50,$L$2,$L$3,TRUE)),IF(M50<$M$35,$L$4*(1-$M$34),$L$4))*$W$15 -> 0.000610520154 | O50: 0.0001221040308 | P50: 0.0004884161232 | S50: BC #4 | T50: 9999 | U50: 0 | V50: 0 | W50: - | Z50: 9999 | AB50: 9999 | AC50: 34.5201727 | AD50: 36.8621 | AH50: 9999 | AT50: FB | AU50: 0.075 | AV50: 0.075 | AW50: 0.2 | AX50: TRUE | AY50: TRUE | AZ50: TRUE | BB50: 0.2 | BC50: 0.2 | BD50: 0.2 | BE50: TRUE | BF50: TRUE | BG50: TRUE
A51: BK | B51: NO1 22/6.6KV TRANS | C51: BK #1 | D51: 1950 | E51: 12.02132384 | F51: 12.9682 | G51: 450.4166667 | H51: 0 | I51: 0 | J51: 1 | K51: 9999 | M51: 15 | N51: =IF('Front Page'!$C$9="WEIBULL",_xlfn.WEIBULL.DIST(M51,$L$2,$L$3,FALSE)/(1-_xlfn.WEIBULL.DIST(M51,$L$2,$L$3,TRUE)),IF(M51<$M$35,$L$4*(1-$M$34),$L$4))*$W$15 -> 0.0006864951681 | O51: 0.0001372990336 | P51: 0.0005491961345 | S51: BK #1 | T51: 1950 | U51: 12.02132384 | V51: 12.9682 | W51: 450.4166667 | Z51: 1 | AB51: 1963 | AC51: 12.47568805 | AD51: 13.09484747 | AH51: 1 | AT51: FR | AU51: 0.2 | AV51: 0.2 | AW51: 0.2 | AX51: TRUE | AY51: TRUE | AZ51: TRUE | BB51: 0.2 | BC51: 0.2 | BD51: 0.2 | BE51: TRUE | BF51: TRUE | BG51: TRUE
A52: BK | B52: NO2 22/6.6KV TRANS | C52: BK #2 | D52: 2010 | E52: 13.7178424 | F52: 13.7178424 | G52: 391.6666667 | H52: 0 | I52: 0 | J52: 3 | K52: 9999 | M52: 16 | N52: =IF('Front Page'!$C$9="WEIBULL",_xlfn.WEIBULL.DIST(M52,$L$2,$L$3,FALSE)/(1-_xlfn.WEIBULL.DIST(M52,$L$2,$L$3,TRUE)),IF(M52<$M$35,$L$4*(1-$M$34),$L$4))*$W$15 -> 0.000766101504 | O52: 0.0001532203008 | P52: 0.0006128812032 | S52: BK #2 | T52: 2010 | U52: 13.7178424 | V52: 13.7178424 | W52: 391.6666667 | Z52: 3 | AB52: 1963 | AC52: 12.47568805 | AD52: 13.09484747 | AH52: 3 | AT52: JA | AU52: 0.2 | AV52: 0.075 | AW52: 0.075 | AX52: TRUE | AY52: TRUE | AZ52: TRUE | BB52: 0.2 | BC52: 0.2 | BD52: 0.2 | BE52: TRUE | BF52: TRUE | BG52: TRUE
A53: BK | B53: NO3 22/6.6KV TRANS | C53: BK #3 | D53: 1963 | E53: 11.68789791 | F53: 12.5985 | G53: 0 | H53: 0 | I53: 0 | J53: 2 | K53: 9999 | M53: 17 | N53: =IF('Front Page'!$C$9="WEIBULL",_xlfn.WEIBULL.DIST(M53,$L$2,$L$3,FALSE)/(1-_xlfn.WEIBULL.DIST(M53,$L$2,$L$3,TRUE)),IF(M53<$M$35,$L$4*(1-$M$34),$L$4))*$W$15 -> 0.0008492694674 | O53: 0.0001698538935 | P53: 0.0006794155739 | S53: BK #3 | T53: 1963 | U53: 11.68789791 | V53: 12.5985 | W53: 0 | Z53: 2 | AB53: 1963 | AC53: 12.47568805 | AD53: 13.09484747 | AH53: 2 | AT53: L | AU53: TRUE | AV53: TRUE | AW53: 0.2 | AX53: TRUE | AY53: TRUE | AZ53: TRUE | BB53: 0.2 | BC53: 0.2 | BD53: 0.2 | BE53: TRUE | BF53: TRUE | BG53: TRUE
A54: BK | B54: NO4 22/6.6KV TRANS | C54: BK #4 | D54: 9999 | E54: 0 | F54: 0 | G54: - | H54: 0 | I54: 0 | J54: 9999 | K54: 9999 | M54: 18 | N54: =IF('Front Page'!$C$9="WEIBULL",_xlfn.WEIBULL.DIST(M54,$L$2,$L$3,FALSE)/(1-_xlfn.WEIBULL.DIST(M54,$L$2,$L$3,TRUE)),IF(M54<$M$35,$L$4*(1-$M$34),$L$4))*$W$15 -> 0.0009359348163 | O54: 0.0001871869633 | P54: 0.000748747853 | S54: BK #4 | T54: 9999 | U54: 0 | V54: 0 | W54: - | Z54: 9999 | AB54: 9999 | AC54: 12.47568805 | AD54: 13.09484747 | AH54: 9999 | AT54: LQ | AU54: 0.2 | AV54: 0.2 | AW54: 0.2 | AX54: TRUE | AY54: TRUE | AZ54: TRUE | BB54: 0.2 | BC54: 0.2 | BD54: 0.2 | BE54: TRUE | BF54: TRUE | BG54: TRUE
A55: BQ | B55: NO1 66/11KV TRANS | C55: BQ #1 | D55: 2012 | E55: 47.63139721 | F55: 47.63139721 | G55: 0 | H55: 0 | I55: 0 | J55: 2 | K55: 9999 | M55: 19 | N55: =IF('Front Page'!$C$9="WEIBULL",_xlfn.WEIBULL.DIST(M55,$L$2,$L$3,FALSE)/(1-_xlfn.WEIBULL.DIST(M55,$L$2,$L$3,TRUE)),IF(M55<$M$35,$L$4*(1-$M$34),$L$4))*$W$15 -> 0.001026038049 | O55: 0.0002052076097 | P55: 0.0008208304389 | S55: BQ #1 | T55: 2012 | U55: 47.63139721 | V55: 47.63139721 | W55: 0 | Z55: 2 | AB55: 2010 | AC55: 31.75426481 | AD55: 31.75426481 | AH55: 2 | AT55: R22 | AU55: 0.25 | AV55: 0.2 | AW55: 0.25 | AX55: TRUE | AY55: TRUE | AZ55: TRUE | BB55: 0.2 | BC55: 0.2 | BD55: 0.2 | BE55: TRUE | BF55: TRUE | BG55: TRUE
A56: BQ | B56: NO2 66/11KV TRANS | C56: BQ #2 | D56: 9999 | E56: 0 | F56: 0 | G56: - | H56: 0 | I56: 0 | J56: 9999 | K56: 9999 | M56: 20 | N56: =IF('Front Page'!$C$9="WEIBULL",_xlfn.WEIBULL.DIST(M56,$L$2,$L$3,FALSE)/(1-_xlfn.WEIBULL.DIST(M56,$L$2,$L$3,TRUE)),IF(M56<$M$35,$L$4*(1-$M$34),$L$4))*$W$15 -> 0.001119523816 | O56: 0.0002239047633 | P56: 0.0008956190531 | S56: BQ #2 | T56: 9999 | U56: 0 | V56: 0 | W56: - | Z56: 9999 | AB56: 2010 | AC56: 31.75426481 | AD56: 31.75426481 | AH56: 3 | AT56: MG | AU56: 0.25 | AV56: 0.2375 | AW56: 0.1875 | AX56: TRUE | AY56: TRUE | AZ56: TRUE | BB56: 0.2 | BC56: 0.2 | BD56: 0.2 | BE56: TRUE | BF56: TRUE | BG56: TRUE
A57: BQ | B57: NO3 66/11KV TRANS | C57: BQ #3 | D57: 2011 | E57: 47.63139721 | F57: 47.63139721 | G57: 0 | H57: 0 | I57: 0 | J57: 1 | K57: 9999 | M57: 21 | N57: =IF('Front Page'!$C$9="WEIBULL",_xlfn.WEIBULL.DIST(M57,$L$2,$L$3,FALSE)/(1-_xlfn.WEIBULL.DIST(M57,$L$2,$L$3,TRUE)),IF(M57<$M$35,$L$4*(1-$M$34),$L$4))*$W$15 -> 0.001216340438 | O57: 0.0002432680877 | P57: 0.0009730723506 | S57: BQ #3 | T57: 2011 | U57: 47.63139721 | V57: 47.63139721 | W57: 0 | Z57: 1 | AB57: 2010 | AC57: 31.75426481 | AD57: 31.75426481 | AH57: 1 | AT57: MP | AU57: 0.075 | AV57: 0.2 | AW57: 0.075 | AX57: TRUE | AY57: TRUE | AZ57: TRUE | BB57: 0.2 | BC57: 0.06 | BD57: 0.2 | BE57: TRUE | BF57: TRUE | BG57: TRUE
A58: C | B58: NO1 22/6.6KV TRANS | C58: C #1 | D58: 1938 | E58: 8.408676712 | F58: 9.02565 | G58: 0 | H58: 0 | I58: 0 | J58: 1 | K58: 9999 | M58: 22 | N58: =IF('Front Page'!$C$9="WEIBULL",_xlfn.WEIBULL.DIST(M58,$L$2,$L$3,FALSE)/(1-_xlfn.WEIBULL.DIST(M58,$L$2,$L$3,TRUE)),IF(M58<$M$35,$L$4*(1-$M$34),$L$4))*$W$15 -> 0.001316439491 | O58: 0.0002632878981 | P58: 0.001053151593 | S58: C #1 | T58: 1938 | U58: 8.408676712 | V58: 9.02565 | W58: 0 | Z58: 1 | AB58: 9999 | AH58: 9999 | AT58: NC | AU58: 0.2 | AV58: TRUE | AW58: TRUE | AX58: TRUE | AY58: TRUE | AZ58: TRUE | BB58: 0.2 | BC58: TRUE | BD58: TRUE | BE58: TRUE | BF58: TRUE | BG58: TRUE
A59: C | B59: NO2 22/6.6KV TRANS | C59: C #2 | D59: 1940 | E59: 8.412349024 | F59: 9.0336 | G59: 0 | H59: 0 | I59: 0 | J59: 3 | K59: 9999 | M59: 23 | N59: =IF('Front Page'!$C$9="WEIBULL",_xlfn.WEIBULL.DIST(M59,$L$2,$L$3,FALSE)/(1-_xlfn.WEIBULL.DIST(M59,$L$2,$L$3,TRUE)),IF(M59<$M$35,$L$4*(1-$M$34),$L$4))*$W$15 -> 0.001419775461 | O59: 0.0002839550922 | P59: 0.001135820369 | S59: C #2 | T59: 1940 | U59: 8.412349024 | V59: 9.0336 | W59: 0 | Z59: 3 | AB59: 9999 | AH59: 9999 | AT59: NR | AU59: 0.2 | AV59: 0.0625 | AW59: 0.0625 | AX59: TRUE | AY59: TRUE | AZ59: TRUE | BB59: 0.2 | BC59: 0.06 | BD59: 0.06 | BE59: TRUE | BF59: TRUE | BG59: TRUE
A60: C | B60: NO3 22/6.6KV TRANS | C60: C #3 | D60: 1938 | E60: 8.408676712 | F60: 9.0255 | G60: 0 | H60: 0 | I60: 0 | J60: 2 | K60: 9999 | M60: 24 | N60: =IF('Front Page'!$C$9="WEIBULL",_xlfn.WEIBULL.DIST(M60,$L$2,$L$3,FALSE)/(1-_xlfn.WEIBULL.DIST(M60,$L$2,$L$3,TRUE)),IF(M60<$M$35,$L$4*(1-$M$34),$L$4))*$W$15 -> 0.001526305451 | O60: 0.0003052610903 | P60: 0.001221044361 | S60: C #3 | T60: 1938 | U60: 8.408676712 | V60: 9.0255 | W60: 0 | Z60: 2 | AB60: 9999 | AH60: 9999 | AT60: PM | AU60: TRUE | AV60: 0.2 | AW60: TRUE | AX60: TRUE | AY60: TRUE | AZ60: TRUE | BB60: TRUE | BC60: 0.2 | BD60: TRUE | BE60: TRUE | BF60: TRUE | BG60: TRUE
A61: C | B61: NO4 22/6.6KV TRANS | C61: C #4 | D61: 9999 | E61: 0 | F61: 0 | G61: - | H61: 0 | I61: 0 | J61: 9999 | K61: 9999 | M61: 25 | N61: =IF('Front Page'!$C$9="WEIBULL",_xlfn.WEIBULL.DIST(M61,$L$2,$L$3,FALSE)/(1-_xlfn.WEIBULL.DIST(M61,$L$2,$L$3,TRUE)),IF(M61<$M$35,$L$4*(1-$M$34),$L$4))*$W$15 -> 0.001635988924 | O61: 0.0003271977849 | P61: 0.001308791139 | S61: C #4 | T61: 9999 | U61: 0 | V61: 0 | W61: - | Z61: 9999 | AB61: 9999 | AH61: 9999 | AT61: Q | AU61: TRUE | AV61: TRUE | AW61: 0.2 | AX61: TRUE | AY61: TRUE | AZ61: TRUE | BB61: TRUE | BC61: TRUE | BD61: 0.2 | BE61: TRUE | BF61: TRUE | BG61: TRUE
A62: CL | B62: NO1 66/11KV TRANS | C62: CL #1 | D62: 1965 | E62: 34.29312549 | F62: 35.2104 | G62: 2937.5 | H62: 0 | I62: 0 | J62: 1 | K62: 9999 | M62: 26 | N62: =IF('Front Page'!$C$9="WEIBULL",_xlfn.WEIBULL.DIST(M62,$L$2,$L$3,FALSE)/(1-_xlfn.WEIBULL.DIST(M62,$L$2,$L$3,TRUE)),IF(M62<$M$35,$L$4*(1-$M$34),$L$4))*$W$15 -> 0.001748787482 | O62: 0.0003497574965 | P62: 0.001399029986 | S62: CL #1 | T62: 1965 | U62: 34.29312549 | V62: 35.2104 | W62: 2937.5 | Z62: 1 | AB62: 1965 | AC62: 34.36501884 | AD62: 35.84035 | AH62: 1 | AT62: R | AU62: 0.075 | AV62: 0.0625 | AW62: 0.0625 | AX62: TRUE | AY62: TRUE | AZ62: TRUE | BB62: TRUE | BC62: 0.2 | BD62: TRUE | BE62: TRUE | BF62: TRUE | BG62: TRUE
A63: CL | B63: NO2 66/11KV TRANS | C63: CL #2 | D63: 1965 | E63: 34.29312549 | F63: 35.2113 | G63: 2937.5 | H63: 0 | I63: 0 | J63: 2 | K63: 9999 | M63: 27 | N63: =IF('Front Page'!$C$9="WEIBULL",_xlfn.WEIBULL.DIST(M63,$L$2,$L$3,FALSE)/(1-_xlfn.WEIBULL.DIST(M63,$L$2,$L$3,TRUE)),IF(M63<$M$35,$L$4*(1-$M$34),$L$4))*$W$15 -> 0.001864664675 | O63: 0.0003729329351 | P63: 0.00149173174 | S63: CL #2 | T63: 1965 | U63: 34.29312549 | V63: 35.2113 | W63: 2937.5 | Z63: 2 | AB63: 1965 | AC63: 34.36501884 | AD63: 35.84035 | AH63: 2 | AT63: RD | AU63: 0.2 | AV63: TRUE | AW63: TRUE | AX63: TRUE | AY63: TRUE | AZ63: TRUE | BB63: 0.2 | BC63: TRUE | BD63: TRUE | BE63: TRUE | BF63: TRUE | BG63: TRUE
A64: CL | B64: NO3 66/11KV TRANS | C64: CL #3 | D64: 2003 | E64: 34.50880553 | F64: 37.09935 | G64: 0 | H64: 0 | I64: 0 | J64: 3 | K64: 9999 | M64: 28 | N64: =IF('Front Page'!$C$9="WEIBULL",_xlfn.WEIBULL.DIST(M64,$L$2,$L$3,FALSE)/(1-_xlfn.WEIBULL.DIST(M64,$L$2,$L$3,TRUE)),IF(M64<$M$35,$L$4*(1-$M$34),$L$4))*$W$15 -> 0.001983585832 | O64: 0.0003967171665 | P64: 0.001586868666 | S64: CL #3 | T64: 2003 | U64: 34.50880553 | V64: 37.09935 | W64: 0 | Z64: 3 | AB64: 2003 | AC64: 34.36501884 | AD64: 35.84035 | AH64: 3 | AT64: SB | AU64: 0.2 | AV64: TRUE | AW64: TRUE | AX64: TRUE | AY64: TRUE | AZ64: TRUE | BB64: 0.2 | BC64: 0.2 | BD64: 0.2 | BE64: TRUE | BF64: TRUE | BG64: TRUE
A65: CL | B65: NO4 66/11KV TRANS | C65: CL #4 | D65: 9999 | E65: 0 | F65: 0 | G65: - | H65: 0 | I65: 0 | J65: 9999 | K65: 9999 | M65: 29 | N65: =IF('Front Page'!$C$9="WEIBULL",_xlfn.WEIBULL.DIST(M65,$L$2,$L$3,FALSE)/(1-_xlfn.WEIBULL.DIST(M65,$L$2,$L$3,TRUE)),IF(M65<$M$35,$L$4*(1-$M$34),$L$4))*$W$15 -> 0.002105517914 | O65: 0.0004211035829 | P65: 0.001684414331 | S65: CL #4 | T65: 9999 | U65: 0 | V65: 0 | W65: - | Z65: 9999 | AB65: 9999 | AC65: 34.36501884 | AD65: 35.84035 | AH65: 9999 | AT65: SK | AU65: 0.2 | AV65: 0.0625 | AW65: 0.0625 | AX65: TRUE | AY65: TRUE | AZ65: TRUE | BB65: 0.2 | BC65: 0.2 | BD65: 0.2 | BE65: TRUE | BF65: TRUE | BG65: TRUE
A66: CW | B66: NO1 66/11KV TRANS | C66: CW #1 | D66: 1963 | E66: 30.71290898 | F66: 31.88754 | G66: 0 | H66: 0 | I66: 0 | J66: 1 | K66: 9999 | M66: 30 | N66: =IF('Front Page'!$C$9="WEIBULL",_xlfn.WEIBULL.DIST(M66,$L$2,$L$3,FALSE)/(1-_xlfn.WEIBULL.DIST(M66,$L$2,$L$3,TRUE)),IF(M66<$M$35,$L$4*(1-$M$34),$L$4))*$W$15 -> 0.002230429382 | O66: 0.0004460858763 | P66: 0.001784343505 | S66: CW #1 | T66: 1963 | U66: 30.71290898 | V66: 31.88754 | Z66: 1 | AB66: 1963 | AC66: =1.5*SUM(U$66:U$68)/2 -> 46.0549333 | AD66: =1.5*SUM(V$66:V$68)/2 -> 47.8084275 | AH66: 1 | AT66: SO | AU66: 0.2 | AV66: 0.0625 | AW66: 0.0625 | AX66: TRUE | AY66: TRUE | AZ66: TRUE | BB66: 0.2 | BC66: 0.2 | BD66: 0.2 | BE66: TRUE | BF66: TRUE | BG66: TRUE
A67: CW | B67: NO2 66/11KV TRANS | C67: CW #2 | D67: 9999 | E67: 0 | F67: 0 | G67: - | H67: 0 | I67: 0 | J67: 9999 | K67: 9999 | M67: 31 | N67: =IF('Front Page'!$C$9="WEIBULL",_xlfn.WEIBULL.DIST(M67,$L$2,$L$3,FALSE)/(1-_xlfn.WEIBULL.DIST(M67,$L$2,$L$3,TRUE)),IF(M67<$M$35,$L$4*(1-$M$34),$L$4))*$W$15 -> 0.002358290079 | O67: 0.0004716580158 | P67: 0.001886632063 | S67: CW #2 | T67: 9999 | U67: 0 | V67: 0 | W67: - | Z67: 9999 | AB67: 1963 | AC67: =1.5*SUM(U$66:U$68)/2 -> 46.0549333 | AD67: =1.5*SUM(V$66:V$68)/2 -> 47.8084275 | AH67: 3 | AT67: TK | AU67: 0.2 | AV67: 0.0625 | AW67: 0.0625 | AX67: TRUE | AY67: TRUE | AZ67: TRUE | BB67: 0.2 | BC67: 0.2 | BD67: 0.2 | BE67: TRUE | BF67: TRUE | BG67: TRUE
A68: CW | B68: NO3 66/11KV TRANS | C68: CW #3 | D68: 1963 | E68: 30.69366875 | F68: 31.85703 | G68: 123375 | H68: 0 | I68: 0 | J68: 2 | K68: 9999 | M68: 32 | N68: =IF('Front Page'!$C$9="WEIBULL",_xlfn.WEIBULL.DIST(M68,$L$2,$L$3,FALSE)/(1-_xlfn.WEIBULL.DIST(M68,$L$2,$L$3,TRUE)),IF(M68<$M$35,$L$4*(1-$M$34),$L$4))*$W$15 -> 0.00248907113 | O68: 0.000497814226 | P68: 0.001991256904 | S68: CW #3 | T68: 1963 | U68: 30.69366875 | V68: 31.85703 | W68: 123375 | Z68: 2 | AB68: 1963 | AC68: 20.46885924 | AD68: 21.24819 | AH68: 2 | AT68: VM | AU68: 0.2 | AV68: 0.0625 | AW68: 0.0625 | AX68: TRUE | AY68: TRUE | AZ68: TRUE | BB68: 0.2 | BC68: 0.2 | BD68: 0.2 | BE68: TRUE | BF68: TRUE | BG68: TRUE
A69: DA | B69: NO1 22/11KV TRANS | C69: DA #1 | D69: 2021 | E69: 38.55023203 | F69: 41.86219474 | G69: 0 | H69: 0 | I69: 0 | J69: 2 | K69: 9999 | M69: 33 | N69: =IF('Front Page'!$C$9="WEIBULL",_xlfn.WEIBULL.DIST(M69,$L$2,$L$3,FALSE)/(1-_xlfn.WEIBULL.DIST(M69,$L$2,$L$3,TRUE)),IF(M69<$M$35,$L$4*(1-$M$34),$L$4))*$W$15 -> 0.002622744846 | O69: =N69*$L$5 -> 0.0005245489692 | P69: =N69*$L$6 -> 0.002098195877 | S69: DA #1 | T69: 2021 | U69: 38.55023203 | V69: 41.86219474 | W69: 0 | Z69: 2 | AA69: Note DA TX upgrade information not shown. New No.1 is 66/11 20/27/33MVA 2021 | AB69: 1971 | AC69: 25.70015469 | AD69: 27.90812982 | AH69: 2 | AT69: WA | AU69: 0.2 | AV69: 0.0625 | AW69: 0.0625 | AX69: TRUE | AY69: TRUE | AZ69: TRUE | BB69: 0.06 | BC69: 0.06 | BD69: 0.06 | BE69: TRUE | BF69: TRUE | BG69: TRUE
A70: DA | B70: NO2 22/11KV TRANS | C70: DA #2 | D70: 9999 | E70: 0 | F70: 0 | G70: - | H70: 0 | I70: 0 | J70: 9999 | K70: 9999 | M70: 34 | N70: =IF('Front Page'!$C$9="WEIBULL",_xlfn.WEIBULL.DIST(M70,$L$2,$L$3,FALSE)/(1-_xlfn.WEIBULL.DIST(M70,$L$2,$L$3,TRUE)),IF(M70<$M$35,$L$4*(1-$M$34),$L$4))*$W$15 -> 0.00275928464 | O70: 0.000551856928 | P70: 0.002207427712 | S70: DA #2 | T70: 9999 | U70: 0 | V70: 0 | W70: - | Z70: 9999 | AA70: Note DA TX upgrade information not shown. TX No.2 retired. | AB70: 1971 | AC70: 25.70015469 | AD70: 27.90812982 | AH70: 3 | AT70: WB | AU70: 0.2 | AV70: 0.075 | AW70: 0.075 | AX70: TRUE | AY70: TRUE | AZ70: TRUE | BB70: 0.2 | BC70: 0.07 | BD70: 0.07 | BE70: TRUE | BF70: TRUE | BG70: TRUE
A71: DA | B71: NO3 22/11KV TRANS | C71: DA #3 | D71: 2022 | E71: 38.55023203 | F71: 41.86219474 | G71: 0 | H71: 0 | I71: 0 | J71: 1 | K71: 9999 | M71: 35 | N71: =IF('Front Page'!$C$9="WEIBULL",_xlfn.WEIBULL.DIST(M71,$L$2,$L$3,FALSE)/(1-_xlfn.WEIBULL.DIST(M71,$L$2,$L$3,TRUE)),IF(M71<$M$35,$L$4*(1-$M$34),$L$4))*$W$15 -> 0.002898664954 | O71: 0.0005797329909 | P71: 0.002318931964 | S71: DA #3 | T71: 2022 | U71: 38.55023203 | V71: 41.86219474 | W71: 0 | Z71: 1 | AA71: Note DA TX upgrade information not shown. New No.3 is 66/11 20/27/33MVA 2022 | AB71: 1971 | AC71: 25.70015469 | AD71: 27.90812982 | AH71: 1 | AT71: WG | AU71: 0.2 | AV71: 0.2 | AW71: 0.2 | AX71: TRUE | AY71: TRUE | AZ71: TRUE | BB71: 0.2 | BC71: 0.2 | BD71: 0.2 | BE71: TRUE | BF71: TRUE | BG71: TRUE
A72: DA | B72: NO4 22/11KV TRANS | C72: DA #4 | D72: 9999 | E72: 0 | F72: 0 | G72: - | H72: 0 | I72: 0 | J72: 9999 | K72: 9999 | M72: 36 | N72: =IF('Front Page'!$C$9="WEIBULL",_xlfn.WEIBULL.DIST(M72,$L$2,$L$3,FALSE)/(1-_xlfn.WEIBULL.DIST(M72,$L$2,$L$3,TRUE)),IF(M72<$M$35,$L$4*(1-$M$34),$L$4))*$W$15 -> 0.003040861189 | O72: 0.0006081722379 | P72: 0.002432688952 | S72: DA #4 | T72: 9999 | U72: 0 | V72: 0 | W72: - | Z72: 9999 | AB72: 9999 | AC72: 25.70015469 | AD72: 27.90812982 | AH72: 9999 | AT72: WP | AU72: 0.2 | AV72: TRUE | AW72: TRUE | AX72: TRUE | AY72: TRUE | AZ72: TRUE | BB72: 0.2 | BC72: 0.2 | BD72: 0.2 | BE72: TRUE | BF72: TRUE | BG72: TRUE
A73: E | B73: NO1 66/6.6KV TRANS | C73: E #1 | D73: 1960 | E73: 13.7178424 | F73: 13.7178424 | G73: 4112.5 | H73: 0 | I73: 0 | J73: 1 | K73: 9999 | M73: 37 | N73: =IF('Front Page'!$C$9="WEIBULL",_xlfn.WEIBULL.DIST(M73,$L$2,$L$3,FALSE)/(1-_xlfn.WEIBULL.DIST(M73,$L$2,$L$3,TRUE)),IF(M73<$M$35,$L$4*(1-$M$34),$L$4))*$W$15 -> 0.003185849643 | O73: 0.0006371699287 | P73: 0.002548679715 | S73: E #1 | T73: 1960 | U73: 13.7178424 | V73: 13.7178424 | W73: 4112.5 | Z73: 1 | AB73: 1965 | AC73: 13.7178424 | AD73: 13.7178424 | AH73: 1 | AT73: AC | AU73: TRUE | AV73: 0.2 | AW73: TRUE | AX73: TRUE | AY73: TRUE | AZ73: TRUE | BB73: 0.2 | BC73: 0.2 | BD73: 0.2 | BE73: TRUE | BF73: TRUE | BG73: TRUE
A74: E | B74: NO266/6.6KV TRANS | C74: E #2 | D74: 9999 | E74: 0 | F74: 0 | G74: - | H74: 0 | I74: 0 | J74: 9999 | K74: 9999 | M74: 38 | N74: =IF('Front Page'!$C$9="WEIBULL",_xlfn.WEIBULL.DIST(M74,$L$2,$L$3,FALSE)/(1-_xlfn.WEIBULL.DIST(M74,$L$2,$L$3,TRUE)),IF(M74<$M$35,$L$4*(1-$M$34),$L$4))*$W$15 -> 0.003333607455 | O74: 0.000666721491 | P74: 0.002666885964 | S74: E #2 | T74: 9999 | U74: 0 | V74: 0 | W74: - | Z74: 9999 | AB74: 9999 | AC74: 13.7178424 | AD74: 13.7178424 | AH74: 9999 | AT74: AL | AU74: TRUE | AV74: TRUE | AW74: TRUE | AX74: TRUE | AY74: TRUE | AZ74: TRUE | BB74: 0.2 | BC74: 0.2 | BD74: 0.2 | BE74: TRUE | BF74: TRUE | BG74: TRUE
A75: F | B75: NO1 22/6.6KV TRANS | C75: F #1 | D75: 2011 | E75: 13.7178424 | F75: 13.7178424 | G75: 0 | H75: 0 | I75: 0 | J75: 2 | K75: 9999 | M75: 39 | N75: =IF('Front Page'!$C$9="WEIBULL",_xlfn.WEIBULL.DIST(M75,$L$2,$L$3,FALSE)/(1-_xlfn.WEIBULL.DIST(M75,$L$2,$L$3,TRUE)),IF(M75<$M$35,$L$4*(1-$M$34),$L$4))*$W$15 -> 0.003484112554 | O75: 0.0006968225107 | P75: 0.002787290043 | S75: F #1 | T75: 2011 | U75: 13.7178424 | V75: 13.7178424 | W75: 0 | Z75: 2 | AB75: 1940 | AC75: 13.07792499 | AD75: 13.4657212 | AH75: 2 | AT75: ART | AU75: TRUE | AV75: 0.075 | AW75: TRUE | AX75: TRUE | AY75: TRUE | AZ75: TRUE | BB75: 0.2 | BC75: 0.2 | BD75: 0.2 | BE75: TRUE | BF75: TRUE | BG75: TRUE
A76: F | B76: NO2 22/6.6KV TRANS | C76: F #2 | D76: 9999 | E76: 0 | F76: 0 | G76: - | H76: 0 | I76: 0 | J76: 9999 | K76: 9999 | M76: 40 | N76: =IF('Front Page'!$C$9="WEIBULL",_xlfn.WEIBULL.DIST(M76,$L$2,$L$3,FALSE)/(1-_xlfn.WEIBULL.DIST(M76,$L$2,$L$3,TRUE)),IF(M76<$M$35,$L$4*(1-$M$34),$L$4))*$W$15 -> 0.003637343611 | O76: 0.0007274687221 | P76: 0.002909874888 | S76: F #2 | T76: 9999 | U76: 0 | V76: 0 | W76: - | Z76: 9999 | AB76: 9999 | AC76: 13.07792499 | AD76: 13.4657212 | AH76: 9999 | AT76: BAN | AU76: 0.25 | AV76: 0.125 | AW76: 0.075 | AX76: TRUE | AY76: TRUE | AZ76: TRUE | BB76: 0.2 | BC76: 0.2 | BD76: 0.2 | BE76: TRUE | BF76: TRUE | BG76: TRUE
A77: F | B77: NO3 22/6.6KV TRANS | C77: F #3 | D77: 1957 | E77: 12.43800759 | F77: 13.2136 | G77: 0 | H77: 0 | I77: 0 | J77: 1 | K77: 9999 | M77: 41 | N77: =IF('Front Page'!$C$9="WEIBULL",_xlfn.WEIBULL.DIST(M77,$L$2,$L$3,FALSE)/(1-_xlfn.WEIBULL.DIST(M77,$L$2,$L$3,TRUE)),IF(M77<$M$35,$L$4*(1-$M$34),$L$4))*$W$15 -> 0.003793279997 | O77: 0.0007586559994 | P77: 0.003034623997 | S77: F #3 | T77: 1957 | U77: 12.43800759 | V77: 13.2136 | W77: 0 | Z77: 1 | AB77: 1940 | AC77: 13.07792499 | AD77: 13.4657212 | AH77: 1 | AT77: BAS | AU77: 0.25 | AV77: 0.2 | AW77: 0.2 | AX77: TRUE | AY77: TRUE | AZ77: TRUE | BB77: 0.2 | BC77: 0.2 | BD77: 0.2 | BE77: TRUE | BF77: TRUE | BG77: TRUE
A78: FB | B78: NO1 66/11KV TRANS | C78: FB #1 | D78: 1969 | E78: 30.48409421 | F78: 30.48409421 | G78: 0 | H78: 0 | I78: 0 | J78: 1 | K78: 9999 | M78: 42 | N78: =IF('Front Page'!$C$9="WEIBULL",_xlfn.WEIBULL.DIST(M78,$L$2,$L$3,FALSE)/(1-_xlfn.WEIBULL.DIST(M78,$L$2,$L$3,TRUE)),IF(M78<$M$35,$L$4*(1-$M$34),$L$4))*$W$15 -> 0.003951901743 | O78: 0.0007903803486 | P78: 0.003161521395 | S78: FB #1 | T78: 1969 | U78: 30.48409421 | V78: 30.48409421 | W78: 0 | Z78: 1 | AB78: 1969 | AC78: 30.48409421 | AD78: 30.48409421 | AH78: 1 | AT78: BBD | AU78: 0.2 | AV78: TRUE | AW78: TRUE | AX78: TRUE | AY78: TRUE | AZ78: TRUE | BB78: 0.2 | BC78: 0.2 | BD78: 0.2 | BE78: TRUE | BF78: TRUE | BG78: TRUE
A79: FB | B79: NO2 66/11KV TRANS | C79: FB #2 | D79: 1980 | E79: 30.48409421 | F79: 30.48409421 | G79: 0 | H79: 0 | I79: 0 | J79: 3 | K79: 9999 | M79: 43 | N79: =IF('Front Page'!$C$9="WEIBULL",_xlfn.WEIBULL.DIST(M79,$L$2,$L$3,FALSE)/(1-_xlfn.WEIBULL.DIST(M79,$L$2,$L$3,TRUE)),IF(M79<$M$35,$L$4*(1-$M$34),$L$4))*$W$15 -> 0.004113189504 | O79: 0.0008226379008 | P79: 0.003290551603 | S79: FB #2 | T79: 1980 | U79: 30.48409421 | V79: 30.48409421 | W79: 0 | Z79: 3 | AB79: 1969 | AC79: 30.48409421 | AD79: 30.48409421 | AH79: 3 | AT79: BGO | AU79: 0.2 | AV79: TRUE | AW79: TRUE | AX79: TRUE | AY79: TRUE | AZ79: TRUE | BB79: 0.2 | BC79: TRUE | BD79: TRUE | BE79: TRUE | BF79: TRUE | BG79: TRUE
A80: FB | B80: NO3 66/11KV TRANS | C80: FB #3 | D80: 1969 | E80: 30.48409421 | F80: 30.48409421 | G80: 37012.5 | H80: 0 | I80: 0 | J80: 2 | K80: 9999 | M80: 44 | N80: =IF('Front Page'!$C$9="WEIBULL",_xlfn.WEIBULL.DIST(M80,$L$2,$L$3,FALSE)/(1-_xlfn.WEIBULL.DIST(M80,$L$2,$L$3,TRUE)),IF(M80<$M$35,$L$4*(1-$M$34),$L$4))*$W$15 -> 0.004277124524 | O80: 0.0008554249048 | P80: 0.003421699619 | S80: FB #3 | T80: 1969 | U80: 30.48409421 | V80: 30.48409421 | W80: 37012.5 | Z80: 2 | AB80: 1969 | AC80: 30.48409421 | AD80: 30.48409421 | AH80: 2 | AT80: BMH | AU80: 0.075 | AV80: TRUE | AW80: TRUE | AX80: TRUE | AY80: TRUE | AZ80: TRUE | BB80: 0.2 | BC80: 0.2 | BD80: 0.2 | BE80: TRUE | BF80: TRUE | BG80: TRUE
A81: FB | B81: NO4 66/11KV TRANS | C81: FB #4 | D81: 9999 | E81: 0 | F81: 0 | G81: - | H81: 0 | I81: 0 | J81: 9999 | K81: 9999 | M81: 45 | N81: =IF('Front Page'!$C$9="WEIBULL",_xlfn.WEIBULL.DIST(M81,$L$2,$L$3,FALSE)/(1-_xlfn.WEIBULL.DIST(M81,$L$2,$L$3,TRUE)),IF(M81<$M$35,$L$4*(1-$M$34),$L$4))*$W$15 -> 0.004443688605 | O81: 0.0008887377211 | P81: 0.003554950884 | S81: FB #4 | T81: 9999 | U81: 0 | V81: 0 | W81: - | Z81: 9999 | AB81: 9999 | AC81: 30.48409421 | AD81: 30.48409421 | AH81: 9999 | AT81: CDN | AU81: TRUE | AV81: TRUE | AW81: 0.2 | AX81: TRUE | AY81: TRUE | AZ81: TRUE | BB81: 0.2 | BC81: 0.2 | BD81: 0.2 | BE81: TRUE | BF81: TRUE | BG81: TRUE
A82: FR | B82: NO1 66/11KV TRANS | C82: FR #1 | D82: 1970 | E82: 30.48409421 | F82: 30.48409421 | G82: 0 | H82: 0 | I82: 0 | J82: 1 | K82: 9999 | M82: 46 | N82: =IF('Front Page'!$C$9="WEIBULL",_xlfn.WEIBULL.DIST(M82,$L$2,$L$3,FALSE)/(1-_xlfn.WEIBULL.DIST(M82,$L$2,$L$3,TRUE)),IF(M82<$M$35,$L$4*(1-$M$34),$L$4))*$W$15 -> 0.004612864082 | O82: 0.0009225728164 | P82: 0.003690291265 | S82: FR #1 | T82: 1970 | U82: 30.48409421 | V82: 30.48409421 | W82: 0 | Z82: 1 | AB82: 1970 | AC82: 30.48409421 | AD82: 30.48409421 | AH82: 1 | AT82: CHA | AU82: TRUE | AV82: 0.2 | AW82: TRUE | AX82: TRUE | AY82: TRUE | AZ82: TRUE | BB82: 0.2 | BC82: 0.2 | BD82: 0.2 | BE82: TRUE | BF82: TRUE | BG82: TRUE
A83: FR | B83: NO2 66/11KV TRANS | C83: FR #2 | D83: 1970 | E83: 30.48409421 | F83: 30.48409421 | G83: 0 | H83: 0 | I83: 0 | J83: 2 | K83: 9999 | M83: 47 | N83: =IF('Front Page'!$C$9="WEIBULL",_xlfn.WEIBULL.DIST(M83,$L$2,$L$3,FALSE)/(1-_xlfn.WEIBULL.DIST(M83,$L$2,$L$3,TRUE)),IF(M83<$M$35,$L$4*(1-$M$34),$L$4))*$W$15 -> 0.004784633789 | O83: 0.0009569267578 | P83: 0.003827707031 | S83: FR #2 | T83: 1970 | U83: 30.48409421 | V83: 30.48409421 | W83: 0 | Z83: 2 | AB83: 1970 | AC83: 30.48409421 | AD83: 30.48409421 | AH83: 2 | AT83: CHM | AU83: TRUE | AV83: TRUE | AW83: TRUE | AX83: TRUE | AY83: TRUE | AZ83: TRUE | BB83: 0.2 | BC83: 0.2 | BD83: 0.2 | BE83: TRUE | BF83: TRUE | BG83: TRUE
A84: FR | B84: NO3 66/11KV TRANS | C84: FR #3 | D84: 1973 | E84: 30.48409421 | F84: 30.48409421 | G84: 391.6666667 | H84: 0 | I84: 0 | J84: 3 | K84: 9999 | M84: 48 | N84: =IF('Front Page'!$C$9="WEIBULL",_xlfn.WEIBULL.DIST(M84,$L$2,$L$3,FALSE)/(1-_xlfn.WEIBULL.DIST(M84,$L$2,$L$3,TRUE)),IF(M84<$M$35,$L$4*(1-$M$34),$L$4))*$W$15 -> 0.004958981042 | O84: 0.0009917962083 | P84: 0.003967184833 | S84: FR #3 | T84: 1973 | U84: 30.48409421 | V84: 30.48409421 | W84: 391.6666667 | Z84: 3 | AB84: 1970 | AC84: 30.48409421 | AD84: 30.48409421 | AH84: 3 | AT84: CLC | AU84: 0.0625 | AV84: 0.1125 | AW84: 0.075 | AX84: TRUE | AY84: TRUE | AZ84: TRUE | BB84: 0.2 | BC84: 0.2 | BD84: 0.2 | BE84: TRUE | BF84: TRUE | BG84: TRUE
A85: FR | B85: NO4 66/11KV TRANS | C85: FR #4 | D85: 9999 | E85: 0 | F85: 0 | G85: - | H85: 0 | I85: 0 | J85: 9999 | K85: 9999 | M85: 49 | N85: =IF('Front Page'!$C$9="WEIBULL",_xlfn.WEIBULL.DIST(M85,$L$2,$L$3,FALSE)/(1-_xlfn.WEIBULL.DIST(M85,$L$2,$L$3,TRUE)),IF(M85<$M$35,$L$4*(1-$M$34),$L$4))*$W$15 -> 0.00513588961 | O85: 0.001027177922 | P85: 0.004108711688 | S85: FR #4 | T85: 9999 | U85: 0 | V85: 0 | W85: - | Z85: 9999 | AB85: 9999 | AC85: 30.48409421 | AD85: 30.48409421 | AH85: 9999 | AT85: CME | AU85: 0.2 | AV85: 0.075 | AW85: 0.075 | AX85: TRUE | AY85: TRUE | AZ85: TRUE | BB85: 0.2 | BC85: 0.2 | BD85: 0.2 | BE85: TRUE | BF85: TRUE | BG85: TRUE
A86: JA | B86: NO1 66/11KV TRANS | C86: JA #1 | D86: 1988 | E86: 38.10511777 | F86: 38.10511777 | G86: 0 | H86: 0 | I86: 0 | J86: 1 | K86: 9999 | M86: 50 | N86: =IF('Front Page'!$C$9="WEIBULL",_xlfn.WEIBULL.DIST(M86,$L$2,$L$3,FALSE)/(1-_xlfn.WEIBULL.DIST(M86,$L$2,$L$3,TRUE)),IF(M86<$M$35,$L$4*(1-$M$34),$L$4))*$W$15 -> 0.005315343697 | O86: 0.001063068739 | P86: 0.004252274958 | S86: JA #1 | T86: 1988 | U86: 38.10511777 | V86: 38.10511777 | W86: 0 | Z86: 1 | AB86: 1988 | AC86: 38.10511777 | AD86: 38.10511777 | AH86: 1 | AT86: CMN | AU86: TRUE | AV86: 0.2 | AW86: TRUE | AX86: TRUE | AY86: TRUE | AZ86: TRUE | BB86: 0.2 | BC86: 0.2 | BD86: 0.2 | BE86: TRUE | BF86: TRUE | BG86: TRUE
A87: JA | B87: NO2 66/11KV TRANS | C87: JA #2 | D87: 1988 | E87: 38.10511777 | F87: 38.10511777 | G87: 783.3333333 | H87: 0 | I87: 0 | J87: 2 | K87: 9999 | M87: 51 | N87: =IF('Front Page'!$C$9="WEIBULL",_xlfn.WEIBULL.DIST(M87,$L$2,$L$3,FALSE)/(1-_xlfn.WEIBULL.DIST(M87,$L$2,$L$3,TRUE)),IF(M87<$M$35,$L$4*(1-$M$34),$L$4))*$W$15 -> 0.005497327921 | O87: 0.001099465584 | P87: 0.004397862336 | S87: JA #2 | T87: 1988 | U87: 38.10511777 | V87: 38.10511777 | W87: 783.3333333 | Z87: 2 | AB87: 1988 | AC87: 38.10511777 | AD87: 38.10511777 | AH87: 2 | AT87: COB | AU87: 0.0625 | AV87: TRUE | AW87: TRUE | AX87: TRUE | AY87: TRUE | AZ87: TRUE | BB87: 0.2 | BC87: 0.2 | BD87: 0.2 | BE87: TRUE | BF87: TRUE | BG87: TRUE
A88: JA | B88: NO3 66/11KV TRANS | C88: JA #3 | D88: 2005 | E88: 38.10511777 | F88: 38.10511777 | G88: 0 | H88: 0 | I88: 0 | J88: 3 | K88: 9999 | M88: 52 | N88: =IF('Front Page'!$C$9="WEIBULL",_xlfn.WEIBULL.DIST(M88,$L$2,$L$3,FALSE)/(1-_xlfn.WEIBULL.DIST(M88,$L$2,$L$3,TRUE)),IF(M88<$M$35,$L$4*(1-$M$34),$L$4))*$W$15 -> 0.005681827293 | O88: 0.001136365459 | P88: 0.004545461834 | S88: JA #3 | T88: 2005 | U88: 38.10511777 | V88: 38.10511777 | W88: 0 | Z88: 3 | AB88: 1988 | AC88: 38.10511777 | AD88: 38.10511777 | AH88: 3 | AT88: CRO | AU88: TRUE | AV88: 0.0625 | AW88: TRUE | AX88: TRUE | AY88: TRUE | AZ88: TRUE | BB88: 0.2 | BC88: 0.2 | BD88: 0.2 | BE88: TRUE | BF88: TRUE | BG88: TRUE
A89: JA | B89: NO4 66/11KV TRANS | C89: JA #4 | D89: 9999 | E89: 0 | F89: 0 | G89: - | H89: 0 | I89: 0 | J89: 9999 | K89: 9999 | M89: 53 | N89: =IF('Front Page'!$C$9="WEIBULL",_xlfn.WEIBULL.DIST(M89,$L$2,$L$3,FALSE)/(1-_xlfn.WEIBULL.DIST(M89,$L$2,$L$3,TRUE)),IF(M89<$M$35,$L$4*(1-$M$34),$L$4))*$W$15 -> 0.005868827204 | O89: 0.001173765441 | P89: 0.004695061763 | S89: JA #4 | T89: 9999 | U89: 0 | V89: 0 | W89: - | Z89: 9999 | AB89: 9999 | AC89: 38.10511777 | AD89: 38.10511777 | AH89: 9999 | AT89: CTN | AU89: 0.0625 | AV89: 0.0625 | AW89: 0.0625 | AX89: TRUE | AY89: TRUE | AZ89: TRUE | BB89: 0.2 | BC89: 0.2 | BD89: 0.2 | BE89: TRUE | BF89: TRUE | BG89: TRUE
A90: L | B90: NO1 66/11KV TRANS | C90: L #1 | D90: 1968 | E90: 30.48409421 | F90: 30.48409421 | G90: 685.4166667 | H90: 0 | I90: 0 | J90: 1 | K90: 9999 | M90: 54 | N90: =IF('Front Page'!$C$9="WEIBULL",_xlfn.WEIBULL.DIST(M90,$L$2,$L$3,FALSE)/(1-_xlfn.WEIBULL.DIST(M90,$L$2,$L$3,TRUE)),IF(M90<$M$35,$L$4*(1-$M$34),$L$4))*$W$15 -> 0.006058313404 | O90: 0.001211662681 | P90: 0.004846650723 | S90: L #1 | T90: 1968 | U90: 30.48409421 | V90: 30.48409421 | W90: 685.4166667 | Z90: 1 | AB90: 1969 | AC90: 20.32272948 | AD90: 20.32272948 | AH90: 1 | AT90: DDL | AU90: 0.2 | AV90: TRUE | AW90: TRUE | AX90: TRUE | AY90: TRUE | AZ90: TRUE | BB90: 0.2 | BC90: 0.2 | BD90: 0.2 | BE90: TRUE | BF90: TRUE | BG90: TRUE
A91: L | B91: NO2 66/11KV TRANS | C91: L #2 | D91: 9999 | E91: 0 | F91: 0 | G91: - | H91: 0 | I91: 0 | J91: 9999 | K91: 9999 | M91: 55 | N91: =IF('Front Page'!$C$9="WEIBULL",_xlfn.WEIBULL.DIST(M91,$L$2,$L$3,FALSE)/(1-_xlfn.WEIBULL.DIST(M91,$L$2,$L$3,TRUE)),IF(M91<$M$35,$L$4*(1-$M$34),$L$4))*$W$15 -> 0.006250271988 | O91: 0.001250054398 | P91: 0.00500021759 | S91: L #2 | T91: 9999 | U91: 0 | V91: 0 | W91: - | Z91: 9999 | AB91: 1969 | AC91: 20.32272948 | AD91: 20.32272948 | AH91: 3 | AT91: DLF | AU91: TRUE | AV91: 0.075 | AW91: TRUE | AX91: TRUE | AY91: TRUE | AZ91: TRUE | BB91: 0.2 | BC91: 0.2 | BD91: 0.2 | BE91: TRUE | BF91: TRUE | BG91: TRUE
A92: L | B92: NO3 66/11KV TRANS | C92: L #3 | D92: 1968 | E92: 30.48409421 | F92: 30.48409421 | G92: 881.25 | H92: 0 | I92: 0 | J92: 2 | K92: 9999 | M92: 56 | N92: =IF('Front Page'!$C$9="WEIBULL",_xlfn.WEIBULL.DIST(M92,$L$2,$L$3,FALSE)/(1-_xlfn.WEIBULL.DIST(M92,$L$2,$L$3,TRUE)),IF(M92<$M$35,$L$4*(1-$M$34),$L$4))*$W$15 -> 0.006444689383 | O92: 0.001288937877 | P92: 0.005155751506 | S92: L #3 | T92: 1968 | U92: 30.48409421 | V92: 30.48409421 | W92: 881.25 | Z92: 2 | AB92: 1969 | AC92: 20.32272948 | AD92: 20.32272948 | AH92: 2 | AT92: ECA | AU92: 0.2 | AV92: 0.075 | AW92: 0.075 | AX92: TRUE | AY92: TRUE | AZ92: TRUE | BB92: 0.2 | BC92: 0.2 | BD92: 0.2 | BE92: TRUE | BF92: TRUE | BG92: TRUE
A93: LQ | B93: NO1 66/11KV TRANS | C93: LQ #1 | D93: 1971 | E93: 0 | F93: 0 | G93: 783.3333333 | H93: 0 | I93: 0 | J93: 1 | K93: 9999 | M93: 57 | N93: =IF('Front Page'!$C$9="WEIBULL",_xlfn.WEIBULL.DIST(M93,$L$2,$L$3,FALSE)/(1-_xlfn.WEIBULL.DIST(M93,$L$2,$L$3,TRUE)),IF(M93<$M$35,$L$4*(1-$M$34),$L$4))*$W$15 -> 0.006641552333 | O93: 0.001328310467 | P93: 0.005313241866 | S93: LQ #1 | T93: 1971 | U93: 0 | V93: 0 | W93: 783.3333333 | Z93: 1 | AB93: 1971 | AC93: 25.40341184 | AD93: 25.40341184 | AH93: 1 | AT93: EHK | AU93: TRUE | AV93: 0.2 | AW93: TRUE | AX93: TRUE | AY93: TRUE | AZ93: TRUE | BB93: 0.2 | BC93: 0.2 | BD93: 0.2 | BE93: TRUE | BF93: TRUE | BG93: TRUE
A94: LQ | B94: NO2 66/11KV TRANS | C94: LQ #2 | D94: 1971 | E94: 38.10511777 | F94: 38.10511777 | G94: 0 | H94: 0 | I94: 0 | J94: 2 | K94: 9999 | M94: 58 | N94: =IF('Front Page'!$C$9="WEIBULL",_xlfn.WEIBULL.DIST(M94,$L$2,$L$3,FALSE)/(1-_xlfn.WEIBULL.DIST(M94,$L$2,$L$3,TRUE)),IF(M94<$M$35,$L$4*(1-$M$34),$L$4))*$W$15 -> 0.006840847886 | O94: 0.001368169577 | P94: 0.005472678309 | S94: LQ #2 | T94: 1971 | U94: 38.10511777 | V94: 38.10511777 | W94: 0 | Z94: 2 | AB94: 1971 | AC94: 25.40341184 | AD94: 25.40341184 | AH94: 2 | AT94: FNS | AU94: 0.2 | AV94: 0.2 | AW94: 0.2 | AX94: TRUE | AY94: TRUE | AZ94: TRUE | BB94: 0.2 | BC94: 0.2 | BD94: 0.2 | BE94: TRUE | BF94: TRUE | BG94: TRUE
A95: LQ | B95: NO3 66/11KV TRANS | C95: LQ #3 | D95: 1977 | E95: 38.10511777 | F95: 38.10511777 | G95: 0 | H95: 0 | I95: 0 | J95: 3 | K95: 9999 | M95: 59 | N95: =IF('Front Page'!$C$9="WEIBULL",_xlfn.WEIBULL.DIST(M95,$L$2,$L$3,FALSE)/(1-_xlfn.WEIBULL.DIST(M95,$L$2,$L$3,TRUE)),IF(M95<$M$35,$L$4*(1-$M$34),$L$4))*$W$15 -> 0.007042563381 | O95: 0.001408512676 | P95: 0.005634050705 | S95: LQ #3 | T95: 1977 | U95: 38.10511777 | V95: 38.10511777 | W95: 0 | Z95: 3 | AB95: 1971 | AC95: 25.40341184 | AD95: 25.40341184 | AH95: 3 | AT95: GB | AU95: 0.25 | AV95: 0.25 | AW95: 0.2 | AX95: TRUE | AY95: TRUE | AZ95: TRUE | BB95: 0.2 | BC95: 0.2 | BD95: 0.2 | BE95: TRUE | BF95: TRUE | BG95: TRUE
A96: LQ | B96: NO4 66/11KV TRANS | C96: LQ #4 | D96: 9999 | E96: 0 | F96: 0 | G96: - | H96: 0 | I96: 0 | J96: 9999 | K96: 9999 | M96: 60 | N96: =IF('Front Page'!$C$9="WEIBULL",_xlfn.WEIBULL.DIST(M96,$L$2,$L$3,FALSE)/(1-_xlfn.WEIBULL.DIST(M96,$L$2,$L$3,TRUE)),IF(M96<$M$35,$L$4*(1-$M$34),$L$4))*$W$15 -> 0.007246686441 | O96: 0.001449337288 | P96: 0.005797349152 | S96: LQ #4 | T96: 9999 | U96: 0 | V96: 0 | W96: - | Z96: 9999 | AB96: 9999 | AC96: 25.40341184 | AD96: 25.40341184 | AH96: 9999 | AT96: GCY | AU96: 0.2 | AV96: TRUE | AW96: TRUE | AX96: TRUE | AY96: TRUE | AZ96: TRUE | BB96: 0.2 | BC96: 0.2 | BD96: 0.2 | BE96: TRUE | BF96: TRUE | BG96: TRUE
A97: R22 | B97: No.1 22kV BUS | C97: R22 #1 | G97: 0 | M97: 61 | N97: =IF('Front Page'!$C$9="WEIBULL",_xlfn.WEIBULL.DIST(M97,$L$2,$L$3,FALSE)/(1-_xlfn.WEIBULL.DIST(M97,$L$2,$L$3,TRUE)),IF(M97<$M$35,$L$4*(1-$M$34),$L$4))*$W$15 -> 0.007453204954 | O97: 0.001490640991 | P97: 0.005962563963 | S97: LS #1 | T97: 1968 | U97: 10.89718098 | V97: 11.5345 | W97: 0 | Z97: 2 | AA97: Station retired and OOC end 2022 | AB97: 9999 | AF97: 10000 | AH97: 9999 | AT97: GL | AU97: 0.2 | AV97: TRUE | AW97: TRUE | AX97: TRUE | AY97: TRUE | AZ97: TRUE | BB97: 0.2 | BC97: TRUE | BD97: TRUE | BE97: TRUE | BF97: TRUE | BG97: TRUE
A98: R22 | B98: No.2 22kV BUS | C98: R22 #2 | G98: 0 | M98: 62 | N98: =IF('Front Page'!$C$9="WEIBULL",_xlfn.WEIBULL.DIST(M98,$L$2,$L$3,FALSE)/(1-_xlfn.WEIBULL.DIST(M98,$L$2,$L$3,TRUE)),IF(M98<$M$35,$L$4*(1-$M$34),$L$4))*$W$15 -> 0.007662107071 | O98: 0.001532421414 | P98: 0.006129685657 | S98: LS #2 | T98: 1969 | U98: 10.89909984 | V98: 11.5402 | W98: 0 | Z98: 3 | AA98: Station retired and OOC end 2022 | AB98: 9999 | AF98: 10000 | AH98: 9999 | AT98: GLE | AU98: 0.0625 | AV98: 0.0625 | AW98: 0.2 | AX98: TRUE | AY98: TRUE | AZ98: TRUE | BB98: 0.2 | BC98: 0.2 | BD98: 0.2 | BE98: TRUE | BF98: TRUE | BG98: TRUE
A99: R22 | B99: No.3 22kV BUS | C99: R22 #3 | G99: 0 | M99: 63 | N99: =IF('Front Page'!$C$9="WEIBULL",_xlfn.WEIBULL.DIST(M99,$L$2,$L$3,FALSE)/(1-_xlfn.WEIBULL.DIST(M99,$L$2,$L$3,TRUE)),IF(M99<$M$35,$L$4*(1-$M$34),$L$4))*$W$15 -> 0.007873381193 | O99: 0.001574676239 | P99: 0.006298704954 | S99: LS #3 | T99: 1962 | U99: 12.26340617 | V99: 12.9957 | W99: 0 | Z99: 1 | AA99: Station retired and OOC end 2022 | AB99: 9999 | AF99: 10000 | AH99: 9999 | AT99: GSB | AU99: 0.2 | AV99: TRUE | AW99: TRUE | AX99: TRUE | AY99: TRUE | AZ99: TRUE | BB99: 0.2 | BC99: 0.2 | BD99: 0.2 | BE99: TRUE | BF99: TRUE | BG99: TRUE
A100: R22 | B100: NO4 22/6.6KV TRANS | C100: R22 #4 | G100: 0 | M100: 64 | N100: =IF('Front Page'!$C$9="WEIBULL",_xlfn.WEIBULL.DIST(M100,$L$2,$L$3,FALSE)/(1-_xlfn.WEIBULL.DIST(M100,$L$2,$L$3,TRUE)),IF(M100<$M$35,$L$4*(1-$M$34),$L$4))*$W$15 -> 0.00808701596 | O100: 0.001617403192 | P100: 0.006469612768 | S100: LS #4 | T100: 9999 | U100: 0 | V100: 0 | W100: - | Z100: 9999 | AA100: Station retired and OOC end 2022 | AB100: 9999 | AH100: 9999 | AT100: HSM | AU100: 0.25 | AV100: 0.125 | AW100: 0.075 | AX100: TRUE | AY100: TRUE | AZ100: TRUE | BB100: 0.2 | BC100: 0.2 | BD100: 0.2 | BE100: TRUE | BF100: TRUE | BG100: TRUE
A101: MG | B101: NO1 66/11KV TRANS | C101: MG #1 | D101: 1968 | E101: 30.48409421 | F101: 30.48409421 | G101: =IFERROR(IF(AND(J101=1,ISREFURB=TRUE,A101=ZSS),VLOOKUP($C101,$S$37:$AH$560,5+$G$11,FALSE)*(1-$G$35),VLOOKUP($C101,$S$37:$AH$560,5+$G$11,FALSE)),0) -> 4112.5 | H101: 0 | I101: 0 | J101: 2 | K101: =IF(AND(J101=9999,IS_ADDITIONAL=TRUE,A101=ZSS),$K$35,IF(AND(OR(ISREPLACE=TRUE,ISREPLACETWO=TRUE,ISREPLACETHREE=TRUE),J101=1,A101=ZSS),$K$35,IF(AND(OR(ISREPLACETWO=TRUE,ISREPLACETHREE=TRUE),J101=2,A101=ZSS),$K$35,IF(AND(J101=3,ISREPLACETHREE=TRUE,A101=ZSS),$K$35,9999)))) -> 9999 | M101: 65 | N101: =IF('Front Page'!$C$9="WEIBULL",_xlfn.WEIBULL.DIST(M101,$L$2,$L$3,FALSE)/(1-_xlfn.WEIBULL.DIST(M101,$L$2,$L$3,TRUE)),IF(M101<$M$35,$L$4*(1-$M$34),$L$4))*$W$15 -> 0.008303000245 | O101: =N101*$L$5 -> 0.001660600049 | P101: =N101*$L$6 -> 0.006642400196 | S101: MG #1 | T101: 1968 | U101: 30.48409421 | V101: 30.48409421 | W101: 4112.5 | Z101: 2 | AB101: 1968 | AC101: 30.48409421 | AD101: 30.48409421 | AH101: 2 | AT101: HTN | AU101: 0.2 | AV101: 0.0625 | AW101: 0.0625 | AX101: TRUE | AY101: TRUE | AZ101: TRUE | BB101: 0.2 | BC101: 0.2 | BD101: 0.2 | BE101: TRUE | BF101: TRUE | BG101: TRUE
A102: MG | B102: NO2 66/11KV TRANS | C102: MG #2 | D102: =VLOOKUP($C102,$S$37:$AH$560,2+$G$11,FALSE) -> 1968 | E102: =VLOOKUP($C102,$S$37:$AH$560,3+$G$11,FALSE) -> 30.48409421 | F102: =VLOOKUP($C102,$S$37:$AH$560,4+$G$11,FALSE) -> 30.48409421 | G102: 7050 | H102: =VLOOKUP($C102,$S$37:$AH$560,6+$G$11,FALSE) -> 0 | I102: =VLOOKUP($C102,$S$37:$AH$560,7+$G$11,FALSE) -> 0 | J102: =VLOOKUP($C102,$S$37:$AH$560,8+$G$11,FALSE) -> 3 | K102: 9999 | M102: 66 | N102: =IF('Front Page'!$C$9="WEIBULL",_xlfn.WEIBULL.DIST(M102,$L$2,$L$3,FALSE)/(1-_xlfn.WEIBULL.DIST(M102,$L$2,$L$3,TRUE)),IF(M102<$M$35,$L$4*(1-$M$34),$L$4))*$W$15 -> 0.008521323144 | O102: 0.001704264629 | P102: 0.006817058515 | S102: MG #2 | T102: 1968 | U102: 30.48409421 | V102: 30.48409421 | W102: 7050 | Z102: 3 | AB102: 1968 | AC102: 30.48409421 | AD102: 30.48409421 | AH102: 3 | AT102: KRT | AU102: 0.2 | AV102: 0.075 | AW102: 0.075 | AX102: TRUE | AY102: TRUE | AZ102: TRUE | BB102: 0.2 | BC102: 0.2 | BD102: 0.2 | BE102: TRUE | BF102: TRUE | BG102: TRUE
A103: MG | B103: NO3 66/11KV TRANS | C103: MG #3 | D103: 1962 | E103: 30.48409421 | F103: 30.48409421 | G103: 1175 | H103: 0 | I103: 0 | J103: 1 | K103: 9999 | M103: 67 | N103: =IF('Front Page'!$C$9="WEIBULL",_xlfn.WEIBULL.DIST(M103,$L$2,$L$3,FALSE)/(1-_xlfn.WEIBULL.DIST(M103,$L$2,$L$3,TRUE)),IF(M103<$M$35,$L$4*(1-$M$34),$L$4))*$W$15 -> 0.00874197397 | O103: 0.001748394794 | P103: 0.006993579176 | S103: MG #3 | T103: 1962 | U103: 30.48409421 | V103: 30.48409421 | W103: 1175 | Z103: 1 | AB103: 1968 | AC103: 30.48409421 | AD103: 30.48409421 | AH103: 1 | AT103: KYM | AU103: 0.125 | AV103: 0.25 | AW103: 0.075 | AX103: TRUE | AY103: TRUE | AZ103: TRUE | BB103: 0.2 | BC103: 0.2 | BD103: 0.2 | BE103: TRUE | BF103: TRUE | BG103: TRUE
A104: MG | B104: NO4 66/11KV TRANS | C104: MG #4 | D104: 9999 | E104: 0 | F104: 0 | G104: - | H104: 0 | I104: 0 | J104: 9999 | K104: 9999 | M104: 68 | N104: =IF('Front Page'!$C$9="WEIBULL",_xlfn.WEIBULL.DIST(M104,$L$2,$L$3,FALSE)/(1-_xlfn.WEIBULL.DIST(M104,$L$2,$L$3,TRUE)),IF(M104<$M$35,$L$4*(1-$M$34),$L$4))*$W$15 -> 0.008964942245 | O104: 0.001792988449 | P104: 0.007171953796 | S104: MG #4 | T104: 9999 | U104: 0 | V104: 0 | W104: - | Z104: 9999 | AB104: 9999 | AC104: 30.48409421 | AD104: 30.48409421 | AH104: 9999 | AT104: LV | AU104: 0.075 | AV104: 0.125 | AW104: 0.075 | AX104: TRUE | AY104: TRUE | AZ104: TRUE | BB104: 0.2 | BC104: 0.2 | BD104: 0.2 | BE104: TRUE | BF104: TRUE | BG104: TRUE
A105: MP | B105: NO1 66/11KV TRANS | C105: MP #1 | D105: 1994 | E105: 38.10511777 | F105: 38.10511777 | G105: 0 | H105: 0 | I105: 0 | J105: 3 | K105: 9999 | M105: 69 | N105: =IF('Front Page'!$C$9="WEIBULL",_xlfn.WEIBULL.DIST(M105,$L$2,$L$3,FALSE)/(1-_xlfn.WEIBULL.DIST(M105,$L$2,$L$3,TRUE)),IF(M105<$M$35,$L$4*(1-$M$34),$L$4))*$W$15 -> 0.00919021769 | O105: 0.001838043538 | P105: 0.007352174152 | S105: MP #1 | T105: 1994 | U105: 38.10511777 | V105: 38.10511777 | W105: 0 | Z105: 3 | AB105: 1976 | AC105: 38.10511777 | AD105: 38.10511777 | AH105: 3 | AT105: LVN | AU105: TRUE | AV105: 0.2 | AW105: TRUE | AX105: TRUE | AY105: 0.075 | AZ105: 0.075 | BB105: 0.2 | BC105: 0.2 | BD105: 0.2 | BE105: TRUE | BF105: TRUE | BG105: TRUE
A106: MP | B106: NO2 66/11KV TRANS | C106: MP #2 | D106: 1978 | E106: 38.10511777 | F106: 38.10511777 | G106: 0 | H106: 0 | I106: 0 | J106: 1 | K106: 9999 | M106: 70 | N106: =IF('Front Page'!$C$9="WEIBULL",_xlfn.WEIBULL.DIST(M106,$L$2,$L$3,FALSE)/(1-_xlfn.WEIBULL.DIST(M106,$L$2,$L$3,TRUE)),IF(M106<$M$35,$L$4*(1-$M$34),$L$4))*$W$15 -> 0.009417790222 | O106: 0.001883558044 | P106: 0.007534232178 | S106: MP #2 | T106: 1978 | U106: 38.10511777 | V106: 38.10511777 | W106: 0 | Z106: 1 | AB106: 1976 | AC106: 38.10511777 | AD106: 38.10511777 | AH106: 1 | AT106: MBN | AU106: 0.2 | AV106: 0.0625 | AW106: 0.0625 | AX106: TRUE | AY106: TRUE | AZ106: TRUE | BB106: 0.2 | BC106: 0.2 | BD106: 0.2 | BE106: TRUE | BF106: TRUE | BG106: TRUE
A107: MP | B107: NO3 66/11KV TRANS | C107: MP #3 | D107: 1978 | E107: 38.10511777 | F107: 38.10511777 | G107: 0 | H107: 0 | I107: 0 | J107: 2 | K107: 9999 | M107: 71 | N107: =IF('Front Page'!$C$9="WEIBULL",_xlfn.WEIBULL.DIST(M107,$L$2,$L$3,FALSE)/(1-_xlfn.WEIBULL.DIST(M107,$L$2,$L$3,TRUE)),IF(M107<$M$35,$L$4*(1-$M$34),$L$4))*$W$15 -> 0.009647649947 | O107: 0.001929529989 | P107: 0.007718119958 | S107: MP #3 | T107: 1978 | U107: 38.10511777 | V107: 38.10511777 | W107: 0 | Z107: 2 | AB107: 1976 | AC107: 38.10511777 | AD107: 38.10511777 | AH107: 2 | AT107: MDA | AU107: TRUE | AV107: TRUE | AW107: 0.2 | AX107: TRUE | AY107: TRUE | AZ107: TRUE | BB107: 0.2 | BC107: 0.2 | BD107: 0.2 | BE107: TRUE | BF107: TRUE | BG107: TRUE
A108: MP | B108: NO4 66/11KV TRANS | C108: MP #4 | D108: 9999 | E108: 0 | F108: 0 | G108: - | H108: 0 | I108: 0 | J108: 9999 | K108: 9999 | M108: 72 | N108: =IF('Front Page'!$C$9="WEIBULL",_xlfn.WEIBULL.DIST(M108,$L$2,$L$3,FALSE)/(1-_xlfn.WEIBULL.DIST(M108,$L$2,$L$3,TRUE)),IF(M108<$M$35,$L$4*(1-$M$34),$L$4))*$W$15 -> 0.009879787153 | O108: 0.001975957431 | P108: 0.007903829722 | S108: MP #4 | T108: 9999 | U108: 0 | V108: 0 | W108: - | Z108: 9999 | AB108: 9999 | AC108: 38.10511777 | AD108: 38.10511777 | AH108: 9999 | AT108: MLN | AU108: 0.2 | AV108: 0.0625 | AW108: 0.0625 | AX108: TRUE | AY108: TRUE | AZ108: TRUE | BB108: 0.2 | BC108: 0.2 | BD108: 0.2 | BE108: TRUE | BF108: TRUE | BG108: TRUE
A109: NC | B109: NO1 66/11KV TRANS | C109: NC #1 | D109: 1967 | E109: 30.48409421 | F109: 30.48409421 | G109: 4817.5 | H109: 0 | I109: 0 | J109: 1 | K109: 9999 | M109: 73 | N109: =IF('Front Page'!$C$9="WEIBULL",_xlfn.WEIBULL.DIST(M109,$L$2,$L$3,FALSE)/(1-_xlfn.WEIBULL.DIST(M109,$L$2,$L$3,TRUE)),IF(M109<$M$35,$L$4*(1-$M$34),$L$4))*$W$15 -> 0.0101141923 | O109: 0.00202283846 | P109: 0.008091353841 | S109: NC #1 | T109: 1967 | U109: 30.48409421 | V109: 30.48409421 | W109: 4817.5 | Z109: 1 | AB109: 1967 | AC109: 30.48409421 | AD109: 30.48409421 | AH109: 1 | AT109: MNA | AU109: 0.25 | AV109: TRUE | AW109: TRUE | AX109: TRUE | AY109: TRUE | AZ109: TRUE | BB109: 0.2 | BC109: 0.2 | BD109: 0.2 | BE109: TRUE | BF109: TRUE | BG109: TRUE
A110: NC | B110: NO2 66/11KV TRANS | C110: NC #2 | D110: 1967 | E110: 30.48409421 | F110: 30.48409421 | G110: 1175 | H110: 0 | I110: 0 | J110: 2 | K110: 9999 | M110: 74 | N110: =IF('Front Page'!$C$9="WEIBULL",_xlfn.WEIBULL.DIST(M110,$L$2,$L$3,FALSE)/(1-_xlfn.WEIBULL.DIST(M110,$L$2,$L$3,TRUE)),IF(M110<$M$35,$L$4*(1-$M$34),$L$4))*$W$15 -> 0.01035085603 | O110: 0.002070171206 | P110: 0.008280684823 | S110: NC #2 | T110: 1967 | U110: 30.48409421 | V110: 30.48409421 | W110: 1175 | Z110: 2 | AB110: 1967 | AC110: 30.48409421 | AD110: 30.48409421 | AH110: 2 | AT110: MRO | AU110: TRUE | AV110: 0.2 | AW110: TRUE | AX110: TRUE | AY110: TRUE | AZ110: TRUE | BB110: 0.2 | BC110: 0.2 | BD110: 0.2 | BE110: TRUE | BF110: TRUE | BG110: TRUE
A111: NC | B111: NO3 66/11KV TRANS | C111: NC #3 | D111: 9999 | E111: 0 | F111: 0 | G111: - | H111: 0 | I111: 0 | J111: 9999 | K111: 9999 | M111: 75 | N111: =IF('Front Page'!$C$9="WEIBULL",_xlfn.WEIBULL.DIST(M111,$L$2,$L$3,FALSE)/(1-_xlfn.WEIBULL.DIST(M111,$L$2,$L$3,TRUE)),IF(M111<$M$35,$L$4*(1-$M$34),$L$4))*$W$15 -> 0.01058976913 | O111: 0.002117953827 | P111: 0.008471815307 | S111: NC #3 | T111: 9999 | U111: 0 | V111: 0 | W111: - | Z111: 9999 | AB111: 9999 | AC111: 30.48409421 | AD111: 30.48409421 | AH111: 9999 | AT111: NHL | AU111: 0.2 | AV111: TRUE | AW111: TRUE | AX111: TRUE | AY111: TRUE | AZ111: TRUE | BB111: 0.2 | BC111: 0.2 | BD111: 0.2 | BE111: TRUE | BF111: TRUE | BG111: TRUE
A112: NR | B112: NO1 66/11KV TRANS | C112: NR #1 | D112: 1958 | E112: 29.1697539 | F112: 30.63172 | G112: 35250 | H112: 0 | I112: 0 | J112: 1 | K112: 9999 | M112: 76 | N112: =IF('Front Page'!$C$9="WEIBULL",_xlfn.WEIBULL.DIST(M112,$L$2,$L$3,FALSE)/(1-_xlfn.WEIBULL.DIST(M112,$L$2,$L$3,TRUE)),IF(M112<$M$35,$L$4*(1-$M$34),$L$4))*$W$15 -> 0.01083092258 | O112: 0.002166184515 | P112: 0.00866473806 | S112: NR #1 | T112: 1958 | U112: 29.1697539 | V112: 30.63172 | W112: 35250 | Z112: 1 | AB112: 1965 | AC112: 29.09455583 | AD112: 30.61271333 | AH112: 1 | AT112: NKA | AU112: 0.0625 | AV112: 0.2 | AW112: 0.0625 | AX112: TRUE | AY112: TRUE | AZ112: TRUE | BB112: 0.2 | BC112: 0.2 | BD112: 0.2 | BE112: TRUE | BF112: TRUE | BG112: TRUE
A113: NR | B113: NO2 66/11KV TRANS | C113: NR #2 | D113: 1958 | E113: 29.17401039 | F113: 30.62136 | G113: 141000 | H113: 0 | I113: 0 | J113: 2 | K113: 9999 | M113: 77 | N113: =IF('Front Page'!$C$9="WEIBULL",_xlfn.WEIBULL.DIST(M113,$L$2,$L$3,FALSE)/(1-_xlfn.WEIBULL.DIST(M113,$L$2,$L$3,TRUE)),IF(M113<$M$35,$L$4*(1-$M$34),$L$4))*$W$15 -> 0.01107430747 | O113: 0.002214861494 | P113: 0.008859445976 | S113: NR #2 | T113: 1958 | U113: 29.17401039 | V113: 30.62136 | W113: 141000 | Z113: 2 | AB113: 1965 | AC113: 29.09455583 | AD113: 30.61271333 | AH113: 2 | AT113: OYN | AU113: 0.2 | AV113: TRUE | AW113: TRUE | AX113: TRUE | AY113: TRUE | AZ113: TRUE | BB113: 0.2 | BC113: 0.2 | BD113: 0.2 | BE113: TRUE | BF113: TRUE | BG113: TRUE
A114: NR | B114: NO3 66/11KV TRANS | C114: NR #3 | D114: 2000 | E114: 28.93990322 | F114: 30.58506 | G114: 0 | H114: 0 | I114: 0 | J114: 3 | K114: 9999 | M114: 78 | N114: =IF('Front Page'!$C$9="WEIBULL",_xlfn.WEIBULL.DIST(M114,$L$2,$L$3,FALSE)/(1-_xlfn.WEIBULL.DIST(M114,$L$2,$L$3,TRUE)),IF(M114<$M$35,$L$4*(1-$M$34),$L$4))*$W$15 -> 0.01131991508 | O114: 0.002263983017 | P114: 0.009055932067 | S114: NR #3 | T114: 2000 | U114: 28.93990322 | V114: 30.58506 | W114: 0 | Z114: 3 | AB114: 2018 | AC114: 29.09455583 | AD114: 30.61271333 | AH114: 3 | AT114: PLD | AU114: TRUE | AV114: TRUE | AW114: 0.2 | AX114: TRUE | AY114: TRUE | AZ114: TRUE | BB114: 0.2 | BC114: 0.2 | BD114: 0.2 | BE114: TRUE | BF114: TRUE | BG114: TRUE
A115: NR | B115: NO4 66/11KV TRANS | C115: NR #4 | D115: 9999 | E115: 0 | F115: 0 | G115: - | H115: 0 | I115: 0 | J115: 9999 | K115: 9999 | M115: 79 | N115: =IF('Front Page'!$C$9="WEIBULL",_xlfn.WEIBULL.DIST(M115,$L$2,$L$3,FALSE)/(1-_xlfn.WEIBULL.DIST(M115,$L$2,$L$3,TRUE)),IF(M115<$M$35,$L$4*(1-$M$34),$L$4))*$W$15 -> 0.01156773683 | O115: 0.002313547366 | P115: 0.009254189462 | S115: NR #4 | T115: 9999 | U115: 0 | V115: 0 | W115: - | Z115: 9999 | AB115: 9999 | AC115: 29.09455583 | AD115: 30.61271333 | AH115: 9999 | AT115: RVL | AU115: 0.2 | AV115: 0.075 | AW115: 0.075 | AX115: TRUE | AY115: TRUE | AZ115: TRUE | BB115: 0.2 | BC115: 0.2 | BD115: 0.2 | BE115: TRUE | BF115: TRUE | BG115: TRUE
A116: PM | B116: NO1 66/6.6KV TRANS | C116: PM #1 | D116: 9999 | E116: 0 | F116: 0 | G116: - | H116: 0 | I116: 0 | J116: 9999 | K116: 9999 | M116: 80 | N116: =IF('Front Page'!$C$9="WEIBULL",_xlfn.WEIBULL.DIST(M116,$L$2,$L$3,FALSE)/(1-_xlfn.WEIBULL.DIST(M116,$L$2,$L$3,TRUE)),IF(M116<$M$35,$L$4*(1-$M$34),$L$4))*$W$15 -> 0.01181776426 | O116: 0.002363552851 | P116: 0.009454211405 | S116: PM #1 | T116: 9999 | U116: 0 | V116: 0 | W116: - | Z116: 9999 | AB116: 9999 | AC116: 13.7178424 | AD116: 13.7178424 | AH116: 9999 | AT116: SA | AU116: 0.2 | AV116: 0.0625 | AW116: 0.0625 | AX116: TRUE | AY116: TRUE | AZ116: TRUE | BB116: 0.2 | BC116: 0.2 | BD116: 0.2 | BE116: TRUE | BF116: TRUE | BG116: TRUE
A117: PM | B117: NO2 66/6.6KV TRANS | C117: PM #2 | D117: 1960 | E117: 13.7178424 | F117: 13.7178424 | G117: 2966.875 | H117: 0 | I117: 0 | J117: 1 | K117: 9999 | M117: 81 | N117: =IF('Front Page'!$C$9="WEIBULL",_xlfn.WEIBULL.DIST(M117,$L$2,$L$3,FALSE)/(1-_xlfn.WEIBULL.DIST(M117,$L$2,$L$3,TRUE)),IF(M117<$M$35,$L$4*(1-$M$34),$L$4))*$W$15 -> 0.01206998906 | O117: 0.002413997812 | P117: 0.009655991249 | S117: PM #2 | T117: 1960 | U117: 13.7178424 | V117: 13.7178424 | W117: 2966.875 | Z117: 1 | AB117: 1962 | AC117: 13.7178424 | AD117: 13.7178424 | AH117: 1 | AT117: SHL | AU117: 0.125 | AV117: 0.25 | AW117: 0.075 | AX117: TRUE | AY117: TRUE | AZ117: TRUE | BB117: 0.2 | BC117: 0.2 | BD117: 0.2 | BE117: TRUE | BF117: TRUE | BG117: TRUE
A118: PM | B118: NO3 66/6.6KV TRANS | C118: PM #3 | D118: 1961 | E118: 13.7178424 | F118: 13.7178424 | G118: 2937.5 | H118: 0 | I118: 0 | J118: 2 | K118: 9999 | M118: 82 | N118: =IF('Front Page'!$C$9="WEIBULL",_xlfn.WEIBULL.DIST(M118,$L$2,$L$3,FALSE)/(1-_xlfn.WEIBULL.DIST(M118,$L$2,$L$3,TRUE)),IF(M118<$M$35,$L$4*(1-$M$34),$L$4))*$W$15 -> 0.01232440307 | O118: 0.002464880614 | P118: 0.009859522456 | S118: PM #3 | T118: 1961 | U118: 13.7178424 | V118: 13.7178424 | W118: 2937.5 | Z118: 2 | AB118: 1962 | AC118: 13.7178424 | AD118: 13.7178424 | AH118: 2 | AT118: SHN | AU118: 0.2 | AV118: TRUE | AW118: TRUE | AX118: TRUE | AY118: TRUE | AZ118: TRUE | BB118: 0.2 | BC118: 0.2 | BD118: 0.2 | BE118: TRUE | BF118: TRUE | BG118: TRUE
A119: Q | B119: NO1 66/11KV TRANS | C119: Q #1 | D119: 1967 | E119: 30.48409421 | F119: 30.48409421 | G119: 0 | H119: 0 | I119: 0 | J119: 1 | K119: 9999 | M119: 83 | N119: =IF('Front Page'!$C$9="WEIBULL",_xlfn.WEIBULL.DIST(M119,$L$2,$L$3,FALSE)/(1-_xlfn.WEIBULL.DIST(M119,$L$2,$L$3,TRUE)),IF(M119<$M$35,$L$4*(1-$M$34),$L$4))*$W$15 -> 0.01258099824 | O119: 0.002516199647 | P119: 0.01006479859 | S119: Q #1 | T119: 1967 | U119: 30.48409421 | V119: 30.48409421 | W119: 0 | Z119: 1 | AB119: 1968 | AC119: 30.48409421 | AD119: 30.48409421 | AH119: 1 | AT119: SHP | AU119: 0.075 | AV119: TRUE | AW119: TRUE | AX119: TRUE | AY119: TRUE | AZ119: TRUE | BB119: 0.2 | BC119: 0.2 | BD119: 0.2 | BE119: TRUE | BF119: TRUE | BG119: TRUE
A120: Q | B120: NO2 66/11KV TRANS | C120: Q #2 | D120: 9999 | E120: 0 | F120: 0 | G120: - | H120: 0 | I120: 0 | J120: 9999 | K120: 9999 | M120: 84 | N120: =IF('Front Page'!$C$9="WEIBULL",_xlfn.WEIBULL.DIST(M120,$L$2,$L$3,FALSE)/(1-_xlfn.WEIBULL.DIST(M120,$L$2,$L$3,TRUE)),IF(M120<$M$35,$L$4*(1-$M$34),$L$4))*$W$15 -> 0.01283976664 | O120: 0.002567953329 | P120: 0.01027181332 | S120: Q #2 | T120: 9999 | U120: 0 | V120: 0 | W120: - | Z120: 9999 | AB120: 9999 | AC120: 30.48409421 | AD120: 30.48409421 | AH120: 9999 | AT120: SSE | AU120: 0.2 | AV120: 0.2 | AW120: 0.2 | AX120: TRUE | AY120: TRUE | AZ120: TRUE | BB120: 0.2 | BC120: 0.2 | BD120: 0.2 | BE120: TRUE | BF120: TRUE | BG120: TRUE
A121: Q | B121: NO3 66/11KV TRANS | C121: Q #3 | D121: 1967 | E121: 30.48409421 | F121: 30.48409421 | G121: 0 | H121: 0 | I121: 0 | J121: 2 | K121: 9999 | M121: 85 | N121: =IF('Front Page'!$C$9="WEIBULL",_xlfn.WEIBULL.DIST(M121,$L$2,$L$3,FALSE)/(1-_xlfn.WEIBULL.DIST(M121,$L$2,$L$3,TRUE)),IF(M121<$M$35,$L$4*(1-$M$34),$L$4))*$W$15 -> 0.0131007005 | O121: 0.0026201401 | P121: 0.0104805604 | S121: Q #3 | T121: 1967 | U121: 30.48409421 | V121: 30.48409421 | W121: 0 | Z121: 2 | AB121: 1968 | AC121: 30.48409421 | AD121: 30.48409421 | AH121: 2 | AT121: STL | AU121: TRUE | AV121: TRUE | AW121: 0.2 | AX121: TRUE | AY121: TRUE | AZ121: TRUE | BB121: 0.2 | BC121: 0.2 | BD121: 0.2 | BE121: TRUE | BF121: TRUE | BG121: TRUE
A122: R | B122: NO1 22/11KV TRANS | C122: R #1 | D122: 1957 | E122: 16.4434 | F122: 16.87616 | G122: 6345 | H122: 0 | I122: 0 | J122: =VLOOKUP($C122,$S$37:$AH$560,8+$G$11,FALSE) -> 2 | K122: 9999 | M122: 86 | N122: =IF('Front Page'!$C$9="WEIBULL",_xlfn.WEIBULL.DIST(M122,$L$2,$L$3,FALSE)/(1-_xlfn.WEIBULL.DIST(M122,$L$2,$L$3,TRUE)),IF(M122<$M$35,$L$4*(1-$M$34),$L$4))*$W$15 -> 0.01336379213 | O122: 0.002672758425 | P122: 0.0106910337 | S122: R #1 | T122: 1957 | U122: 16.4434 | V122: 16.87616 | W122: 6345 | Z122: 2 | AB122: 1954 | AC122: 24.95206429 | AD122: 26.34588 | AF122: 10000 | AH122: 2 | AT122: STN | AU122: 0.075 | AV122: 0.0625 | AW122: 0.0625 | AX122: TRUE | AY122: TRUE | AZ122: TRUE | BB122: 0.2 | BC122: 0.2 | BD122: 0.2 | BE122: TRUE | BF122: TRUE | BG122: TRUE
A123: R | B123: NO2 22/11KV TRANS | C123: R #2 | D123: 1954 | E123: 16.4434 | F123: 16.87616 | G123: 6345 | H123: 0 | I123: 0 | J123: 1 | K123: 9999 | M123: 87 | N123: =IF('Front Page'!$C$9="WEIBULL",_xlfn.WEIBULL.DIST(M123,$L$2,$L$3,FALSE)/(1-_xlfn.WEIBULL.DIST(M123,$L$2,$L$3,TRUE)),IF(M123<$M$35,$L$4*(1-$M$34),$L$4))*$W$15 -> 0.01362903397 | O123: 0.002725806793 | P123: 0.01090322717 | S123: R #2 | T123: 1954 | U123: 16.4434 | V123: 16.87616 | W123: 6345 | Z123: 1 | AB123: 1954 | AC123: 24.95206429 | AD123: 26.34588 | AF123: 10000 | AH123: 1 | AT123: SU | AU123: 0.075 | AV123: 0.2 | AW123: 0.075 | AX123: TRUE | AY123: TRUE | AZ123: TRUE | BB123: 0.2 | BC123: 0.2 | BD123: 0.2 | BE123: TRUE | BF123: TRUE | BG123: TRUE
A124: R | B124: NO3 22KV / 11 KV TRANS | C124: R #3 | D124: 2008 | E124: 17.01732859 | F124: 18.93944 | G124: 0 | H124: 0 | I124: 0 | J124: 3 | K124: 9999 | M124: 88 | N124: =IF('Front Page'!$C$9="WEIBULL",_xlfn.WEIBULL.DIST(M124,$L$2,$L$3,FALSE)/(1-_xlfn.WEIBULL.DIST(M124,$L$2,$L$3,TRUE)),IF(M124<$M$35,$L$4*(1-$M$34),$L$4))*$W$15 -> 0.01389641858 | O124: 0.002779283715 | P124: 0.01111713486 | S124: R #3 | T124: 2008 | U124: 17.01732859 | V124: 18.93944 | W124: 0 | Z124: 3 | AB124: 1954 | AC124: 24.95206429 | AD124: 26.34588 | AF124: 10000 | AH124: 3 | AT124: TNA | AU124: 0.2 | AV124: 0.075 | AW124: 0.075 | AX124: TRUE | AY124: TRUE | AZ124: TRUE | BB124: 0.2 | BC124: 0.2 | BD124: 0.2 | BE124: TRUE | BF124: TRUE | BG124: TRUE
A125: R | B125: NO4 22KV / 11 KV TRANS | C125: R #4 | D125: 9999 | E125: 0 | F125: 0 | G125: - | H125: 0 | I125: 0 | J125: 9999 | K125: 9999 | M125: 89 | N125: =IF('Front Page'!$C$9="WEIBULL",_xlfn.WEIBULL.DIST(M125,$L$2,$L$3,FALSE)/(1-_xlfn.WEIBULL.DIST(M125,$L$2,$L$3,TRUE)),IF(M125<$M$35,$L$4*(1-$M$34),$L$4))*$W$15 -> 0.01416593862 | O125: 0.002833187724 | P125: 0.0113327509 | S125: R #4 | T125: 9999 | U125: 0 | V125: 0 | W125: - | Z125: 9999 | AB125: 9999 | AC125: 24.95206429 | AD125: 26.34588 | AH125: 9999 | AT125: TRG | AU125: 0.0625 | AV125: TRUE | AW125: TRUE | AX125: TRUE | AY125: TRUE | AZ125: TRUE | BB125: 0.2 | BC125: 0.2 | BD125: 0.2 | BE125: TRUE | BF125: TRUE | BG125: TRUE
A126: RD | B126: NO1 66/11KV TRANS | C126: RD #1 | D126: 1968 | E126: 30.48409421 | F126: 30.48409421 | G126: 0 | H126: 0 | I126: 0 | J126: 1 | K126: 9999 | M126: 90 | N126: =IF('Front Page'!$C$9="WEIBULL",_xlfn.WEIBULL.DIST(M126,$L$2,$L$3,FALSE)/(1-_xlfn.WEIBULL.DIST(M126,$L$2,$L$3,TRUE)),IF(M126<$M$35,$L$4*(1-$M$34),$L$4))*$W$15 -> 0.01443758687 | O126: 0.002887517375 | P126: 0.0115500695 | S126: RD #1 | T126: 1968 | U126: 30.48409421 | V126: 30.48409421 | W126: 0 | Z126: 1 | AB126: 1968 | AC126: 30.48409421 | AD126: 30.48409421 | AH126: 1 | AT126: WBE | AU126: 0.2 | AV126: 0.075 | AW126: 0.075 | AX126: TRUE | AY126: TRUE | AZ126: TRUE | BB126: 0.2 | BC126: 0.2 | BD126: 0.2 | BE126: TRUE | BF126: TRUE | BG126: TRUE
A127: RD | B127: NO2 66/11KV TRANS | C127: RD #2 | D127: 1968 | E127: 30.48409421 | F127: 30.48409421 | G127: 0 | H127: 0 | I127: 0 | J127: 2 | K127: 9999 | M127: 91 | N127: =IF('Front Page'!$C$9="WEIBULL",_xlfn.WEIBULL.DIST(M127,$L$2,$L$3,FALSE)/(1-_xlfn.WEIBULL.DIST(M127,$L$2,$L$3,TRUE)),IF(M127<$M$35,$L$4*(1-$M$34),$L$4))*$W$15 -> 0.01471135621 | O127: 0.002942271243 | P127: 0.01176908497 | S127: RD #2 | T127: 1968 | U127: 30.48409421 | V127: 30.48409421 | W127: 0 | Z127: 2 | AB127: 1968 | AC127: 30.48409421 | AD127: 30.48409421 | AH127: 2 | AT127: WBL | AU127: 0.1875 | AV127: 0.0625 | AW127: 0.0625 | AX127: TRUE | AY127: TRUE | AZ127: TRUE | BB127: 0.2 | BC127: 0.2 | BD127: 0.2 | BE127: TRUE | BF127: TRUE | BG127: TRUE
A128: RD | B128: NO3 66/11KV TRANS | C128: RD #3 | D128: 9999 | E128: 0 | F128: 0 | G128: - | H128: 0 | I128: 0 | J128: 9999 | K128: 9999 | M128: 92 | N128: =IF('Front Page'!$C$9="WEIBULL",_xlfn.WEIBULL.DIST(M128,$L$2,$L$3,FALSE)/(1-_xlfn.WEIBULL.DIST(M128,$L$2,$L$3,TRUE)),IF(M128<$M$35,$L$4*(1-$M$34),$L$4))*$W$15 -> 0.01498723962 | O128: 0.002997447924 | P128: 0.01198979169 | S128: RD #3 | T128: 9999 | U128: 0 | V128: 0 | W128: - | Z128: 9999 | AB128: 9999 | AC128: 30.48409421 | AD128: 30.48409421 | AH128: 3 | AT128: WIN | AU128: 0.1125 | AV128: TRUE | AW128: TRUE | AX128: TRUE | AY128: TRUE | AZ128: TRUE | BB128: 0.2 | BC128: 0.2 | BD128: 0.2 | BE128: TRUE | BF128: TRUE | BG128: TRUE
A129: SB | B129: NO1 66/11KV TRANS | C129: SB #1 | D129: 2009 | E129: 38.10511777 | F129: 38.10511777 | G129: 0 | H129: 0 | I129: 0 | J129: 1 | K129: 9999 | M129: 93 | N129: =IF('Front Page'!$C$9="WEIBULL",_xlfn.WEIBULL.DIST(M129,$L$2,$L$3,FALSE)/(1-_xlfn.WEIBULL.DIST(M129,$L$2,$L$3,TRUE)),IF(M129<$M$35,$L$4*(1-$M$34),$L$4))*$W$15 -> 0.01526523017 | O129: 0.003053046034 | P129: 0.01221218414 | S129: SB #1 | T129: 2009 | U129: 38.10511777 | V129: 38.10511777 | W129: 0 | Z129: 1 | AB129: 2009 | AC129: 38.10511777 | AD129: 38.10511777 | AH129: 1 | AT129: WMN | AU129: 0.0625 | AV129: TRUE | AW129: TRUE | AX129: TRUE | AY129: TRUE | AZ129: TRUE | BB129: 0.2 | BC129: 0.2 | BD129: 0.2 | BE129: TRUE | BF129: TRUE | BG129: TRUE
A130: SB | B130: NO2 66/11KV TRANS | C130: SB #2 | D130: 2009 | E130: 38.10511777 | F130: 38.10511777 | G130: 0 | H130: 0 | I130: 0 | J130: 2 | K130: 9999 | M130: 94 | N130: =IF('Front Page'!$C$9="WEIBULL",_xlfn.WEIBULL.DIST(M130,$L$2,$L$3,FALSE)/(1-_xlfn.WEIBULL.DIST(M130,$L$2,$L$3,TRUE)),IF(M130<$M$35,$L$4*(1-$M$34),$L$4))*$W$15 -> 0.01554532104 | O130: 0.003109064209 | P130: 0.01243625683 | S130: SB #2 | T130: 2009 | U130: 38.10511777 | V130: 38.10511777 | W130: 0 | Z130: 2 | AB130: 2009 | AC130: 38.10511777 | AD130: 38.10511777 | AH130: 2 | AT130: WND | AU130: 0.2 | AV130: TRUE | AW130: TRUE | AX130: TRUE | AY130: TRUE | AZ130: TRUE | BB130: 0.2 | BC130: 0.2 | BD130: 0.2 | BE130: TRUE | BF130: TRUE | BG130: TRUE
A131: SB | B131: NO3 66/11KV TRANS | C131: SB #3 | D131: 9999 | E131: 0 | F131: 0 | G131: - | H131: 0 | I131: 0 | J131: 9999 | K131: 9999 | M131: 95 | N131: =IF('Front Page'!$C$9="WEIBULL",_xlfn.WEIBULL.DIST(M131,$L$2,$L$3,FALSE)/(1-_xlfn.WEIBULL.DIST(M131,$L$2,$L$3,TRUE)),IF(M131<$M$35,$L$4*(1-$M$34),$L$4))*$W$15 -> 0.01582750551 | O131: 0.003165501102 | P131: 0.01266200441 | S131: SB #3 | T131: 9999 | U131: 0 | V131: 0 | W131: - | Z131: 9999 | AB131: 9999 | AC131: 38.10511777 | AD131: 38.10511777 | AH131: 9999 | AT131: WPD | AU131: 0.0625 | AV131: 0.0625 | AW131: 0.2 | AX131: TRUE | AY131: TRUE | AZ131: TRUE | BB131: 0.2 | BC131: 0.2 | BD131: 0.2 | BE131: TRUE | BF131: TRUE | BG131: TRUE
A132: SK | B132: NO1 66/11KV TRANS | C132: SK #1 | D132: 1968 | E132: 30.48409421 | F132: 30.48409421 | G132: 0 | H132: 0 | I132: 0 | J132: 1 | K132: 9999 | M132: 96 | N132: =IF('Front Page'!$C$9="WEIBULL",_xlfn.WEIBULL.DIST(M132,$L$2,$L$3,FALSE)/(1-_xlfn.WEIBULL.DIST(M132,$L$2,$L$3,TRUE)),IF(M132<$M$35,$L$4*(1-$M$34),$L$4))*$W$15 -> 0.01611177694 | O132: 0.003222355388 | P132: 0.01288942155 | S132: SK #1 | T132: 1968 | U132: 30.48409421 | V132: 30.48409421 | W132: 0 | Z132: 1 | AB132: 1969 | AC132: 20.32272948 | AD132: 20.32272948 | AH132: 1 | AT132: BH | AU132: 0.175 | AV132: 0.05 | AW132: 0.05 | AX132: TRUE | AY132: TRUE | AZ132: TRUE | BB132: 0.2 | BC132: 0.2 | BD132: 0.2 | BE132: TRUE | BF132: TRUE | BG132: TRUE
A133: SK | B133: NO2 66/11KV TRANS | C133: SK #2 | D133: 1968 | E133: 30.48409421 | F133: 30.48409421 | G133: 0 | H133: 0 | I133: 0 | J133: 2 | K133: 9999 | M133: 97 | N133: =IF('Front Page'!$C$9="WEIBULL",_xlfn.WEIBULL.DIST(M133,$L$2,$L$3,FALSE)/(1-_xlfn.WEIBULL.DIST(M133,$L$2,$L$3,TRUE)),IF(M133<$M$35,$L$4*(1-$M$34),$L$4))*$W$15 -> 0.01639812878 | O133: =N133*$L$5 -> 0.003279625756 | P133: =N133*$L$6 -> 0.01311850302 | S133: SK #2 | T133: 1968 | U133: 30.48409421 | V133: 30.48409421 | W133: 0 | Z133: 2 | AB133: 1969 | AC133: 20.32272948 | AD133: 20.32272948 | AH133: 2 | AT133: BR | AU133: 0.05 | AV133: TRUE | AW133: TRUE | AX133: TRUE | AY133: TRUE | AZ133: TRUE | BB133: 0.2 | BC133: 0.2 | BD133: 0.2 | BE133: TRUE | BF133: TRUE | BG133: TRUE
A134: SK | B134: NO3 66/11KV TRANS | C134: SK #3 | D134: 1991 | E134: 0 | F134: 0 | G134: 0 | H134: 0 | I134: 0 | J134: 3 | K134: 9999 | M134: 98 | N134: =IF('Front Page'!$C$9="WEIBULL",_xlfn.WEIBULL.DIST(M134,$L$2,$L$3,FALSE)/(1-_xlfn.WEIBULL.DIST(M134,$L$2,$L$3,TRUE)),IF(M134<$M$35,$L$4*(1-$M$34),$L$4))*$W$15 -> 0.01668655457 | O134: 0.003337310914 | P134: 0.01334924366 | S134: SK #3 | T134: 1991 | U134: 0 | V134: 0 | W134: 0 | Z134: 3 | AB134: 1969 | AC134: 20.32272948 | AD134: 20.32272948 | AH134: 3 | AT134: BT | AU134: 0.175 | AV134: TRUE | AW134: TRUE | AX134: TRUE | AY134: TRUE | AZ134: TRUE | BB134: 0.2 | BC134: 0.2 | BD134: 0.2 | BE134: TRUE | BF134: TRUE | BG134: TRUE
A135: SK | B135: NO4 66/11KV TRANS | C135: SK #4 | D135: 9999 | E135: 0 | F135: 0 | G135: - | H135: 0 | I135: 0 | J135: 9999 | K135: 9999 | M135: 99 | N135: =IF('Front Page'!$C$9="WEIBULL",_xlfn.WEIBULL.DIST(M135,$L$2,$L$3,FALSE)/(1-_xlfn.WEIBULL.DIST(M135,$L$2,$L$3,TRUE)),IF(M135<$M$35,$L$4*(1-$M$34),$L$4))*$W$15 -> 0.01697704795 | O135: 0.00339540959 | P135: 0.01358163836 | S135: SK #4 | T135: 9999 | U135: 0 | V135: 0 | W135: - | Z135: 9999 | AB135: 9999 | AC135: 20.32272948 | AD135: 20.32272948 | AH135: 9999 | AT135: BU | AU135: 0.175 | AV135: TRUE | AW135: TRUE | AX135: TRUE | AY135: TRUE | AZ135: TRUE | BB135: 0.2 | BC135: 0.2 | BD135: 0.2 | BE135: TRUE | BF135: TRUE | BG135: TRUE
A136: SO | B136: NO1 66/11KV TRANS | C136: SO #1 | D136: 1969 | E136: 33.99619153 | F136: 35.736 | G136: 47000 | H136: 0 | I136: 0 | J136: 1 | K136: 9999 | M136: 100 | N136: =IF('Front Page'!$C$9="WEIBULL",_xlfn.WEIBULL.DIST(M136,$L$2,$L$3,FALSE)/(1-_xlfn.WEIBULL.DIST(M136,$L$2,$L$3,TRUE)),IF(M136<$M$35,$L$4*(1-$M$34),$L$4))*$W$15 -> 0.01726960262 | O136: 0.003453920524 | P136: 0.0138156821 | S136: SO #1 | T136: 1969 | U136: 33.99619153 | V136: 35.736 | W136: 47000 | Z136: 1 | AB136: 1969 | AC136: 21.49342858 | AD136: 22.07336474 | AH136: 1 | AT136: BW | AU136: 0.175 | AV136: 0.05 | AW136: 0.05 | AX136: TRUE | AY136: TRUE | AZ136: TRUE | BB136: 0.2 | BC136: 0.2 | BD136: 0.2 | BE136: TRUE | BF136: TRUE | BG136: TRUE
A137: SO | B137: NO2 66/11KV TRANS | C137: SO #2 | D137: 1969 | E137: 30.48409421 | F137: 30.48409421 | G137: 23500 | H137: 0 | I137: 0 | J137: 2 | K137: 9999 | M137: 101 | N137: =IF('Front Page'!$C$9="WEIBULL",_xlfn.WEIBULL.DIST(M137,$L$2,$L$3,FALSE)/(1-_xlfn.WEIBULL.DIST(M137,$L$2,$L$3,TRUE)),IF(M137<$M$35,$L$4*(1-$M$34),$L$4))*$W$15 -> 0.01756421238 | O137: 0.003512842477 | P137: 0.01405136991 | S137: SO #2 | T137: 1969 | U137: 30.48409421 | V137: 30.48409421 | W137: 23500 | Z137: 2 | AB137: 1969 | AC137: 21.49342858 | AD137: 22.07336474 | AH137: 2 | AT137: CDA | AU137: 0.175 | AV137: TRUE | AW137: TRUE | AX137: TRUE | AY137: TRUE | AZ137: TRUE | BB137: 0.2 | BC137: 0.2 | BD137: 0.2 | BE137: TRUE | BF137: TRUE | BG137: TRUE
A138: SO | B138: NO3 66/11KV TRANS | C138: SO #3 | D138: 1988 | E138: 0 | F138: 0 | G138: 23500 | H138: 0 | I138: 0 | J138: 3 | K138: 9999 | M138: 102 | N138: =IF('Front Page'!$C$9="WEIBULL",_xlfn.WEIBULL.DIST(M138,$L$2,$L$3,FALSE)/(1-_xlfn.WEIBULL.DIST(M138,$L$2,$L$3,TRUE)),IF(M138<$M$35,$L$4*(1-$M$34),$L$4))*$W$15 -> 0.01786087111 | O138: 0.003572174222 | P138: 0.01428869689 | S138: SO #3 | T138: 1988 | U138: 0 | V138: 0 | W138: 23500 | Z138: 3 | AB138: 1969 | AC138: 21.49342858 | AD138: 22.07336474 | AH138: 3 | AT138: CFD | AU138: 0.175 | AV138: TRUE | AW138: TRUE | AX138: TRUE | AY138: TRUE | AZ138: TRUE | BB138: 0.2 | BC138: 0.2 | BD138: 0.2 | BE138: TRUE | BF138: TRUE | BG138: TRUE
A139: SO | B139: NO4 66/11KV TRANS | C139: SO #4 | D139: 9999 | E139: 0 | F139: 0 | G139: - | H139: 0 | I139: 0 | J139: 9999 | K139: 9999 | M139: 103 | N139: =IF('Front Page'!$C$9="WEIBULL",_xlfn.WEIBULL.DIST(M139,$L$2,$L$3,FALSE)/(1-_xlfn.WEIBULL.DIST(M139,$L$2,$L$3,TRUE)),IF(M139<$M$35,$L$4*(1-$M$34),$L$4))*$W$15 -> 0.01815957275 | O139: 0.00363191455 | P139: 0.0145276582 | S139: SO #4 | T139: 9999 | U139: 0 | V139: 0 | W139: - | Z139: 9999 | AB139: 9999 | AC139: 21.49342858 | AD139: 22.07336474 | AH139: 9999 | AT139: CM | AU139: 0.0375 | AV139: TRUE | AW139: TRUE | AX139: TRUE | AY139: TRUE | AZ139: TRUE | BB139: 0.2 | BC139: 0.2 | BD139: 0.2 | BE139: TRUE | BF139: TRUE | BG139: TRUE
A140: TK | B140: NO1 66/11KV TRANS | C140: TK #1 | D140: 1968 | E140: 30.48409421 | F140: 30.48409421 | G140: 0 | H140: 0 | I140: 0 | J140: 1 | K140: 9999 | M140: 104 | N140: =IF('Front Page'!$C$9="WEIBULL",_xlfn.WEIBULL.DIST(M140,$L$2,$L$3,FALSE)/(1-_xlfn.WEIBULL.DIST(M140,$L$2,$L$3,TRUE)),IF(M140<$M$35,$L$4*(1-$M$34),$L$4))*$W$15 -> 0.01846031134 | O140: 0.003692062268 | P140: 0.01476824907 | S140: TK #1 | T140: 1968 | U140: 30.48409421 | V140: 30.48409421 | W140: 0 | Z140: 1 | AB140: 1968 | AC140: 32.72377246 | AD140: 33.0244354 | AH140: 1 | AT140: CRM | AU140: 0.05 | AV140: 0.05 | AW140: 0.05 | AX140: TRUE | AY140: TRUE | AZ140: TRUE | BB140: 0.2 | BC140: 0.2 | BD140: 0.2 | BE140: TRUE | BF140: TRUE | BG140: TRUE
A141: TK | B141: NO2 66/11KV TRANS | C141: TK #2 | D141: 1968 | E141: 30.48409421 | F141: 30.48409421 | G141: 0 | H141: 0 | I141: 0 | J141: 2 | K141: 9999 | M141: 105 | N141: =IF('Front Page'!$C$9="WEIBULL",_xlfn.WEIBULL.DIST(M141,$L$2,$L$3,FALSE)/(1-_xlfn.WEIBULL.DIST(M141,$L$2,$L$3,TRUE)),IF(M141<$M$35,$L$4*(1-$M$34),$L$4))*$W$15 -> 0.01876308098 | O141: 0.003752616195 | P141: 0.01501046478 | S141: TK #2 | T141: 1968 | U141: 30.48409421 | V141: 30.48409421 | W141: 0 | Z141: 2 | AB141: 1968 | AC141: 32.72377246 | AD141: 33.0244354 | AH141: 2 | AT141: DC | AU141: 0.05 | AV141: 0.05 | AW141: 0.175 | AX141: TRUE | AY141: TRUE | AZ141: TRUE | BB141: 0.2 | BC141: 0.2 | BD141: 0.2 | BE141: TRUE | BF141: TRUE | BG141: TRUE
A142: TK | B142: NO3 66/11KV TRANS | C142: TK #3 | D142: 2006 | E142: 37.20312896 | F142: 38.10511777 | G142: 0 | H142: 0 | I142: 0 | J142: 3 | K142: 9999 | M142: 106 | N142: =IF('Front Page'!$C$9="WEIBULL",_xlfn.WEIBULL.DIST(M142,$L$2,$L$3,FALSE)/(1-_xlfn.WEIBULL.DIST(M142,$L$2,$L$3,TRUE)),IF(M142<$M$35,$L$4*(1-$M$34),$L$4))*$W$15 -> 0.01906787584 | O142: 0.003813575168 | P142: 0.01525430067 | S142: TK #3 | T142: 2006 | U142: 37.20312896 | V142: 38.10511777 | W142: 0 | Z142: 3 | AB142: 2006 | AC142: 32.72377246 | AD142: 33.0244354 | AH142: 3 | AT142: DMA | AU142: 0.05 | AV142: TRUE | AW142: TRUE | AX142: TRUE | AY142: TRUE | AZ142: TRUE | BB142: 0.2 | BC142: 0.2 | BD142: 0.2 | BE142: TRUE | BF142: TRUE | BG142: TRUE
A143: TK | B143: NO4 66/11KV TRANS | C143: TK #4 | D143: 9999 | E143: 0 | F143: 0 | G143: - | H143: 0 | I143: 0 | J143: 9999 | K143: 9999 | M143: 107 | N143: =IF('Front Page'!$C$9="WEIBULL",_xlfn.WEIBULL.DIST(M143,$L$2,$L$3,FALSE)/(1-_xlfn.WEIBULL.DIST(M143,$L$2,$L$3,TRUE)),IF(M143<$M$35,$L$4*(1-$M$34),$L$4))*$W$15 -> 0.01937469018 | O143: 0.003874938036 | P143: 0.01549975215 | S143: TK #4 | T143: 9999 | U143: 0 | V143: 0 | W143: - | Z143: 9999 | AB143: 9999 | AC143: 32.72377246 | AD143: 33.0244354 | AH143: 9999 | AT143: DN | AU143: 0.0375 | AV143: 0.175 | AW143: 0.0375 | AX143: TRUE | AY143: TRUE | AZ143: TRUE | BB143: 0.2 | BC143: 0.2 | BD143: 0.2 | BE143: TRUE | BF143: TRUE | BG143: TRUE
A144: VM | B144: NO1 66/11KV TRANS | C144: VM #1 | D144: 1966 | E144: 28.93879901 | F144: 30.1725 | G144: 391.6666667 | H144: 25000 | I144: 0 | J144: 2 | K144: 9999 | M144: 108 | N144: =IF('Front Page'!$C$9="WEIBULL",_xlfn.WEIBULL.DIST(M144,$L$2,$L$3,FALSE)/(1-_xlfn.WEIBULL.DIST(M144,$L$2,$L$3,TRUE)),IF(M144<$M$35,$L$4*(1-$M$34),$L$4))*$W$15 -> 0.01968351832 | O144: 0.003936703664 | P144: 0.01574681466 | S144: VM #1 | T144: 1966 | U144: 28.93879901 | V144: 30.1725 | W144: 391.6666667 | X144: 25000 | Z144: 2 | AB144: 1967 | AC144: 29.45389741 | AD144: 30.27636474 | AF144: 16667 | AH144: 1 | AT144: DSH | AU144: TRUE | AV144: 0.175 | AW144: TRUE | AX144: TRUE | AY144: TRUE | AZ144: TRUE | BB144: 0.2 | BC144: 0.2 | BD144: 0.2 | BE144: TRUE | BF144: TRUE | BG144: TRUE
A145: VM | B145: NO2 66/11KV TRANS | C145: VM #2 | D145: 1966 | E145: 28.93879901 | F145: 30.1725 | G145: 195.8333333 | H145: 0 | I145: 0 | J145: 3 | K145: 9999 | M145: 109 | N145: =IF('Front Page'!$C$9="WEIBULL",_xlfn.WEIBULL.DIST(M145,$L$2,$L$3,FALSE)/(1-_xlfn.WEIBULL.DIST(M145,$L$2,$L$3,TRUE)),IF(M145<$M$35,$L$4*(1-$M$34),$L$4))*$W$15 -> 0.01999435464 | O145: 0.003998870928 | P145: 0.01599548371 | S145: VM #2 | T145: 1966 | U145: 28.93879901 | V145: 30.1725 | W145: 195.8333333 | Z145: 3 | AB145: 1967 | AC145: 29.45389741 | AD145: 30.27636474 | AF145: 16667 | AH145: 2 | AT145: DVY | AU145: 0.175 | AV145: 0.175 | AW145: 0.175 | AX145: TRUE | AY145: TRUE | AZ145: TRUE | BB145: 0.2 | BC145: 0.2 | BD145: 0.2 | BE145: TRUE | BF145: TRUE | BG145: TRUE
A146: VM | B146: NO3 66/11KV TRANS | C146: VM #3 | D146: 1976 | E146: 30.48409421 | F146: 30.48409421 | G146: 3701.25 | H146: 25000 | I146: 0 | J146: 1 | K146: 9999 | M146: 110 | N146: =IF('Front Page'!$C$9="WEIBULL",_xlfn.WEIBULL.DIST(M146,$L$2,$L$3,FALSE)/(1-_xlfn.WEIBULL.DIST(M146,$L$2,$L$3,TRUE)),IF(M146<$M$35,$L$4*(1-$M$34),$L$4))*$W$15 -> 0.0203071936 | O146: 0.00406143872 | P146: 0.01624575488 | S146: VM #3 | T146: 1976 | U146: 30.48409421 | V146: 30.48409421 | W146: 3701.25 | X146: 25000 | Z146: 1 | AB146: 1967 | AC146: 29.45389741 | AD146: 30.27636474 | AF146: 16667 | AH146: 3 | AT146: EB | AU146: 0.175 | AV146: 0.0375 | AW146: 0.0375 | AX146: TRUE | AY146: TRUE | AZ146: TRUE | BB146: 0.2 | BC146: 0.2 | BD146: 0.2 | BE146: TRUE | BF146: TRUE | BG146: TRUE
A147: VM | B147: NO3 66/11KV TRANS | C147: VM #4 | D147: 9999 | E147: 0 | F147: 0 | G147: - | H147: 0 | I147: 0 | J147: 9999 | K147: 9999 | M147: 111 | N147: =IF('Front Page'!$C$9="WEIBULL",_xlfn.WEIBULL.DIST(M147,$L$2,$L$3,FALSE)/(1-_xlfn.WEIBULL.DIST(M147,$L$2,$L$3,TRUE)),IF(M147<$M$35,$L$4*(1-$M$34),$L$4))*$W$15 -> 0.02062202972 | O147: 0.004124405944 | P147: 0.01649762377 | S147: VM #4 | T147: 9999 | U147: 0 | V147: 0 | W147: - | Z147: 9999 | AB147: 9999 | AC147: 29.45389741 | AD147: 30.27636474 | AH147: 9999 | AT147: EL | AU147: TRUE | AV147: 0.0375 | AW147: TRUE | AX147: TRUE | AY147: TRUE | AZ147: TRUE | BB147: 0.2 | BC147: 0.2 | BD147: 0.2 | BE147: TRUE | BF147: TRUE | BG147: TRUE
A148: WA | B148: NO1 66/11KV TRANS | C148: WA #1 | D148: 1963 | E148: 30.48409421 | F148: 30.48409421 | G148: 685.4166667 | H148: 0 | I148: 0 | J148: 1 | K148: 9999 | M148: 112 | N148: =IF('Front Page'!$C$9="WEIBULL",_xlfn.WEIBULL.DIST(M148,$L$2,$L$3,FALSE)/(1-_xlfn.WEIBULL.DIST(M148,$L$2,$L$3,TRUE)),IF(M148<$M$35,$L$4*(1-$M$34),$L$4))*$W$15 -> 0.02093885758 | O148: 0.004187771516 | P148: 0.01675108606 | S148: WA #1 | T148: 1963 | U148: 30.48409421 | V148: 30.48409421 | W148: 685.4166667 | Z148: 1 | AB148: 1964 | AC148: 30.48409421 | AD148: 30.48409421 | AF148: 16667 | AH148: 1 | AT148: EM | AU148: 0.175 | AV148: TRUE | AW148: TRUE | AX148: TRUE | AY148: TRUE | AZ148: TRUE | BB148: 0.2 | BC148: 0.2 | BD148: 0.2 | BE148: TRUE | BF148: TRUE | BG148: TRUE
A149: WA | B149: NO2 66/11KV TRANS | C149: WA #2 | D149: 1963 | E149: 30.48409421 | F149: 30.48409421 | G149: 861.6666667 | H149: 0 | I149: 0 | J149: 2 | K149: 9999 | M149: 113 | N149: =IF('Front Page'!$C$9="WEIBULL",_xlfn.WEIBULL.DIST(M149,$L$2,$L$3,FALSE)/(1-_xlfn.WEIBULL.DIST(M149,$L$2,$L$3,TRUE)),IF(M149<$M$35,$L$4*(1-$M$34),$L$4))*$W$15 -> 0.02125767184 | O149: 0.004251534367 | P149: 0.01700613747 | S149: WA #2 | T149: 1963 | U149: 30.48409421 | V149: 30.48409421 | W149: 861.6666667 | Z149: 2 | AB149: 1964 | AC149: 30.48409421 | AD149: 30.48409421 | AF149: 16667 | AH149: 2 | AT149: EW | AU149: 0.175 | AV149: TRUE | AW149: TRUE | AX149: TRUE | AY149: TRUE | AZ149: TRUE | BB149: 0.2 | BC149: 0.2 | BD149: 0.2 | BE149: TRUE | BF149: TRUE | BG149: TRUE
A150: WA | B150: NO3 66/11KV TRANS | C150: WA #3 | D150: 1973 | E150: 30.48409421 | F150: 30.48409421 | G150: 587.5 | H150: 0 | I150: 0 | J150: 3 | K150: 9999 | M150: 114 | N150: =IF('Front Page'!$C$9="WEIBULL",_xlfn.WEIBULL.DIST(M150,$L$2,$L$3,FALSE)/(1-_xlfn.WEIBULL.DIST(M150,$L$2,$L$3,TRUE)),IF(M150<$M$35,$L$4*(1-$M$34),$L$4))*$W$15 -> 0.02157846719 | O150: 0.004315693438 | P150: 0.01726277375 | S150: WA #3 | T150: 1973 | U150: 30.48409421 | V150: 30.48409421 | W150: 587.5 | Z150: 3 | AB150: 1964 | AC150: 30.48409421 | AD150: 30.48409421 | AF150: 16667 | AH150: 3 | AT150: FSH | AU150: 0.0375 | AV150: 0.05 | AW150: 0.0375 | AX150: TRUE | AY150: TRUE | AZ150: TRUE | BB150: 0.2 | BC150: 0.2 | BD150: 0.2 | BE150: TRUE | BF150: TRUE | BG150: TRUE
A151: WA | B151: NO3 66/11KV TRANS | C151: WA #4 | D151: 9999 | E151: 0 | F151: 0 | G151: - | H151: 0 | I151: 0 | J151: 9999 | K151: 9999 | M151: 115 | N151: =IF('Front Page'!$C$9="WEIBULL",_xlfn.WEIBULL.DIST(M151,$L$2,$L$3,FALSE)/(1-_xlfn.WEIBULL.DIST(M151,$L$2,$L$3,TRUE)),IF(M151<$M$35,$L$4*(1-$M$34),$L$4))*$W$15 -> 0.02190123842 | O151: 0.004380247684 | P151: 0.01752099074 | S151: WA #4 | T151: 9999 | U151: 0 | V151: 0 | W151: - | Z151: 9999 | AB151: 9999 | AC151: 30.48409421 | AD151: 30.48409421 | AH151: 9999 | AT151: FTN | AU151: 0.225 | AV151: TRUE | AW151: TRUE | AX151: TRUE | AY151: TRUE | AZ151: TRUE | BB151: 0.2 | BC151: 0.2 | BD151: 0.2 | BE151: TRUE | BF151: TRUE | BG151: TRUE
A152: WB | B152: NO1 66/6.6KV TRANS | C152: WB #1 | D152: 1966 | E152: 18.29045653 | F152: 18.29045653 | G152: 23500 | H152: 0 | I152: 0 | J152: 1 | K152: 9999 | M152: 116 | N152: =IF('Front Page'!$C$9="WEIBULL",_xlfn.WEIBULL.DIST(M152,$L$2,$L$3,FALSE)/(1-_xlfn.WEIBULL.DIST(M152,$L$2,$L$3,TRUE)),IF(M152<$M$35,$L$4*(1-$M$34),$L$4))*$W$15 -> 0.02222598035 | O152: 0.004445196071 | P152: 0.01778078428 | S152: WB #1 | T152: 1966 | U152: 18.29045653 | V152: 18.29045653 | W152: 23500 | Z152: 1 | AB152: 1967 | AC152: 19.81466124 | AD152: 19.81466124 | AH152: 1 | AT152: GW | AU152: 0.05 | AV152: 0.05 | AW152: 0.175 | AX152: TRUE | AY152: TRUE | AZ152: TRUE | BB152: 0.2 | BC152: 0.2 | BD152: 0.2 | BE152: TRUE | BF152: TRUE | BG152: TRUE
A153: WB | B153: NO2 66/6.6KV TRANS | C153: WB #2 | D153: 1966 | E153: 18.29045653 | F153: 18.29045653 | G153: 23500 | H153: 0 | I153: 0 | J153: 2 | K153: 9999 | M153: 117 | N153: =IF('Front Page'!$C$9="WEIBULL",_xlfn.WEIBULL.DIST(M153,$L$2,$L$3,FALSE)/(1-_xlfn.WEIBULL.DIST(M153,$L$2,$L$3,TRUE)),IF(M153<$M$35,$L$4*(1-$M$34),$L$4))*$W$15 -> 0.02255268788 | O153: 0.004510537575 | P153: 0.0180421503 | S153: WB #2 | T153: 1966 | U153: 18.29045653 | V153: 18.29045653 | W153: 23500 | Z153: 2 | AB153: 1967 | AC153: 19.81466124 | AD153: 19.81466124 | AH153: 2 | AT153: HGS | AU153: TRUE | AV153: TRUE | AW153: 0.175 | AX153: TRUE | AY153: TRUE | AZ153: TRUE | BB153: 0.2 | BC153: 0.2 | BD153: 0.2 | BE153: TRUE | BF153: TRUE | BG153: TRUE
A154: WB | B154: NO3 66/6.6KV TRANS | C154: WB #3 | D154: 2021 | E154: 22.86307066 | F154: 22.86307066 | G154: 0 | H154: 0 | I154: 0 | J154: 2021 | K154: 9999 | M154: 118 | N154: =IF('Front Page'!$C$9="WEIBULL",_xlfn.WEIBULL.DIST(M154,$L$2,$L$3,FALSE)/(1-_xlfn.WEIBULL.DIST(M154,$L$2,$L$3,TRUE)),IF(M154<$M$35,$L$4*(1-$M$34),$L$4))*$W$15 -> 0.02288135593 | O154: 0.004576271186 | P154: 0.01830508475 | S154: WB #3 | T154: 2021 | U154: 22.86307066 | V154: 22.86307066 | W154: 0 | Z154: 2021 | AB154: 2021 | AC154: 19.81466124 | AD154: 19.81466124 | AH154: 1 | AT154: HT | AU154: 0.2125 | AV154: 0.2125 | AW154: 0.225 | AX154: TRUE | AY154: TRUE | AZ154: TRUE | BB154: 0.2 | BC154: 0.2 | BD154: 0.2 | BE154: TRUE | BF154: TRUE | BG154: TRUE
A155: WG | B155: NO1 66/11 KV TRANS | C155: WG #1 | D155: 2003 | E155: 33.77137623 | F155: 37.07694 | G155: 0 | H155: 0 | I155: 0 | J155: 1 | K155: 9999 | S155: WG #1 | T155: 2003 | U155: 33.77137623 | V155: 37.07694 | W155: 0 | Z155: 1 | AB155: 2002 | AC155: 34.62633136 | AD155: 37.41588592 | AH155: 1 | AT155: K | AU155: TRUE | AV155: 0.175 | AW155: TRUE | AX155: TRUE | AY155: TRUE | AZ155: TRUE | BB155: 0.2 | BC155: 0.2 | BD155: 0.2 | BE155: TRUE | BF155: TRUE | BG155: TRUE
A156: WG | B156: NO2 66/11 KV TRANS | C156: WG #2 | D156: 2003 | E156: 33.76748418 | F156: 37.0656 | G156: 0 | H156: 0 | I156: 0 | J156: 2 | K156: 9999 | S156: WG #2 | T156: 2003 | U156: 33.76748418 | V156: 37.0656 | W156: 0 | Z156: 2 | AB156: 2002 | AC156: 34.62633136 | AD156: 37.41588592 | AH156: 2 | AT156: KBH | AU156: TRUE | AV156: TRUE | AW156: TRUE | AX156: TRUE | AY156: TRUE | AZ156: TRUE | BB156: 0.2 | BC156: 0.2 | BD156: 0.2 | BE156: TRUE | BF156: TRUE | BG156: TRUE
A157: WG | B157: NO3 66/11 KV TRANS | C157: WG #3 | D157: 2007 | E157: 36.34013368 | F157: 38.10511777 | G157: 0 | H157: 0 | I157: 0 | J157: 3 | K157: 9999 | S157: WG #3 | T157: 2007 | U157: 36.34013368 | V157: 38.10511777 | W157: 0 | Z157: 3 | AB157: 2006 | AC157: 34.62633136 | AD157: 37.41588592 | AH157: 3 | AT157: LD | AU157: 0.175 | AV157: 0.05 | AW157: 0.05 | AX157: TRUE | AY157: TRUE | AZ157: TRUE | BB157: 0.2 | BC157: 0.2 | BD157: 0.2 | BE157: TRUE | BF157: TRUE | BG157: TRUE
A158: WG | B158: NO4 66/11 KV TRANS | C158: WG #4 | D158: 9999 | E158: 0 | F158: 0 | G158: - | H158: 0 | I158: 0 | J158: 9999 | K158: 9999 | S158: WG #4 | T158: 9999 | U158: 0 | V158: 0 | W158: - | Z158: 9999 | AB158: 9999 | AC158: 34.62633136 | AD158: 37.41588592 | AH158: 9999 | AT158: LWN | AU158: TRUE | AV158: 0.175 | AW158: TRUE | AX158: TRUE | AY158: TRUE | AZ158: TRUE | BB158: 0.2 | BC158: 0.2 | BD158: 0.2 | BE158: TRUE | BF158: TRUE | BG158: TRUE
A159: WP | B159: No1 66/11/11KV TRANSFORMER | C159: WP #1 | D159: 2017 | E159: 38.10511777 | F159: 38.10511777 | G159: 0 | H159: 0 | I159: 0 | J159: 1 | K159: 9999 | S159: WP #1 | T159: 2017 | U159: 38.10511777 | V159: 38.10511777 | W159: 0 | Z159: 1 | AB159: 2016 | AC159: 25.40341184 | AD159: 25.40341184 | AH159: 1 | AT159: M | AU159: 0.0375 | AV159: 0.175 | AW159: 0.0375 | AX159: TRUE | AY159: TRUE | AZ159: TRUE | BB159: 0.2 | BC159: 0.2 | BD159: 0.2 | BE159: TRUE | BF159: TRUE | BG159: TRUE
A160: WP | B160: No2 66/11/11KV TRANSFORMER | C160: WP #2 | D160: 2017 | E160: 38.10511777 | F160: 38.10511777 | G160: 0 | H160: 0 | I160: 0 | J160: 2 | K160: 9999 | S160: WP #2 | T160: 2017 | U160: 38.10511777 | V160: 38.10511777 | W160: 0 | Z160: 2 | AB160: 2016 | AC160: 25.40341184 | AD160: 25.40341184 | AH160: 2 | AT160: MC | AU160: 0.175 | AV160: 0.0375 | AW160: 0.0375 | AX160: TRUE | AY160: TRUE | AZ160: TRUE | BB160: 0.2 | BC160: 0.2 | BD160: 0.2 | BE160: TRUE | BF160: TRUE | BG160: TRUE
A161: WP | B161: No3 66/11/11KV TRANSFORMER | C161: WP #3 | D161: 9999 | E161: 0 | F161: 0 | G161: - | H161: 0 | I161: 0 | J161: 9999 | K161: 9999 | S161: WP #3 | T161: 9999 | U161: 0 | V161: 0 | W161: - | Z161: 9999 | AB161: 2016 | AC161: 25.40341184 | AD161: 25.40341184 | AH161: 3 | AT161: MGE | AU161: 0.175 | AV161: 0.05 | AW161: 0.05 | AX161: TRUE | AY161: TRUE | AZ161: TRUE | BB161: 0.2 | BC161: 0.2 | BD161: 0.2 | BE161: TRUE | BF161: TRUE | BG161: TRUE
A162: AC | B162: NO 1 TRANSFORMER | C162: AC #1 | D162: 9999 | E162: 0 | F162: 0 | G162: - | H162: 0 | I162: 0 | J162: 9999 | K162: 9999 | S162: AC #1 | T162: 9999 | U162: 0 | V162: 0 | W162: - | Z162: 9999 | AB162: 9999 | AC162: 29.21856609 | AD162: 33.0772 | AH162: 9999 | AT162: MR | AU162: TRUE | AV162: TRUE | AW162: 0.175 | AX162: TRUE | AY162: TRUE | AZ162: TRUE | BB162: 0.2 | BC162: 0.2 | BD162: 0.2 | BE162: TRUE | BF162: TRUE | BG162: TRUE
A163: AC | B163: NO 2 TRANSFORMER | C163: AC #2 | D163: 1963 | E163: 29.21856609 | F163: 33.0772 | G163: - | H163: 0 | I163: 0 | J163: 1 | K163: 9999 | S163: AC #2 | T163: 1963 | U163: 29.21856609 | V163: 33.0772 | W163: - | Z163: 1 | AB163: 1963 | AC163: 29.21856609 | AD163: 33.0772 | AH163: 1 | AT163: MTN | AU163: TRUE | AV163: 0.175 | AW163: TRUE | AX163: TRUE | AY163: TRUE | AZ163: TRUE | BB163: 0.2 | BC163: 0.2 | BD163: 0.2 | BE163: TRUE | BF163: TRUE | BG163: TRUE
A164: AC | B164: NO 3 TRANSFORMER | C164: AC #3 | D164: 1963 | E164: 29.21856609 | F164: 33.0772 | G164: 24087.5 | H164: 0 | I164: 0 | J164: 2 | K164: 9999 | S164: AC #3 | T164: 1963 | U164: 29.21856609 | V164: 33.0772 | W164: 24087.5 | Z164: 2 | AB164: 1963 | AC164: 29.21856609 | AD164: 33.0772 | AH164: 2 | AT164: NB | AU164: TRUE | AV164: 0.175 | AW164: TRUE | AX164: TRUE | AY164: TRUE | AZ164: TRUE | BB164: 0.2 | BC164: 0.2 | BD164: 0.2 | BE164: TRUE | BF164: TRUE | BG164: TRUE
A165: AL | B165: No 1 TRANSFORMER | C165: AL #1 | D165: 9999 | E165: 0 | F165: 0 | G165: =IFERROR(IF(AND(J165=1,ISREFURB=TRUE,A165=ZSS),VLOOKUP($C165,$S$37:$AH$560,5+$G$11,FALSE)*(1-$G$35),VLOOKUP($C165,$S$37:$AH$560,5+$G$11,FALSE)),0) -> - | H165: 0 | I165: 0 | J165: 9999 | K165: =IF(AND(J165=9999,IS_ADDITIONAL=TRUE,A165=ZSS),$K$35,IF(AND(OR(ISREPLACE=TRUE,ISREPLACETWO=TRUE,ISREPLACETHREE=TRUE),J165=1,A165=ZSS),$K$35,IF(AND(OR(ISREPLACETWO=TRUE,ISREPLACETHREE=TRUE),J165=2,A165=ZSS),$K$35,IF(AND(J165=3,ISREPLACETHREE=TRUE,A165=ZSS),$K$35,9999)))) -> 9999 | S165: AL #1 | T165: 9999 | U165: 0 | V165: 0 | W165: - | Z165: 9999 | AB165: 1959 | AC165: 32.02525631 | AD165: 32.8566705 | AH165: 2 | AT165: NO | AU165: 0.225 | AV165: 0.05 | AW165: 0.05 | AX165: TRUE | AY165: TRUE | AZ165: TRUE | BB165: 0.2 | BC165: 0.2 | BD165: 0.2 | BE165: TRUE | BF165: TRUE | BG165: TRUE
A166: AL | B166: No 2 TRANSFORMER | C166: AL #2 | D166: =VLOOKUP($C166,$S$37:$AH$560,2+$G$11,FALSE) -> 1959 | E166: =VLOOKUP($C166,$S$37:$AH$560,3+$G$11,FALSE) -> 32.02525631 | F166: =VLOOKUP($C166,$S$37:$AH$560,4+$G$11,FALSE) -> 32.8566705 | G166: 56400 | H166: =VLOOKUP($C166,$S$37:$AH$560,6+$G$11,FALSE) -> 0 | I166: =VLOOKUP($C166,$S$37:$AH$560,7+$G$11,FALSE) -> 0 | J166: =VLOOKUP($C166,$S$37:$AH$560,8+$G$11,FALSE) -> 1 | K166: 9999 | S166: AL #2 | T166: 1959 | U166: 32.02525631 | V166: 32.8566705 | W166: 56400 | Z166: 1 | AB166: 1959 | AC166: 32.02525631 | AD166: 32.8566705 | AH166: 1 | AT166: NP | AU166: 0.175 | AV166: 0.0375 | AW166: 0.0375 | AX166: TRUE | AY166: TRUE | AZ166: TRUE | BB166: 0.2 | BC166: 0.2 | BD166: 0.2 | BE166: TRUE | BF166: TRUE | BG166: TRUE
A167: ART | B167: No1 TRANSFORMER | C167: ART #1 | D167: 9999 | E167: 0 | F167: 0 | G167: - | H167: 0 | I167: 0 | J167: 9999 | K167: 9999 | S167: ART #1 | T167: 9999 | U167: 0 | V167: 0 | W167: - | Z167: 9999 | AB167: 9999 | AC167: 15.24204711 | AD167: 15.24204711 | AH167: 9999 | AT167: NW | AU167: 0.225 | AV167: 0.05 | AW167: 0.05 | AX167: TRUE | AY167: TRUE | AZ167: TRUE | BB167: 0.2 | BC167: 0.2 | BD167: 0.2 | BE167: TRUE | BF167: TRUE | BG167: TRUE
A168: ART | B168: No2 TRANSFORMER | C168: ART #2 | D168: 1968 | E168: 15.24204711 | F168: 15.24204711 | G168: - | H168: 0 | I168: 0 | J168: 2 | K168: 9999 | S168: ART #2 | T168: 1968 | U168: 15.24204711 | V168: 15.24204711 | W168: - | Z168: 2 | AB168: 1968 | AC168: 15.24204711 | AD168: 15.24204711 | AH168: 2 | AT168: OAK | AU168: 0.05 | AV168: 0.05 | AW168: 0.05 | AX168: TRUE | AY168: TRUE | AZ168: TRUE | BB168: 0.2 | BC168: 0.2 | BD168: 0.2 | BE168: TRUE | BF168: TRUE | BG168: TRUE
A169: ART | B169: No3 TRANSFORMER | C169: ART #3 | D169: 1965 | E169: 15.24204711 | F169: 15.24204711 | G169: - | H169: 0 | I169: 0 | J169: 1 | K169: 9999 | S169: ART #3 | T169: 1965 | U169: 15.24204711 | V169: 15.24204711 | W169: - | Z169: 1 | AB169: 1965 | AC169: 15.24204711 | AD169: 15.24204711 | AH169: 1 | AT169: OE | AU169: 0.175 | AV169: TRUE | AW169: TRUE | AX169: TRUE | AY169: TRUE | AZ169: TRUE | BB169: 0.2 | BC169: 0.2 | BD169: 0.2 | BE169: TRUE | BF169: TRUE | BG169: TRUE
A170: BAN | B170: No1 TRANSFORMER | C170: BAN #1 | D170: 1966 | E170: 45.72614132 | F170: 45.72614132 | G170: - | H170: 0 | I170: 0 | J170: 1 | K170: 9999 | S170: BAN #1 | T170: 1966 | U170: 45.72614132 | V170: 45.72614132 | W170: - | Z170: 1 | AB170: 1966 | AC170: 45.72614132 | AD170: 45.72614132 | AH170: 1 | AT170: OR | AU170: TRUE | AV170: 0.0375 | AW170: TRUE | AX170: TRUE | AY170: TRUE | AZ170: TRUE | BB170: 0.2 | BC170: 0.2 | BD170: 0.2 | BE170: TRUE | BF170: TRUE | BG170: TRUE
A171: BAN | B171: No2 TRANSFORMER | C171: BAN #2 | D171: 1966 | E171: 45.72614132 | F171: 45.72614132 | G171: - | H171: 0 | I171: 0 | J171: 2 | K171: 9999 | S171: BAN #2 | T171: 1966 | U171: 45.72614132 | V171: 45.72614132 | W171: - | Z171: 2 | AB171: 1966 | AC171: 45.72614132 | AD171: 45.72614132 | AH171: 2 | AT171: RBD | AU171: 0.175 | AV171: TRUE | AW171: TRUE | AX171: TRUE | AY171: TRUE | AZ171: TRUE | BB171: 0.2 | BC171: 0.2 | BD171: 0.2 | BE171: TRUE | BF171: TRUE | BG171: TRUE
A172: BAN | B172: No3 TRANSFORMER | C172: BAN #3 | D172: 1978 | E172: 45.72614132 | F172: 45.72614132 | G172: 141000 | H172: 0 | I172: 0 | J172: 3 | K172: 9999 | S172: BAN #3 | T172: 1978 | U172: 45.72614132 | V172: 45.72614132 | W172: 141000 | Z172: 3 | AB172: 1978 | AC172: 45.72614132 | AD172: 45.72614132 | AH172: 3 | AT172: SR | AU172: TRUE | AV172: 0.175 | AW172: TRUE | AX172: TRUE | AY172: TRUE | AZ172: TRUE | BB172: 0.2 | BC172: 0.2 | BD172: 0.2 | BE172: TRUE | BF172: TRUE | BG172: TRUE
A173: BAN | B173: No4 TRANSFORMER | C173: BAN #4 | D173: 9999 | E173: 0 | F173: 0 | G173: - | H173: 0 | I173: 0 | J173: 9999 | K173: 9999 | S173: BAN #4 | T173: 9999 | U173: 0 | V173: 0 | W173: - | Z173: 9999 | AB173: 9999 | AC173: 45.72614132 | AD173: 45.72614132 | AH173: 9999 | AT173: SS | AU173: 0.175 | AV173: TRUE | AW173: TRUE | AX173: TRUE | AY173: TRUE | AZ173: TRUE | BB173: 0.2 | BC173: 0.2 | BD173: 0.2 | BE173: TRUE | BF173: TRUE | BG173: TRUE
A174: BAS | B174: No 1 TRANSFORMER | C174: BAS #1 | D174: 1979 | E174: 37.87642905 | F174: 38.5737 | G174: - | H174: 0 | I174: 0 | J174: 1 | K174: 9999 | S174: BAS #1 | T174: 1979 | U174: 37.87642905 | V174: 38.5737 | W174: - | Z174: 1 | AB174: 1979 | AC174: 36.41991008 | AD174: 37.939 | AH174: 1 | AT174: SH | AU174: TRUE | AV174: 0.175 | AW174: TRUE | AX174: TRUE | AY174: TRUE | AZ174: TRUE | BB174: 0.2 | BC174: 0.2 | BD174: 0.2 | BE174: TRUE | BF174: TRUE | BG174: TRUE
A175: BAS | B175: No 2 TRANSFORMER | C175: BAS #2 | D175: 1979 | E175: 37.87642905 | F175: 38.5737 | G175: - | H175: 0 | I175: 0 | J175: 2 | K175: 9999 | S175: BAS #2 | T175: 1979 | U175: 37.87642905 | V175: 38.5737 | W175: - | Z175: 2 | AB175: 1979 | AC175: 36.41991008 | AD175: 37.939 | AH175: 2 | AT175: STO | AU175: 0.175 | AV175: TRUE | AW175: TRUE | AX175: TRUE | AY175: TRUE | AZ175: TRUE | BB175: 0.2 | BC175: 0.2 | BD175: 0.2 | BE175: TRUE | BF175: TRUE | BG175: TRUE
A176: BAS | B176: No 3 TRANSFORMER | C176: BAS #3 | D176: 1986 | E176: 33.50687214 | F176: 36.6696 | G176: - | H176: 0 | I176: 0 | J176: 3 | K176: 9999 | S176: BAS #3 | T176: 1986 | U176: 33.50687214 | V176: 36.6696 | W176: - | Z176: 3 | AB176: 1986 | AC176: 36.41991008 | AD176: 37.939 | AH176: 3 | AT176: SV | AU176: TRUE | AV176: 0.05 | AW176: TRUE | AX176: TRUE | AY176: TRUE | AZ176: TRUE | BB176: 0.2 | BC176: 0.2 | BD176: 0.2 | BE176: TRUE | BF176: TRUE | BG176: TRUE
A177: BAS | B177: No 4 TRANSFORMER | C177: BAS #4 | D177: 9999 | E177: 0 | F177: 0 | G177: - | H177: 0 | I177: 0 | J177: 9999 | K177: 9999 | S177: BAS #4 | T177: 9999 | U177: 0 | V177: 0 | W177: - | Z177: 9999 | AB177: 9999 | AC177: 36.41991008 | AD177: 37.939 | AH177: 9999 | AT177: SVW | AU177: TRUE | AV177: TRUE | AW177: TRUE | AX177: TRUE | AY177: TRUE | AZ177: TRUE | BB177: 0.2 | BC177: 0.2 | BD177: 0.2 | BE177: TRUE | BF177: TRUE | BG177: TRUE
A178: BBD | B178: No 1 TRANSFORMER | C178: BBD #1 | D178: 2008 | E178: 48.3804544 | F178: 50.57976 | G178: - | H178: 0 | I178: 0 | J178: 1 | K178: 9999 | S178: BBD #1 | T178: 2008 | U178: 48.3804544 | V178: 50.57976 | W178: - | Z178: 1 | AB178: 2008 | AC178: 46.83020002 | AD178: 48.092385 | AH178: 1 | AT178: WD | AU178: 0.175 | AV178: 0.0375 | AW178: 0.0375 | AX178: TRUE | AY178: TRUE | AZ178: TRUE | BB178: 0.2 | BC178: 0.2 | BD178: 0.2 | BE178: TRUE | BF178: TRUE | BG178: TRUE
A179: BBD | B179: No 2 TRANSFORMER | C179: BBD #2 | D179: 2014 | E179: 45.27994563 | F179: 45.60501 | G179: - | H179: 0 | I179: 0 | J179: 2 | K179: 9999 | S179: BBD #2 | T179: 2014 | U179: 45.27994563 | V179: 45.60501 | W179: - | Z179: 2 | AB179: 2014 | AC179: 46.83020002 | AD179: 48.092385 | AH179: 2
A180: BBD | B180: No 3 TRANSFORMER | C180: BBD #3 | D180: 9999 | E180: 0 | F180: 0 | G180: - | H180: 0 | I180: 0 | J180: 9999 | K180: 9999 | S180: BBD #3 | T180: 9999 | U180: 0 | V180: 0 | W180: - | Z180: 9999 | AB180: 9999 | AC180: 46.83020002 | AD180: 48.092385 | AH180: 9999
A181: BGO | B181: No1 TRANSFORMER | C181: BGO #1 | D181: 1978 | E181: 38.61361685 | F181: 39.83232 | G181: - | H181: 0 | I181: 0 | J181: 1 | K181: 9999 | S181: BGO #1 | T181: 1978 | U181: 38.61361685 | V181: 39.83232 | W181: - | Z181: 1 | AB181: 1978 | AC181: 38.61361685 | AD181: 39.83232 | AH181: 1
A182: BGO | B182: No2 TRANSFORMER | C182: BGO #2 | D182: 1978 | E182: 38.61361685 | F182: 39.83232 | G182: - | H182: 0 | I182: 0 | J182: 2 | K182: 9999 | S182: BGO #2 | T182: 1978 | U182: 38.61361685 | V182: 39.83232 | W182: - | Z182: 2 | AB182: 1978 | AC182: 38.61361685 | AD182: 39.83232 | AH182: 2
A183: BGO | B183: No3 TRANSFORMER | C183: BGO #3 | D183: 9999 | E183: 0 | F183: 0 | G183: - | H183: 0 | I183: 0 | J183: 9999 | K183: 9999 | S183: BGO #3 | T183: 9999 | U183: 0 | V183: 0 | W183: - | Z183: 9999 | AB183: 9999 | AC183: 38.61361685 | AD183: 39.83232 | AH183: 9999
A184: BMH | B184: No1 TRANSFORMER | C184: BMH #1 | D184: 1970 | E184: 12.08441529 | F184: 12.2164 | G184: - | H184: 0 | I184: 0 | J184: 2 | K184: 9999 | S184: BMH #1 | T184: 1970 | U184: 12.08441529 | V184: 12.2164 | W184: - | Z184: 2 | AB184: 1970 | AC184: 12.84306236 | AD184: 12.91085 | AH184: 2
A185: BMH | B185: No2 TRANSFORMER | C185: BMH #2 | D185: 1970 | E185: 13.60170943 | F185: 13.6053 | G185: - | H185: 0 | I185: 0 | J185: 1 | K185: 9999 | S185: BMH #2 | T185: 1970 | U185: 13.60170943 | V185: 13.6053 | W185: - | Z185: 1 | AB185: 1970 | AC185: 12.84306236 | AD185: 12.91085 | AH185: 1
A186: BMH | B186: No3 TRANSFORMER | C186: BMH #3 | D186: 9999 | E186: 0 | F186: 0 | G186: - | H186: 0 | I186: 0 | J186: 9999 | K186: 9999 | S186: BMH #3 | T186: 9999 | U186: 0 | V186: 0 | W186: - | Z186: 9999 | AB186: 9999 | AC186: 12.84306236 | AD186: 12.91085 | AH186: 9999
A187: CDN | B187: No1 TRANSFORMER | C187: CDN #1 | D187: 1962 | E187: 17.03991075 | F187: 17.041185 | G187: - | H187: 0 | I187: 0 | J187: 1 | K187: 9999 | S187: CDN #1 | T187: 1962 | U187: 17.03991075 | V187: 17.041185 | W187: - | Z187: 1 | AB187: 1962 | AC187: 17.03991075 | AD187: 17.041185 | AH187: 1
A188: CDN | B188: No2 TRANSFORMER | C188: CDN #2 | D188: 9999 | E188: 0 | F188: 0 | G188: - | H188: 0 | I188: 0 | J188: 9999 | K188: 9999 | S188: CDN #2 | T188: 9999 | U188: 0 | V188: 0 | W188: - | Z188: 9999 | AB188: 9999 | AC188: 17.03991075 | AD188: 17.041185 | AH188: 9999
A189: CDN | B189: No3 TRANSFORMER | C189: CDN #3 | D189: 1962 | E189: 17.03991075 | F189: 17.041185 | G189: - | H189: 0 | I189: 0 | J189: 2 | K189: 9999 | S189: CDN #3 | T189: 1962 | U189: 17.03991075 | V189: 17.041185 | W189: - | Z189: 2 | AB189: 1962 | AC189: 17.03991075 | AD189: 17.041185 | AH189: 2
A190: CHA | B190: NO 1 TRANSFORMER | C190: CHA #1 | D190: 9999 | E190: 0 | F190: 0 | G190: - | H190: 0 | I190: 0 | J190: 9999 | K190: 9999 | S190: CHA #1 | T190: 9999 | U190: 0 | V190: 0 | W190: - | Z190: 9999 | AB190: 9999 | AC190: 15.47882174 | AD190: 15.492465 | AH190: 9999
A191: CHA | B191: NO 2 TRANSFORMER | C191: CHA #2 | D191: 1962 | E191: 15.47882174 | F191: 15.492465 | G191: 141000 | H191: 0 | I191: 0 | J191: 1 | K191: 9999 | S191: CHA #2 | T191: 1962 | U191: 15.47882174 | V191: 15.492465 | W191: 141000 | Z191: 1 | AB191: 1962 | AC191: 15.47882174 | AD191: 15.492465 | AH191: 1
A192: CHA | B192: NO 3 TRANSFORMER | C192: CHA #3 | D192: 1962 | E192: 15.47882174 | F192: 15.492465 | G192: 35250 | H192: 0 | I192: 0 | J192: 2 | K192: 9999 | S192: CHA #3 | T192: 1962 | U192: 15.47882174 | V192: 15.492465 | W192: 35250 | Z192: 2 | AB192: 1962 | AC192: 15.47882174 | AD192: 15.492465 | AH192: 2
A193: CHM | B193: No1 TRANSFORMER | C193: CHM #1 | D193: 2004 | E193: 39.36453158 | F193: 47.63139721 | G193: - | H193: 0 | I193: 0 | J193: 1 | K193: 9999 | S193: CHM #1 | T193: 2004 | U193: 39.36453158 | V193: 47.63139721 | W193: - | Z193: 1 | AB193: 2004 | AC193: 39.36453158 | AD193: 47.63139721 | AH193: 1
A194: CHM | B194: No2 TRANSFORMER | C194: CHM #2 | D194: 9999 | E194: 0 | F194: 0 | G194: - | H194: 0 | I194: 0 | J194: 9999 | K194: 9999 | S194: CHM #2 | T194: 9999 | U194: 0 | V194: 0 | W194: - | Z194: 9999 | AB194: 9999 | AC194: 39.36453158 | AD194: 47.63139721 | AH194: 9999
A195: CLC | B195: No1 TRANSFORMER | C195: CLC #1 | D195: 2005 | E195: 17.11180737 | F195: 17.130555 | G195: - | H195: 0 | I195: 0 | J195: 2 | K195: 9999 | S195: CLC #1 | T195: 2005 | U195: 17.11180737 | V195: 17.130555 | W195: - | Z195: 2 | AB195: 2005 | AC195: 25.42651189 | AD195: 25.63577 | AH195: 2
A196: CLC | B196: No2 TRANSFORMER | C196: CLC #2 | D196: 1948 | E196: 15.73006347 | F196: 15.792705 | G196: - | H196: 0 | I196: 0 | J196: 1 | K196: 9999 | S196: CLC #2 | T196: 1948 | U196: 15.73006347 | V196: 15.792705 | W196: - | Z196: 1 | AB196: 1948 | AC196: 25.42651189 | AD196: 25.63577 | AH196: 1
A197: CLC | B197: No3 TRANSFORMER | C197: CLC #3 | D197: 2013 | E197: 43.43766485 | F197: 43.98405 | G197: - | H197: 0 | I197: 0 | J197: 3 | K197: 9999 | S197: CLC #3 | T197: 2013 | U197: 43.43766485 | V197: 43.98405 | W197: - | Z197: 3 | AB197: 2013 | AC197: 25.42651189 | AD197: 25.63577 | AH197: 3
A198: CLC | B198: No4 TRANSFORMER | C198: CLC #4 | D198: 9999 | E198: 0 | F198: 0 | G198: - | H198: 0 | I198: 0 | J198: 9999 | K198: 9999 | S198: CLC #4 | T198: 9999 | U198: 0 | V198: 0 | W198: - | Z198: 9999 | AB198: 9999 | AC198: 25.42651189 | AD198: 25.63577 | AH198: 9999
A199: CME | B199: NO 1 TRANSFORMER | C199: CME #1 | D199: 1968 | E199: 15.46554947 | F199: 15.816195 | G199: 59484.375 | H199: 0 | I199: 0 | J199: 2 | K199: 9999 | S199: CME #1 | T199: 1968 | U199: 15.46554947 | V199: 15.816195 | W199: 59484.375 | Z199: 2 | AB199: 1967 | AC199: 15.90239114 | AD199: 16.321005 | AH199: 2
A200: CME | B200: NO 2 TRANSFORMER | C200: CME #2 | D200: 1967 | E200: 15.64502705 | F200: 16.000065 | G200: 59484.375 | H200: 0 | I200: 0 | J200: 1 | K200: 9999 | S200: CME #2 | T200: 1967 | U200: 15.64502705 | V200: 16.000065 | W200: 59484.375 | Z200: 1 | AB200: 1967 | AC200: 15.90239114 | AD200: 16.321005 | AH200: 1
A201: CME | B201: NO 3 TRANSFORMER | C201: CME #3 | D201: 2003 | E201: 16.59659688 | F201: 17.146755 | G201: - | H201: 0 | I201: 0 | J201: 3 | K201: 9999 | S201: CME #3 | T201: 2003 | U201: 16.59659688 | V201: 17.146755 | W201: - | Z201: 3 | AB201: 2003 | AC201: 15.90239114 | AD201: 16.321005 | AH201: 3
A202: CME | B202: NO 4 TRANSFORMER | C202: CME #4 | D202: 9999 | E202: 0 | F202: 0 | G202: - | H202: 0 | I202: 0 | J202: 9999 | K202: 9999 | S202: CME #4 | T202: 9999 | U202: 0 | V202: 0 | W202: - | Z202: 9999 | AB202: 9999 | AC202: 15.90239114 | AD202: 16.321005 | AH202: 9999
A203: CMN | B203: No1 TRANSFORMER | C203: CMN #1 | D203: 9999 | E203: 0 | F203: 0 | G203: - | H203: 0 | I203: 0 | J203: 9999 | K203: 9999 | S203: CMN #1 | T203: 9999 | U203: 0 | V203: 0 | W203: - | Z203: 9999 | AB203: 9999 | AC203: 33 | AD203: 33 | AH203: 9999
A204: CMN | B204: No2 TRANSFORMER | C204: CMN #2 | D204: 2010 | E204: 33 | F204: 33 | G204: - | H204: 0 | I204: 0 | J204: 1 | K204: 9999 | S204: CMN #2 | T204: 2010 | U204: 33 | V204: 33 | W204: - | Z204: 1 | AB204: 2010 | AC204: 33 | AD204: 33 | AH204: 1
A205: CMN | B205: No3 TRANSFORMER | C205: CMN #3 | D205: 2010 | E205: 33 | F205: 33 | G205: - | H205: 0 | I205: 0 | J205: 2 | K205: 9999 | S205: CMN #3 | T205: 2010 | U205: 33 | V205: 33 | W205: - | Z205: 2 | AB205: 2010 | AC205: 33 | AD205: 33 | AH205: 2
A206: COB | B206: No1 TRANSFORMER | C206: COB #1 | D206: 1978 | E206: 15.24204711 | F206: 15.24204711 | G206: - | H206: 0 | I206: 0 | J206: 2 | K206: 9999 | S206: COB #1 | T206: 1978 | U206: 15.24204711 | V206: 15.24204711 | W206: - | Z206: 2 | AB206: 1978 | AC206: 19.62413565 | AD206: 19.62413565 | AH206: 2
A207: COB | B207: No2 TRANSFORMER | C207: COB #2 | D207: 1968 | E207: 24.00622419 | F207: 24.00622419 | G207: - | H207: 0 | I207: 0 | J207: 1 | K207: 9999 | S207: COB #2 | T207: 1968 | U207: 24.00622419 | V207: 24.00622419 | W207: - | Z207: 1 | AB207: 1968 | AC207: 19.62413565 | AD207: 19.62413565 | AH207: 1
A208: COB | B208: No3 TRANSFORMER | C208: COB #3 | D208: 9999 | E208: 0 | F208: 0 | G208: - | H208: 0 | I208: 0 | J208: 9999 | K208: 9999 | S208: COB #3 | T208: 9999 | U208: 0 | V208: 0 | W208: - | Z208: 9999 | AB208: 9999 | AC208: 19.62413565 | AD208: 19.62413565 | AH208: 9999
... 307 more rows

Sheet Engine
A1: Substation | C1: =ZSS -> MNA | O1: Station Load and Capacity Data | W1: Asset Probability Data | AH1: =_xlfn.SINGLE(BETA_NIL)*_xlfn.SINGLE(SENSITIVITY_BETA) -> 0.05
A2: Load Profile | C2: =LOADPROFILE -> 0.5 | D2: Risk Summary | N2: Year | O2: Load Forecast | P2: Peak Load | Q2: Base Load Growth | R2: Peak Load Growth | S2: N Rating | T2: N-1 Cyclic | U2: N-1 2Hr | V2: N-2 Cyclic | W2: N-3 Cyclic | X2: N-4 Cyclic | Y2: Load Transfers | Z2: PoF (Tx1) | AA2: PoF (Tx2) | AB2: PoF (Tx3) | AC2: PoF (Tx4) | AD2: # of Tx | AE2: λ (Annual failure rate per asset | AF2: Age (Tx1) | AG2: Age (Tx2) | AH2: Age (Tx3) | AI2: Age (Tx4) | AJ2: B12 | AK2: B23 | AL2: B13 | AM2: B14 | AN2: B24 | AO2: B34 | AP2: Q1 | AQ2: Q2 | AR2: Q3 | AS2: Q4 | AT2: PoF (1 Path) | AU2: PoF (2 Path) | AV2: PoF (3 Path) | AW2: PoF (4 Path) | AX2: PoF (Significant Fault) | AY2: PoF(Major Fault)
D3: Year | E3: N Risk | F3: 1x Failure | G3: 2x Failure | H3: 3x Failure | I3: 4x Failure | J3: Minor Fault | K3: Total kWh | L3: Feeder Fault | N3: 2024 | O3: =MAX($G$36:$G$3338) -> 0 | P3: =MAX($G$36:$G$3338) -> 0 | S3: =S4 -> 78.46433125 | T3: 39.25486686 | U3: 40.09718842 | V3: 0 | W3: 0 | X3: 0 | AT3: =AT4 -> 0.001588685757 | AU3: =AU4 -> 0.0002274186857 | AV3: =AV4 -> FALSE | AW3: =AW4 -> FALSE
D4: 2025 | E4: =SUMIFS($T$39:$T$4500,$A$39:$A$4500,$D4) -> 0 | F4: =SUMIFS($U$39:$U$4500,$A$39:$A$4500,$D4) -> 0 | G4: =SUMIFS($V$39:$V$4500,$A$39:$A$4500,$D4) -> 4416.833629 | H4: =SUMIFS($W$39:$W$4500,$A$39:$A$4500,$D4) -> 0 | I4: =SUMIFS($X$39:$X$4500,$A$39:$A$4500,$D4) -> 0 | J4: =SUMIFS($Y$39:$Y$4500,$A$39:$A$4500,$D4) -> 0 | K4: =(SUM(E4:I4,L4)) -> 4416.833629 | L4: =HLOOKUP(D4,$AF$58:$BG$67,10,FALSE) -> 0 | N4: =D4 -> 2025 | O4: =IF(LOADPROFILE=0.1,VLOOKUP($C$1,Load!$J:$AN,MATCH(Engine!$N4,Load!$J$2:$AN$2,0),FALSE),VLOOKUP($C$1,Load!$AP:$BT,MATCH(Engine!$N4,Load!$AP$2:$BT$2,0),FALSE)) -> 42.54 | P4: =VLOOKUP($C$1,Load!$J:$AN,MATCH(Engine!$N4,Load!$J$2:$AN$2,0),FALSE) -> 47.16 | Q4: =O4/$O$4-1 -> 0 | R4: =P4/($O$4)-1 -> 0.1086036671 | S4: =HLOOKUP(N4,$AF$39:$BG$51,11,FALSE) -> 78.46433125 | T4: =HLOOKUP($N4,$AF$39:$BG$55,14,FALSE) -> 39.25486686 | U4: =HLOOKUP($N4,$AF$39:$BG$55,13,FALSE) -> 40.09718842 | V4: =HLOOKUP($N4,$AF$39:$BG$55,15,FALSE) -> 0 | W4: =HLOOKUP($N4,$AF$39:$BG$55,16,FALSE) -> 0 | X4: =HLOOKUP($N4,$AF$39:$BG$55,17,FALSE) -> 0 | Y4: =(IF('Front Page'!$C$28=TRUE,VLOOKUP(ZSS, Load!$A$3:$G$384,3,FALSE)*VLOOKUP(ZSS, Load!$A$3:$G$384,4,FALSE),0)+NN_LOAD_TRANSFER) -> 10.7 | Z4: =HLOOKUP($N4, $AF$39:$BG$48,2,FALSE) -> 0.000861234082 | AA4: =HLOOKUP($N4, $AF$39:$BG$48,3,FALSE) -> 0.0009569267578 | AB4: =HLOOKUP($N4, $AF$39:$BG$48,4,FALSE) -> TRUE | AC4: =HLOOKUP($N4, $AF$39:$BG$48,5,FALSE) -> TRUE | AD4: =COUNTIF(Z4:AC4, "<>"&TRUE) -> 2 | AE4: =(Z4*AA4*AB4*AC4)^(1/AD4) -> 0.0009078204326 | AF4: =HLOOKUP($N4, $AF$39:$BG$47,6,FALSE) -> 1978 | AG4: =HLOOKUP($N4, $AF$39:$BG$47,7,FALSE) -> 1978 | AH4: =HLOOKUP($N4, $AF$39:$BG$47,8,FALSE) -> 9999 | AI4: =HLOOKUP($N4, $AF$39:$BG$47,9,FALSE) -> 9999 | AJ4: =VLOOKUP(ZSS,Constants!$AT$37:$BO$178,2+Constants!$H$11,FALSE) -> 0.25 | AK4: =VLOOKUP(ZSS,Constants!$AT$37:$BO$178,3+Constants!$H$11,FALSE) -> TRUE | AL4: =VLOOKUP(ZSS,Constants!$AT$37:$BO$178,4+Constants!$H$11,FALSE) -> TRUE | AM4: =VLOOKUP(ZSS,Constants!$AT$37:$BO$178,5+Constants!$H$11,FALSE) -> TRUE | AN4: =VLOOKUP(ZSS,Constants!$AT$37:$BO$178,6+Constants!$H$11,FALSE) -> TRUE | AO4: =VLOOKUP(ZSS,Constants!$AT$37:$BO$178,7+Constants!$H$11,FALSE) -> TRUE | AP4: =IF(AD4=1,AE4,(1-MAX(AJ4:AO4))*AE4) -> 0.0006808653244 | AQ4: =IF(AD4=1,0,IF(AD4=2,MAX(AJ4:AO4)*AE4,IF(AD4=3,0.5*MAX(AJ4:AO4)*(1-$AH$1)*AE4, IF(AD4=4,0.33*MAX(AJ4:AO4)*$AH$1*(1-$AH$1)*AE4,FALSE)))) -> 0.0002269551081 | AR4: =AQ4*$AH$1 -> 1.134775541e-05 | AS4: =IF(AD4=4,MAX(AJ4:AO4)*$AH$1*$AH$1*AE4,FALSE) -> FALSE | AT4: =IF(AD4=1,AE4,IF(AD4=2,2*AP4+AQ4,IF(AD4=3,3*AP4+3*AQ4+AR4,IF(AD4=4,4*AP4+6*AQ4+4*AR4+AS4)))) -> 0.001588685757 | AU4: =IF(AD4=1,FALSE,IF(AD4=2,AP4^2+AQ4,IF(AD4=3,3*AP4^2+3*AQ4+AR4,IF(AD4=4,6*AP4^2+6*AQ4+4*AR4+AS4)))) -> 0.0002274186857 | AV4: =IF(AD4=3,AP4^3+3*AP4*AQ4+AR4,IF(AD4=4,4*AP4^3+12*AP4*AQ4+3*AQ4^2+4*AR4+AS4,FALSE)) -> FALSE | AW4: =IF(AD4=4,AP4^4+3*AQ4^2+4*AP4*AR4+AS4+6*AP4^2*AQ4,FALSE) -> FALSE | AX4: =(IF(Z4<>TRUE,VLOOKUP(Z4/'Front Page'!$D$10,MAJORMINORPOF,2,TRUE),0)+IF(AA4<>TRUE,VLOOKUP(AA4/'Front Page'!$D$11,MAJORMINORPOF,2,TRUE),0)+IF(AB4<>TRUE,VLOOKUP(AB4/'Front Page'!$D$12,MAJORMINORPOF,2,TRUE),0)+IF(AC4<>TRUE,VLOOKUP(AC4/'Front Page'!$D$13,MAJORMINORPOF,2,TRUE),0)) -> 0.007655414062 | AY4: =SUM(Z4:AC4) -> 0.00181816084
D5: =D4+1 -> 2026 | E5: =SUMIFS($T$39:$T$4500,$A$39:$A$4500,$D5) -> 0 | F5: =SUMIFS($U$39:$U$4500,$A$39:$A$4500,$D5) -> 0 | G5: =SUMIFS($V$39:$V$4500,$A$39:$A$4500,$D5) -> 4637.122125 | H5: =SUMIFS($W$39:$W$4500,$A$39:$A$4500,$D5) -> 0 | I5: =SUMIFS($X$39:$X$4500,$A$39:$A$4500,$D5) -> 0 | J5: =SUMIFS($Y$39:$Y$4500,$A$39:$A$4500,$D5) -> 0 | K5: =(SUM(E5:I5,L5)) -> 4637.122125 | L5: =HLOOKUP(D5,$AF$58:$BG$67,10,FALSE) -> 0 | N5: =D5 -> 2026 | O5: =IF(LOADPROFILE=0.1,VLOOKUP($C$1,Load!$J:$AN,MATCH(Engine!$N5,Load!$J$2:$AN$2,0),FALSE),VLOOKUP($C$1,Load!$AP:$BT,MATCH(Engine!$N5,Load!$AP$2:$BT$2,0),FALSE)) -> 42.78 | P5: =VLOOKUP($C$1,Load!$J:$AN,MATCH(Engine!$N5,Load!$J$2:$AN$2,0),FALSE) -> 47.45 | Q5: =O5/$O$4-1 -> 0.005641748942 | R5: 0.1154207804 | S5: =HLOOKUP(N5,$AF$39:$BG$51,11,FALSE) -> 78.46433125 | T5: =HLOOKUP($N5,$AF$39:$BG$55,14,FALSE) -> 39.25486686 | U5: =HLOOKUP($N5,$AF$39:$BG$55,13,FALSE) -> 40.09718842 | V5: =HLOOKUP($N5,$AF$39:$BG$55,15,FALSE) -> 0 | W5: =HLOOKUP($N5,$AF$39:$BG$55,16,FALSE) -> 0 | X5: =HLOOKUP($N5,$AF$39:$BG$55,17,FALSE) -> 0 | Y5: =(IF('Front Page'!$C$28=TRUE,VLOOKUP(ZSS, Load!$A$3:$G$384,3,FALSE)*VLOOKUP(ZSS, Load!$A$3:$G$384,4,FALSE),0)+NN_LOAD_TRANSFER) -> 10.7 | Z5: =HLOOKUP($N5, $AF$39:$BG$48,2,FALSE) -> 0.0008926165875 | AA5: =HLOOKUP($N5, $AF$39:$BG$48,3,FALSE) -> 0.0009917962083 | AB5: =HLOOKUP($N5, $AF$39:$BG$48,4,FALSE) -> TRUE | AC5: =HLOOKUP($N5, $AF$39:$BG$48,5,FALSE) -> TRUE | AD5: =COUNTIF(Z5:AC5, "<>"&TRUE) -> 2 | AE5: =(Z5*AA5*AB5*AC5)^(1/AD5) -> 0.0009409004979 | AF5: =HLOOKUP($N5, $AF$39:$BG$47,6,FALSE) -> 1978 | AG5: =HLOOKUP($N5, $AF$39:$BG$47,7,FALSE) -> 1978 | AH5: =HLOOKUP($N5, $AF$39:$BG$47,8,FALSE) -> 9999 | AI5: =HLOOKUP($N5, $AF$39:$BG$47,9,FALSE) -> 9999 | AJ5: =VLOOKUP(ZSS,Constants!$AT$37:$BO$178,2+Constants!$H$11,FALSE) -> 0.25 | AK5: =VLOOKUP(ZSS,Constants!$AT$37:$BO$178,3+Constants!$H$11,FALSE) -> TRUE | AL5: =VLOOKUP(ZSS,Constants!$AT$37:$BO$178,4+Constants!$H$11,FALSE) -> TRUE | AM5: =VLOOKUP(ZSS,Constants!$AT$37:$BO$178,5+Constants!$H$11,FALSE) -> TRUE | AN5: =VLOOKUP(ZSS,Constants!$AT$37:$BO$178,6+Constants!$H$11,FALSE) -> TRUE | AO5: =VLOOKUP(ZSS,Constants!$AT$37:$BO$178,7+Constants!$H$11,FALSE) -> TRUE | AP5: =IF(AD5=1,AE5,(1-MAX(AJ5:AO5))*AE5) -> 0.0007056753734 | AQ5: =IF(AD5=1,0,IF(AD5=2,MAX(AJ5:AO5)*AE5,IF(AD5=3,0.5*MAX(AJ5:AO5)*(1-$AH$1)*AE5, IF(AD5=4,0.33*MAX(AJ5:AO5)*$AH$1*(1-$AH$1)*AE5,FALSE)))) -> 0.0002352251245 | AR5: 1.176125622e-05 | AS5: FALSE | AT5: 0.001646575871 | AU5: 0.0002357231022 | AV5: FALSE | AW5: FALSE | AX5: =(IF(Z5<>TRUE,VLOOKUP(Z5/'Front Page'!$D$10,MAJORMINORPOF,2,TRUE),0)+IF(AA5<>TRUE,VLOOKUP(AA5/'Front Page'!$D$11,MAJORMINORPOF,2,TRUE),0)+IF(AB5<>TRUE,VLOOKUP(AB5/'Front Page'!$D$12,MAJORMINORPOF,2,TRUE),0)+IF(AC5<>TRUE,VLOOKUP(AC5/'Front Page'!$D$13,MAJORMINORPOF,2,TRUE),0)) -> 0.007934369667 | AY5: =SUM(Z5:AC5) -> 0.001884412796
D6: =D5+1 -> 2027 | E6: 0 | F6: =SUMIFS($U$39:$U$4500,$A$39:$A$4500,$D6) -> 0 | G6: 4905.318545 | H6: 0 | I6: 0 | J6: 0 | K6: 4905.318545 | L6: =HLOOKUP(D6,$AF$58:$BG$67,10,FALSE) -> 0 | N6: 2027 | O6: =IF(LOADPROFILE=0.1,VLOOKUP($C$1,Load!$J:$AN,MATCH(Engine!$N6,Load!$J$2:$AN$2,0),FALSE),VLOOKUP($C$1,Load!$AP:$BT,MATCH(Engine!$N6,Load!$AP$2:$BT$2,0),FALSE)) -> 43.18 | P6: =VLOOKUP($C$1,Load!$J:$AN,MATCH(Engine!$N6,Load!$J$2:$AN$2,0),FALSE) -> 47.92 | Q6: 0.01504466385 | R6: 0.1264692055 | S6: 78.46433125 | T6: 39.25486686 | U6: 40.09718842 | V6: 0 | W6: 0 | X6: 0 | Y6: =(IF('Front Page'!$C$28=TRUE,VLOOKUP(ZSS, Load!$A$3:$G$384,3,FALSE)*VLOOKUP(ZSS, Load!$A$3:$G$384,4,FALSE),0)+NN_LOAD_TRANSFER) -> 10.7 | Z6: 0.0009244601298 | AA6: 0.001027177922 | AB6: TRUE | AC6: TRUE | AD6: 2 | AE6: 0.0009744665387 | AF6: 1978 | AG6: 1978 | AH6: 9999 | AI6: 9999 | AJ6: =VLOOKUP(ZSS,Constants!$AT$37:$BO$178,2+Constants!$H$11,FALSE) -> 0.25 | AK6: =VLOOKUP(ZSS,Constants!$AT$37:$BO$178,3+Constants!$H$11,FALSE) -> TRUE | AL6: =VLOOKUP(ZSS,Constants!$AT$37:$BO$178,4+Constants!$H$11,FALSE) -> TRUE | AM6: =VLOOKUP(ZSS,Constants!$AT$37:$BO$178,5+Constants!$H$11,FALSE) -> TRUE | AN6: =VLOOKUP(ZSS,Constants!$AT$37:$BO$178,6+Constants!$H$11,FALSE) -> TRUE | AO6: =VLOOKUP(ZSS,Constants!$AT$37:$BO$178,7+Constants!$H$11,FALSE) -> TRUE | AP6: 0.000730849904 | AQ6: 0.0002436166347 | AR6: 1.218083173e-05 | AS6: FALSE | AT6: 0.001705316443 | AU6: 0.0002441507763 | AV6: FALSE | AW6: FALSE | AX6: =(IF(Z6<>TRUE,VLOOKUP(Z6/'Front Page'!$D$10,MAJORMINORPOF,2,TRUE),0)+IF(AA6<>TRUE,VLOOKUP(AA6/'Front Page'!$D$11,MAJORMINORPOF,2,TRUE),0)+IF(AB6<>TRUE,VLOOKUP(AB6/'Front Page'!$D$12,MAJORMINORPOF,2,TRUE),0)+IF(AC6<>TRUE,VLOOKUP(AC6/'Front Page'!$D$13,MAJORMINORPOF,2,TRUE),0)) -> 0.008217423376 | AY6: =SUM(Z6:AC6) -> 0.001951638052
D7: 2028 | E7: 0 | F7: 0 | G7: 5210.304347 | H7: 0 | I7: 0 | J7: 0 | K7: 5210.304347 | L7: =HLOOKUP(D7,$AF$58:$BG$67,10,FALSE) -> 0 | N7: 2028 | O7: =IF(LOADPROFILE=0.1,VLOOKUP($C$1,Load!$J:$AN,MATCH(Engine!$N7,Load!$J$2:$AN$2,0),FALSE),VLOOKUP($C$1,Load!$AP:$BT,MATCH(Engine!$N7,Load!$AP$2:$BT$2,0),FALSE)) -> 43.67 | P7: =VLOOKUP($C$1,Load!$J:$AN,MATCH(Engine!$N7,Load!$J$2:$AN$2,0),FALSE) -> 48.53 | Q7: 0.0265632346 | R7: 0.1408086507 | S7: 78.46433125 | T7: 39.25486686 | U7: 40.09718842 | V7: 0 | W7: 0 | X7: 0 | Y7: =(IF('Front Page'!$C$28=TRUE,VLOOKUP(ZSS, Load!$A$3:$G$384,3,FALSE)*VLOOKUP(ZSS, Load!$A$3:$G$384,4,FALSE),0)+NN_LOAD_TRANSFER) -> 10.7 | Z7: 0.0009567618654 | AA7: 0.001063068739 | AB7: TRUE | AC7: TRUE | AD7: 2 | AE7: 0.001008515558 | AF7: 1978 | AG7: 1978 | AH7: 9999 | AI7: 9999 | AJ7: =VLOOKUP(ZSS,Constants!$AT$37:$BO$178,2+Constants!$H$11,FALSE) -> 0.25 | AK7: =VLOOKUP(ZSS,Constants!$AT$37:$BO$178,3+Constants!$H$11,FALSE) -> TRUE | AL7: =VLOOKUP(ZSS,Constants!$AT$37:$BO$178,4+Constants!$H$11,FALSE) -> TRUE | AM7: =VLOOKUP(ZSS,Constants!$AT$37:$BO$178,5+Constants!$H$11,FALSE) -> TRUE | AN7: =VLOOKUP(ZSS,Constants!$AT$37:$BO$178,6+Constants!$H$11,FALSE) -> TRUE | AO7: =VLOOKUP(ZSS,Constants!$AT$37:$BO$178,7+Constants!$H$11,FALSE) -> TRUE | AP7: 0.0007563866683 | AQ7: 0.0002521288894 | AR7: 1.260644447e-05 | AS7: FALSE | AT7: 0.001764902226 | AU7: 0.0002527010102 | AV7: FALSE | AW7: FALSE | AX7: =(IF(Z7<>TRUE,VLOOKUP(Z7/'Front Page'!$D$10,MAJORMINORPOF,2,TRUE),0)+IF(AA7<>TRUE,VLOOKUP(AA7/'Front Page'!$D$11,MAJORMINORPOF,2,TRUE),0)+IF(AB7<>TRUE,VLOOKUP(AB7/'Front Page'!$D$12,MAJORMINORPOF,2,TRUE),0)+IF(AC7<>TRUE,VLOOKUP(AC7/'Front Page'!$D$13,MAJORMINORPOF,2,TRUE),0)) -> 0.008504549915 | AY7: 0.002019830605
D8: 2029 | E8: 0 | F8: 0 | G8: 5511.509024 | H8: 0 | I8: 0 | J8: 0 | K8: 5511.509024 | L8: 0 | N8: 2029 | O8: =IF(LOADPROFILE=0.1,VLOOKUP($C$1,Load!$J:$AN,MATCH(Engine!$N8,Load!$J$2:$AN$2,0),FALSE),VLOOKUP($C$1,Load!$AP:$BT,MATCH(Engine!$N8,Load!$AP$2:$BT$2,0),FALSE)) -> 44.11 | P8: =VLOOKUP($C$1,Load!$J:$AN,MATCH(Engine!$N8,Load!$J$2:$AN$2,0),FALSE) -> 48.98 | Q8: 0.036906441 | R8: 0.1513869299 | S8: 78.46433125 | T8: 39.25486686 | U8: 40.09718842 | V8: 0 | W8: 0 | X8: 0 | Y8: =(IF('Front Page'!$C$28=TRUE,VLOOKUP(ZSS, Load!$A$3:$G$384,3,FALSE)*VLOOKUP(ZSS, Load!$A$3:$G$384,4,FALSE),0)+NN_LOAD_TRANSFER) -> 10.7 | Z8: 0.0009895190257 | AA8: 0.001099465584 | AB8: TRUE | AC8: TRUE | AD8: 2 | AE8: 0.001043044636 | AF8: 1978 | AG8: 1978 | AH8: 9999 | AI8: 9999 | AJ8: =VLOOKUP(ZSS,Constants!$AT$37:$BO$178,2+Constants!$H$11,FALSE) -> 0.25 | AK8: =VLOOKUP(ZSS,Constants!$AT$37:$BO$178,3+Constants!$H$11,FALSE) -> TRUE | AL8: =VLOOKUP(ZSS,Constants!$AT$37:$BO$178,4+Constants!$H$11,FALSE) -> TRUE | AM8: =VLOOKUP(ZSS,Constants!$AT$37:$BO$178,5+Constants!$H$11,FALSE) -> TRUE | AN8: =VLOOKUP(ZSS,Constants!$AT$37:$BO$178,6+Constants!$H$11,FALSE) -> TRUE | AO8: =VLOOKUP(ZSS,Constants!$AT$37:$BO$178,7+Constants!$H$11,FALSE) -> TRUE | AP8: 0.0007822834773 | AQ8: 0.0002607611591 | AR8: 1.303805796e-05 | AS8: FALSE | AT8: 0.001825328114 | AU8: 0.0002613731265 | AV8: FALSE | AW8: FALSE | AX8: =(IF(Z8<>TRUE,VLOOKUP(Z8/'Front Page'!$D$10,MAJORMINORPOF,2,TRUE),0)+IF(AA8<>TRUE,VLOOKUP(AA8/'Front Page'!$D$11,MAJORMINORPOF,2,TRUE),0)+IF(AB8<>TRUE,VLOOKUP(AB8/'Front Page'!$D$12,MAJORMINORPOF,2,TRUE),0)+IF(AC8<>TRUE,VLOOKUP(AC8/'Front Page'!$D$13,MAJORMINORPOF,2,TRUE),0)) -> 0.008795724673 | AY8: 0.00208898461
D9: 2030 | E9: 0 | F9: 0 | G9: 5733.505449 | H9: 0 | I9: 0 | J9: 0 | K9: 5733.505449 | L9: 0 | N9: 2030 | O9: =IF(LOADPROFILE=0.1,VLOOKUP($C$1,Load!$J:$AN,MATCH(Engine!$N9,Load!$J$2:$AN$2,0),FALSE),VLOOKUP($C$1,Load!$AP:$BT,MATCH(Engine!$N9,Load!$AP$2:$BT$2,0),FALSE)) -> 44.24 | P9: =VLOOKUP($C$1,Load!$J:$AN,MATCH(Engine!$N9,Load!$J$2:$AN$2,0),FALSE) -> 49.18 | Q9: 0.03996238834 | R9: 0.1560883874 | S9: 78.46433125 | T9: 39.25486686 | U9: 40.09718842 | V9: 0 | W9: 0 | X9: 0 | Y9: =(IF('Front Page'!$C$28=TRUE,VLOOKUP(ZSS, Load!$A$3:$G$384,3,FALSE)*VLOOKUP(ZSS, Load!$A$3:$G$384,4,FALSE),0)+NN_LOAD_TRANSFER) -> 10.7 | Z9: 0.001022728913 | AA9: 0.001136365459 | AB9: TRUE | AC9: TRUE | AD9: 2 | AE9: 0.001078050931 | AF9: 1978 | AG9: 1978 | AH9: 9999 | AI9: 9999 | AJ9: =VLOOKUP(ZSS,Constants!$AT$37:$BO$178,2+Constants!$H$11,FALSE) -> 0.25 | AK9: =VLOOKUP(ZSS,Constants!$AT$37:$BO$178,3+Constants!$H$11,FALSE) -> TRUE | AL9: =VLOOKUP(ZSS,Constants!$AT$37:$BO$178,4+Constants!$H$11,FALSE) -> TRUE | AM9: =VLOOKUP(ZSS,Constants!$AT$37:$BO$178,5+Constants!$H$11,FALSE) -> TRUE | AN9: =VLOOKUP(ZSS,Constants!$AT$37:$BO$178,6+Constants!$H$11,FALSE) -> TRUE | AO9: =VLOOKUP(ZSS,Constants!$AT$37:$BO$178,7+Constants!$H$11,FALSE) -> TRUE | AP9: 0.0008085381983 | AQ9: 0.0002695127328 | AR9: 1.347563664e-05 | AS9: FALSE | AT9: 0.001886589129 | AU9: 0.0002701664668 | AV9: FALSE | AW9: FALSE | AX9: =(IF(Z9<>TRUE,VLOOKUP(Z9/'Front Page'!$D$10,MAJORMINORPOF,2,TRUE),0)+IF(AA9<>TRUE,VLOOKUP(AA9/'Front Page'!$D$11,MAJORMINORPOF,2,TRUE),0)+IF(AB9<>TRUE,VLOOKUP(AB9/'Front Page'!$D$12,MAJORMINORPOF,2,TRUE),0)+IF(AC9<>TRUE,VLOOKUP(AC9/'Front Page'!$D$13,MAJORMINORPOF,2,TRUE),0)) -> 0.009090923669 | AY9: 0.002159094371
D10: 2031 | E10: 0 | F10: 0 | G10: 5981.727972 | H10: 0 | I10: 0 | J10: 0 | K10: 5981.727972 | L10: 0 | N10: 2031 | O10: =IF(LOADPROFILE=0.1,VLOOKUP($C$1,Load!$J:$AN,MATCH(Engine!$N10,Load!$J$2:$AN$2,0),FALSE),VLOOKUP($C$1,Load!$AP:$BT,MATCH(Engine!$N10,Load!$AP$2:$BT$2,0),FALSE)) -> 44.44 | P10: =VLOOKUP($C$1,Load!$J:$AN,MATCH(Engine!$N10,Load!$J$2:$AN$2,0),FALSE) -> 49.5 | Q10: 0.04466384579 | R10: 0.1636107193 | S10: 78.46433125 | T10: 39.25486686 | U10: 40.09718842 | V10: 0 | W10: 0 | X10: 0 | Y10: =(IF('Front Page'!$C$28=TRUE,VLOOKUP(ZSS, Load!$A$3:$G$384,3,FALSE)*VLOOKUP(ZSS, Load!$A$3:$G$384,4,FALSE),0)+NN_LOAD_TRANSFER) -> 10.7 | Z10: 0.001056388897 | AA10: 0.001173765441 | AB10: TRUE | AC10: TRUE | AD10: 2 | AE10: 0.001113531669 | AF10: 1978 | AG10: 1978 | AH10: 9999 | AI10: 9999 | AJ10: =VLOOKUP(ZSS,Constants!$AT$37:$BO$178,2+Constants!$H$11,FALSE) -> 0.25 | AK10: =VLOOKUP(ZSS,Constants!$AT$37:$BO$178,3+Constants!$H$11,FALSE) -> TRUE | AL10: =VLOOKUP(ZSS,Constants!$AT$37:$BO$178,4+Constants!$H$11,FALSE) -> TRUE | AM10: =VLOOKUP(ZSS,Constants!$AT$37:$BO$178,5+Constants!$H$11,FALSE) -> TRUE | AN10: =VLOOKUP(ZSS,Constants!$AT$37:$BO$178,6+Constants!$H$11,FALSE) -> TRUE | AO10: =VLOOKUP(ZSS,Constants!$AT$37:$BO$178,7+Constants!$H$11,FALSE) -> TRUE | AP10: 0.0008351487521 | AQ10: 0.0002783829174 | AR10: 1.391914587e-05 | AS10: FALSE | AT10: 0.001948680422 | AU10: 0.0002790803908 | AV10: FALSE | AW10: FALSE | AX10: =(IF(Z10<>TRUE,VLOOKUP(Z10/'Front Page'!$D$10,MAJORMINORPOF,2,TRUE),0)+IF(AA10<>TRUE,VLOOKUP(AA10/'Front Page'!$D$11,MAJORMINORPOF,2,TRUE),0)+IF(AB10<>TRUE,VLOOKUP(AB10/'Front Page'!$D$12,MAJORMINORPOF,2,TRUE),0)+IF(AC10<>TRUE,VLOOKUP(AC10/'Front Page'!$D$13,MAJORMINORPOF,2,TRUE),0)) -> 0.009390123526 | AY10: 0.002230154337
D11: 2032 | E11: 0 | F11: 0 | G11: 6358.825992 | H11: 0 | I11: 0 | J11: 0 | K11: 6358.825992 | L11: 0 | N11: 2032 | O11: =IF(LOADPROFILE=0.1,VLOOKUP($C$1,Load!$J:$AN,MATCH(Engine!$N11,Load!$J$2:$AN$2,0),FALSE),VLOOKUP($C$1,Load!$AP:$BT,MATCH(Engine!$N11,Load!$AP$2:$BT$2,0),FALSE)) -> 45.03 | P11: =VLOOKUP($C$1,Load!$J:$AN,MATCH(Engine!$N11,Load!$J$2:$AN$2,0),FALSE) -> 50.15 | Q11: 0.05853314528 | R11: 0.178890456 | S11: 78.46433125 | T11: 39.25486686 | U11: 40.09718842 | V11: 0 | W11: 0 | X11: 0 | Y11: =(IF('Front Page'!$C$28=TRUE,VLOOKUP(ZSS, Load!$A$3:$G$384,3,FALSE)*VLOOKUP(ZSS, Load!$A$3:$G$384,4,FALSE),0)+NN_LOAD_TRANSFER) -> 10.7 | Z11: 0.001090496413 | AA11: 0.001211662681 | AB11: TRUE | AC11: TRUE | AD11: 2 | AE11: 0.001149484148 | AF11: 1978 | AG11: 1978 | AH11: 9999 | AI11: 9999 | AJ11: =VLOOKUP(ZSS,Constants!$AT$37:$BO$178,2+Constants!$H$11,FALSE) -> 0.25 | AK11: =VLOOKUP(ZSS,Constants!$AT$37:$BO$178,3+Constants!$H$11,FALSE) -> TRUE | AL11: =VLOOKUP(ZSS,Constants!$AT$37:$BO$178,4+Constants!$H$11,FALSE) -> TRUE | AM11: =VLOOKUP(ZSS,Constants!$AT$37:$BO$178,5+Constants!$H$11,FALSE) -> TRUE | AN11: =VLOOKUP(ZSS,Constants!$AT$37:$BO$178,6+Constants!$H$11,FALSE) -> TRUE | AO11: =VLOOKUP(ZSS,Constants!$AT$37:$BO$178,7+Constants!$H$11,FALSE) -> TRUE | AP11: 0.000862113111 | AQ11: 0.000287371037 | AR11: 1.436855185e-05 | AS11: FALSE | AT11: 0.002011597259 | AU11: 0.000288114276 | AV11: FALSE | AW11: FALSE | AX11: =(IF(Z11<>TRUE,VLOOKUP(Z11/'Front Page'!$D$10,MAJORMINORPOF,2,TRUE),0)+IF(AA11<>TRUE,VLOOKUP(AA11/'Front Page'!$D$11,MAJORMINORPOF,2,TRUE),0)+IF(AB11<>TRUE,VLOOKUP(AB11/'Front Page'!$D$12,MAJORMINORPOF,2,TRUE),0)+IF(AC11<>TRUE,VLOOKUP(AC11/'Front Page'!$D$13,MAJORMINORPOF,2,TRUE),0)) -> 0.009693301446 | AY11: 0.002302159093
D12: 2033 | E12: 0 | F12: 0 | G12: 6776.36047 | H12: 0 | I12: 0 | J12: 0 | K12: 6776.36047 | L12: 0 | N12: 2033 | O12: =IF(LOADPROFILE=0.1,VLOOKUP($C$1,Load!$J:$AN,MATCH(Engine!$N12,Load!$J$2:$AN$2,0),FALSE),VLOOKUP($C$1,Load!$AP:$BT,MATCH(Engine!$N12,Load!$AP$2:$BT$2,0),FALSE)) -> 45.7 | P12: =VLOOKUP($C$1,Load!$J:$AN,MATCH(Engine!$N12,Load!$J$2:$AN$2,0),FALSE) -> 50.88 | Q12: 0.07428302774 | R12: 0.1960507757 | S12: 78.46433125 | T12: 39.25486686 | U12: 40.09718842 | V12: 0 | W12: 0 | X12: 0 | Y12: =(IF('Front Page'!$C$28=TRUE,VLOOKUP(ZSS, Load!$A$3:$G$384,3,FALSE)*VLOOKUP(ZSS, Load!$A$3:$G$384,4,FALSE),0)+NN_LOAD_TRANSFER) -> 10.7 | Z12: 0.001125048958 | AA12: 0.001250054398 | AB12: TRUE | AC12: TRUE | AD12: 2 | AE12: 0.001185905729 | AF12: 1978 | AG12: 1978 | AH12: 9999 | AI12: 9999 | AJ12: =VLOOKUP(ZSS,Constants!$AT$37:$BO$178,2+Constants!$H$11,FALSE) -> 0.25 | AK12: =VLOOKUP(ZSS,Constants!$AT$37:$BO$178,3+Constants!$H$11,FALSE) -> TRUE | AL12: =VLOOKUP(ZSS,Constants!$AT$37:$BO$178,4+Constants!$H$11,FALSE) -> TRUE | AM12: =VLOOKUP(ZSS,Constants!$AT$37:$BO$178,5+Constants!$H$11,FALSE) -> TRUE | AN12: =VLOOKUP(ZSS,Constants!$AT$37:$BO$178,6+Constants!$H$11,FALSE) -> TRUE | AO12: =VLOOKUP(ZSS,Constants!$AT$37:$BO$178,7+Constants!$H$11,FALSE) -> TRUE | AP12: 0.0008894292964 | AQ12: 0.0002964764321 | AR12: 1.482382161e-05 | AS12: FALSE | AT12: 0.002075335025 | AU12: 0.0002972675166 | AV12: FALSE | AW12: FALSE | AX12: =(IF(Z12<>TRUE,VLOOKUP(Z12/'Front Page'!$D$10,MAJORMINORPOF,2,TRUE),0)+IF(AA12<>TRUE,VLOOKUP(AA12/'Front Page'!$D$11,MAJORMINORPOF,2,TRUE),0)+IF(AB12<>TRUE,VLOOKUP(AB12/'Front Page'!$D$12,MAJORMINORPOF,2,TRUE),0)+IF(AC12<>TRUE,VLOOKUP(AC12/'Front Page'!$D$13,MAJORMINORPOF,2,TRUE),0)) -> 0.01000043518 | AY12: 0.002375103355
D13: 2034 | E13: 0 | F13: 0 | G13: 7037.468372 | H13: 0 | I13: 0 | J13: 0 | K13: 7037.468372 | L13: 0 | N13: 2034 | O13: =IF(LOADPROFILE=0.1,VLOOKUP($C$1,Load!$J:$AN,MATCH(Engine!$N13,Load!$J$2:$AN$2,0),FALSE),VLOOKUP($C$1,Load!$AP:$BT,MATCH(Engine!$N13,Load!$AP$2:$BT$2,0),FALSE)) -> 45.85 | P13: =VLOOKUP($C$1,Load!$J:$AN,MATCH(Engine!$N13,Load!$J$2:$AN$2,0),FALSE) -> 51.1 | Q13: 0.07780912083 | R13: 0.2012223789 | S13: 78.46433125 | T13: 39.25486686 | U13: 40.09718842 | V13: 0 | W13: 0 | X13: 0 | Y13: =(IF('Front Page'!$C$28=TRUE,VLOOKUP(ZSS, Load!$A$3:$G$384,3,FALSE)*VLOOKUP(ZSS, Load!$A$3:$G$384,4,FALSE),0)+NN_LOAD_TRANSFER) -> 10.7 | Z13: 0.001160044089 | AA13: 0.001288937877 | AB13: TRUE | AC13: TRUE | AD13: 2 | AE13: 0.001222793836 | AF13: 1978 | AG13: 1978 | AH13: 9999 | AI13: 9999 | AJ13: =VLOOKUP(ZSS,Constants!$AT$37:$BO$178,2+Constants!$H$11,FALSE) -> 0.25 | AK13: =VLOOKUP(ZSS,Constants!$AT$37:$BO$178,3+Constants!$H$11,FALSE) -> TRUE | AL13: =VLOOKUP(ZSS,Constants!$AT$37:$BO$178,4+Constants!$H$11,FALSE) -> TRUE | AM13: =VLOOKUP(ZSS,Constants!$AT$37:$BO$178,5+Constants!$H$11,FALSE) -> TRUE | AN13: =VLOOKUP(ZSS,Constants!$AT$37:$BO$178,6+Constants!$H$11,FALSE) -> TRUE | AO13: =VLOOKUP(ZSS,Constants!$AT$37:$BO$178,7+Constants!$H$11,FALSE) -> TRUE | AP13: 0.0009170953768 | AQ13: 0.0003056984589 | AR13: 1.528492295e-05 | AS13: FALSE | AT13: 0.002139889213 | AU13: 0.0003065395229 | AV13: FALSE | AW13: FALSE | AX13: =(IF(Z13<>TRUE,VLOOKUP(Z13/'Front Page'!$D$10,MAJORMINORPOF,2,TRUE),0)+IF(AA13<>TRUE,VLOOKUP(AA13/'Front Page'!$D$11,MAJORMINORPOF,2,TRUE),0)+IF(AB13<>TRUE,VLOOKUP(AB13/'Front Page'!$D$12,MAJORMINORPOF,2,TRUE),0)+IF(AC13<>TRUE,VLOOKUP(AC13/'Front Page'!$D$13,MAJORMINORPOF,2,TRUE),0)) -> 0.01031150301 | AY13: 0.002448981966
D14: 2035 | E14: 0 | F14: 0 | G14: 7253.046507 | H14: 0 | I14: 0 | J14: 0 | K14: 7253.046507 | L14: 0 | N14: 2035 | O14: =IF(LOADPROFILE=0.1,VLOOKUP($C$1,Load!$J:$AN,MATCH(Engine!$N14,Load!$J$2:$AN$2,0),FALSE),VLOOKUP($C$1,Load!$AP:$BT,MATCH(Engine!$N14,Load!$AP$2:$BT$2,0),FALSE)) -> 45.85 | P14: =VLOOKUP($C$1,Load!$J:$AN,MATCH(Engine!$N14,Load!$J$2:$AN$2,0),FALSE) -> 51.1 | Q14: 0.07780912083 | R14: 0.2012223789 | S14: 78.46433125 | T14: 39.25486686 | U14: 40.09718842 | V14: 0 | W14: 0 | X14: 0 | Y14: =(IF('Front Page'!$C$28=TRUE,VLOOKUP(ZSS, Load!$A$3:$G$384,3,FALSE)*VLOOKUP(ZSS, Load!$A$3:$G$384,4,FALSE),0)+NN_LOAD_TRANSFER) -> 10.7 | Z14: 0.00119547942 | AA14: 0.001328310467 | AB14: TRUE | AC14: TRUE | AD14: 2 | AE14: 0.001260145954 | AF14: 1978 | AG14: 1978 | AH14: 9999 | AI14: 9999 | AJ14: =VLOOKUP(ZSS,Constants!$AT$37:$BO$178,2+Constants!$H$11,FALSE) -> 0.25 | AK14: =VLOOKUP(ZSS,Constants!$AT$37:$BO$178,3+Constants!$H$11,FALSE) -> TRUE | AL14: =VLOOKUP(ZSS,Constants!$AT$37:$BO$178,4+Constants!$H$11,FALSE) -> TRUE | AM14: =VLOOKUP(ZSS,Constants!$AT$37:$BO$178,5+Constants!$H$11,FALSE) -> TRUE | AN14: =VLOOKUP(ZSS,Constants!$AT$37:$BO$178,6+Constants!$H$11,FALSE) -> TRUE | AO14: =VLOOKUP(ZSS,Constants!$AT$37:$BO$178,7+Constants!$H$11,FALSE) -> TRUE | AP14: 0.0009451094657 | AQ14: 0.0003150364886 | AR14: 1.575182443e-05 | AS14: FALSE | AT14: 0.00220525542 | AU14: 0.0003159297205 | AV14: FALSE | AW14: FALSE | AX14: =(IF(Z14<>TRUE,VLOOKUP(Z14/'Front Page'!$D$10,MAJORMINORPOF,2,TRUE),0)+IF(AA14<>TRUE,VLOOKUP(AA14/'Front Page'!$D$11,MAJORMINORPOF,2,TRUE),0)+IF(AB14<>TRUE,VLOOKUP(AB14/'Front Page'!$D$12,MAJORMINORPOF,2,TRUE),0)+IF(AC14<>TRUE,VLOOKUP(AC14/'Front Page'!$D$13,MAJORMINORPOF,2,TRUE),0)) -> 0.01062648373 | AY14: 0.002523789887
D15: 2036 | E15: 0 | F15: 0 | G15: 7471.32521 | H15: 0 | I15: 0 | J15: 0 | K15: 7471.32521 | L15: 0 | N15: 2036 | O15: =IF(LOADPROFILE=0.1,VLOOKUP($C$1,Load!$J:$AN,MATCH(Engine!$N15,Load!$J$2:$AN$2,0),FALSE),VLOOKUP($C$1,Load!$AP:$BT,MATCH(Engine!$N15,Load!$AP$2:$BT$2,0),FALSE)) -> 45.85 | P15: =VLOOKUP($C$1,Load!$J:$AN,MATCH(Engine!$N15,Load!$J$2:$AN$2,0),FALSE) -> 51.1 | Q15: 0.07780912083 | R15: 0.2012223789 | S15: 78.46433125 | T15: 39.25486686 | U15: 40.09718842 | V15: 0 | W15: 0 | X15: 0 | Y15: =(IF('Front Page'!$C$28=TRUE,VLOOKUP(ZSS, Load!$A$3:$G$384,3,FALSE)*VLOOKUP(ZSS, Load!$A$3:$G$384,4,FALSE),0)+NN_LOAD_TRANSFER) -> 10.7 | Z15: 0.001231352619 | AA15: 0.001368169577 | AB15: TRUE | AC15: TRUE | AD15: 2 | AE15: 0.001297959627 | AF15: 1978 | AG15: 1978 | AH15: 9999 | AI15: 9999 | AJ15: =VLOOKUP(ZSS,Constants!$AT$37:$BO$178,2+Constants!$H$11,FALSE) -> 0.25 | AK15: =VLOOKUP(ZSS,Constants!$AT$37:$BO$178,3+Constants!$H$11,FALSE) -> TRUE | AL15: =VLOOKUP(ZSS,Constants!$AT$37:$BO$178,4+Constants!$H$11,FALSE) -> TRUE | AM15: =VLOOKUP(ZSS,Constants!$AT$37:$BO$178,5+Constants!$H$11,FALSE) -> TRUE | AN15: =VLOOKUP(ZSS,Constants!$AT$37:$BO$178,6+Constants!$H$11,FALSE) -> TRUE | AO15: =VLOOKUP(ZSS,Constants!$AT$37:$BO$178,7+Constants!$H$11,FALSE) -> TRUE | AP15: 0.0009734697201 | AQ15: 0.0003244899067 | AR15: 1.622449533e-05 | AS15: FALSE | AT15: 0.002271429347 | AU15: 0.00032543755 | AV15: FALSE | AW15: FALSE | AX15: =(IF(Z15<>TRUE,VLOOKUP(Z15/'Front Page'!$D$10,MAJORMINORPOF,2,TRUE),0)+IF(AA15<>TRUE,VLOOKUP(AA15/'Front Page'!$D$11,MAJORMINORPOF,2,TRUE),0)+IF(AB15<>TRUE,VLOOKUP(AB15/'Front Page'!$D$12,MAJORMINORPOF,2,TRUE),0)+IF(AC15<>TRUE,VLOOKUP(AC15/'Front Page'!$D$13,MAJORMINORPOF,2,TRUE),0)) -> 0.01094535662 | AY15: 0.002599522197
D16: 2037 | E16: 0 | F16: 0 | G16: 7692.291964 | H16: 0 | I16: 0 | J16: 0 | K16: 7692.291964 | L16: 0 | N16: 2037 | O16: =IF(LOADPROFILE=0.1,VLOOKUP($C$1,Load!$J:$AN,MATCH(Engine!$N16,Load!$J$2:$AN$2,0),FALSE),VLOOKUP($C$1,Load!$AP:$BT,MATCH(Engine!$N16,Load!$AP$2:$BT$2,0),FALSE)) -> 45.85 | P16: =VLOOKUP($C$1,Load!$J:$AN,MATCH(Engine!$N16,Load!$J$2:$AN$2,0),FALSE) -> 51.1 | Q16: 0.07780912083 | R16: 0.2012223789 | S16: 78.46433125 | T16: 39.25486686 | U16: 40.09718842 | V16: 0 | W16: 0 | X16: 0 | Y16: =(IF('Front Page'!$C$28=TRUE,VLOOKUP(ZSS, Load!$A$3:$G$384,3,FALSE)*VLOOKUP(ZSS, Load!$A$3:$G$384,4,FALSE),0)+NN_LOAD_TRANSFER) -> 10.7 | Z16: 0.001267661409 | AA16: 0.001408512676 | AB16: TRUE | AC16: TRUE | AD16: 2 | AE16: 0.001336232451 | AF16: 1978 | AG16: 1978 | AH16: 9999 | AI16: 9999 | AJ16: =VLOOKUP(ZSS,Constants!$AT$37:$BO$178,2+Constants!$H$11,FALSE) -> 0.25 | AK16: =VLOOKUP(ZSS,Constants!$AT$37:$BO$178,3+Constants!$H$11,FALSE) -> TRUE | AL16: =VLOOKUP(ZSS,Constants!$AT$37:$BO$178,4+Constants!$H$11,FALSE) -> TRUE | AM16: =VLOOKUP(ZSS,Constants!$AT$37:$BO$178,5+Constants!$H$11,FALSE) -> TRUE | AN16: =VLOOKUP(ZSS,Constants!$AT$37:$BO$178,6+Constants!$H$11,FALSE) -> TRUE | AO16: =VLOOKUP(ZSS,Constants!$AT$37:$BO$178,7+Constants!$H$11,FALSE) -> TRUE | AP16: 0.001002174338 | AQ16: 0.0003340581128 | AR16: 1.670290564e-05 | AS16: FALSE | AT16: 0.002338406789 | AU16: 0.0003350624662 | AV16: FALSE | AW16: FALSE | AX16: =(IF(Z16<>TRUE,VLOOKUP(Z16/'Front Page'!$D$10,MAJORMINORPOF,2,TRUE),0)+IF(AA16<>TRUE,VLOOKUP(AA16/'Front Page'!$D$11,MAJORMINORPOF,2,TRUE),0)+IF(AB16<>TRUE,VLOOKUP(AB16/'Front Page'!$D$12,MAJORMINORPOF,2,TRUE),0)+IF(AC16<>TRUE,VLOOKUP(AC16/'Front Page'!$D$13,MAJORMINORPOF,2,TRUE),0)) -> 0.01126810141 | AY16: 0.002676174085
D17: 2038 | E17: 0 | F17: 0 | G17: 7915.934566 | H17: 0 | I17: 0 | J17: 0 | K17: 7915.934566 | L17: 0 | N17: 2038 | O17: =IF(LOADPROFILE=0.1,VLOOKUP($C$1,Load!$J:$AN,MATCH(Engine!$N17,Load!$J$2:$AN$2,0),FALSE),VLOOKUP($C$1,Load!$AP:$BT,MATCH(Engine!$N17,Load!$AP$2:$BT$2,0),FALSE)) -> 45.85 | P17: =VLOOKUP($C$1,Load!$J:$AN,MATCH(Engine!$N17,Load!$J$2:$AN$2,0),FALSE) -> 51.1 | Q17: 0.07780912083 | R17: 0.2012223789 | S17: 78.46433125 | T17: 39.25486686 | U17: 40.09718842 | V17: 0 | W17: 0 | X17: 0 | Y17: =(IF('Front Page'!$C$28=TRUE,VLOOKUP(ZSS, Load!$A$3:$G$384,3,FALSE)*VLOOKUP(ZSS, Load!$A$3:$G$384,4,FALSE),0)+NN_LOAD_TRANSFER) -> 10.7 | Z17: 0.001304403559 | AA17: 0.001449337288 | AB17: TRUE | AC17: TRUE | AD17: 2 | AE17: 0.001374962078 | AF17: 1978 | AG17: 1978 | AH17: 9999 | AI17: 9999 | AJ17: =VLOOKUP(ZSS,Constants!$AT$37:$BO$178,2+Constants!$H$11,FALSE) -> 0.25 | AK17: =VLOOKUP(ZSS,Constants!$AT$37:$BO$178,3+Constants!$H$11,FALSE) -> TRUE | AL17: =VLOOKUP(ZSS,Constants!$AT$37:$BO$178,4+Constants!$H$11,FALSE) -> TRUE | AM17: =VLOOKUP(ZSS,Constants!$AT$37:$BO$178,5+Constants!$H$11,FALSE) -> TRUE | AN17: =VLOOKUP(ZSS,Constants!$AT$37:$BO$178,6+Constants!$H$11,FALSE) -> TRUE | AO17: =VLOOKUP(ZSS,Constants!$AT$37:$BO$178,7+Constants!$H$11,FALSE) -> TRUE | AP17: 0.001031221559 | AQ17: 0.0003437405196 | AR17: 1.718702598e-05 | AS17: FALSE | AT17: 0.002406183637 | AU17: 0.0003448039375 | AV17: FALSE | AW17: FALSE | AX17: =(IF(Z17<>TRUE,VLOOKUP(Z17/'Front Page'!$D$10,MAJORMINORPOF,2,TRUE),0)+IF(AA17<>TRUE,VLOOKUP(AA17/'Front Page'!$D$11,MAJORMINORPOF,2,TRUE),0)+IF(AB17<>TRUE,VLOOKUP(AB17/'Front Page'!$D$12,MAJORMINORPOF,2,TRUE),0)+IF(AC17<>TRUE,VLOOKUP(AC17/'Front Page'!$D$13,MAJORMINORPOF,2,TRUE),0)) -> 0.0115946983 | AY17: 0.002753740847
D18: 2039 | E18: 0 | F18: 0 | G18: 8142.241116 | H18: 0 | I18: 0 | J18: 0 | K18: 8142.241116 | L18: 0 | N18: 2039 | O18: =IF(LOADPROFILE=0.1,VLOOKUP($C$1,Load!$J:$AN,MATCH(Engine!$N18,Load!$J$2:$AN$2,0),FALSE),VLOOKUP($C$1,Load!$AP:$BT,MATCH(Engine!$N18,Load!$AP$2:$BT$2,0),FALSE)) -> 45.85 | P18: =VLOOKUP($C$1,Load!$J:$AN,MATCH(Engine!$N18,Load!$J$2:$AN$2,0),FALSE) -> 51.1 | Q18: 0.07780912083 | R18: 0.2012223789 | S18: 78.46433125 | T18: 39.25486686 | U18: 40.09718842 | V18: 0 | W18: 0 | X18: 0 | Y18: =(IF('Front Page'!$C$28=TRUE,VLOOKUP(ZSS, Load!$A$3:$G$384,3,FALSE)*VLOOKUP(ZSS, Load!$A$3:$G$384,4,FALSE),0)+NN_LOAD_TRANSFER) -> 10.7 | Z18: 0.001341576892 | AA18: 0.001490640991 | AB18: TRUE | AC18: TRUE | AD18: 2 | AE18: 0.001414146211 | AF18: 1978 | AG18: 1978 | AH18: 9999 | AI18: 9999 | AJ18: =VLOOKUP(ZSS,Constants!$AT$37:$BO$178,2+Constants!$H$11,FALSE) -> 0.25 | AK18: =VLOOKUP(ZSS,Constants!$AT$37:$BO$178,3+Constants!$H$11,FALSE) -> TRUE | AL18: =VLOOKUP(ZSS,Constants!$AT$37:$BO$178,4+Constants!$H$11,FALSE) -> TRUE | AM18: =VLOOKUP(ZSS,Constants!$AT$37:$BO$178,5+Constants!$H$11,FALSE) -> TRUE | AN18: =VLOOKUP(ZSS,Constants!$AT$37:$BO$178,6+Constants!$H$11,FALSE) -> TRUE | AO18: =VLOOKUP(ZSS,Constants!$AT$37:$BO$178,7+Constants!$H$11,FALSE) -> TRUE | AP18: 0.001060609658 | AQ18: 0.0003535365528 | AR18: 1.767682764e-05 | AS18: FALSE | AT18: 0.00247475587 | AU18: 0.0003546614457 | AV18: FALSE | AW18: FALSE | AX18: =(IF(Z18<>TRUE,VLOOKUP(Z18/'Front Page'!$D$10,MAJORMINORPOF,2,TRUE),0)+IF(AA18<>TRUE,VLOOKUP(AA18/'Front Page'!$D$11,MAJORMINORPOF,2,TRUE),0)+IF(AB18<>TRUE,VLOOKUP(AB18/'Front Page'!$D$12,MAJORMINORPOF,2,TRUE),0)+IF(AC18<>TRUE,VLOOKUP(AC18/'Front Page'!$D$13,MAJORMINORPOF,2,TRUE),0)) -> 0.01192512793 | AY18: 0.002832217882
D19: 2040 | E19: 0 | F19: 0 | G19: 8371.200005 | H19: 0 | I19: 0 | J19: 0 | K19: 8371.200005 | L19: 0 | N19: 2040 | O19: =IF(LOADPROFILE=0.1,VLOOKUP($C$1,Load!$J:$AN,MATCH(Engine!$N19,Load!$J$2:$AN$2,0),FALSE),VLOOKUP($C$1,Load!$AP:$BT,MATCH(Engine!$N19,Load!$AP$2:$BT$2,0),FALSE)) -> 45.85 | P19: =VLOOKUP($C$1,Load!$J:$AN,MATCH(Engine!$N19,Load!$J$2:$AN$2,0),FALSE) -> 51.1 | Q19: 0.07780912083 | R19: 0.2012223789 | S19: 78.46433125 | T19: 39.25486686 | U19: 40.09718842 | V19: 0 | W19: 0 | X19: 0 | Y19: =(IF('Front Page'!$C$28=TRUE,VLOOKUP(ZSS, Load!$A$3:$G$384,3,FALSE)*VLOOKUP(ZSS, Load!$A$3:$G$384,4,FALSE),0)+NN_LOAD_TRANSFER) -> 10.7 | Z19: 0.001379179273 | AA19: 0.001532421414 | AB19: TRUE | AC19: TRUE | AD19: 2 | AE19: 0.001453782601 | AF19: 1978 | AG19: 1978 | AH19: 9999 | AI19: 9999 | AJ19: =VLOOKUP(ZSS,Constants!$AT$37:$BO$178,2+Constants!$H$11,FALSE) -> 0.25 | AK19: =VLOOKUP(ZSS,Constants!$AT$37:$BO$178,3+Constants!$H$11,FALSE) -> TRUE | AL19: =VLOOKUP(ZSS,Constants!$AT$37:$BO$178,4+Constants!$H$11,FALSE) -> TRUE | AM19: =VLOOKUP(ZSS,Constants!$AT$37:$BO$178,5+Constants!$H$11,FALSE) -> TRUE | AN19: =VLOOKUP(ZSS,Constants!$AT$37:$BO$178,6+Constants!$H$11,FALSE) -> TRUE | AO19: =VLOOKUP(ZSS,Constants!$AT$37:$BO$178,7+Constants!$H$11,FALSE) -> TRUE | AP19: 0.001090336951 | AQ19: 0.0003634456503 | AR19: 1.817228252e-05 | AS19: FALSE | AT19: 0.002544119552 | AU19: 0.000364634485 | AV19: FALSE | AW19: FALSE | AX19: =(IF(Z19<>TRUE,VLOOKUP(Z19/'Front Page'!$D$10,MAJORMINORPOF,2,TRUE),0)+IF(AA19<>TRUE,VLOOKUP(AA19/'Front Page'!$D$11,MAJORMINORPOF,2,TRUE),0)+IF(AB19<>TRUE,VLOOKUP(AB19/'Front Page'!$D$12,MAJORMINORPOF,2,TRUE),0)+IF(AC19<>TRUE,VLOOKUP(AC19/'Front Page'!$D$13,MAJORMINORPOF,2,TRUE),0)) -> 0.01225937131 | AY19: 0.002911600687
D20: 2041 | E20: 0 | F20: 0 | G20: 8602.799906 | H20: 0 | I20: 0 | J20: 0 | K20: 8602.799906 | L20: 0 | N20: 2041 | O20: =IF(LOADPROFILE=0.1,VLOOKUP($C$1,Load!$J:$AN,MATCH(Engine!$N20,Load!$J$2:$AN$2,0),FALSE),VLOOKUP($C$1,Load!$AP:$BT,MATCH(Engine!$N20,Load!$AP$2:$BT$2,0),FALSE)) -> 45.85 | P20: =VLOOKUP($C$1,Load!$J:$AN,MATCH(Engine!$N20,Load!$J$2:$AN$2,0),FALSE) -> 51.1 | Q20: 0.07780912083 | R20: 0.2012223789 | S20: 78.46433125 | T20: 39.25486686 | U20: 40.09718842 | V20: 0 | W20: 0 | X20: 0 | Y20: =(IF('Front Page'!$C$28=TRUE,VLOOKUP(ZSS, Load!$A$3:$G$384,3,FALSE)*VLOOKUP(ZSS, Load!$A$3:$G$384,4,FALSE),0)+NN_LOAD_TRANSFER) -> 10.7 | Z20: 0.001417208615 | AA20: 0.001574676239 | AB20: TRUE | AC20: TRUE | AD20: 2 | AE20: 0.001493869047 | AF20: 1978 | AG20: 1978 | AH20: 9999 | AI20: 9999 | AJ20: =VLOOKUP(ZSS,Constants!$AT$37:$BO$178,2+Constants!$H$11,FALSE) -> 0.25 | AK20: =VLOOKUP(ZSS,Constants!$AT$37:$BO$178,3+Constants!$H$11,FALSE) -> TRUE | AL20: =VLOOKUP(ZSS,Constants!$AT$37:$BO$178,4+Constants!$H$11,FALSE) -> TRUE | AM20: =VLOOKUP(ZSS,Constants!$AT$37:$BO$178,5+Constants!$H$11,FALSE) -> TRUE | AN20: =VLOOKUP(ZSS,Constants!$AT$37:$BO$178,6+Constants!$H$11,FALSE) -> TRUE | AO20: =VLOOKUP(ZSS,Constants!$AT$37:$BO$178,7+Constants!$H$11,FALSE) -> TRUE | AP20: 0.001120401786 | AQ20: 0.0003734672619 | AR20: 1.867336309e-05 | AS20: FALSE | AT20: 0.002614270833 | AU20: 0.000374722562 | AV20: FALSE | AW20: FALSE | AX20: =(IF(Z20<>TRUE,VLOOKUP(Z20/'Front Page'!$D$10,MAJORMINORPOF,2,TRUE),0)+IF(AA20<>TRUE,VLOOKUP(AA20/'Front Page'!$D$11,MAJORMINORPOF,2,TRUE),0)+IF(AB20<>TRUE,VLOOKUP(AB20/'Front Page'!$D$12,MAJORMINORPOF,2,TRUE),0)+IF(AC20<>TRUE,VLOOKUP(AC20/'Front Page'!$D$13,MAJORMINORPOF,2,TRUE),0)) -> 0.01259740991 | AY20: 0.002991884853
